Workbook

Sheet anasayfa
A1: KORDS | B1: =VLOOKUP(A1,'hisse listesi'!$A$2:$B$500,2,0) -> Kordsa Teknik Tekstil | C1: 2016/12 | D1: 2017/12 | E1: 2018/12 | F1: 2019/03 | G1: 2019/06 | H1: 2019/09 | I1: 2019/12
A2: BİLANÇO | B2: 2015/12 | C2: 2016/12 | D2: 2017/12 | E2: 2018/12 | F2: 2019/03 | G2: 2019/06 | H2: 2019/09 | I2: 2019/12
A3: DÖNEN VARLIKLAR | B3: =INDIRECT($A$1&"!"&ADDRESS(ROW(),COLUMN())) -> 944708069 | C3: =INDIRECT($A$1&"!"&ADDRESS(ROW(),COLUMN())) -> 1045142495 | D3: 1197106104 | E3: 2148514481 | F3: 2567715241 | G3: 3013143647 | H3: 2600636598 | I3: 3075250381 | J3: =I3/$I$72 -> 0.4288678695
A4: Hazır Değerler | B4: =INDIRECT($A$1&"!"&ADDRESS(ROW(),COLUMN())) -> 17783491 | C4: 38578445 | D4: 15561882 | E4: 130801662 | F4: 350082566 | G4: 523525805 | H4: 276374108 | I4: 729636576 | J4: =I4/$I$72 -> 0.1017535632
A5: Gayrimenkul Projeleri Kapsamında Açılan Nakit Hesapları | B5: 0 | C5: 0 | D5: 0 | E5: 0 | F5: 0 | G5: 0 | H5: 0 | I5: 0 | J5: 0
A6: Finansal Yatırımlar | B6: 93564 | C6: 113245 | D6: 121377 | E6: 86617 | F6: 92667 | G6: 74 | H6: 72 | I6: 76 | J6: 1.059879816e-08
A7: Menkul Kıymetler | B7: 0 | C7: 0 | D7: 0 | E7: 0 | F7: 0 | G7: 0 | H7: 0 | I7: 0 | J7: 0
A8: Türkiye Cumhuriyet Merkez Bankası Hesabı | B8: 0 | C8: 0 | D8: 0 | E8: 0 | F8: 0 | G8: 0 | H8: 0 | I8: 0 | J8: 0
A9: Krediler ve Avanslar | B9: 0 | C9: 0 | D9: 0 | E9: 0 | F9: 0 | G9: 0 | H9: 0 | I9: 0 | J9: 0
A10: Faktoring alacakları (net) | B10: 0 | C10: 0 | D10: 0 | E10: 0 | F10: 0 | G10: 0 | H10: 0 | I10: 0 | J10: 0
A11: Teminata Verilen Finansal Varlıklar | B11: 0 | C11: 0 | D11: 0 | E11: 0 | F11: 0 | G11: 0 | H11: 0 | I11: 0 | J11: 0
A12: Kısa Vadeli Ticari Alacaklar | B12: 296897640 | C12: 372220309 | D12: 483495983 | E12: 829674943 | F12: 1005521128 | G12: 975554750 | H12: 896808026 | I12: 969210914 | J12: 0.1351640902
A13: Finansal Kiralama Alacakları | B13: 0 | C13: 0 | D13: 0 | E13: 0 | F13: 0 | G13: 0 | H13: 0 | I13: 0 | J13: 0
A14: Finans Sektörü Faal. Alacaklar | B14: 0 | C14: 0 | D14: 0 | E14: 0 | F14: 0 | G14: 0 | H14: 0 | I14: 0 | J14: 0
A15: İlişkili Taraflardan Alacaklar | B15: 0 | C15: 0 | D15: 0 | E15: 0 | F15: 0 | G15: 0 | H15: 0 | I15: 0 | J15: 0
A16: Diğer Kısa Vadeli Alacaklar | B16: 14602727 | C16: 11390436 | D16: 5482795 | E16: 15365854 | F16: 20329890 | G16: 22589476 | H16: 49533600 | I16: 25785710 | J16: 0.003596020207
A17: Canlı Varlıklar | B17: 0 | C17: 0 | D17: 0 | E17: 0 | F17: 0 | G17: 0 | H17: 0 | I17: 0 | J17: 0
A18: Kullanımı Kısıtlı Banka Bakiyeleri | B18: 0 | C18: 0 | D18: 0 | E18: 0 | F18: 0 | G18: 0 | H18: 0 | I18: 0 | J18: 0
A19: Stoklar | B19: 424724533 | C19: 537383667 | D19: 585300852 | E19: 1047581862 | F19: 1089634296 | G19: 1343171810 | H19: 1264542390 | I19: 1231050823 | J19: 0.1716797263
A20: Peşin Ödenen Kira Giderleri | B20: =INDIRECT($A$1&"!"&ADDRESS(ROW(),COLUMN())) -> 0 | C20: 0 | D20: 0 | E20: 0 | F20: 0 | G20: 0 | H20: 0 | I20: 0 | J20: 0
A21: Müşteri Sözleşmelerinden Doğan Varlıklar | B21: 0 | C21: 0 | D21: 0 | E21: 0 | F21: 0 | G21: 0 | H21: 0 | I21: 0 | J21: 0
A22: İmtiyaz Sözleşmelerine İlişkin Finansal Varlıklar | B22: 0 | C22: 0 | D22: 0 | E22: 0 | F22: 0 | G22: 0 | H22: 0 | I22: 0 | J22: 0
A23: Türev Enstrümanlar | B23: 12233648 | C23: 1221515 | D23: 5893324 | E23: 2678327 | F23: 1823924 | G23: 3721425 | H23: 13354172 | I23: 8146818 | J23: 0.00113613789
A24: Ertelenen Vergi Varlıkları | B24: 0 | C24: 0 | D24: 0 | E24: 0 | F24: 0 | G24: 0 | H24: 0 | I24: 0 | J24: 0
A25: Durdurulan faaliyetler ile ilgili varlıklar | B25: 0 | C25: 0 | D25: 0 | E25: 0 | F25: 0 | G25: 0 | H25: 0 | I25: 0 | J25: 0
A26: Ertelenmiş Sigortacılık Üretim Giderleri | B26: 0 | C26: 0 | D26: 0 | E26: 0 | F26: 0 | G26: 0 | H26: 0 | I26: 0 | J26: 0
A27: Peşin Ödenmiş Giderler | B27: 15514156 | C27: 19311952 | D27: 19548866 | E27: 15108621 | F27: 37956901 | G27: 49750826 | H27: 34299120 | I27: 41551462 | J27: 0.005794678409
A28: Cari Dönem Vergisiyle İlgili Varlıklar | B28: 2450765 | C28: 0 | D28: 5483994 | E28: 0 | F28: 0 | G28: 0 | H28: 0 | I28: 4312390 | J28: 0.0006013967264
A29: Nakit Dışı Serbest Kullanılabilir Teminatlar | B29: 0 | C29: 0 | D29: 0 | E29: 0 | F29: 0 | G29: 0 | H29: 0 | I29: 0 | J29: 0
A30: Diğer Dönen Varlıklar | B30: 46186420 | C30: 43142543 | D30: 65022246 | E30: 92996136 | F30: 54559561 | G30: 88355735 | H30: 59020795 | I30: 58207881 | J30: 0.008117547134
A31: Vadesine kadar elde tut. men. kıy. | B31: 0 | C31: 0 | D31: 0 | E31: 0 | F31: 0 | G31: 0 | H31: 0 | I31: 0 | J31: 0
A32: Satılmaya Hazır Finansal Varlıklar | B32: 0 | C32: 0 | D32: 0 | E32: 0 | F32: 0 | G32: 0 | H32: 0 | I32: 0 | J32: 0
A33: Alım Satım Amaçlı Menkul Kıymetler | B33: 0 | C33: 0 | D33: 0 | E33: 0 | F33: 0 | G33: 0 | H33: 0 | I33: 0 | J33: 0
A34: İş Ortaklıklarının Dönen Varlıklar İçindeki Payı | B34: 0 | C34: 0 | D34: 0 | E34: 0 | F34: 0 | G34: 0 | H34: 0 | I34: 0 | J34: 0
A35: Elden Çıkarılacak Faaliyetler ile İlgili Varlıklar | B35: 0 | C35: 0 | D35: 0 | E35: 0 | F35: 0 | G35: 0 | H35: 0 | I35: 0 | J35: 0
A36: Satım amaçlı elde tutulan maddi duran varlıklar | B36: =INDIRECT($A$1&"!"&ADDRESS(ROW(),COLUMN())) -> 114221125 | C36: 21780383 | D36: 11194785 | E36: 14220459 | F36: 7714308 | G36: 6473746 | H36: 6704315 | I36: 7347731 | J36: 0.001024698919
A37: Ortaklara Dağıtılmak Üzere Elde Tutulan Duran Varlıklar | B37: 0 | C37: 0 | D37: 0 | E37: 0 | F37: 0 | G37: 0 | H37: 0 | I37: 0 | J37: 0
A38: DURAN VARLIKLAR | B38: 1229323747 | C38: 1498531622 | D38: 1669447282 | E38: 2681672036 | F38: 2820653696 | G38: 2905401256 | H38: 3894241712 | I38: 4095373952 | J38: 0.5711321305
A39: Menkul Kıymetler | B39: 0 | C39: 0 | D39: 0 | E39: 0 | F39: 0 | G39: 0 | H39: 0 | I39: 0 | J39: 0
A40: Krediler ve Avanslar | B40: 0 | C40: 0 | D40: 0 | E40: 0 | F40: 0 | G40: 0 | H40: 0 | I40: 0 | J40: 0
A41: Faktoring alacakları (net) | B41: 0 | C41: 0 | D41: 0 | E41: 0 | F41: 0 | G41: 0 | H41: 0 | I41: 0 | J41: 0
A42: Uzun Vadeli Ticari Alacaklar | B42: 0 | C42: 0 | D42: 0 | E42: 0 | F42: 0 | G42: 0 | H42: 0 | I42: 0 | J42: 0
A43: Finansal Kiralama Alacakları | B43: 0 | C43: 0 | D43: 0 | E43: 0 | F43: 0 | G43: 0 | H43: 0 | I43: 0 | J43: 0
A44: Finans Sektörü Faal. Alacaklar | B44: 0 | C44: 0 | D44: 0 | E44: 0 | F44: 0 | G44: 0 | H44: 0 | I44: 0 | J44: 0
A45: İlişkili Taraflardan Alacaklar | B45: 0 | C45: 0 | D45: 0 | E45: 0 | F45: 0 | G45: 0 | H45: 0 | I45: 0 | J45: 0
A46: Türev Enstrümanlar | B46: 0 | C46: 0 | D46: 0 | E46: 0 | F46: 0 | G46: 0 | H46: 0 | I46: 0 | J46: 0
A47: Diğer Uzun Vadeli Alacaklar | B47: 13197714 | C47: 20378723 | D47: 30603616 | E47: 31543902 | F47: 34298737 | G47: 35079261 | H47: 29952972 | I47: 41441509 | J47: 0.005779344598
A48: Finansal Yatırımlar | B48: 290589 | C48: 386091 | D48: 411103 | E48: 528396 | F48: 563657 | G48: 581271 | H48: 548476 | I48: 585981 | J48: 8.171966244e-05
A49: Özkaynak Yöntemiyle Değerlenen Yatırımlar | B49: 0 | C49: 0 | D49: 0 | E49: 0 | F49: 0 | G49: 0 | H49: 0 | I49: 0 | J49: 0
A50: Canlı Varlıklar | B50: 0 | C50: 0 | D50: 0 | E50: 0 | F50: 0 | G50: 0 | H50: 0 | I50: 0 | J50: 0
A51: İmtiyaz Sözleşmelerine İlişkin Finansal Varlıklar | B51: 0 | C51: 0 | D51: 0 | E51: 0 | F51: 0 | G51: 0 | H51: 0 | I51: 0 | J51: 0
A52: Stoklar | B52: =INDIRECT($A$1&"!"&ADDRESS(ROW(),COLUMN())) -> 0 | C52: 0 | D52: 0 | E52: 0 | F52: 0 | G52: 0 | H52: 0 | I52: 0 | J52: 0
A53: Finansal Duran Varlıklar | B53: 0 | C53: 0 | D53: 0 | E53: 0 | F53: 0 | G53: 0 | H53: 0 | I53: 0 | J53: 0
A54: Pozitif/Negatif Şerefiye | B54: 0 | C54: 0 | D54: 0 | E54: 0 | F54: 0 | G54: 0 | H54: 0 | I54: 0 | J54: 0
A55: Yatırım Amaçlı Gayrimenkuller | B55: 28190850 | C55: 40123712 | D55: 47041172 | E55: 114874106 | F55: 122898633 | G55: 125665184 | H55: 123568981 | I55: 138171192 | J55: 0.01926906021
A56: Proje Halindeki Yatırım Amaçlı Gayrimenkuller | B56: 0 | C56: 0 | D56: 0 | E56: 0 | F56: 0 | G56: 0 | H56: 0 | I56: 0 | J56: 0
A57: Alım Satım Amaçlı Gayrimenkuller (net) | B57: 0 | C57: 0 | D57: 0 | E57: 0 | F57: 0 | G57: 0 | H57: 0 | I57: 0 | J57: 0
A58: Maddi Duran Varlıklar | B58: 1045102304 | C58: 1285506141 | D58: 1426734593 | E58: 1939572181 | F58: 2037083730 | G58: 2070305810 | H58: 2065460904 | I58: 2174297121 | J58: 0.3032228464
A59: Kullanım Hakkı Varlıkları | B59: 0 | C59: 0 | D59: 0 | E59: 0 | F59: 20678957 | G59: 20082706 | H59: 80537299 | I59: 83802346 | J59: 0.01168689672
A60: Maddi Olmayan Duran Varlıklar | B60: 77294572 | C60: 76157412 | D60: 82521648 | E60: 464855686 | F60: 487767541 | G60: 533907587 | H60: 1475969028 | I60: 1531484773 | J60: 0.2135776052
A61: Müşteri Sözleşmelerinden Doğan Varlıklar | B61: 0 | C61: 0 | D61: 0 | E61: 0 | F61: 0 | G61: 0 | H61: 0 | I61: 0 | J61: 0
A62: Ertelenen Vergi Varlıkları | B62: 29046999 | C62: 35223175 | D62: 38415780 | E62: 72659987 | F62: 51482865 | G62: 51586353 | H62: 51929646 | I62: 44284637 | J62: 0.006175841174
A63: Cari Dönem Vergisiyle İlgili Duran Varlıklar | B63: 0 | C63: 0 | D63: 0 | E63: 0 | F63: 0 | G63: 0 | H63: 0 | I63: 0 | J63: 0
A64: Nakit Dışı Serbest Kullanılabilir Teminatlar | B64: 0 | C64: 0 | D64: 0 | E64: 0 | F64: 0 | G64: 0 | H64: 0 | I64: 0 | J64: 0
A65: Peşin Ödenen Kira Giderleri | B65: 0 | C65: 0 | D65: 0 | E65: 0 | F65: 0 | G65: 0 | H65: 0 | I65: 0 | J65: 0
A66: Peşin Ödenmiş Giderler | B66: 9245107 | C66: 6793806 | D66: 2048075 | E66: 2255759 | F66: 2942126 | G66: 2200714 | H66: 2311010 | I66: 9051777 | J66: 0.001262341545
A67: Diğer Duran Varlıklar | B67: 26955612 | C67: 33962562 | D67: 41671295 | E67: 55382019 | F67: 62937450 | G67: 65992370 | H67: 63963396 | I67: 72254616 | J67: 0.01007647488
A68: Vadesine kadar elde tut. men. kıy. | B68: =INDIRECT($A$1&"!"&ADDRESS(ROW(),COLUMN())) -> 0 | C68: 0 | D68: 0 | E68: 0 | F68: 0 | G68: 0 | H68: 0 | I68: 0 | J68: =I68/$I$72 -> 0
A69: Satılmaya Hazır Finansal Varlıklar | B69: 0 | C69: 0 | D69: 0 | E69: 0 | F69: 0 | G69: 0 | H69: 0 | I69: 0 | J69: 0
A70: İş Ortaklıklarının Duran Varlıklar İçindeki Payı | B70: 0 | C70: 0 | D70: 0 | E70: 0 | F70: 0 | G70: 0 | H70: 0 | I70: 0 | J70: 0
A71: Ana Ortaklık Dışı Paylar | B71: 0 | C71: 0 | D71: 0 | E71: 0 | F71: 0 | G71: 0 | H71: 0 | I71: 0 | J71: 0
A72: TOPLAM AKTİFLER | B72: 2174031816 | C72: 2543674117 | D72: 2866553386 | E72: 4830186517 | F72: 5388368937 | G72: 5918544903 | H72: 6494878310 | I72: 7170624333 | J72: 1
A73: KISA VADELİ YÜKÜMLÜLÜKLER | B73: 628401500 | C73: 740895101 | D73: 929319653 | E73: 1683695286 | F73: 2060675791 | G73: 2390033813 | H73: 2180465687 | I73: 2609305692 | J73: 0.3638882154
A74: Finansal Borçlar | B74: 326242736 | C74: 351842461 | D74: 511678928 | E74: 952562339 | F74: 1103474950 | G74: 1326383083 | H74: 1283543000 | I74: 1708934324 | J74: 0.2383243417
A75: Uzun Vadeli Finansal Borçların Kısa Vadeli Kısımları | B75: 33933108 | C75: 22282612 | D75: 19314214 | E75: 41932689 | F75: 85265295 | G75: 110402920 | H75: 84288199 | I75: 96925852 | J75: 0.01351707292
A76: Mevduat | B76: 0 | C76: 0 | D76: 0 | E76: 0 | F76: 0 | G76: 0 | H76: 0 | I76: 0 | J76: 0
A77: Türev Araçlar | B77: 0 | C77: 0 | D77: 0 | E77: 0 | F77: 0 | G77: 0 | H77: 0 | I77: 14828992 | J77: 0.002068019647
A78: Faktoring borçları | B78: 0 | C78: 0 | D78: 0 | E78: 0 | F78: 0 | G78: 0 | H78: 0 | I78: 0 | J78: 0
A79: Finansal Kiralama İşlemlerinden Borçlar | B79: 0 | C79: 0 | D79: 0 | E79: 0 | F79: 0 | G79: 0 | H79: 0 | I79: 0 | J79: 0
A80: Finans Sektörü Faaliyetlerinden Borçlar | B80: 0 | C80: 0 | D80: 0 | E80: 0 | F80: 0 | G80: 0 | H80: 0 | I80: 0 | J80: 0
A81: Sigorta Teknik Karşılığı | B81: 0 | C81: 0 | D81: 0 | E81: 0 | F81: 0 | G81: 0 | H81: 0 | I81: 0 | J81: 0
A82: Diğer Finansal Yükümlülükler | B82: 0 | C82: 0 | D82: 0 | E82: 0 | F82: 0 | G82: 0 | H82: 0 | I82: 0 | J82: 0
A83: Ticari Borçlar | B83: 172067527 | C83: 284235131 | D83: 314302020 | E83: 572368514 | F83: 709359945 | G83: 801368155 | H83: 620539388 | I83: 620387291 | J83: 0.08651789052
A84: İlişkili Taraflara Borçlar | B84: =INDIRECT($A$1&"!"&ADDRESS(ROW(),COLUMN())) -> 0 | C84: 0 | D84: 0 | E84: 0 | F84: 0 | G84: 0 | H84: 0 | I84: 0 | J84: 0
A85: Alınan Krediler | B85: 0 | C85: 0 | D85: 0 | E85: 0 | F85: 0 | G85: 0 | H85: 0 | I85: 0 | J85: 0
A86: Diğer Borçlar | B86: 12697782 | C86: 13434699 | D86: 11783607 | E86: 22853343 | F86: 52130829 | G86: 39244097 | H86: 50156190 | I86: 42283219 | J86: 0.005896727682
A87: Alınan Avanslar | B87: 0 | C87: 0 | D87: 0 | E87: 0 | F87: 0 | G87: 0 | H87: 0 | I87: 0 | J87: 0
A88: Devlet Teşvik ve Yardımları | B88: 0 | C88: 0 | D88: 0 | E88: 0 | F88: 0 | G88: 0 | H88: 0 | I88: 0 | J88: 0
A89: Ertelenmiş Gelirler | B89: 375186 | C89: 6948837 | D89: 7195555 | E89: 9186767 | F89: 4097457 | G89: 1415613 | H89: 6281073 | I89: 9641055 | J89: 0.001344521
A90: Cari Dönem Vergi Yükümlülüğü | B90: 0 | C90: 3911647 | D90: 0 | E90: 2809289 | F90: 15311637 | G90: 17627250 | H90: 25172539 | I90: 0 | J90: 0
A91: Cari Dönem Vergisi ile İlgili Borçlar | B91: 0 | C91: 0 | D91: 0 | E91: 0 | F91: 0 | G91: 0 | H91: 0 | I91: 0 | J91: 0
A92: Bloke Hesaplar | B92: 0 | C92: 0 | D92: 0 | E92: 0 | F92: 0 | G92: 0 | H92: 0 | I92: 0 | J92: 0
A93: Müşteri Sözleşmelerinden Doğan Yükümlülükler | B93: 0 | C93: 0 | D93: 0 | E93: 0 | F93: 0 | G93: 0 | H93: 0 | I93: 0 | J93: 0
A94: Özkaynak Yöntemiyle Değerlenen Yatırımlardan Yükümlülükler | B94: 0 | C94: 0 | D94: 0 | E94: 0 | F94: 0 | G94: 0 | H94: 0 | I94: 0 | J94: 0
A95: Borç ve Gider Karşılıkları | B95: 14958111 | C95: 23230157 | D95: 23660799 | E95: 31201341 | F95: 27874005 | G95: 31008590 | H95: 41669316 | I95: 48940287 | J95: 0.006825108209
A96: Çalışanlara Sağlanan Faydalara İlişkin Karşılıklar | B96: 4154702 | C96: 5240913 | D96: 11194881 | E96: 10812595 | F96: 13149357 | G96: 14717986 | H96: 14868553 | I96: 10539421 | J96: 0.001469805209
A97: Ertelenen Vergi Yükümlülüğü | B97: 0 | C97: 0 | D97: 0 | E97: 0 | F97: 0 | G97: 0 | H97: 0 | I97: 0 | J97: 0
A98: Durdurulan faaliyetler ile ilgili yükümlülükler | B98: 0 | C98: 0 | D98: 0 | E98: 0 | F98: 0 | G98: 0 | H98: 0 | I98: 0 | J98: 0
A99: Diğer Kısa Vadeli Borçlar | B99: 18044320 | C99: 18050451 | D99: 24927783 | E99: 35694664 | F99: 43808299 | G99: 44966634 | H99: 51027753 | I99: 53708642 | J99: 0.007490092843
A100: İş Ortaklıklarının Kısa Vadeli Yükümlülükler İçindeki Payı | B100: =INDIRECT($A$1&"!"&ADDRESS(ROW(),COLUMN())) -> 0 | C100: 0 | D100: 0 | E100: 0 | F100: 0 | G100: 0 | H100: 0 | I100: 0 | J100: 0
A101: Elden Çıkarılacak Faaliyetler ile İlgili Yükümlülükler | B101: 45928028 | C101: 11718193 | D101: 5261866 | E101: 4273745 | F101: 6204017 | G101: 2899485 | H101: 2919676 | I101: 3116609 | J101: 0.0004346356545
A102: Ortaklara Dağıtılmak Üzere Elde Tutulan Varlık Gruplarına İlişkin Yükümlülükler | B102: 0 | C102: 0 | D102: 0 | E102: 0 | F102: 0 | G102: 0 | H102: 0 | I102: 0 | J102: 0
A103: UZUN VADELİ YÜKÜMLÜLÜKLER | B103: 329611662 | C103: 331101117 | D103: 289261857 | E103: 807577263 | F103: 817122783 | G103: 887666976 | H103: 1643748416 | I103: 1741760034 | J103: 0.2429021454
A104: Mevduatlar | B104: 0 | C104: 0 | D104: 0 | E104: 0 | F104: 0 | G104: 0 | H104: 0 | I104: 0 | J104: 0
A105: Finansal Borçlar | B105: 194119724 | C105: 160882339 | D105: 101310884 | E105: 524785306 | F105: 541354465 | G105: 549279489 | H105: 1242095888 | I105: 1308249398 | J105: 0.1824456752
A106: Faktoring borçları | B106: 0 | C106: 0 | D106: 0 | E106: 0 | F106: 0 | G106: 0 | H106: 0 | I106: 0 | J106: 0
A107: Finansal Kiralama İşlemlerinden Borçlar | B107: 0 | C107: 0 | D107: 0 | E107: 0 | F107: 0 | G107: 0 | H107: 0 | I107: 0 | J107: 0
A108: Finans Sektörü Faaliyetlerinden Borçlar | B108: 0 | C108: 0 | D108: 0 | E108: 0 | F108: 0 | G108: 0 | H108: 0 | I108: 0 | J108: 0
A109: Sigorta teknik karşılıkları | B109: 0 | C109: 0 | D109: 0 | E109: 0 | F109: 0 | G109: 0 | H109: 0 | I109: 0 | J109: 0
A110: Diğer Finansal Yükümlülükler | B110: 0 | C110: 0 | D110: 0 | E110: 0 | F110: 0 | G110: 0 | H110: 0 | I110: 0 | J110: 0
A111: Ticari Borçlar | B111: 0 | C111: 0 | D111: 0 | E111: 0 | F111: 0 | G111: 0 | H111: 0 | I111: 0 | J111: 0
A112: İlişkili Taraflara Borçlar | B112: 0 | C112: 0 | D112: 0 | E112: 0 | F112: 0 | G112: 0 | H112: 0 | I112: 0 | J112: 0
A113: Alınan Krediler | B113: 0 | C113: 0 | D113: 0 | E113: 0 | F113: 0 | G113: 0 | H113: 0 | I113: 0 | J113: 0
A114: Diğer Borçlar | B114: 8687324 | C114: 14150921 | D114: 16847743 | E114: 20122592 | F114: 21746248 | G114: 18530638 | H114: 12830700 | I114: 14244118 | J114: 0.001986454364
A115: Müşteri Sözleşmelerinden Doğan Yükümlülükler | B115: 0 | C115: 0 | D115: 0 | E115: 0 | F115: 0 | G115: 0 | H115: 0 | I115: 0 | J115: 0
A116: Bloke Hesaplar | B116: =INDIRECT($A$1&"!"&ADDRESS(ROW(),COLUMN())) -> 0 | C116: 0 | D116: 0 | E116: 0 | F116: 0 | G116: 0 | H116: 0 | I116: 0 | J116: 0
A117: Alınan Avanslar | B117: 0 | C117: 0 | D117: 0 | E117: 0 | F117: 0 | G117: 0 | H117: 0 | I117: 0 | J117: 0
A118: Çalışanlara Sağlanan Faydalar Kapsamında Borçlar | B118: 0 | C118: 0 | D118: 0 | E118: 0 | F118: 0 | G118: 0 | H118: 0 | I118: 0 | J118: 0
A119: Borç ve Gider Karşılıkları | B119: 43418506 | C119: 51729552 | D119: 61273315 | E119: 72284998 | F119: 73513991 | G119: 81879009 | H119: 82775064 | I119: 92604113 | J119: 0.0129143724
A120: Türev Finansal Araçlardan Borçlar | B120: 0 | C120: 0 | D120: 0 | E120: 0 | F120: 0 | G120: 0 | H120: 0 | I120: 0 | J120: 0
A121: Cari Dönem Vergisiyle İlgili Borçlar | B121: 0 | C121: 0 | D121: 0 | E121: 0 | F121: 0 | G121: 0 | H121: 0 | I121: 0 | J121: 0
A122: Ertelenen Vergi Yükümlülüğü | B122: 83386108 | C122: 104338305 | D122: 109829915 | E122: 190384367 | F122: 180508079 | G122: 237977840 | H122: 274393994 | I122: 292981127 | J122: 0.04085852408
A123: Devlet Teşvik ve Yardımları | B123: 0 | C123: 0 | D123: 0 | E123: 0 | F123: 0 | G123: 0 | H123: 0 | I123: 0 | J123: 0
A124: Ertelenmiş Gelirler | B124: 0 | C124: 0 | D124: 0 | E124: 0 | F124: 0 | G124: 0 | H124: 0 | I124: 0 | J124: 0
A125: Devam Eden Sözleşmeler Hakediş Bedelleri | B125: 0 | C125: 0 | D125: 0 | E125: 0 | F125: 0 | G125: 0 | H125: 0 | I125: 0 | J125: 0
A126: Pozitif/Negatif Şerefiye | B126: 0 | C126: 0 | D126: 0 | E126: 0 | F126: 0 | G126: 0 | H126: 0 | I126: 0 | J126: 0
A127: Diğer Uzun Vadeli Borçlar | B127: 0 | C127: 0 | D127: 0 | E127: 0 | F127: 0 | G127: 0 | H127: 31652770 | I127: 33681278 | J127: 0.004697119307
A128: İş Ortaklıklarının Uzun Vadeli Yükümlülükler İçindeki Payı | B128: 0 | C128: 0 | D128: 0 | E128: 0 | F128: 0 | G128: 0 | H128: 0 | I128: 0 | J128: 0
A129: ÖZ SERMAYE (AZINLIK PAYI DAHİL) | B129: 1216018654 | C129: 1471677899 | D129: 1647971876 | E129: 2338913968 | F129: 2510570363 | G129: 2640844114 | H129: 2670664207 | I129: 2819558607 | J129: 0.3932096392
A130: ANA ORTAKLIK DIŞI ÖZSERMAYE | B130: 249537096 | C130: 317550556 | D130: 371020900 | E130: 504019429 | F130: 560754773 | G130: 560745136 | H130: 556104511 | I130: 572642516 | J130: 0.07985950587
A131: Aile Üyeleri | B131: 0 | C131: 0 | D131: 0 | E131: 0 | F131: 0 | G131: 0 | H131: 0 | I131: 0 | J131: 0
A132: Diğerleri | B132: =INDIRECT($A$1&"!"&ADDRESS(ROW(),COLUMN())) -> 0 | C132: 0 | D132: 0 | E132: 0 | F132: 0 | G132: 0 | H132: 0 | I132: 0 | J132: =I132/$I$72 -> 0
A133: ÖZ SERMAYE (ANA ORTAKLIĞA AİT) | B133: 966481558 | C133: 1154127343 | D133: 1276950976 | E133: 1834894539 | F133: 1949815590 | G133: 2080098978 | H133: 2114559696 | I133: 2246916091 | J133: 0.3133501334
A134: Sermaye | B134: 194529076 | C134: 194529076 | D134: 194529076 | E134: 194529076 | F134: 194529076 | G134: 194529076 | H134: 194529076 | I134: 194529076 | J134: 0.0271286107
A135: Ödenmeyen Sermaye(-) | B135: 0 | C135: 0 | D135: 0 | E135: 0 | F135: 0 | G135: 0 | H135: 0 | I135: 0 | J135: 0
A136: Karşılıklı İştirak Sermaye Düzeltmesi | B136: 0 | C136: 0 | D136: 0 | E136: 0 | F136: 0 | G136: 0 | H136: 0 | I136: 0 | J136: 0
A137: Paylara İlişkin Primler/İskontolar | B137: 62052856 | C137: 62052856 | D137: 62052856 | E137: 62052856 | F137: 0 | G137: 62052856 | H137: 62052856 | I137: 62052856 | J137: 0.008653759159
A138: İşletmenin Geri Satın Alınan Kendi Hisseleri | B138: 0 | C138: 0 | D138: 0 | E138: 0 | F138: 0 | G138: 0 | H138: 0 | I138: 0 | J138: 0
A139: İşletmenin Geri Alınan Kendi Hisse Senetlerinin Satışından Doğan Kar | B139: 0 | C139: 0 | D139: 0 | E139: 0 | F139: 0 | G139: 0 | H139: 0 | I139: 0 | J139: 0
A140: Sermaye Avansı | B140: 0 | C140: 0 | D140: 0 | E140: 0 | F140: 0 | G140: 0 | H140: 0 | I140: 0 | J140: 0
A141: Kar veya Zararda Yeniden Sınıflandırılmayacak Birikmiş Diğer Kapsamlı Gel. veya Gid. | B141: -6546696 | C141: -6589713 | D141: -8852082 | E141: 37145368 | F141: 39518011 | G141: 36945844 | H141: 36945844 | I141: 36119595 | J141: 0.005037161804
A142: Kar veya Zararda Yeniden Sınıflandırılacak Birikmiş Diğer Kapsamlı Gelir. veya Gid. | B142: 166136381 | C142: 271359642 | D142: 289005880 | E142: 575379217 | F142: 662980662 | G142: 697676545 | H142: 678423956 | I142: 742017606 | J142: 0.1034801952
A143: Sermaye Yedekleri | B143: 62052856 | C143: 62052856 | D143: 62052856 | E143: 62052856 | F143: 0 | G143: 62052856 | H143: 62052856 | I143: 62052856 | J143: 0.008653759159
A144: Sermaye Taahhütleri (-) | B144: 0 | C144: 0 | D144: 0 | E144: 0 | F144: 0 | G144: 0 | H144: 0 | I144: 0 | J144: 0
A145: Katkı sermaye | B145: 0 | C145: 0 | D145: 0 | E145: 0 | F145: 62052856 | G145: 0 | H145: 0 | I145: 0 | J145: 0
A146: Azınlık Hisseleri Satış Opsiyonu Değerleme Fonu | B146: 0 | C146: 0 | D146: 0 | E146: 0 | F146: 0 | G146: 0 | H146: -23739578 | I146: -25260958 | J146: -0.003522839411
A147: Emisyon Primi | B147: 0 | C147: 0 | D147: 0 | E147: 0 | F147: 0 | G147: 0 | H147: 0 | I147: 0 | J147: 0
A148: Yeniden Değerleme Artışı | B148: =INDIRECT($A$1&"!"&ADDRESS(ROW(),COLUMN())) -> -6816847 | C148: -6859864 | D148: -9122233 | E148: 36875217 | F148: 39247860 | G148: 36675693 | H148: 36675693 | I148: 35849444 | J148: 0.004999487121
A149: Kar Yedekleri | B149: 9540417 | C149: 988581 | D149: 11635 | E149: -454977 | F149: -1160032 | G149: 1366264 | H149: 2519977 | I149: -2727 | J149: -3.80301613e-07
A150: Dağıtılmamış Kar | B150: 0 | C150: 0 | D150: 0 | E150: 0 | F150: 0 | G150: 0 | H150: 0 | I150: 0 | J150: 0
A151: Sermaye artırımı ile ilgili masraflar | B151: 0 | C151: 0 | D151: 0 | E151: 0 | F151: 0 | G151: 0 | H151: 0 | I151: 0 | J151: 0
A152: Nakit Akım Koruması ile İlgili Birikmiş Kar | B152: 0 | C152: 0 | D152: 0 | E152: 0 | F152: 0 | G152: 0 | H152: 0 | I152: 0 | J152: 0
A153: Karşılıklı İştirak Serm. Düzeltmesinin Nom. Tut. Aşan Kısım | B153: 0 | C153: 0 | D153: 0 | E153: 0 | F153: 0 | G153: 0 | H153: 0 | I153: 0 | J153: 0
A154: Finansal Yatırımlar Değer Artış Fonu | B154: 0 | C154: 0 | D154: 0 | E154: 0 | F154: 0 | G154: 0 | H154: 0 | I154: 0 | J154: 0
A155: Diğer Özkaynak Payları | B155: 0 | C155: 0 | D155: 0 | E155: 0 | F155: 0 | G155: 0 | H155: 0 | I155: 0 | J155: 0
A156: Diğer Yedekler | B156: 0 | C156: 0 | D156: 0 | E156: 0 | F156: 0 | G156: 0 | H156: 0 | I156: 0 | J156: 0
A157: Net Dönem Karı | B157: 99250907 | C157: 143080801 | D157: 165102073 | E157: 292457708 | F157: 93032140 | G157: 191191812 | H157: 268644697 | I157: 339755071 | J157: 0.04738151871
A158: Dönem Zararı (-) | B158: 0 | C158: 0 | D158: 0 | E158: 0 | F158: 0 | G158: 0 | H158: 0 | I158: 0 | J158: 0
A159: Geçmiş Yıl Karları | B159: 420301726 | C159: 442931364 | D159: 520164823 | E159: 603575651 | F159: 776611883 | G159: 775257436 | H159: 775257436 | I159: 775257436 | J159: 0.1081157512
A160: Net Dön. Kar. Ser. Hes. Ed. Tran. Ed. M. Dur. V. Sa. Karı | B160: 0 | C160: 0 | D160: 0 | E160: 0 | F160: 0 | G160: 0 | H160: 0 | I160: 0 | J160: 0
A161: Geçmiş Yıl Zararları (-) | B161: 0 | C161: 0 | D161: 0 | E161: 0 | F161: 0 | G161: 0 | H161: 0 | I161: 0 | J161: 0
A162: Yabancı Para Çevrim Farkları | B162: 156866115 | C162: 270641212 | D162: 289264396 | E162: 576104345 | F162: 664410845 | G162: 696580432 | H162: 676174130 | I162: 742290484 | J162: 0.1035182502
A163: Kardan Ayrılan Kısıtlanmış Yedekler | B163: 30757308 | C163: 46763317 | D163: 54948350 | E163: 69754663 | F163: 121090962 | G163: 122445409 | H163: 122445409 | I163: 122445409 | J163: 0.017075976
A164: Kardan Ayrılan Kısıtlanmış Yedekler (27) | B164: =INDIRECT($A$1&"!"&ADDRESS(ROW(),COLUMN())) -> 0 | C164: 0 | D164: 0 | E164: 0 | F164: 0 | G164: 0 | H164: 0 | I164: 0 | J164: 0
A165: Zarar Telafi Fonu | B165: 0 | C165: 0 | D165: 0 | E165: 0 | F165: 0 | G165: 0 | H165: 0 | I165: 0 | J165: 0
A166: Özsermaye Enf. Düz. Farkları | B166: 0 | C166: 0 | D166: 0 | E166: 0 | F166: 0 | G166: 0 | H166: 0 | I166: 0 | J166: 0
A167: Sermaye Birleşme Fonu | B167: 0 | C167: 0 | D167: 0 | E167: 0 | F167: 0 | G167: 0 | H167: 0 | I167: 0 | J167: 0
A168: İlave Ödenmiş Sermaye | B168: 0 | C168: 0 | D168: 0 | E168: 0 | F168: 0 | G168: 0 | H168: 0 | I168: 0 | J168: 0
A169: Birikmiş Karlar/Zararlar | B169: 0 | C169: 0 | D169: 0 | E169: 0 | F169: 0 | G169: 0 | H169: 0 | I169: 0 | J169: 0
A170: Yatırım Teşvikleri | B170: 0 | C170: 0 | D170: 0 | E170: 0 | F170: 0 | G170: 0 | H170: 0 | I170: 0 | J170: 0
A171: Satılmaya Haz. Var. Üz. Gerçekleşmemiş Net Gelir | B171: 0 | C171: 0 | D171: 0 | E171: 0 | F171: 0 | G171: 0 | H171: 0 | I171: 0 | J171: 0
A172: Ana ortaklık hisse satış kar/zarar | B172: 0 | C172: 0 | D172: 0 | E172: 0 | F172: 0 | G172: 0 | H172: 0 | I172: 0 | J172: 0
A173: AZINLIK PAYLARI | B173: 0 | C173: 0 | D173: 0 | E173: 0 | F173: 0 | G173: 0 | H173: 0 | I173: 0 | J173: 0
A174: TOPLAM PASİFLER | B174: 2174031816 | C174: 2543674117 | D174: 2866553386 | E174: 4830186517 | F174: 5388368937 | G174: 5918544903 | H174: 6494878310 | I174: 7170624333 | J174: 1
E175: =+E188/E186 -> 0.7989007283 | I175: =+I188/I186 -> 0.807876236
A176: GELİR TABLOSU | B176: 2015/12 | C176: 2016/12 | D176: 2017/12 | E176: 2018/12 | F176: 2019/03 | G176: 2019/06 | H176: 2019/09 | I176: 2019/12 | M176: 2016/12 | N176: 2017/12 | O176: 2018/12 | P176: 2019/03 | Q176: 2019/06 | R176: 2019/09 | S176: 2019/12
A177: BRÜT SATIŞLAR | B177: 1763414683 | C177: 1940155133 | D177: 2522184022 | E177: 4019612631 | F177: 1288819877 | G177: 2627444553 | H177: 3931921680 | I177: 5219160078 | J177: =I177/$I$186 -> 1.015922315 | M177: =C177/C$186 -> 1.016668894 | N177: =D177/D$186 -> 1.014895747 | O177: =E177/E$186 -> 1.018468086 | P177: =F177/F$186 -> 1.018716787 | Q177: =G177/G$186 -> 1.016034497 | R177: =H177/H$186 -> 1.01561924 | S177: =I177/I$186 -> 1.015922315
A178: Yurtiçi Satışlar | B178: 0 | C178: 0 | D178: 0 | E178: 0 | F178: 0 | G178: 0 | H178: 0 | I178: 0 | J178: 0 | M178: 0 | N178: 0 | O178: 0 | P178: 0 | Q178: 0 | R178: 0 | S178: 0
A179: Yurtdışı Satışlar | B179: 0 | C179: 0 | D179: 0 | E179: 0 | F179: 0 | G179: 0 | H179: 0 | I179: 0 | J179: 0 | M179: 0 | N179: 0 | O179: 0 | P179: 0 | Q179: 0 | R179: 0 | S179: 0
A180: Diğer Satışlar | B180: 0 | C180: 0 | D180: 0 | E180: 0 | F180: 0 | G180: 0 | H180: 0 | I180: 0 | J180: 0 | M180: 0 | N180: 0 | O180: 0 | P180: 0 | Q180: 0 | R180: 0 | S180: 0
A181: SATIŞLARDAN İNDİRİMLER (-) | B181: 28656846 | C181: 31810002 | D181: 37018399 | E181: 72888443 | F181: 23679366 | G181: 41464883 | H181: 60469145 | I181: 81798684 | J181: 0.01592231454 | M181: 0.01666889363 | N181: 0.01489574725 | O181: 0.01846808632 | P181: 0.01871678742 | Q181: 0.0160344969 | R181: 0.01561923967 | S181: 0.01592231454
A182: Satışdan İadeler (-) | B182: =INDIRECT($A$1&"!"&ADDRESS(ROW(),COLUMN())) -> 6194147 | C182: 9072674 | D182: 4302979 | E182: 9002128 | F182: 3087703 | G182: 4835240 | H182: 6140536 | I182: 14520519 | J182: 0.00282645465 | M182: 0.004754210259 | N182: 0.001731465686 | O182: 0.002280911351 | P182: 0.002440600845 | Q182: 0.001869790415 | R182: 0.001586106492 | S182: 0.00282645465
A183: Satış İskontoları (-) | B183: 15428537 | C183: 17271929 | D183: 13442175 | E183: 22907268 | F183: 8442060 | G183: 12113213 | H183: 20445632 | I183: 24442992 | J183: 0.004757888364 | M183: 0.009050736536 | N183: 0.005408965453 | O183: 0.005804121826 | P183: 0.006672824028 | Q183: 0.00468418725 | R183: 0.005281126868 | S183: 0.004757888364
A184: Diğer İndirimler (-) | B184: 7034162 | C184: 5465399 | D184: 19273245 | E184: 40979047 | F184: 12149603 | G184: 24516430 | H184: 33882977 | I184: 42835173 | J184: 0.008337971522 | M184: 0.002863946836 | N184: 0.007755316113 | O184: 0.01038305315 | P184: 0.009603362547 | Q184: 0.009480519234 | R184: 0.008752006306 | S184: 0.008337971522
A185: ESAS FAALİYET GELİRLERİ | B185: 0 | C185: 0 | D185: 0 | E185: 0 | F185: 0 | G185: 0 | H185: 0 | I185: 0 | J185: 0 | M185: 0 | N185: 0 | O185: 0 | P185: 0 | Q185: 0 | R185: 0 | S185: 0
A186: SATIŞ GELİRLERİ | B186: 1734757837 | C186: 1908345131 | D186: 2485165623 | E186: 3946724188 | F186: 1265140511 | G186: 2585979670 | H186: 3871452535 | I186: 5137361394 | J186: =I186/$I$186 -> 1 | M186: =C186/C$186 -> 1 | N186: 1 | O186: 1 | P186: 1 | Q186: 1 | R186: 1 | S186: 1
A187: FAİZ GELİRİ | B187: 0 | C187: 0 | D187: 0 | E187: 0 | F187: 0 | G187: 0 | H187: 0 | I187: 0 | J187: =I187/$I$186 -> 0 | M187: =C187/C$186 -> 0 | N187: 0 | O187: 0 | P187: 0 | Q187: 0 | R187: 0 | S187: 0
A188: SATIŞLARIN MALİYETİ (-) | B188: 1419689321 | C188: 1511811029 | D188: 2035686160 | E188: 3153040828 | F188: 1008255280 | G188: 2060259230 | H188: 3111371884 | I188: 4150352186 | J188: 0.807876236 | M188: 0.7922104888 | N188: 0.819135007 | O188: 0.7989007283 | P188: 0.796951225 | Q188: 0.7967035681 | R188: 0.8036704198 | S188: 0.807876236
A189: FAİZ GİDERİ | B189: 0 | C189: 0 | D189: 0 | E189: 0 | F189: 0 | G189: 0 | H189: 0 | I189: 0 | J189: 0 | M189: 0 | N189: 0 | O189: 0 | P189: 0 | Q189: 0 | R189: 0 | S189: 0
A190: MUHTEMEL KREDİ ZARAR KARŞ. FİN.KİR. ALCK. KARŞ. VE FAKT. DEĞ. DÜŞ. KARŞ. | B190: 0 | C190: 0 | D190: 0 | E190: 0 | F190: 0 | G190: 0 | H190: 0 | I190: 0 | J190: 0 | M190: 0 | N190: 0 | O190: 0 | P190: 0 | Q190: 0 | R190: 0 | S190: 0
A191: HİZMET GELİRLERİ | B191: 0 | C191: 0 | D191: 0 | E191: 0 | F191: 0 | G191: 0 | H191: 0 | I191: 0 | J191: 0 | M191: 0 | N191: 0 | O191: 0 | P191: 0 | Q191: 0 | R191: 0 | S191: 0
A192: HİZMET GİDERLERİ (-) | B192: 0 | C192: 0 | D192: 0 | E192: 0 | F192: 0 | G192: 0 | H192: 0 | I192: 0 | J192: 0 | M192: 0 | N192: 0 | O192: 0 | P192: 0 | Q192: 0 | R192: 0 | S192: 0
A193: KAMBİYO KARI/ZARARI | B193: 0 | C193: 0 | D193: 0 | E193: 0 | F193: 0 | G193: 0 | H193: 0 | I193: 0 | J193: 0 | M193: 0 | N193: 0 | O193: 0 | P193: 0 | Q193: 0 | R193: 0 | S193: 0
A194: SERMAYE PİYASASI İŞLEM KARI/ZARARI | B194: 0 | C194: 0 | D194: 0 | E194: 0 | F194: 0 | G194: 0 | H194: 0 | I194: 0 | J194: 0 | M194: 0 | N194: 0 | O194: 0 | P194: 0 | Q194: 0 | R194: 0 | S194: 0
A195: ESAS FAALİYETLERDEN DİĞER GİDER/GELİR | B195: 0 | C195: 0 | D195: 0 | E195: 0 | F195: 0 | G195: 0 | H195: 0 | I195: 0 | J195: 0 | M195: 0 | N195: 0 | O195: 0 | P195: 0 | Q195: 0 | R195: 0 | S195: 0
A196: FAİZ, ÜCRET, PRİM, KOMİSYON VE DİĞER GELİRLER | B196: 0 | C196: 0 | D196: 0 | E196: 0 | F196: 0 | G196: 0 | H196: 0 | I196: 0 | J196: 0 | M196: 0 | N196: 0 | O196: 0 | P196: 0 | Q196: 0 | R196: 0 | S196: 0
A197: Kambiyo Gelirleri | B197: 0 | C197: 0 | D197: 0 | E197: 0 | F197: 0 | G197: 0 | H197: 0 | I197: 0 | J197: 0 | M197: 0 | N197: 0 | O197: 0 | P197: 0 | Q197: 0 | R197: 0 | S197: 0
A198: Faiz Gelirleri | B198: =INDIRECT($A$1&"!"&ADDRESS(ROW(),COLUMN())) -> 0 | C198: 0 | D198: 0 | E198: 0 | F198: 0 | G198: 0 | H198: 0 | I198: 0 | J198: 0 | M198: 0 | N198: 0 | O198: 0 | P198: 0 | Q198: 0 | R198: 0 | S198: 0
A199: Kar Payı Gelirleri | B199: 0 | C199: 0 | D199: 0 | E199: 0 | F199: 0 | G199: 0 | H199: 0 | I199: 0 | J199: 0 | M199: 0 | N199: 0 | O199: 0 | P199: 0 | Q199: 0 | R199: 0 | S199: 0
A200: Türev Finansal İşlemlerden Kazanç | B200: 0 | C200: 0 | D200: 0 | E200: 0 | F200: 0 | G200: 0 | H200: 0 | I200: 0 | J200: 0 | M200: 0 | N200: 0 | O200: 0 | P200: 0 | Q200: 0 | R200: 0 | S200: 0
... 115 more rows

Sheet hisse listesi (hidden)
A1: Kod | B1: Ad
A2: ACSEL | B2: Acıpayam Selüloz
A3: ADANA | B3: Adana Çimento (A)
A4: ADBGR | B4: Adana Çimento (B)
A5: ADEL | B5: Adel Kalemcilik
A6: ADESE | B6: Adese Alışveriş Ticaret
A7: ADNAC | B7: Adana Çimento (C)
A8: AEFES | B8: Anadolu Efes
A9: AFYON | B9: Afyon Çimento
A10: AGHOL | B10: Anadolu Grubu Holding
A11: AGYO | B11: Atakule GMYO
A12: AKCNS | B12: Akçansa
A13: AKENR | B13: Ak Enerji
A14: AKFGY | B14: Akfen GMYO
A15: AKGRT | B15: Aksigorta
A16: AKGUV | B16: Akdenız Güvenlık Hız.
A17: AKMGY | B17: Akmerkez GMYO
A18: AKSA | B18: Aksa
A19: AKSEN | B19: Aksa Enerji
A20: AKSGY | B20: Akiş GMYO
A21: AKSUE | B21: Aksu Enerji
A22: ALARK | B22: Alarko Holding
A23: ALBRK | B23: Albaraka Türk
A24: ALCAR | B24: Alarko Carrıer
A25: ALCTL | B25: Alcatel Lucent Teletaş
A26: ALGYO | B26: Alarko GMYO
A27: ALKA | B27: Alkim Kağıt
A28: ALKIM | B28: Alkim Kimya
A29: ANACM | B29: Anadolu Cam
A30: ANELE | B30: Anel Elektrik
A31: ANHYT | B31: Anadolu Hayat Emek.
A32: ANSGR | B32: Anadolu Sigorta
A33: ARCLK | B33: Arçelik
A34: ARDYZ | B34: ARD Bilişim Teknolojileri
A35: ARENA | B35: Arena Bilgisayar
A36: ARMDA | B36: Armada Bilgisayar
A37: ARSAN | B37: Arsan Tekstil
A38: ASELS | B38: Aselsan
A39: ASLAN | B39: Aslan Çimento
A40: ASUZU | B40: Anadolu Isuzu
A41: ATAGY | B41: Ata GMYO
A42: ATEKS | B42: Akın Tekstil
A43: AVGYO | B43: Avrasya GMYO
A44: AVHOL | B44: Avrupa Yatırım Holding
A45: AVISA | B45: AvivaSA Emeklilik Hayat
A46: AVOD | B46: A.V.O.D Gıda Ve Tarım
A47: AVTUR | B47: Avrasya Petrol ve Tur.
A48: AYCES | B48: Altınyunus Çeşme
A49: AYEN | B49: Ayen Enerji
A50: AYGAZ | B50: Aygaz
A51: BAGFS | B51: Bagfaş
A52: BAKAB | B52: Bak Ambalaj
A53: BANVT | B53: Banvit
A54: BERA | B54: Bera Holding
A55: BEYAZ | B55: Beyaz Filo
A56: BFREN | B56: Bosch Fren Sistemleri
A57: BIMAS | B57: Bim Mağazalar
A58: BIZIM | B58: Bizim Mağazaları
A59: BJKAS | B59: Beşiktaş Futbol Yat.
A60: BLCYT | B60: Bilici Yatırım
A61: BNTAS | B61: Bantaş Ambalaj
A62: BOLUC | B62: Bolu Çimento
A63: BOSSA | B63: Bossa
A64: BRISA | B64: Brisa
A65: BRKSN | B65: Berkosan Yalıtım
A66: BRMEN | B66: Birlik Mensucat
A67: BRSAN | B67: Borusan Mannesmann
A68: BRYAT | B68: Borusan Yat. Paz.
A69: BSOKE | B69: Batısöke Çimento
A70: BTCIM | B70: Batı Çimento
A71: BUCIM | B71: Bursa Çimento
A72: BURCE | B72: Burçelik
A73: BURVA | B73: Burçelik Vana
A74: CCOLA | B74: Coca Cola İçecek
A75: CELHA | B75: Çelik Halat
A76: CEMAS | B76: Çemaş Döküm
A77: CEMTS | B77: Çemtaş
A78: CEOEM | B78: Ceo Event Medya
A79: CIMSA | B79: Çimsa
A80: CLEBI | B80: Çelebi
A81: CMBTN | B81: Çimbeton
A82: CMENT | B82: Çimentaş
A83: CRDFA | B83: Credıtwest Faktorıng
A84: CRFSA | B84: Carrefoursa
A85: CUSAN | B85: Çuhadaroğlu Metal
A86: DAGHL | B86: Dagi Yatırım Holding
A87: DAGI | B87: Dagi Giyim
A88: DENCM | B88: Denizli Cam
A89: DENGE | B89: Denge Holding
A90: DERAS | B90: Derlüks Deri
A91: DERIM | B91: Derimod
A92: DESA | B92: Desa Deri
A93: DESPC | B93: Despec Bilgisayar
A94: DEVA | B94: Deva Holding
A95: DGATE | B95: Datagate Bilgisayar
A96: DGGYO | B96: Doğuş GMYO
A97: DGKLB | B97: Doğtaş Kelebek Mobilya
A98: DITAS | B98: Ditaş Doğan
A99: DMSAS | B99: Demısaş Döküm
A100: DOAS | B100: Doğuş Otomotiv
A101: DOBUR | B101: Doğan Burda
A102: DOCO | B102: DO-CO
A103: DOGUB | B103: Doğusan
A104: DOHOL | B104: Doğan Holding
A105: DOKTA | B105: Döktaş Dökümcülük
A106: DURDO | B106: Duran Doğan Basım
A107: DYOBY | B107: Dyo Boya
A108: DZGYO | B108: Deniz GMYO
A109: ECILC | B109: Eczacıbaşı İlaç
A110: ECZYT | B110: Eczacıbaşı Yatırım
A111: EDIP | B111: Edip Gayrimenkul
A112: EGEEN | B112: Ege Endüstri
A113: EGGUB | B113: Ege Gübre
A114: EGPRO | B114: Ege Profil
A115: EGSER | B115: Ege Seramik
A116: EKGYO | B116: Emlak Konut GMYO
A117: EMKEL | B117: Emek Elektrik
A118: ENJSA | B118: Enerjisa Enerji
A119: ENKAI | B119: Enka İnşaat
A120: ERBOS | B120: Erbosan
A121: EREGL | B121: Ereğli Demir Çelik
A122: ERSU | B122: Ersu Gıda
A123: ESCOM | B123: Escort Teknoloji
A124: EUHOL | B124: Euro Yatırım Holding
A125: FENER | B125: Fenerbahçe Futbol
A126: FLAP | B126: Flap Kongre Toplantı Hiz.
A127: FMIZP | B127: F-M İzmit Piston
A128: FONET | B128: Fonet Bilgi Teknolojileri
A129: FORMT | B129: Formet Çelik Kapı
A130: FROTO | B130: Ford Otosan
A131: GARFA | B131: Garanti Faktoring
A132: GEDIK | B132: Gedik Y. Men. Değ.
A133: GEDZA | B133: Gediz Ambalaj
A134: GENTS | B134: Gentaş
A135: GEREL | B135: Gersan Elektrik
A136: GLBMD | B136: Global Men. Değ.
A137: GLRYH | B137: Güler Yat. Holding
A138: GLYHO | B138: Global Yat. Holding
A139: GOLTS | B139: Göltaş Çimento
A140: GOODY | B140: Good-Year
A141: GOZDE | B141: Gözde Girişim
A142: GSDDE | B142: GSD Denizcilik
A143: GSDHO | B143: GSD Holding
A144: GSRAY | B144: Galatasaray Sportif
A145: GUBRF | B145: Gübre Fabrik.
A146: GUSGR | B146: Güneş Sigorta
A147: GYHOL | B147: Gedik Yatırım Holding
A148: HATEK | B148: Hatay Tekstil
A149: HDFGS | B149: Hedef Girişim
A150: HEKTS | B150: Hektaş
A151: HLGYO | B151: Halk GMYO
A152: HUBVC | B152: HUB Girişim
A153: HURGZ | B153: Hürriyet Gzt.
A154: IDEAS | B154: İdealist Danışmanlık
A155: IDGYO | B155: İdealist GMYO
A156: IEYHO | B156: Işıklar Enerji Yapı Hol.
A157: IHEVA | B157: İhlas Ev Aletleri
A158: IHGZT | B158: İhlas Gazetecilik
A159: IHLAS | B159: İhlas Holding
A160: IHLGM | B160: İhlas Gayrimenkul
A161: IHYAY | B161: İhlas Yayın Holding
A162: INDES | B162: İndeks Bilgisayar
A163: INFO | B163: Info Yatırım
A164: INTEM | B164: İntema
A165: IPEKE | B165: İpek Doğal Enerji
A166: ISDMR | B166: İskenderun Demir Çelik
A167: ISFIN | B167: İş Fin.Kir.
A168: ISGSY | B168: İş Girişim
A169: ISGYO | B169: İş GMYO
A170: ISMEN | B170: İş Y. Men. Değ.
A171: ITTFH | B171: İttifak Holding
A172: IZFAS | B172: İzmir Fırça
A173: IZMDC | B173: İzmir Demir Çelik
A174: IZTAR | B174: İz Hayvancılık Tarım
A175: JANTS | B175: Jantsa Jant Sanayi
A176: KAPLM | B176: Kaplamin
A177: KAREL | B177: Karel Elektronik
A178: KARSN | B178: Karsan Otomotiv
A179: KARTN | B179: Kartonsan
A180: KATMR | B180: Katmerciler Ekipman
A181: KCHOL | B181: Koç Holding
A182: KENT | B182: Kent Gıda
A183: KERVT | B183: Kerevitaş Gıda
A184: KFEIN | B184: Kafein Yazılım
A185: KLGYO | B185: Kiler GMYO
A186: KLMSN | B186: Klimasan Klima
A187: KNFRT | B187: Konfrut Gıda
A188: KONYA | B188: Konya Çimento
A189: KORDS | B189: Kordsa Teknik Tekstil
A190: KOZAA | B190: Koza Madencilik
A191: KOZAL | B191: Koza Altın
A192: KRDMA | B192: Kardemir (A)
A193: KRDMB | B193: Kardemir (B)
A194: KRDMD | B194: Kardemir (D)
A195: KRGYO | B195: Körfez GMYO
A196: KRONT | B196: Kron Telekomünikasyon
A197: KRSTL | B197: Kristal Kola
A198: KRTEK | B198: Karsu Tekstil
A199: KUTPO | B199: Kütahya Porselen
A200: KUYAS | B200: Kuyumcukent Gayrimenkul
... 146 more rows

Sheet AVOD
A1: AVOD | B1: AVOD | C1: AVOD | D1: AVOD | E1: AVOD | F1: AVOD | G1: AVOD | H1: AVOD | I1: AVOD
B2: 2015/12 | C2: 2016/12 | D2: 2017/12 | E2: 2018/12 | F2: 2019/03 | G2: 2019/06 | H2: 2019/09 | I2: 2019/12
A3: DÖNEN VARLIKLAR | B3: 47998026 | C3: 65601913 | D3: 82907486 | E3: 100515338 | F3: 104168691 | G3: 107221653 | H3: 149796396 | I3: 166440838
A4: Hazır Değerler | B4: 6637837 | C4: 4280696 | D4: 6009988 | E4: 3336117 | F4: 7047810 | G4: 9891306 | H4: 4196963 | I4: 7334568
A5: Gayrimenkul Projeleri Kapsamında Açılan Nakit Hesapları | B5: 0 | C5: 0 | D5: 0 | E5: 0 | F5: 0 | G5: 0 | H5: 0 | I5: 0
A6: Finansal Yatırımlar | B6: 0 | C6: 0 | D6: 0 | E6: 0 | F6: 0 | G6: 0 | H6: 0 | I6: 0
A7: Menkul Kıymetler | B7: 0 | C7: 0 | D7: 0 | E7: 0 | F7: 0 | G7: 0 | H7: 0 | I7: 0
A8: Türkiye Cumhuriyet Merkez Bankası Hesabı | B8: 0 | C8: 0 | D8: 0 | E8: 0 | F8: 0 | G8: 0 | H8: 0 | I8: 0
A9: Krediler ve Avanslar | B9: 0 | C9: 0 | D9: 0 | E9: 0 | F9: 0 | G9: 0 | H9: 0 | I9: 0
A10: Faktoring alacakları (net) | B10: 0 | C10: 0 | D10: 0 | E10: 0 | F10: 0 | G10: 0 | H10: 0 | I10: 0
A11: Teminata Verilen Finansal Varlıklar | B11: 0 | C11: 0 | D11: 0 | E11: 0 | F11: 0 | G11: 0 | H11: 0 | I11: 0
A12: Kısa Vadeli Ticari Alacaklar | B12: 9577116 | C12: 15602696 | D12: 14409786 | E12: 17196832 | F12: 17257761 | G12: 23893117 | H12: 22731202 | I12: 26407602
A13: Finansal Kiralama Alacakları | B13: 0 | C13: 0 | D13: 0 | E13: 0 | F13: 0 | G13: 0 | H13: 0 | I13: 0
A14: Finans Sektörü Faal. Alacaklar | B14: 0 | C14: 0 | D14: 0 | E14: 0 | F14: 0 | G14: 0 | H14: 0 | I14: 0
A15: İlişkili Taraflardan Alacaklar | B15: 0 | C15: 0 | D15: 0 | E15: 0 | F15: 0 | G15: 0 | H15: 0 | I15: 0
A16: Diğer Kısa Vadeli Alacaklar | B16: 6353983 | C16: 1910174 | D16: 6658531 | E16: 6851189 | F16: 6458699 | G16: 5689989 | H16: 21467372 | I16: 26969685
A17: Canlı Varlıklar | B17: 0 | C17: 0 | D17: 0 | E17: 0 | F17: 0 | G17: 0 | H17: 0 | I17: 0
A18: Kullanımı Kısıtlı Banka Bakiyeleri | B18: 0 | C18: 0 | D18: 0 | E18: 0 | F18: 0 | G18: 0 | H18: 0 | I18: 0
A19: Stoklar | B19: 19964614 | C19: 34706741 | D19: 43550473 | E19: 61554458 | F19: 59415790 | G19: 49832923 | H19: 81701718 | I19: 83032723
A20: Peşin Ödenen Kira Giderleri | B20: 0 | C20: 0 | D20: 0 | E20: 0 | F20: 0 | G20: 0 | H20: 0 | I20: 0
A21: Müşteri Sözleşmelerinden Doğan Varlıklar | B21: 0 | C21: 0 | D21: 0 | E21: 0 | F21: 0 | G21: 0 | H21: 0 | I21: 0
A22: İmtiyaz Sözleşmelerine İlişkin Finansal Varlıklar | B22: 0 | C22: 0 | D22: 0 | E22: 0 | F22: 0 | G22: 0 | H22: 0 | I22: 0
A23: Türev Enstrümanlar | B23: 0 | C23: 0 | D23: 0 | E23: 0 | F23: 0 | G23: 0 | H23: 0 | I23: 0
A24: Ertelenen Vergi Varlıkları | B24: 0 | C24: 0 | D24: 0 | E24: 0 | F24: 0 | G24: 0 | H24: 0 | I24: 0
A25: Durdurulan faaliyetler ile ilgili varlıklar | B25: 0 | C25: 0 | D25: 0 | E25: 0 | F25: 0 | G25: 0 | H25: 0 | I25: 0
A26: Ertelenmiş Sigortacılık Üretim Giderleri | B26: 0 | C26: 0 | D26: 0 | E26: 0 | F26: 0 | G26: 0 | H26: 0 | I26: 0
A27: Peşin Ödenmiş Giderler | B27: 4419150 | C27: 8612835 | D27: 11354884 | E27: 10549203 | F27: 13232026 | G27: 16975361 | H27: 17065990 | I27: 20249513
A28: Cari Dönem Vergisiyle İlgili Varlıklar | B28: 0 | C28: 3875 | D28: 2136 | E28: 4259 | F28: 88 | G28: 85763 | H28: 3441 | I28: 32321
A29: Nakit Dışı Serbest Kullanılabilir Teminatlar | B29: 0 | C29: 0 | D29: 0 | E29: 0 | F29: 0 | G29: 0 | H29: 0 | I29: 0
A30: Diğer Dönen Varlıklar | B30: 1045326 | C30: 484896 | D30: 921688 | E30: 1023280 | F30: 756517 | G30: 853194 | H30: 2629710 | I30: 2414426
A31: Vadesine kadar elde tut. men. kıy. | B31: 0 | C31: 0 | D31: 0 | E31: 0 | F31: 0 | G31: 0 | H31: 0 | I31: 0
A32: Satılmaya Hazır Finansal Varlıklar | B32: 0 | C32: 0 | D32: 0 | E32: 0 | F32: 0 | G32: 0 | H32: 0 | I32: 0
A33: Alım Satım Amaçlı Menkul Kıymetler | B33: 0 | C33: 0 | D33: 0 | E33: 0 | F33: 0 | G33: 0 | H33: 0 | I33: 0
A34: İş Ortaklıklarının Dönen Varlıklar İçindeki Payı | B34: 0 | C34: 0 | D34: 0 | E34: 0 | F34: 0 | G34: 0 | H34: 0 | I34: 0
A35: Elden Çıkarılacak Faaliyetler ile İlgili Varlıklar | B35: 0 | C35: 0 | D35: 0 | E35: 0 | F35: 0 | G35: 0 | H35: 0 | I35: 0
A36: Satım amaçlı elde tutulan maddi duran varlıklar | B36: 0 | C36: 0 | D36: 0 | E36: 0 | F36: 0 | G36: 0 | H36: 0 | I36: 0
A37: Ortaklara Dağıtılmak Üzere Elde Tutulan Duran Varlıklar | B37: 0 | C37: 0 | D37: 0 | E37: 0 | F37: 0 | G37: 0 | H37: 0 | I37: 0
A38: DURAN VARLIKLAR | B38: 66170399 | C38: 87881764 | D38: 78608922 | E38: 84038580 | F38: 95939825 | G38: 96704566 | H38: 94392999 | I38: 104595365
A39: Menkul Kıymetler | B39: 0 | C39: 0 | D39: 0 | E39: 0 | F39: 0 | G39: 0 | H39: 0 | I39: 0
A40: Krediler ve Avanslar | B40: 0 | C40: 0 | D40: 0 | E40: 0 | F40: 0 | G40: 0 | H40: 0 | I40: 0
A41: Faktoring alacakları (net) | B41: 0 | C41: 0 | D41: 0 | E41: 0 | F41: 0 | G41: 0 | H41: 0 | I41: 0
A42: Uzun Vadeli Ticari Alacaklar | B42: 0 | C42: 0 | D42: 0 | E42: 0 | F42: 0 | G42: 0 | H42: 0 | I42: 0
A43: Finansal Kiralama Alacakları | B43: 0 | C43: 0 | D43: 0 | E43: 0 | F43: 0 | G43: 0 | H43: 0 | I43: 0
A44: Finans Sektörü Faal. Alacaklar | B44: 0 | C44: 0 | D44: 0 | E44: 0 | F44: 0 | G44: 0 | H44: 0 | I44: 0
A45: İlişkili Taraflardan Alacaklar | B45: 0 | C45: 0 | D45: 0 | E45: 0 | F45: 0 | G45: 0 | H45: 0 | I45: 0
A46: Türev Enstrümanlar | B46: 0 | C46: 0 | D46: 0 | E46: 0 | F46: 0 | G46: 0 | H46: 0 | I46: 0
A47: Diğer Uzun Vadeli Alacaklar | B47: 12212 | C47: 14781 | D47: 15842 | E47: 22096 | F47: 23639 | G47: 24171 | H47: 23768 | I47: 24949
A48: Finansal Yatırımlar | B48: 20000 | C48: 20000 | D48: 0 | E48: 0 | F48: 0 | G48: 0 | H48: 0 | I48: 0
A49: Özkaynak Yöntemiyle Değerlenen Yatırımlar | B49: 0 | C49: 0 | D49: 0 | E49: 0 | F49: 0 | G49: 0 | H49: 0 | I49: 0
A50: Canlı Varlıklar | B50: 0 | C50: 0 | D50: 0 | E50: 0 | F50: 0 | G50: 0 | H50: 0 | I50: 0
A51: İmtiyaz Sözleşmelerine İlişkin Finansal Varlıklar | B51: 0 | C51: 0 | D51: 0 | E51: 0 | F51: 0 | G51: 0 | H51: 0 | I51: 0
A52: Stoklar | B52: 0 | C52: 0 | D52: 0 | E52: 0 | F52: 0 | G52: 0 | H52: 0 | I52: 0
A53: Finansal Duran Varlıklar | B53: 0 | C53: 0 | D53: 0 | E53: 0 | F53: 0 | G53: 0 | H53: 0 | I53: 0
A54: Pozitif/Negatif Şerefiye | B54: 0 | C54: 0 | D54: 0 | E54: 0 | F54: 0 | G54: 0 | H54: 0 | I54: 0
A55: Yatırım Amaçlı Gayrimenkuller | B55: 17475239 | C55: 35762643 | D55: 35630846 | E55: 35494941 | F55: 42138418 | G55: 42105160 | H55: 42171675 | I55: 46478500
A56: Proje Halindeki Yatırım Amaçlı Gayrimenkuller | B56: 0 | C56: 0 | D56: 0 | E56: 0 | F56: 0 | G56: 0 | H56: 0 | I56: 0
A57: Alım Satım Amaçlı Gayrimenkuller (net) | B57: 0 | C57: 0 | D57: 0 | E57: 0 | F57: 0 | G57: 0 | H57: 0 | I57: 0
A58: Maddi Duran Varlıklar | B58: 17316894 | C58: 20268446 | D58: 22403814 | E58: 21103960 | F58: 26214916 | G58: 26647316 | H58: 26748394 | I58: 27165541
A59: Kullanım Hakkı Varlıkları | B59: 0 | C59: 0 | D59: 0 | E59: 0 | F59: 0 | G59: 0 | H59: 0 | I59: 4515978
A60: Maddi Olmayan Duran Varlıklar | B60: 30986273 | C60: 31010597 | D60: 19894440 | E60: 21320448 | F60: 21584876 | G60: 21881845 | H60: 22180877 | I60: 21823040
A61: Müşteri Sözleşmelerinden Doğan Varlıklar | B61: 0 | C61: 0 | D61: 0 | E61: 0 | F61: 0 | G61: 0 | H61: 0 | I61: 0
A62: Ertelenen Vergi Varlıkları | B62: 349241 | C62: 589296 | D62: 616520 | E62: 3947435 | F62: 3478394 | G62: 3308738 | H62: 2989332 | I62: 3560111
A63: Cari Dönem Vergisiyle İlgili Duran Varlıklar | B63: 0 | C63: 0 | D63: 0 | E63: 0 | F63: 0 | G63: 0 | H63: 0 | I63: 0
A64: Nakit Dışı Serbest Kullanılabilir Teminatlar | B64: 0 | C64: 0 | D64: 0 | E64: 0 | F64: 0 | G64: 0 | H64: 0 | I64: 0
A65: Peşin Ödenen Kira Giderleri | B65: 0 | C65: 0 | D65: 0 | E65: 0 | F65: 0 | G65: 0 | H65: 0 | I65: 0
A66: Peşin Ödenmiş Giderler | B66: 9206 | C66: 214667 | D66: 46126 | E66: 2135151 | F66: 2485033 | G66: 2736002 | H66: 277619 | I66: 1013904
A67: Diğer Duran Varlıklar | B67: 1334 | C67: 1334 | D67: 1334 | E67: 14549 | F67: 14549 | G67: 1334 | H67: 1334 | I67: 13342
A68: Vadesine kadar elde tut. men. kıy. | B68: 0 | C68: 0 | D68: 0 | E68: 0 | F68: 0 | G68: 0 | H68: 0 | I68: 0
A69: Satılmaya Hazır Finansal Varlıklar | B69: 0 | C69: 0 | D69: 0 | E69: 0 | F69: 0 | G69: 0 | H69: 0 | I69: 0
A70: İş Ortaklıklarının Duran Varlıklar İçindeki Payı | B70: 0 | C70: 0 | D70: 0 | E70: 0 | F70: 0 | G70: 0 | H70: 0 | I70: 0
A71: Ana Ortaklık Dışı Paylar | B71: 0 | C71: 0 | D71: 0 | E71: 0 | F71: 0 | G71: 0 | H71: 0 | I71: 0
A72: TOPLAM AKTİFLER | B72: 114168425 | C72: 153483677 | D72: 161516408 | E72: 184553918 | F72: 200108516 | G72: 203926219 | H72: 244189395 | I72: 271036203
A73: KISA VADELİ YÜKÜMLÜLÜKLER | B73: 42499826 | C73: 47726450 | D73: 63256852 | E73: 91667916 | F73: 93001276 | G73: 91699299 | H73: 123786171 | I73: 155919528
A74: Finansal Borçlar | B74: 20157693 | C74: 22906416 | D74: 36737224 | E74: 34074909 | F74: 31468180 | G74: 35811755 | H74: 40845644 | I74: 42591006
A75: Uzun Vadeli Finansal Borçların Kısa Vadeli Kısımları | B75: 6086103 | C75: 7061723 | D75: 9296637 | E75: 9950083 | F75: 9083244 | G75: 5487021 | H75: 3180016 | I75: 16514033
A76: Mevduat | B76: 0 | C76: 0 | D76: 0 | E76: 0 | F76: 0 | G76: 0 | H76: 0 | I76: 0
A77: Türev Araçlar | B77: 136574 | C77: 61923 | D77: 0 | E77: 0 | F77: 0 | G77: 0 | H77: 0 | I77: 0
A78: Faktoring borçları | B78: 0 | C78: 0 | D78: 0 | E78: 0 | F78: 0 | G78: 0 | H78: 0 | I78: 0
A79: Finansal Kiralama İşlemlerinden Borçlar | B79: 0 | C79: 0 | D79: 0 | E79: 0 | F79: 0 | G79: 0 | H79: 0 | I79: 0
A80: Finans Sektörü Faaliyetlerinden Borçlar | B80: 0 | C80: 0 | D80: 0 | E80: 0 | F80: 0 | G80: 0 | H80: 0 | I80: 0
A81: Sigorta Teknik Karşılığı | B81: 0 | C81: 0 | D81: 0 | E81: 0 | F81: 0 | G81: 0 | H81: 0 | I81: 0
A82: Diğer Finansal Yükümlülükler | B82: 28106 | C82: 9979 | D82: 27673 | E82: 0 | F82: 63380 | G82: 57978 | H82: 87547 | I82: 0
A83: Ticari Borçlar | B83: 15269152 | C83: 15953324 | D83: 15506119 | E83: 20824573 | F83: 30207335 | G83: 33877890 | H83: 34953584 | I83: 40240569
A84: İlişkili Taraflara Borçlar | B84: 0 | C84: 0 | D84: 0 | E84: 0 | F84: 0 | G84: 0 | H84: 0 | I84: 0
A85: Alınan Krediler | B85: 0 | C85: 0 | D85: 0 | E85: 0 | F85: 0 | G85: 0 | H85: 0 | I85: 0
A86: Diğer Borçlar | B86: 431061 | C86: 366475 | D86: 575951 | E86: 25851053 | F86: 20496297 | G86: 15358029 | H86: 42622961 | I86: 51670982
A87: Alınan Avanslar | B87: 0 | C87: 0 | D87: 0 | E87: 0 | F87: 0 | G87: 0 | H87: 0 | I87: 0
A88: Devlet Teşvik ve Yardımları | B88: 0 | C88: 0 | D88: 0 | E88: 0 | F88: 0 | G88: 0 | H88: 0 | I88: 0
A89: Ertelenmiş Gelirler | B89: 0 | C89: 688035 | D89: 346680 | E89: 181566 | F89: 579567 | G89: 15928 | H89: 1142 | I89: 3773337
A90: Cari Dönem Vergi Yükümlülüğü | B90: 0 | C90: 51838 | D90: 0 | E90: 0 | F90: 0 | G90: 0 | H90: 0 | I90: 110805
A91: Cari Dönem Vergisi ile İlgili Borçlar | B91: 0 | C91: 0 | D91: 0 | E91: 0 | F91: 0 | G91: 0 | H91: 0 | I91: 0
A92: Bloke Hesaplar | B92: 0 | C92: 0 | D92: 0 | E92: 0 | F92: 0 | G92: 0 | H92: 0 | I92: 0
A93: Müşteri Sözleşmelerinden Doğan Yükümlülükler | B93: 0 | C93: 0 | D93: 0 | E93: 0 | F93: 0 | G93: 0 | H93: 0 | I93: 0
A94: Özkaynak Yöntemiyle Değerlenen Yatırımlardan Yükümlülükler | B94: 0 | C94: 0 | D94: 0 | E94: 0 | F94: 0 | G94: 0 | H94: 0 | I94: 0
A95: Borç ve Gider Karşılıkları | B95: 0 | C95: 0 | D95: 0 | E95: 0 | F95: 0 | G95: 0 | H95: 0 | I95: 121950
A96: Çalışanlara Sağlanan Faydalara İlişkin Karşılıklar | B96: 391137 | C96: 525838 | D96: 488101 | E96: 690082 | F96: 984115 | G96: 1035920 | H96: 2075498 | I96: 879759
A97: Ertelenen Vergi Yükümlülüğü | B97: 0 | C97: 0 | D97: 0 | E97: 0 | F97: 0 | G97: 0 | H97: 0 | I97: 0
A98: Durdurulan faaliyetler ile ilgili yükümlülükler | B98: 0 | C98: 0 | D98: 0 | E98: 0 | F98: 0 | G98: 0 | H98: 0 | I98: 0
A99: Diğer Kısa Vadeli Borçlar | B99: 0 | C99: 100899 | D99: 278467 | E99: 95650 | F99: 119158 | G99: 54778 | H99: 19779 | I99: 17087
A100: İş Ortaklıklarının Kısa Vadeli Yükümlülükler İçindeki Payı | B100: 0 | C100: 0 | D100: 0 | E100: 0 | F100: 0 | G100: 0 | H100: 0 | I100: 0
A101: Elden Çıkarılacak Faaliyetler ile İlgili Yükümlülükler | B101: 0 | C101: 0 | D101: 0 | E101: 0 | F101: 0 | G101: 0 | H101: 0 | I101: 0
A102: Ortaklara Dağıtılmak Üzere Elde Tutulan Varlık Gruplarına İlişkin Yükümlülükler | B102: 0 | C102: 0 | D102: 0 | E102: 0 | F102: 0 | G102: 0 | H102: 0 | I102: 0
A103: UZUN VADELİ YÜKÜMLÜLÜKLER | B103: 10546488 | C103: 9682627 | D103: 14858004 | E103: 21053770 | F103: 28779649 | G103: 28055173 | H103: 29533660 | I103: 22440849
A104: Mevduatlar | B104: 0 | C104: 0 | D104: 0 | E104: 0 | F104: 0 | G104: 0 | H104: 0 | I104: 0
A105: Finansal Borçlar | B105: 8779920 | C105: 6998233 | D105: 12208000 | E105: 16856375 | F105: 23077418 | G105: 23316436 | H105: 24673747 | I105: 17741434
A106: Faktoring borçları | B106: 0 | C106: 0 | D106: 0 | E106: 0 | F106: 0 | G106: 0 | H106: 0 | I106: 0
A107: Finansal Kiralama İşlemlerinden Borçlar | B107: 0 | C107: 0 | D107: 0 | E107: 0 | F107: 0 | G107: 0 | H107: 0 | I107: 0
A108: Finans Sektörü Faaliyetlerinden Borçlar | B108: 0 | C108: 0 | D108: 0 | E108: 0 | F108: 0 | G108: 0 | H108: 0 | I108: 0
A109: Sigorta teknik karşılıkları | B109: 0 | C109: 0 | D109: 0 | E109: 0 | F109: 0 | G109: 0 | H109: 0 | I109: 0
A110: Diğer Finansal Yükümlülükler | B110: 0 | C110: 0 | D110: 0 | E110: 0 | F110: 0 | G110: 0 | H110: 0 | I110: 0
A111: Ticari Borçlar | B111: 0 | C111: 0 | D111: 0 | E111: 0 | F111: 0 | G111: 272547 | H111: 0 | I111: 0
A112: İlişkili Taraflara Borçlar | B112: 0 | C112: 0 | D112: 0 | E112: 0 | F112: 0 | G112: 0 | H112: 0 | I112: 0
A113: Alınan Krediler | B113: 0 | C113: 0 | D113: 0 | E113: 0 | F113: 0 | G113: 0 | H113: 0 | I113: 0
A114: Diğer Borçlar | B114: 0 | C114: 0 | D114: 0 | E114: 0 | F114: 0 | G114: 0 | H114: 0 | I114: 0
A115: Müşteri Sözleşmelerinden Doğan Yükümlülükler | B115: 0 | C115: 0 | D115: 0 | E115: 0 | F115: 0 | G115: 0 | H115: 0 | I115: 0
A116: Bloke Hesaplar | B116: 0 | C116: 0 | D116: 0 | E116: 0 | F116: 0 | G116: 0 | H116: 0 | I116: 0
A117: Alınan Avanslar | B117: 0 | C117: 0 | D117: 0 | E117: 0 | F117: 0 | G117: 0 | H117: 0 | I117: 0
A118: Çalışanlara Sağlanan Faydalar Kapsamında Borçlar | B118: 0 | C118: 0 | D118: 0 | E118: 0 | F118: 0 | G118: 0 | H118: 0 | I118: 0
A119: Borç ve Gider Karşılıkları | B119: 383766 | C119: 569647 | D119: 688192 | E119: 2222003 | F119: 2744595 | G119: 2915275 | H119: 3590206 | I119: 2345892
A120: Türev Finansal Araçlardan Borçlar | B120: 0 | C120: 0 | D120: 0 | E120: 0 | F120: 0 | G120: 0 | H120: 0 | I120: 0
A121: Cari Dönem Vergisiyle İlgili Borçlar | B121: 0 | C121: 0 | D121: 0 | E121: 0 | F121: 0 | G121: 0 | H121: 0 | I121: 0
A122: Ertelenen Vergi Yükümlülüğü | B122: 1382802 | C122: 1917619 | D122: 1874157 | E122: 1833552 | F122: 2957636 | G122: 1550915 | H122: 1269707 | I122: 2353523
A123: Devlet Teşvik ve Yardımları | B123: 0 | C123: 0 | D123: 0 | E123: 0 | F123: 0 | G123: 0 | H123: 0 | I123: 0
A124: Ertelenmiş Gelirler | B124: 0 | C124: 0 | D124: 0 | E124: 0 | F124: 0 | G124: 0 | H124: 0 | I124: 0
A125: Devam Eden Sözleşmeler Hakediş Bedelleri | B125: 0 | C125: 0 | D125: 0 | E125: 0 | F125: 0 | G125: 0 | H125: 0 | I125: 0
A126: Pozitif/Negatif Şerefiye | B126: 0 | C126: 0 | D126: 0 | E126: 0 | F126: 0 | G126: 0 | H126: 0 | I126: 0
A127: Diğer Uzun Vadeli Borçlar | B127: 0 | C127: 197128 | D127: 87655 | E127: 141840 | F127: 0 | G127: 0 | H127: 0 | I127: 0
A128: İş Ortaklıklarının Uzun Vadeli Yükümlülükler İçindeki Payı | B128: 0 | C128: 0 | D128: 0 | E128: 0 | F128: 0 | G128: 0 | H128: 0 | I128: 0
A129: ÖZ SERMAYE (AZINLIK PAYI DAHİL) | B129: 61122111 | C129: 96074600 | D129: 83401552 | E129: 71832232 | F129: 78327591 | G129: 84171747 | H129: 90869564 | I129: 92675826
A130: ANA ORTAKLIK DIŞI ÖZSERMAYE | B130: 23468047 | C130: 32312965 | D130: 32089753 | E130: 31398861 | F130: 28733704 | G130: 33280492 | H130: 34277171 | I130: 33675488
A131: Aile Üyeleri | B131: 0 | C131: 0 | D131: 0 | E131: 0 | F131: 0 | G131: 0 | H131: 0 | I131: 0
A132: Diğerleri | B132: 0 | C132: 0 | D132: 0 | E132: 0 | F132: 0 | G132: 0 | H132: 0 | I132: 0
A133: ÖZ SERMAYE (ANA ORTAKLIĞA AİT) | B133: 37654064 | C133: 63761635 | D133: 51311799 | E133: 40433371 | F133: 49593887 | G133: 50891255 | H133: 56592393 | I133: 59000338
A134: Sermaye | B134: 29000000 | C134: 45000000 | D134: 45000000 | E134: 90000000 | F134: 90000000 | G134: 90000000 | H134: 90000000 | I134: 90000000
A135: Ödenmeyen Sermaye(-) | B135: 0 | C135: 0 | D135: 0 | E135: 0 | F135: 0 | G135: 0 | H135: 0 | I135: 0
A136: Karşılıklı İştirak Sermaye Düzeltmesi | B136: 0 | C136: 0 | D136: 0 | E136: 0 | F136: 0 | G136: 0 | H136: 0 | I136: 0
A137: Paylara İlişkin Primler/İskontolar | B137: 384 | C137: 958784 | D137: 958784 | E137: 958787 | F137: 958787 | G137: 1016481 | H137: 1016481 | I137: 1016481
A138: İşletmenin Geri Satın Alınan Kendi Hisseleri | B138: 0 | C138: -299391 | D138: 0 | E138: 0 | F138: -1358263 | G138: 0 | H138: 0 | I138: 0
A139: İşletmenin Geri Alınan Kendi Hisse Senetlerinin Satışından Doğan Kar | B139: 0 | C139: 0 | D139: 0 | E139: 0 | F139: 0 | G139: 0 | H139: 0 | I139: 0
A140: Sermaye Avansı | B140: 0 | C140: 0 | D140: 0 | E140: 0 | F140: 0 | G140: 0 | H140: 0 | I140: 0
A141: Kar veya Zararda Yeniden Sınıflandırılmayacak Birikmiş Diğer Kapsamlı Gel. veya Gid. | B141: 3749993 | C141: 13244490 | D141: 13185454 | E141: 12936884 | F141: 17767036 | G141: 17767036 | H141: 17767036 | I141: 17691635
A142: Kar veya Zararda Yeniden Sınıflandırılacak Birikmiş Diğer Kapsamlı Gelir. veya Gid. | B142: -109259 | C142: -49538 | D142: 0 | E142: 0 | F142: 0 | G142: 0 | H142: 0 | I142: 0
A143: Sermaye Yedekleri | B143: -102923 | C143: 799434 | D143: 958784 | E143: 958787 | F143: 958787 | G143: 1016481 | H143: 1016481 | I143: 1016481
A144: Sermaye Taahhütleri (-) | B144: 0 | C144: 0 | D144: 0 | E144: 0 | F144: 0 | G144: 0 | H144: 0 | I144: 0
A145: Katkı sermaye | B145: 0 | C145: 0 | D145: 0 | E145: 0 | F145: 0 | G145: 0 | H145: 0 | I145: 0
A146: Azınlık Hisseleri Satış Opsiyonu Değerleme Fonu | B146: 0 | C146: 0 | D146: 0 | E146: 0 | F146: 0 | G146: 0 | H146: 0 | I146: 0
A147: Emisyon Primi | B147: 0 | C147: 0 | D147: 0 | E147: 0 | F147: 0 | G147: 0 | H147: 0 | I147: 0
A148: Yeniden Değerleme Artışı | B148: 3853300 | C148: 13403840 | D148: 13185454 | E148: 12936884 | F148: 17767036 | G148: 17767036 | H148: 17767036 | I148: 17691635
A149: Kar Yedekleri | B149: -109259 | C149: -49538 | D149: -11930691 | E149: -62264781 | F149: -62264781 | G149: -62264781 | H149: -62264781 | I149: -62264781
A150: Dağıtılmamış Kar | B150: 0 | C150: 0 | D150: 0 | E150: 0 | F150: 0 | G150: 0 | H150: 0 | I150: 0
A151: Sermaye artırımı ile ilgili masraflar | B151: 0 | C151: 0 | D151: 0 | E151: 0 | F151: 0 | G151: 0 | H151: 0 | I151: 0
A152: Nakit Akım Koruması ile İlgili Birikmiş Kar | B152: 0 | C152: 0 | D152: 0 | E152: 0 | F152: 0 | G152: 0 | H152: 0 | I152: 0
A153: Karşılıklı İştirak Serm. Düzeltmesinin Nom. Tut. Aşan Kısım | B153: 0 | C153: 0 | D153: 0 | E153: 0 | F153: 0 | G153: 0 | H153: 0 | I153: 0
A154: Finansal Yatırımlar Değer Artış Fonu | B154: 0 | C154: 0 | D154: 0 | E154: 0 | F154: 0 | G154: 0 | H154: 0 | I154: 0
A155: Diğer Özkaynak Payları | B155: 0 | C155: 0 | D155: 0 | E155: 0 | F155: 0 | G155: 0 | H155: 0 | I155: 0
A156: Diğer Yedekler | B156: 0 | C156: 0 | D156: 0 | E156: 0 | F156: 0 | G156: 0 | H156: 0 | I156: 0
A157: Net Dönem Karı | B157: 1725166 | C157: 0 | D157: 0 | E157: 0 | F157: 5688627 | G157: 5570038 | H157: 11271176 | I157: 13792671
A158: Dönem Zararı (-) | B158: 0 | C158: 105654 | D158: 743007 | E158: 5242910 | F158: 0 | G158: 0 | H158: 0 | I158: 0
A159: Geçmiş Yıl Karları | B159: 3001242 | C159: 4394942 | D159: 4415023 | E159: 3692471 | F159: 0 | G159: 0 | H159: 0 | I159: 0
A160: Net Dön. Kar. Ser. Hes. Ed. Tran. Ed. M. Dur. V. Sa. Karı | B160: 0 | C160: 0 | D160: 0 | E160: 0 | F160: 0 | G160: 0 | H160: 0 | I160: 0
A161: Geçmiş Yıl Zararları (-) | B161: 0 | C161: 0 | D161: 0 | E161: 0 | F161: 1512290 | G161: 1512290 | H161: 1512290 | I161: 1550439
A162: Yabancı Para Çevrim Farkları | B162: 0 | C162: 0 | D162: 0 | E162: 0 | F162: 0 | G162: 0 | H162: 0 | I162: 0
A163: Kardan Ayrılan Kısıtlanmış Yedekler | B163: 281710 | C163: 613174 | D163: 421408 | E163: 348092 | F163: 309943 | G163: 309943 | H163: 309943 | I163: 309943
A164: Kardan Ayrılan Kısıtlanmış Yedekler (27) | B164: 0 | C164: 0 | D164: 0 | E164: 0 | F164: 0 | G164: 0 | H164: 0 | I164: 0
A165: Zarar Telafi Fonu | B165: 0 | C165: 0 | D165: 0 | E165: 0 | F165: 0 | G165: 0 | H165: 0 | I165: 0
A166: Özsermaye Enf. Düz. Farkları | B166: 4828 | C166: 4828 | D166: 4828 | E166: 4828 | F166: 4828 | G166: 4828 | H166: 4828 | I166: 4828
A167: Sermaye Birleşme Fonu | B167: 0 | C167: 0 | D167: 0 | E167: 0 | F167: 0 | G167: 0 | H167: 0 | I167: 0
A168: İlave Ödenmiş Sermaye | B168: 0 | C168: 0 | D168: 0 | E168: 0 | F168: 0 | G168: 0 | H168: 0 | I168: 0
A169: Birikmiş Karlar/Zararlar | B169: 0 | C169: 0 | D169: 0 | E169: 0 | F169: 0 | G169: 0 | H169: 0 | I169: 0
A170: Yatırım Teşvikleri | B170: 0 | C170: 0 | D170: 0 | E170: 0 | F170: 0 | G170: 0 | H170: 0 | I170: 0
A171: Satılmaya Haz. Var. Üz. Gerçekleşmemiş Net Gelir | B171: 0 | C171: 0 | D171: 0 | E171: 0 | F171: 0 | G171: 0 | H171: 0 | I171: 0
A172: Ana ortaklık hisse satış kar/zarar | B172: 0 | C172: 0 | D172: 0 | E172: 0 | F172: 0 | G172: 0 | H172: 0 | I172: 0
A173: AZINLIK PAYLARI | B173: 0 | C173: 0 | D173: 0 | E173: 0 | F173: 0 | G173: 0 | H173: 0 | I173: 0
A174: TOPLAM PASİFLER | B174: 114168425 | C174: 153483677 | D174: 161516408 | E174: 184553918 | F174: 200108516 | G174: 203926219 | H174: 244189395 | I174: 271036203
A176: GELİR TABLOSU | B176: 2015/12 | C176: 2016/12 | D176: 2017/12 | E176: 2018/12 | F176: 2019/03 | G176: 2019/06 | H176: 2019/09 | I176: 2019/12
A177: BRÜT SATIŞLAR | B177: 92562189 | C177: 103743188 | D177: 114690975 | E177: 145533312 | F177: 38676869 | G177: 91238369 | H177: 136425665 | I177: 181687348
A178: Yurtiçi Satışlar | B178: 5199492 | C178: 5006093 | D178: 6616797 | E178: 10110834 | F178: 4555173 | G178: 11432404 | H178: 18799899 | I178: 20569991
A179: Yurtdışı Satışlar | B179: 87271092 | C179: 98546941 | D179: 107892531 | E179: 134989559 | F179: 34068593 | G179: 79625594 | H179: 117216460 | I179: 161027108
A180: Diğer Satışlar | B180: 91605 | C180: 190154 | D180: 181647 | E180: 432919 | F180: 53103 | G180: 180371 | H180: 409306 | I180: 90249
A181: SATIŞLARDAN İNDİRİMLER (-) | B181: 1092276 | C181: 1398927 | D181: 1572601 | E181: 4755800 | F181: 72624 | G181: 930807 | H181: 2114592 | I181: 2724144
A182: Satışdan İadeler (-) | B182: 270143 | C182: 534790 | D182: 661855 | E182: 2652809 | F182: 1300 | G182: 700815 | H182: 1676149 | I182: 2248149
A183: Satış İskontoları (-) | B183: 370715 | C183: 522631 | D183: 419715 | E183: 283408 | F183: 0 | G183: 0 | H183: 1305 | I183: 1305
A184: Diğer İndirimler (-) | B184: 451418 | C184: 341506 | D184: 491031 | E184: 1819583 | F184: 71324 | G184: 229992 | H184: 437138 | I184: 474690
A185: ESAS FAALİYET GELİRLERİ | B185: 0 | C185: 0 | D185: 0 | E185: 0 | F185: 0 | G185: 0 | H185: 0 | I185: 0
A186: SATIŞ GELİRLERİ | B186: 91469913 | C186: 102344261 | D186: 113118374 | E186: 140777512 | F186: 38604245 | G186: 90307562 | H186: 134311073 | I186: 178963204
A187: FAİZ GELİRİ | B187: 0 | C187: 0 | D187: 0 | E187: 0 | F187: 0 | G187: 0 | H187: 0 | I187: 0
A188: SATIŞLARIN MALİYETİ (-) | B188: 72928792 | C188: 83982095 | D188: 93420164 | E188: 113832188 | F188: 32008020 | G188: 72597983 | H188: 106697022 | I188: 145757347
A189: FAİZ GİDERİ | B189: 0 | C189: 0 | D189: 0 | E189: 0 | F189: 0 | G189: 0 | H189: 0 | I189: 0
A190: MUHTEMEL KREDİ ZARAR KARŞ. FİN.KİR. ALCK. KARŞ. VE FAKT. DEĞ. DÜŞ. KARŞ. | B190: 0 | C190: 0 | D190: 0 | E190: 0 | F190: 0 | G190: 0 | H190: 0 | I190: 0
A191: HİZMET GELİRLERİ | B191: 0 | C191: 0 | D191: 0 | E191: 0 | F191: 0 | G191: 0 | H191: 0 | I191: 0
A192: HİZMET GİDERLERİ (-) | B192: 0 | C192: 0 | D192: 0 | E192: 0 | F192: 0 | G192: 0 | H192: 0 | I192: 0
A193: KAMBİYO KARI/ZARARI | B193: 0 | C193: 0 | D193: 0 | E193: 0 | F193: 0 | G193: 0 | H193: 0 | I193: 0
A194: SERMAYE PİYASASI İŞLEM KARI/ZARARI | B194: 0 | C194: 0 | D194: 0 | E194: 0 | F194: 0 | G194: 0 | H194: 0 | I194: 0
A195: ESAS FAALİYETLERDEN DİĞER GİDER/GELİR | B195: 0 | C195: 0 | D195: 0 | E195: 0 | F195: 0 | G195: 0 | H195: 0 | I195: 0
A196: FAİZ, ÜCRET, PRİM, KOMİSYON VE DİĞER GELİRLER | B196: 0 | C196: 0 | D196: 0 | E196: 0 | F196: 0 | G196: 0 | H196: 0 | I196: 0
A197: Kambiyo Gelirleri | B197: 0 | C197: 0 | D197: 0 | E197: 0 | F197: 0 | G197: 0 | H197: 0 | I197: 0
A198: Faiz Gelirleri | B198: 0 | C198: 0 | D198: 0 | E198: 0 | F198: 0 | G198: 0 | H198: 0 | I198: 0
A199: Kar Payı Gelirleri | B199: 0 | C199: 0 | D199: 0 | E199: 0 | F199: 0 | G199: 0 | H199: 0 | I199: 0
A200: Türev Finansal İşlemlerden Kazanç | B200: 0 | C200: 0 | D200: 0 | E200: 0 | F200: 0 | G200: 0 | H200: 0 | I200: 0
A201: Portföy İşletmeciliği Faaliyetinden Elde Edilen Gelir | B201: 0 | C201: 0 | D201: 0 | E201: 0 | F201: 0 | G201: 0 | H201: 0 | I201: 0
... 91 more rows

Sheet ACSEL
A1: ACSEL | B1: ACSEL | C1: ACSEL | D1: ACSEL | E1: ACSEL | F1: ACSEL | G1: ACSEL | H1: ACSEL | I1: ACSEL
B2: 2015/12 | C2: 2016/12 | D2: 2017/12 | E2: 2018/12 | F2: 2019/03 | G2: 2019/06 | H2: 2019/09 | I2: 2019/12
A3: DÖNEN VARLIKLAR | B3: 10192833 | C3: 10953846 | D3: 13304099 | E3: 15418210 | F3: 16068642 | G3: 15763312 | H3: 16758724 | I3: 18628141
A4: Hazır Değerler | B4: 1765063 | C4: 1025911 | D4: 2162429 | E4: 2444241 | F4: 2760421 | G4: 2405500 | H4: 470230 | I4: 2233195
A5: Gayrimenkul Projeleri Kapsamında Açılan Nakit Hesapları | B5: 0 | C5: 0 | D5: 0 | E5: 0 | F5: 0 | G5: 0 | H5: 0 | I5: 0
A6: Finansal Yatırımlar | B6: 0 | C6: 0 | D6: 0 | E6: 0 | F6: 0 | G6: 0 | H6: 0 | I6: 0
A7: Menkul Kıymetler | B7: 0 | C7: 0 | D7: 0 | E7: 0 | F7: 0 | G7: 0 | H7: 0 | I7: 0
A8: Türkiye Cumhuriyet Merkez Bankası Hesabı | B8: 0 | C8: 0 | D8: 0 | E8: 0 | F8: 0 | G8: 0 | H8: 0 | I8: 0
A9: Krediler ve Avanslar | B9: 0 | C9: 0 | D9: 0 | E9: 0 | F9: 0 | G9: 0 | H9: 0 | I9: 0
A10: Faktoring alacakları (net) | B10: 0 | C10: 0 | D10: 0 | E10: 0 | F10: 0 | G10: 0 | H10: 0 | I10: 0
A11: Teminata Verilen Finansal Varlıklar | B11: 0 | C11: 0 | D11: 0 | E11: 0 | F11: 0 | G11: 0 | H11: 0 | I11: 0
A12: Kısa Vadeli Ticari Alacaklar | B12: 1881424 | C12: 2162242 | D12: 3361046 | E12: 4179144 | F12: 5837748 | G12: 3719465 | H12: 7428866 | I12: 7443405
A13: Finansal Kiralama Alacakları | B13: 0 | C13: 0 | D13: 0 | E13: 0 | F13: 0 | G13: 0 | H13: 0 | I13: 0
A14: Finans Sektörü Faal. Alacaklar | B14: 0 | C14: 0 | D14: 0 | E14: 0 | F14: 0 | G14: 0 | H14: 0 | I14: 0
A15: İlişkili Taraflardan Alacaklar | B15: 0 | C15: 0 | D15: 0 | E15: 0 | F15: 0 | G15: 0 | H15: 0 | I15: 0
A16: Diğer Kısa Vadeli Alacaklar | B16: 211881 | C16: 1362496 | D16: 2722773 | E16: 604933 | F16: 1027833 | G16: 790838 | H16: 862237 | I16: 1266781
A17: Canlı Varlıklar | B17: 0 | C17: 0 | D17: 0 | E17: 0 | F17: 0 | G17: 0 | H17: 0 | I17: 0
A18: Kullanımı Kısıtlı Banka Bakiyeleri | B18: 0 | C18: 0 | D18: 0 | E18: 0 | F18: 0 | G18: 0 | H18: 0 | I18: 0
A19: Stoklar | B19: 5978650 | C19: 5978597 | D19: 4434936 | E19: 6934224 | F19: 5291458 | G19: 7910497 | H19: 6398286 | I19: 5974409
A20: Peşin Ödenen Kira Giderleri | B20: 0 | C20: 0 | D20: 0 | E20: 0 | F20: 0 | G20: 0 | H20: 0 | I20: 0
A21: Müşteri Sözleşmelerinden Doğan Varlıklar | B21: 0 | C21: 0 | D21: 0 | E21: 0 | F21: 0 | G21: 0 | H21: 0 | I21: 0
A22: İmtiyaz Sözleşmelerine İlişkin Finansal Varlıklar | B22: 0 | C22: 0 | D22: 0 | E22: 0 | F22: 0 | G22: 0 | H22: 0 | I22: 0
A23: Türev Enstrümanlar | B23: 0 | C23: 0 | D23: 0 | E23: 0 | F23: 0 | G23: 0 | H23: 0 | I23: 0
A24: Ertelenen Vergi Varlıkları | B24: 0 | C24: 0 | D24: 0 | E24: 0 | F24: 0 | G24: 0 | H24: 0 | I24: 0
A25: Durdurulan faaliyetler ile ilgili varlıklar | B25: 0 | C25: 0 | D25: 0 | E25: 0 | F25: 0 | G25: 0 | H25: 0 | I25: 0
A26: Ertelenmiş Sigortacılık Üretim Giderleri | B26: 0 | C26: 0 | D26: 0 | E26: 0 | F26: 0 | G26: 0 | H26: 0 | I26: 0
A27: Peşin Ödenmiş Giderler | B27: 271404 | C27: 274872 | D27: 168051 | E27: 226668 | F27: 402638 | G27: 319327 | H27: 1068288 | I27: 1108702
A28: Cari Dönem Vergisiyle İlgili Varlıklar | B28: 0 | C28: 0 | D28: 0 | E28: 121081 | F28: 0 | G28: 0 | H28: 0 | I28: 0
A29: Nakit Dışı Serbest Kullanılabilir Teminatlar | B29: 0 | C29: 0 | D29: 0 | E29: 0 | F29: 0 | G29: 0 | H29: 0 | I29: 0
A30: Diğer Dönen Varlıklar | B30: 84411 | C30: 149728 | D30: 454864 | E30: 907919 | F30: 748544 | G30: 617685 | H30: 530817 | I30: 601649
A31: Vadesine kadar elde tut. men. kıy. | B31: 0 | C31: 0 | D31: 0 | E31: 0 | F31: 0 | G31: 0 | H31: 0 | I31: 0
A32: Satılmaya Hazır Finansal Varlıklar | B32: 0 | C32: 0 | D32: 0 | E32: 0 | F32: 0 | G32: 0 | H32: 0 | I32: 0
A33: Alım Satım Amaçlı Menkul Kıymetler | B33: 0 | C33: 0 | D33: 0 | E33: 0 | F33: 0 | G33: 0 | H33: 0 | I33: 0
A34: İş Ortaklıklarının Dönen Varlıklar İçindeki Payı | B34: 0 | C34: 0 | D34: 0 | E34: 0 | F34: 0 | G34: 0 | H34: 0 | I34: 0
A35: Elden Çıkarılacak Faaliyetler ile İlgili Varlıklar | B35: 0 | C35: 0 | D35: 0 | E35: 0 | F35: 0 | G35: 0 | H35: 0 | I35: 0
A36: Satım amaçlı elde tutulan maddi duran varlıklar | B36: 0 | C36: 0 | D36: 0 | E36: 0 | F36: 0 | G36: 0 | H36: 0 | I36: 0
A37: Ortaklara Dağıtılmak Üzere Elde Tutulan Duran Varlıklar | B37: 0 | C37: 0 | D37: 0 | E37: 0 | F37: 0 | G37: 0 | H37: 0 | I37: 0
A38: DURAN VARLIKLAR | B38: 6563680 | C38: 13178863 | D38: 15013643 | E38: 22753468 | F38: 22779812 | G38: 28673415 | H38: 28832133 | I38: 30819940
A39: Menkul Kıymetler | B39: 0 | C39: 0 | D39: 0 | E39: 0 | F39: 0 | G39: 0 | H39: 0 | I39: 0
A40: Krediler ve Avanslar | B40: 0 | C40: 0 | D40: 0 | E40: 0 | F40: 0 | G40: 0 | H40: 0 | I40: 0
A41: Faktoring alacakları (net) | B41: 0 | C41: 0 | D41: 0 | E41: 0 | F41: 0 | G41: 0 | H41: 0 | I41: 0
A42: Uzun Vadeli Ticari Alacaklar | B42: 0 | C42: 0 | D42: 0 | E42: 0 | F42: 0 | G42: 0 | H42: 0 | I42: 0
A43: Finansal Kiralama Alacakları | B43: 0 | C43: 0 | D43: 0 | E43: 0 | F43: 0 | G43: 0 | H43: 0 | I43: 0
A44: Finans Sektörü Faal. Alacaklar | B44: 0 | C44: 0 | D44: 0 | E44: 0 | F44: 0 | G44: 0 | H44: 0 | I44: 0
A45: İlişkili Taraflardan Alacaklar | B45: 0 | C45: 0 | D45: 0 | E45: 0 | F45: 0 | G45: 0 | H45: 0 | I45: 0
A46: Türev Enstrümanlar | B46: 0 | C46: 0 | D46: 0 | E46: 0 | F46: 0 | G46: 0 | H46: 0 | I46: 0
A47: Diğer Uzun Vadeli Alacaklar | B47: 0 | C47: 0 | D47: 0 | E47: 0 | F47: 0 | G47: 0 | H47: 0 | I47: 0
A48: Finansal Yatırımlar | B48: 1260 | C48: 1260 | D48: 1260 | E48: 1260 | F48: 1260 | G48: 1260 | H48: 1260 | I48: 1260
A49: Özkaynak Yöntemiyle Değerlenen Yatırımlar | B49: 0 | C49: 0 | D49: 0 | E49: 0 | F49: 0 | G49: 0 | H49: 0 | I49: 0
A50: Canlı Varlıklar | B50: 0 | C50: 0 | D50: 0 | E50: 0 | F50: 0 | G50: 0 | H50: 0 | I50: 0
A51: İmtiyaz Sözleşmelerine İlişkin Finansal Varlıklar | B51: 0 | C51: 0 | D51: 0 | E51: 0 | F51: 0 | G51: 0 | H51: 0 | I51: 0
A52: Stoklar | B52: 0 | C52: 0 | D52: 0 | E52: 0 | F52: 0 | G52: 0 | H52: 0 | I52: 0
A53: Finansal Duran Varlıklar | B53: 0 | C53: 0 | D53: 0 | E53: 0 | F53: 0 | G53: 0 | H53: 0 | I53: 0
A54: Pozitif/Negatif Şerefiye | B54: 0 | C54: 0 | D54: 0 | E54: 0 | F54: 0 | G54: 0 | H54: 0 | I54: 0
A55: Yatırım Amaçlı Gayrimenkuller | B55: 0 | C55: 7320000 | D55: 8040000 | E55: 13148960 | F55: 13148960 | G55: 17582848 | H55: 17582848 | I55: 18900000
A56: Proje Halindeki Yatırım Amaçlı Gayrimenkuller | B56: 0 | C56: 0 | D56: 0 | E56: 0 | F56: 0 | G56: 0 | H56: 0 | I56: 0
A57: Alım Satım Amaçlı Gayrimenkuller (net) | B57: 0 | C57: 0 | D57: 0 | E57: 0 | F57: 0 | G57: 0 | H57: 0 | I57: 0
A58: Maddi Duran Varlıklar | B58: 6502157 | C58: 5796913 | D58: 6912335 | E58: 9550590 | F58: 9584805 | G58: 11047304 | H58: 11208805 | I58: 11877063
A59: Kullanım Hakkı Varlıkları | B59: 0 | C59: 0 | D59: 0 | E59: 0 | F59: 0 | G59: 0 | H59: 0 | I59: 0
A60: Maddi Olmayan Duran Varlıklar | B60: 50205 | C60: 48893 | D60: 59953 | E60: 46822 | F60: 44692 | G60: 41908 | H60: 39124 | I60: 41521
A61: Müşteri Sözleşmelerinden Doğan Varlıklar | B61: 0 | C61: 0 | D61: 0 | E61: 0 | F61: 0 | G61: 0 | H61: 0 | I61: 0
A62: Ertelenen Vergi Varlıkları | B62: 0 | C62: 0 | D62: 0 | E62: 0 | F62: 0 | G62: 0 | H62: 0 | I62: 0
A63: Cari Dönem Vergisiyle İlgili Duran Varlıklar | B63: 0 | C63: 0 | D63: 0 | E63: 0 | F63: 0 | G63: 0 | H63: 0 | I63: 0
A64: Nakit Dışı Serbest Kullanılabilir Teminatlar | B64: 0 | C64: 0 | D64: 0 | E64: 0 | F64: 0 | G64: 0 | H64: 0 | I64: 0
A65: Peşin Ödenen Kira Giderleri | B65: 0 | C65: 0 | D65: 0 | E65: 0 | F65: 0 | G65: 0 | H65: 0 | I65: 0
A66: Peşin Ödenmiş Giderler | B66: 0 | C66: 0 | D66: 0 | E66: 0 | F66: 0 | G66: 0 | H66: 0 | I66: 0
A67: Diğer Duran Varlıklar | B67: 10058 | C67: 11797 | D67: 95 | E67: 5836 | F67: 95 | G67: 95 | H67: 96 | I67: 96
A68: Vadesine kadar elde tut. men. kıy. | B68: 0 | C68: 0 | D68: 0 | E68: 0 | F68: 0 | G68: 0 | H68: 0 | I68: 0
A69: Satılmaya Hazır Finansal Varlıklar | B69: 0 | C69: 0 | D69: 0 | E69: 0 | F69: 0 | G69: 0 | H69: 0 | I69: 0
A70: İş Ortaklıklarının Duran Varlıklar İçindeki Payı | B70: 0 | C70: 0 | D70: 0 | E70: 0 | F70: 0 | G70: 0 | H70: 0 | I70: 0
A71: Ana Ortaklık Dışı Paylar | B71: 0 | C71: 0 | D71: 0 | E71: 0 | F71: 0 | G71: 0 | H71: 0 | I71: 0
A72: TOPLAM AKTİFLER | B72: 16756513 | C72: 24132709 | D72: 28317742 | E72: 38171678 | F72: 38848454 | G72: 44436727 | H72: 45590857 | I72: 49448081
A73: KISA VADELİ YÜKÜMLÜLÜKLER | B73: 875141 | C73: 1011089 | D73: 2905410 | E73: 4142944 | F73: 3873109 | G73: 3411578 | H73: 3540181 | I73: 4326296
A74: Finansal Borçlar | B74: 41379 | C74: 42913 | D74: 330549 | E74: 701932 | F74: 486548 | G74: 378299 | H74: 330071 | I74: 47788
A75: Uzun Vadeli Finansal Borçların Kısa Vadeli Kısımları | B75: 0 | C75: 0 | D75: 766846 | E75: 0 | F75: 0 | G75: 0 | H75: 0 | I75: 0
A76: Mevduat | B76: 0 | C76: 0 | D76: 0 | E76: 0 | F76: 0 | G76: 0 | H76: 0 | I76: 0
A77: Türev Araçlar | B77: 0 | C77: 0 | D77: 0 | E77: 0 | F77: 0 | G77: 0 | H77: 0 | I77: 0
A78: Faktoring borçları | B78: 0 | C78: 0 | D78: 0 | E78: 0 | F78: 0 | G78: 0 | H78: 0 | I78: 0
A79: Finansal Kiralama İşlemlerinden Borçlar | B79: 0 | C79: 0 | D79: 0 | E79: 0 | F79: 0 | G79: 0 | H79: 0 | I79: 0
A80: Finans Sektörü Faaliyetlerinden Borçlar | B80: 0 | C80: 0 | D80: 0 | E80: 0 | F80: 0 | G80: 0 | H80: 0 | I80: 0
A81: Sigorta Teknik Karşılığı | B81: 0 | C81: 0 | D81: 0 | E81: 0 | F81: 0 | G81: 0 | H81: 0 | I81: 0
A82: Diğer Finansal Yükümlülükler | B82: 0 | C82: 0 | D82: 0 | E82: 0 | F82: 0 | G82: 0 | H82: 0 | I82: 0
A83: Ticari Borçlar | B83: 486950 | C83: 623305 | D83: 991712 | E83: 2401738 | F83: 1378719 | G83: 1532719 | H83: 2097774 | I83: 2271640
A84: İlişkili Taraflara Borçlar | B84: 0 | C84: 0 | D84: 0 | E84: 0 | F84: 0 | G84: 0 | H84: 0 | I84: 0
A85: Alınan Krediler | B85: 0 | C85: 0 | D85: 0 | E85: 0 | F85: 0 | G85: 0 | H85: 0 | I85: 0
A86: Diğer Borçlar | B86: 3020 | C86: 3020 | D86: 8090 | E86: 14163 | F86: 14163 | G86: 21246 | H86: 21246 | I86: 21246
A87: Alınan Avanslar | B87: 0 | C87: 0 | D87: 0 | E87: 0 | F87: 0 | G87: 0 | H87: 0 | I87: 0
A88: Devlet Teşvik ve Yardımları | B88: 0 | C88: 0 | D88: 0 | E88: 0 | F88: 0 | G88: 0 | H88: 0 | I88: 0
A89: Ertelenmiş Gelirler | B89: 8089 | C89: 6631 | D89: 173459 | E89: 239359 | F89: 808176 | G89: 458803 | H89: 21754 | I89: 460946
A90: Cari Dönem Vergi Yükümlülüğü | B90: 26302 | C90: 81214 | D90: 210506 | E90: 0 | F90: 230534 | G90: 287195 | H90: 225645 | I90: 581019
A91: Cari Dönem Vergisi ile İlgili Borçlar | B91: 0 | C91: 0 | D91: 0 | E91: 0 | F91: 0 | G91: 0 | H91: 0 | I91: 0
A92: Bloke Hesaplar | B92: 0 | C92: 0 | D92: 0 | E92: 0 | F92: 0 | G92: 0 | H92: 0 | I92: 0
A93: Müşteri Sözleşmelerinden Doğan Yükümlülükler | B93: 0 | C93: 0 | D93: 0 | E93: 0 | F93: 0 | G93: 0 | H93: 0 | I93: 0
A94: Özkaynak Yöntemiyle Değerlenen Yatırımlardan Yükümlülükler | B94: 0 | C94: 0 | D94: 0 | E94: 0 | F94: 0 | G94: 0 | H94: 0 | I94: 0
A95: Borç ve Gider Karşılıkları | B95: 60680 | C95: 37015 | D95: 134010 | E95: 126022 | F95: 135125 | G95: 162991 | H95: 190555 | I95: 221455
A96: Çalışanlara Sağlanan Faydalara İlişkin Karşılıklar | B96: 214560 | C96: 155256 | D96: 240940 | E96: 586875 | F96: 574729 | G96: 460819 | H96: 400499 | I96: 308553
A97: Ertelenen Vergi Yükümlülüğü | B97: 0 | C97: 0 | D97: 0 | E97: 0 | F97: 0 | G97: 0 | H97: 0 | I97: 0
A98: Durdurulan faaliyetler ile ilgili yükümlülükler | B98: 0 | C98: 0 | D98: 0 | E98: 0 | F98: 0 | G98: 0 | H98: 0 | I98: 0
A99: Diğer Kısa Vadeli Borçlar | B99: 34161 | C99: 61735 | D99: 49298 | E99: 72855 | F99: 245115 | G99: 109506 | H99: 252637 | I99: 413649
A100: İş Ortaklıklarının Kısa Vadeli Yükümlülükler İçindeki Payı | B100: 0 | C100: 0 | D100: 0 | E100: 0 | F100: 0 | G100: 0 | H100: 0 | I100: 0
A101: Elden Çıkarılacak Faaliyetler ile İlgili Yükümlülükler | B101: 0 | C101: 0 | D101: 0 | E101: 0 | F101: 0 | G101: 0 | H101: 0 | I101: 0
A102: Ortaklara Dağıtılmak Üzere Elde Tutulan Varlık Gruplarına İlişkin Yükümlülükler | B102: 0 | C102: 0 | D102: 0 | E102: 0 | F102: 0 | G102: 0 | H102: 0 | I102: 0
A103: UZUN VADELİ YÜKÜMLÜLÜKLER | B103: 872566 | C103: 1095288 | D103: 2226282 | E103: 2314475 | F103: 2385730 | G103: 3046458 | H103: 3123184 | I103: 3240030
A104: Mevduatlar | B104: 0 | C104: 0 | D104: 0 | E104: 0 | F104: 0 | G104: 0 | H104: 0 | I104: 0
A105: Finansal Borçlar | B105: 42913 | C105: 0 | D105: 351947 | E105: 0 | F105: 0 | G105: 0 | H105: 0 | I105: 0
A106: Faktoring borçları | B106: 0 | C106: 0 | D106: 0 | E106: 0 | F106: 0 | G106: 0 | H106: 0 | I106: 0
A107: Finansal Kiralama İşlemlerinden Borçlar | B107: 0 | C107: 0 | D107: 0 | E107: 0 | F107: 0 | G107: 0 | H107: 0 | I107: 0
A108: Finans Sektörü Faaliyetlerinden Borçlar | B108: 0 | C108: 0 | D108: 0 | E108: 0 | F108: 0 | G108: 0 | H108: 0 | I108: 0
A109: Sigorta teknik karşılıkları | B109: 0 | C109: 0 | D109: 0 | E109: 0 | F109: 0 | G109: 0 | H109: 0 | I109: 0
A110: Diğer Finansal Yükümlülükler | B110: 0 | C110: 0 | D110: 0 | E110: 0 | F110: 0 | G110: 0 | H110: 0 | I110: 0
A111: Ticari Borçlar | B111: 0 | C111: 0 | D111: 0 | E111: 0 | F111: 0 | G111: 0 | H111: 0 | I111: 0
A112: İlişkili Taraflara Borçlar | B112: 0 | C112: 0 | D112: 0 | E112: 0 | F112: 0 | G112: 0 | H112: 0 | I112: 0
A113: Alınan Krediler | B113: 0 | C113: 0 | D113: 0 | E113: 0 | F113: 0 | G113: 0 | H113: 0 | I113: 0
A114: Diğer Borçlar | B114: 0 | C114: 0 | D114: 0 | E114: 0 | F114: 0 | G114: 0 | H114: 0 | I114: 0
A115: Müşteri Sözleşmelerinden Doğan Yükümlülükler | B115: 0 | C115: 0 | D115: 0 | E115: 0 | F115: 0 | G115: 0 | H115: 0 | I115: 0
A116: Bloke Hesaplar | B116: 0 | C116: 0 | D116: 0 | E116: 0 | F116: 0 | G116: 0 | H116: 0 | I116: 0
A117: Alınan Avanslar | B117: 0 | C117: 0 | D117: 0 | E117: 0 | F117: 0 | G117: 0 | H117: 0 | I117: 0
A118: Çalışanlara Sağlanan Faydalar Kapsamında Borçlar | B118: 0 | C118: 0 | D118: 0 | E118: 0 | F118: 0 | G118: 0 | H118: 0 | I118: 0
A119: Borç ve Gider Karşılıkları | B119: 519672 | C119: 498982 | D119: 853738 | E119: 580011 | F119: 659606 | G119: 713525 | H119: 749538 | I119: 862145
A120: Türev Finansal Araçlardan Borçlar | B120: 0 | C120: 0 | D120: 0 | E120: 0 | F120: 0 | G120: 0 | H120: 0 | I120: 0
A121: Cari Dönem Vergisiyle İlgili Borçlar | B121: 0 | C121: 0 | D121: 0 | E121: 0 | F121: 0 | G121: 0 | H121: 0 | I121: 0
A122: Ertelenen Vergi Yükümlülüğü | B122: 309981 | C122: 596306 | D122: 1020597 | E122: 1734464 | F122: 1726124 | G122: 2332933 | H122: 2373646 | I122: 2377885
A123: Devlet Teşvik ve Yardımları | B123: 0 | C123: 0 | D123: 0 | E123: 0 | F123: 0 | G123: 0 | H123: 0 | I123: 0
A124: Ertelenmiş Gelirler | B124: 0 | C124: 0 | D124: 0 | E124: 0 | F124: 0 | G124: 0 | H124: 0 | I124: 0
A125: Devam Eden Sözleşmeler Hakediş Bedelleri | B125: 0 | C125: 0 | D125: 0 | E125: 0 | F125: 0 | G125: 0 | H125: 0 | I125: 0
A126: Pozitif/Negatif Şerefiye | B126: 0 | C126: 0 | D126: 0 | E126: 0 | F126: 0 | G126: 0 | H126: 0 | I126: 0
A127: Diğer Uzun Vadeli Borçlar | B127: 0 | C127: 0 | D127: 0 | E127: 0 | F127: 0 | G127: 0 | H127: 0 | I127: 0
A128: İş Ortaklıklarının Uzun Vadeli Yükümlülükler İçindeki Payı | B128: 0 | C128: 0 | D128: 0 | E128: 0 | F128: 0 | G128: 0 | H128: 0 | I128: 0
A129: ÖZ SERMAYE (AZINLIK PAYI DAHİL) | B129: 15008806 | C129: 22026332 | D129: 23186050 | E129: 31714259 | F129: 32589615 | G129: 37978691 | H129: 38927492 | I129: 41881755
A130: ANA ORTAKLIK DIŞI ÖZSERMAYE | B130: 0 | C130: 0 | D130: 0 | E130: 0 | F130: 0 | G130: 0 | H130: 0 | I130: 0
A131: Aile Üyeleri | B131: 0 | C131: 0 | D131: 0 | E131: 0 | F131: 0 | G131: 0 | H131: 0 | I131: 0
A132: Diğerleri | B132: 0 | C132: 0 | D132: 0 | E132: 0 | F132: 0 | G132: 0 | H132: 0 | I132: 0
A133: ÖZ SERMAYE (ANA ORTAKLIĞA AİT) | B133: 15008806 | C133: 22026332 | D133: 23186050 | E133: 31714259 | F133: 32589615 | G133: 37978691 | H133: 38927492 | I133: 41881755
A134: Sermaye | B134: 10721700 | C134: 10721700 | D134: 10721700 | E134: 10721700 | F134: 10721700 | G134: 10721700 | H134: 10721700 | I134: 10721700
A135: Ödenmeyen Sermaye(-) | B135: 0 | C135: 0 | D135: 0 | E135: 0 | F135: 0 | G135: 0 | H135: 0 | I135: 0
A136: Karşılıklı İştirak Sermaye Düzeltmesi | B136: 0 | C136: 0 | D136: 0 | E136: 0 | F136: 0 | G136: 0 | H136: 0 | I136: 0
A137: Paylara İlişkin Primler/İskontolar | B137: 0 | C137: 0 | D137: 0 | E137: 0 | F137: 0 | G137: 0 | H137: 0 | I137: 0
A138: İşletmenin Geri Satın Alınan Kendi Hisseleri | B138: 0 | C138: -20450 | D138: -20450 | E138: -20450 | F138: -20450 | G138: -20450 | H138: -20450 | I138: -20450
A139: İşletmenin Geri Alınan Kendi Hisse Senetlerinin Satışından Doğan Kar | B139: 0 | C139: 0 | D139: 0 | E139: 0 | F139: 0 | G139: 0 | H139: 0 | I139: 0
A140: Sermaye Avansı | B140: 0 | C140: 0 | D140: 0 | E140: 0 | F140: 0 | G140: 0 | H140: 0 | I140: 0
A141: Kar veya Zararda Yeniden Sınıflandırılmayacak Birikmiş Diğer Kapsamlı Gel. veya Gid. | B141: 3850111 | C141: 10231960 | D141: 10087565 | E141: 11041338 | F141: 11041338 | G141: 12259551 | H141: 12259551 | I141: 12653590
A142: Kar veya Zararda Yeniden Sınıflandırılacak Birikmiş Diğer Kapsamlı Gelir. veya Gid. | B142: 0 | C142: 0 | D142: 0 | E142: 0 | F142: 0 | G142: 0 | H142: 0 | I142: 0
A143: Sermaye Yedekleri | B143: 0 | C143: 0 | D143: 0 | E143: 0 | F143: 0 | G143: 0 | H143: 0 | I143: 0
A144: Sermaye Taahhütleri (-) | B144: 0 | C144: 0 | D144: 0 | E144: 0 | F144: 0 | G144: 0 | H144: 0 | I144: 0
A145: Katkı sermaye | B145: 0 | C145: 0 | D145: 0 | E145: 0 | F145: 0 | G145: 0 | H145: 0 | I145: 0
A146: Azınlık Hisseleri Satış Opsiyonu Değerleme Fonu | B146: 0 | C146: 0 | D146: 0 | E146: 0 | F146: 0 | G146: 0 | H146: 0 | I146: 0
A147: Emisyon Primi | B147: 0 | C147: 0 | D147: 0 | E147: 0 | F147: 0 | G147: 0 | H147: 0 | I147: 0
A148: Yeniden Değerleme Artışı | B148: 3850111 | C148: 10231960 | D148: 10087565 | E148: 11041338 | F148: 11041338 | G148: 12259551 | H148: 12259551 | I148: 12653590
A149: Kar Yedekleri | B149: 0 | C149: 0 | D149: 0 | E149: 0 | F149: 0 | G149: 0 | H149: 0 | I149: 0
A150: Dağıtılmamış Kar | B150: 0 | C150: 0 | D150: 0 | E150: 0 | F150: 0 | G150: 0 | H150: 0 | I150: 0
A151: Sermaye artırımı ile ilgili masraflar | B151: 0 | C151: 0 | D151: 0 | E151: 0 | F151: 0 | G151: 0 | H151: 0 | I151: 0
A152: Nakit Akım Koruması ile İlgili Birikmiş Kar | B152: 0 | C152: 0 | D152: 0 | E152: 0 | F152: 0 | G152: 0 | H152: 0 | I152: 0
A153: Karşılıklı İştirak Serm. Düzeltmesinin Nom. Tut. Aşan Kısım | B153: 0 | C153: 0 | D153: 0 | E153: 0 | F153: 0 | G153: 0 | H153: 0 | I153: 0
A154: Finansal Yatırımlar Değer Artış Fonu | B154: 0 | C154: 0 | D154: 0 | E154: 0 | F154: 0 | G154: 0 | H154: 0 | I154: 0
A155: Diğer Özkaynak Payları | B155: 0 | C155: 0 | D155: 0 | E155: 0 | F155: 0 | G155: 0 | H155: 0 | I155: 0
A156: Diğer Yedekler | B156: 0 | C156: 0 | D156: 0 | E156: 0 | F156: 0 | G156: 0 | H156: 0 | I156: 0
A157: Net Dönem Karı | B157: 355697 | C157: 688231 | D157: 1839175 | E157: 8216511 | F157: 875356 | G157: 5796738 | H157: 6745539 | I157: 9305763
A158: Dönem Zararı (-) | B158: 0 | C158: 0 | D158: 0 | E158: 0 | F158: 0 | G158: 0 | H158: 0 | I158: 0
A159: Geçmiş Yıl Karları | B159: 0 | C159: 320704 | D159: 431801 | E159: 1534767 | F159: 9751278 | G159: 8800860 | H159: 8800860 | I159: 8800860
A160: Net Dön. Kar. Ser. Hes. Ed. Tran. Ed. M. Dur. V. Sa. Karı | B160: 0 | C160: 0 | D160: 0 | E160: 0 | F160: 0 | G160: 0 | H160: 0 | I160: 0
A161: Geçmiş Yıl Zararları (-) | B161: 0 | C161: 0 | D161: 0 | E161: 0 | F161: 0 | G161: 0 | H161: 0 | I161: 0
A162: Yabancı Para Çevrim Farkları | B162: 0 | C162: 0 | D162: 0 | E162: 0 | F162: 0 | G162: 0 | H162: 0 | I162: 0
A163: Kardan Ayrılan Kısıtlanmış Yedekler | B163: 81298 | C163: 84187 | D163: 126259 | E163: 220393 | F163: 220393 | G163: 420292 | H163: 420292 | I163: 420292
A164: Kardan Ayrılan Kısıtlanmış Yedekler (27) | B164: 0 | C164: 0 | D164: 0 | E164: 0 | F164: 0 | G164: 0 | H164: 0 | I164: 0
A165: Zarar Telafi Fonu | B165: 0 | C165: 0 | D165: 0 | E165: 0 | F165: 0 | G165: 0 | H165: 0 | I165: 0
A166: Özsermaye Enf. Düz. Farkları | B166: 0 | C166: 0 | D166: 0 | E166: 0 | F166: 0 | G166: 0 | H166: 0 | I166: 0
A167: Sermaye Birleşme Fonu | B167: 0 | C167: 0 | D167: 0 | E167: 0 | F167: 0 | G167: 0 | H167: 0 | I167: 0
A168: İlave Ödenmiş Sermaye | B168: 0 | C168: 0 | D168: 0 | E168: 0 | F168: 0 | G168: 0 | H168: 0 | I168: 0
A169: Birikmiş Karlar/Zararlar | B169: 0 | C169: 0 | D169: 0 | E169: 0 | F169: 0 | G169: 0 | H169: 0 | I169: 0
A170: Yatırım Teşvikleri | B170: 0 | C170: 0 | D170: 0 | E170: 0 | F170: 0 | G170: 0 | H170: 0 | I170: 0
A171: Satılmaya Haz. Var. Üz. Gerçekleşmemiş Net Gelir | B171: 0 | C171: 0 | D171: 0 | E171: 0 | F171: 0 | G171: 0 | H171: 0 | I171: 0
A172: Ana ortaklık hisse satış kar/zarar | B172: 0 | C172: 0 | D172: 0 | E172: 0 | F172: 0 | G172: 0 | H172: 0 | I172: 0
A173: AZINLIK PAYLARI | B173: 0 | C173: 0 | D173: 0 | E173: 0 | F173: 0 | G173: 0 | H173: 0 | I173: 0
A174: TOPLAM PASİFLER | B174: 16756513 | C174: 24132709 | D174: 28317742 | E174: 38171678 | F174: 38848454 | G174: 44436727 | H174: 45590857 | I174: 49448081
A176: GELİR TABLOSU | B176: 2015/12 | C176: 2016/12 | D176: 2017/12 | E176: 2018/12 | F176: 2019/03 | G176: 2019/06 | H176: 2019/09 | I176: 2019/12
A177: BRÜT SATIŞLAR | B177: 12581244 | C177: 14648951 | D177: 21255940 | E177: 32135077 | F177: 8456083 | G177: 16785548 | H177: 28771104 | I177: 43090674
A178: Yurtiçi Satışlar | B178: 3164288 | C178: 3246715 | D178: 3744805 | E178: 6376608 | F178: 1856133 | G178: 3192110 | H178: 6980529 | I178: 10411241
A179: Yurtdışı Satışlar | B179: 9416956 | C179: 11402236 | D179: 17511135 | E179: 25753652 | F179: 6599950 | G179: 13593438 | H179: 21790575 | I179: 32596346
A180: Diğer Satışlar | B180: 0 | C180: 0 | D180: 0 | E180: 4817 | F180: 0 | G180: 0 | H180: 0 | I180: 83087
A181: SATIŞLARDAN İNDİRİMLER (-) | B181: 73782 | C181: 203432 | D181: 91345 | E181: 162753 | F181: 30986 | G181: 46056 | H181: 69833 | I181: 151668
A182: Satışdan İadeler (-) | B182: 7648 | C182: 192843 | D182: 62131 | E182: 16625 | F182: 0 | G182: 0 | H182: 0 | I182: 117323
A183: Satış İskontoları (-) | B183: 21604 | C183: 10589 | D183: 29214 | E183: 146128 | F183: 0 | G183: 0 | H183: 0 | I183: 34345
A184: Diğer İndirimler (-) | B184: 44530 | C184: 0 | D184: 0 | E184: 0 | F184: 0 | G184: 0 | H184: 0 | I184: 0
A185: ESAS FAALİYET GELİRLERİ | B185: 0 | C185: 0 | D185: 0 | E185: 0 | F185: 0 | G185: 0 | H185: 0 | I185: 0
A186: SATIŞ GELİRLERİ | B186: 12507462 | C186: 14445519 | D186: 21164595 | E186: 31972324 | F186: 8425097 | G186: 16739492 | H186: 28701271 | I186: 42939006
A187: FAİZ GELİRİ | B187: 0 | C187: 0 | D187: 0 | E187: 0 | F187: 0 | G187: 0 | H187: 0 | I187: 0
A188: SATIŞLARIN MALİYETİ (-) | B188: 10283794 | C188: 12135848 | D188: 17530256 | E188: 25839492 | F188: 6435659 | G188: 12745194 | H188: 22102628 | I188: 34800370
A189: FAİZ GİDERİ | B189: 0 | C189: 0 | D189: 0 | E189: 0 | F189: 0 | G189: 0 | H189: 0 | I189: 0
A190: MUHTEMEL KREDİ ZARAR KARŞ. FİN.KİR. ALCK. KARŞ. VE FAKT. DEĞ. DÜŞ. KARŞ. | B190: 0 | C190: 0 | D190: 0 | E190: 0 | F190: 0 | G190: 0 | H190: 0 | I190: 0
A191: HİZMET GELİRLERİ | B191: 0 | C191: 0 | D191: 0 | E191: 0 | F191: 0 | G191: 0 | H191: 0 | I191: 0
A192: HİZMET GİDERLERİ (-) | B192: 0 | C192: 0 | D192: 0 | E192: 0 | F192: 0 | G192: 0 | H192: 0 | I192: 0
A193: KAMBİYO KARI/ZARARI | B193: 0 | C193: 0 | D193: 0 | E193: 0 | F193: 0 | G193: 0 | H193: 0 | I193: 0
A194: SERMAYE PİYASASI İŞLEM KARI/ZARARI | B194: 0 | C194: 0 | D194: 0 | E194: 0 | F194: 0 | G194: 0 | H194: 0 | I194: 0
A195: ESAS FAALİYETLERDEN DİĞER GİDER/GELİR | B195: 0 | C195: 0 | D195: 0 | E195: 0 | F195: 0 | G195: 0 | H195: 0 | I195: 0
A196: FAİZ, ÜCRET, PRİM, KOMİSYON VE DİĞER GELİRLER | B196: 0 | C196: 0 | D196: 0 | E196: 0 | F196: 0 | G196: 0 | H196: 0 | I196: 0
A197: Kambiyo Gelirleri | B197: 0 | C197: 0 | D197: 0 | E197: 0 | F197: 0 | G197: 0 | H197: 0 | I197: 0
A198: Faiz Gelirleri | B198: 0 | C198: 0 | D198: 0 | E198: 0 | F198: 0 | G198: 0 | H198: 0 | I198: 0
A199: Kar Payı Gelirleri | B199: 0 | C199: 0 | D199: 0 | E199: 0 | F199: 0 | G199: 0 | H199: 0 | I199: 0
A200: Türev Finansal İşlemlerden Kazanç | B200: 0 | C200: 0 | D200: 0 | E200: 0 | F200: 0 | G200: 0 | H200: 0 | I200: 0
A201: Portföy İşletmeciliği Faaliyetinden Elde Edilen Gelir | B201: 0 | C201: 0 | D201: 0 | E201: 0 | F201: 0 | G201: 0 | H201: 0 | I201: 0
... 91 more rows

Sheet ADANA
A1: ADANA | B1: ADANA | C1: ADANA | D1: ADANA | E1: ADANA | F1: ADANA | G1: ADANA | H1: ADANA | I1: ADANA
B2: 2015/12 | C2: 2016/12 | D2: 2017/12 | E2: 2018/12 | F2: 2019/03 | G2: 2019/06 | H2: 2019/09 | I2: 2019/12
A3: DÖNEN VARLIKLAR | B3: 304203934 | C3: 285454863 | D3: 385509334 | E3: 1015651361 | F3: 900348528 | G3: 782685278 | H3: 504252661 | I3: 547394468
A4: Hazır Değerler | B4: 105736333 | C4: 41705788 | D4: 69473644 | E4: 556549466 | F4: 430267665 | G4: 424288189 | H4: 181606350 | I4: 217619737
A5: Gayrimenkul Projeleri Kapsamında Açılan Nakit Hesapları | B5: 0 | C5: 0 | D5: 0 | E5: 0 | F5: 0 | G5: 0 | H5: 0 | I5: 0
A6: Finansal Yatırımlar | B6: 11019797 | C6: 17356567 | D6: 31470200 | E6: 22988892 | F6: 28183903 | G6: 24231045 | H6: 21611709 | I6: 29510228
A7: Menkul Kıymetler | B7: 0 | C7: 0 | D7: 0 | E7: 0 | F7: 0 | G7: 0 | H7: 0 | I7: 0
A8: Türkiye Cumhuriyet Merkez Bankası Hesabı | B8: 0 | C8: 0 | D8: 0 | E8: 0 | F8: 0 | G8: 0 | H8: 0 | I8: 0
A9: Krediler ve Avanslar | B9: 0 | C9: 0 | D9: 0 | E9: 0 | F9: 0 | G9: 0 | H9: 0 | I9: 0
A10: Faktoring alacakları (net) | B10: 0 | C10: 0 | D10: 0 | E10: 0 | F10: 0 | G10: 0 | H10: 0 | I10: 0
A11: Teminata Verilen Finansal Varlıklar | B11: 0 | C11: 0 | D11: 0 | E11: 0 | F11: 0 | G11: 0 | H11: 0 | I11: 0
A12: Kısa Vadeli Ticari Alacaklar | B12: 129355223 | C12: 149425505 | D12: 165185736 | E12: 167388865 | F12: 151091580 | G12: 153780537 | H12: 141243912 | I12: 139012184
A13: Finansal Kiralama Alacakları | B13: 0 | C13: 0 | D13: 0 | E13: 0 | F13: 0 | G13: 0 | H13: 0 | I13: 0
A14: Finans Sektörü Faal. Alacaklar | B14: 0 | C14: 0 | D14: 0 | E14: 0 | F14: 0 | G14: 0 | H14: 0 | I14: 0
A15: İlişkili Taraflardan Alacaklar | B15: 0 | C15: 0 | D15: 0 | E15: 0 | F15: 0 | G15: 0 | H15: 0 | I15: 0
A16: Diğer Kısa Vadeli Alacaklar | B16: 3781234 | C16: 1390508 | D16: 12525651 | E16: 12073039 | F16: 125434750 | G16: 8548349 | H16: 4601450 | I16: 5776170
A17: Canlı Varlıklar | B17: 0 | C17: 0 | D17: 0 | E17: 0 | F17: 0 | G17: 0 | H17: 0 | I17: 0
A18: Kullanımı Kısıtlı Banka Bakiyeleri | B18: 0 | C18: 0 | D18: 0 | E18: 0 | F18: 0 | G18: 0 | H18: 0 | I18: 0
A19: Stoklar | B19: 52312678 | C19: 70560164 | D19: 91099185 | E19: 167701173 | F19: 151792323 | G19: 158258461 | H19: 144595790 | I19: 137378520
A20: Peşin Ödenen Kira Giderleri | B20: 0 | C20: 0 | D20: 0 | E20: 0 | F20: 0 | G20: 0 | H20: 0 | I20: 0
A21: Müşteri Sözleşmelerinden Doğan Varlıklar | B21: 0 | C21: 0 | D21: 0 | E21: 0 | F21: 0 | G21: 0 | H21: 0 | I21: 0
A22: İmtiyaz Sözleşmelerine İlişkin Finansal Varlıklar | B22: 0 | C22: 0 | D22: 0 | E22: 0 | F22: 0 | G22: 0 | H22: 0 | I22: 0
A23: Türev Enstrümanlar | B23: 0 | C23: 0 | D23: 0 | E23: 0 | F23: 0 | G23: 756530 | H23: 0 | I23: 0
A24: Ertelenen Vergi Varlıkları | B24: 0 | C24: 0 | D24: 0 | E24: 0 | F24: 0 | G24: 0 | H24: 0 | I24: 0
A25: Durdurulan faaliyetler ile ilgili varlıklar | B25: 0 | C25: 0 | D25: 0 | E25: 0 | F25: 0 | G25: 0 | H25: 0 | I25: 0
A26: Ertelenmiş Sigortacılık Üretim Giderleri | B26: 0 | C26: 0 | D26: 0 | E26: 0 | F26: 0 | G26: 0 | H26: 0 | I26: 0
A27: Peşin Ödenmiş Giderler | B27: 1576295 | C27: 3106547 | D27: 5437993 | E27: 2348994 | F27: 4159429 | G27: 3309320 | H27: 2787908 | I27: 3088279
A28: Cari Dönem Vergisiyle İlgili Varlıklar | B28: 0 | C28: 0 | D28: 0 | E28: 0 | F28: 0 | G28: 0 | H28: 0 | I28: 0
A29: Nakit Dışı Serbest Kullanılabilir Teminatlar | B29: 0 | C29: 0 | D29: 0 | E29: 0 | F29: 0 | G29: 0 | H29: 0 | I29: 0
A30: Diğer Dönen Varlıklar | B30: 422374 | C30: 1909784 | D30: 10316925 | E30: 8463083 | F30: 9418878 | G30: 9512847 | H30: 7805542 | I30: 15009350
A31: Vadesine kadar elde tut. men. kıy. | B31: 0 | C31: 0 | D31: 0 | E31: 0 | F31: 0 | G31: 0 | H31: 0 | I31: 0
A32: Satılmaya Hazır Finansal Varlıklar | B32: 0 | C32: 0 | D32: 0 | E32: 0 | F32: 0 | G32: 0 | H32: 0 | I32: 0
A33: Alım Satım Amaçlı Menkul Kıymetler | B33: 0 | C33: 0 | D33: 0 | E33: 0 | F33: 0 | G33: 0 | H33: 0 | I33: 0
A34: İş Ortaklıklarının Dönen Varlıklar İçindeki Payı | B34: 0 | C34: 0 | D34: 0 | E34: 0 | F34: 0 | G34: 0 | H34: 0 | I34: 0
A35: Elden Çıkarılacak Faaliyetler ile İlgili Varlıklar | B35: 0 | C35: 0 | D35: 0 | E35: 0 | F35: 0 | G35: 0 | H35: 0 | I35: 0
A36: Satım amaçlı elde tutulan maddi duran varlıklar | B36: 0 | C36: 0 | D36: 0 | E36: 78137849 | F36: 0 | G36: 0 | H36: 0 | I36: 0
A37: Ortaklara Dağıtılmak Üzere Elde Tutulan Duran Varlıklar | B37: 0 | C37: 0 | D37: 0 | E37: 0 | F37: 0 | G37: 0 | H37: 0 | I37: 0
A38: DURAN VARLIKLAR | B38: 578707847 | C38: 663978536 | D38: 781475385 | E38: 582272293 | F38: 596581792 | G38: 602107073 | H38: 598692046 | I38: 594761918
A39: Menkul Kıymetler | B39: 0 | C39: 0 | D39: 0 | E39: 0 | F39: 0 | G39: 0 | H39: 0 | I39: 0
A40: Krediler ve Avanslar | B40: 0 | C40: 0 | D40: 0 | E40: 0 | F40: 0 | G40: 0 | H40: 0 | I40: 0
A41: Faktoring alacakları (net) | B41: 0 | C41: 0 | D41: 0 | E41: 0 | F41: 0 | G41: 0 | H41: 0 | I41: 0
A42: Uzun Vadeli Ticari Alacaklar | B42: 0 | C42: 0 | D42: 0 | E42: 0 | F42: 0 | G42: 0 | H42: 0 | I42: 0
A43: Finansal Kiralama Alacakları | B43: 0 | C43: 0 | D43: 0 | E43: 0 | F43: 0 | G43: 0 | H43: 0 | I43: 0
A44: Finans Sektörü Faal. Alacaklar | B44: 0 | C44: 0 | D44: 0 | E44: 0 | F44: 0 | G44: 0 | H44: 0 | I44: 0
A45: İlişkili Taraflardan Alacaklar | B45: 0 | C45: 0 | D45: 0 | E45: 0 | F45: 0 | G45: 0 | H45: 0 | I45: 0
A46: Türev Enstrümanlar | B46: 0 | C46: 0 | D46: 0 | E46: 0 | F46: 0 | G46: 0 | H46: 0 | I46: 0
A47: Diğer Uzun Vadeli Alacaklar | B47: 201075 | C47: 250715 | D47: 246193 | E47: 278236 | F47: 339900 | G47: 339900 | H47: 338557 | I47: 339900
A48: Finansal Yatırımlar | B48: 105638497 | C48: 109092993 | D48: 94445929 | E48: 0 | F48: 0 | G48: 0 | H48: 0 | I48: 0
A49: Özkaynak Yöntemiyle Değerlenen Yatırımlar | B49: 200336997 | C49: 212185510 | D49: 236934219 | E49: 38470958 | F49: 36847750 | G49: 34713776 | H49: 33519042 | I49: 33736923
A50: Canlı Varlıklar | B50: 0 | C50: 0 | D50: 0 | E50: 0 | F50: 0 | G50: 0 | H50: 0 | I50: 0
A51: İmtiyaz Sözleşmelerine İlişkin Finansal Varlıklar | B51: 0 | C51: 0 | D51: 0 | E51: 0 | F51: 0 | G51: 0 | H51: 0 | I51: 0
A52: Stoklar | B52: 0 | C52: 0 | D52: 0 | E52: 0 | F52: 0 | G52: 0 | H52: 0 | I52: 0
A53: Finansal Duran Varlıklar | B53: 0 | C53: 0 | D53: 0 | E53: 0 | F53: 0 | G53: 0 | H53: 0 | I53: 0
A54: Pozitif/Negatif Şerefiye | B54: 0 | C54: 0 | D54: 0 | E54: 0 | F54: 0 | G54: 0 | H54: 0 | I54: 0
A55: Yatırım Amaçlı Gayrimenkuller | B55: 14318959 | C55: 13796659 | D55: 14578298 | E55: 13545891 | F55: 13545891 | G55: 13545891 | H55: 13545891 | I55: 12243996
A56: Proje Halindeki Yatırım Amaçlı Gayrimenkuller | B56: 0 | C56: 0 | D56: 0 | E56: 0 | F56: 0 | G56: 0 | H56: 0 | I56: 0
A57: Alım Satım Amaçlı Gayrimenkuller (net) | B57: 0 | C57: 0 | D57: 0 | E57: 0 | F57: 0 | G57: 0 | H57: 0 | I57: 0
A58: Maddi Duran Varlıklar | B58: 242568891 | C58: 295658021 | D58: 422548849 | E58: 507115711 | F58: 519578488 | G58: 516364791 | H58: 513853208 | I58: 517696961
A59: Kullanım Hakkı Varlıkları | B59: 0 | C59: 0 | D59: 0 | E59: 0 | F59: 0 | G59: 8965060 | H59: 8633868 | I59: 9712603
A60: Maddi Olmayan Duran Varlıklar | B60: 10968960 | C60: 10454520 | D60: 10863672 | E60: 10016746 | F60: 9930828 | G60: 10002887 | H60: 9915367 | I60: 13332429
A61: Müşteri Sözleşmelerinden Doğan Varlıklar | B61: 0 | C61: 0 | D61: 0 | E61: 0 | F61: 0 | G61: 0 | H61: 0 | I61: 0
A62: Ertelenen Vergi Varlıkları | B62: 0 | C62: 0 | D62: 0 | E62: 8857527 | F62: 11658535 | G62: 9122413 | H62: 10296093 | I62: 7686614
A63: Cari Dönem Vergisiyle İlgili Duran Varlıklar | B63: 0 | C63: 0 | D63: 0 | E63: 0 | F63: 0 | G63: 0 | H63: 0 | I63: 0
A64: Nakit Dışı Serbest Kullanılabilir Teminatlar | B64: 0 | C64: 0 | D64: 0 | E64: 0 | F64: 0 | G64: 0 | H64: 0 | I64: 0
A65: Peşin Ödenen Kira Giderleri | B65: 0 | C65: 0 | D65: 0 | E65: 0 | F65: 0 | G65: 0 | H65: 0 | I65: 0
A66: Peşin Ödenmiş Giderler | B66: 4674468 | C66: 22540118 | D66: 1858225 | E66: 3987224 | F66: 4680400 | G66: 9052355 | H66: 8590020 | I66: 12492
A67: Diğer Duran Varlıklar | B67: 0 | C67: 0 | D67: 0 | E67: 0 | F67: 0 | G67: 0 | H67: 0 | I67: 0
A68: Vadesine kadar elde tut. men. kıy. | B68: 0 | C68: 0 | D68: 0 | E68: 0 | F68: 0 | G68: 0 | H68: 0 | I68: 0
A69: Satılmaya Hazır Finansal Varlıklar | B69: 0 | C69: 0 | D69: 0 | E69: 0 | F69: 0 | G69: 0 | H69: 0 | I69: 0
A70: İş Ortaklıklarının Duran Varlıklar İçindeki Payı | B70: 0 | C70: 0 | D70: 0 | E70: 0 | F70: 0 | G70: 0 | H70: 0 | I70: 0
A71: Ana Ortaklık Dışı Paylar | B71: 0 | C71: 0 | D71: 0 | E71: 0 | F71: 0 | G71: 0 | H71: 0 | I71: 0
A72: TOPLAM AKTİFLER | B72: 882911781 | C72: 949433399 | D72: 1166984719 | E72: 1597923654 | F72: 1496930320 | G72: 1384792351 | H72: 1102944707 | I72: 1142156386
A73: KISA VADELİ YÜKÜMLÜLÜKLER | B73: 68318701 | C73: 78864226 | D73: 338017798 | E73: 355340153 | F73: 513762139 | G73: 387413004 | H73: 168385034 | I73: 174728031
A74: Finansal Borçlar | B74: 947099 | C74: 0 | D74: 183761427 | E74: 198055374 | F74: 112475334 | G74: 50825682 | H74: 7657347 | I74: 0
A75: Uzun Vadeli Finansal Borçların Kısa Vadeli Kısımları | B75: 816660 | C75: 18937379 | D75: 27093000 | E75: 37512117 | F75: 39197734 | G75: 3869266 | H75: 78974371 | I75: 77465066
A76: Mevduat | B76: 0 | C76: 0 | D76: 0 | E76: 0 | F76: 0 | G76: 0 | H76: 0 | I76: 0
A77: Türev Araçlar | B77: 0 | C77: 0 | D77: 0 | E77: 0 | F77: 9390504 | G77: 0 | H77: 0 | I77: 0
A78: Faktoring borçları | B78: 0 | C78: 0 | D78: 0 | E78: 0 | F78: 0 | G78: 0 | H78: 0 | I78: 0
A79: Finansal Kiralama İşlemlerinden Borçlar | B79: 0 | C79: 0 | D79: 0 | E79: 0 | F79: 0 | G79: 0 | H79: 0 | I79: 0
A80: Finans Sektörü Faaliyetlerinden Borçlar | B80: 0 | C80: 0 | D80: 0 | E80: 0 | F80: 0 | G80: 0 | H80: 0 | I80: 0
A81: Sigorta Teknik Karşılığı | B81: 0 | C81: 0 | D81: 0 | E81: 0 | F81: 0 | G81: 0 | H81: 0 | I81: 0
A82: Diğer Finansal Yükümlülükler | B82: 0 | C82: 0 | D82: 0 | E82: 0 | F82: 0 | G82: 0 | H82: 0 | I82: 0
A83: Ticari Borçlar | B83: 41534340 | C83: 41504889 | D83: 86478584 | E83: 72460000 | F83: 72762774 | G83: 67046787 | H83: 57455806 | I83: 75981647
A84: İlişkili Taraflara Borçlar | B84: 0 | C84: 0 | D84: 0 | E84: 0 | F84: 0 | G84: 0 | H84: 0 | I84: 0
A85: Alınan Krediler | B85: 0 | C85: 0 | D85: 0 | E85: 0 | F85: 0 | G85: 0 | H85: 0 | I85: 0
A86: Diğer Borçlar | B86: 7838305 | C86: 2361758 | D86: 7614292 | E86: 6768241 | F86: 245584182 | G86: 236051976 | H86: 2620103 | I86: 2269522
A87: Alınan Avanslar | B87: 0 | C87: 0 | D87: 0 | E87: 0 | F87: 0 | G87: 0 | H87: 0 | I87: 0
A88: Devlet Teşvik ve Yardımları | B88: 0 | C88: 0 | D88: 0 | E88: 0 | F88: 0 | G88: 0 | H88: 0 | I88: 0
A89: Ertelenmiş Gelirler | B89: 2632563 | C89: 2375355 | D89: 18794038 | E89: 5175662 | F89: 6553247 | G89: 11465500 | H89: 3515429 | I89: 2780358
A90: Cari Dönem Vergi Yükümlülüğü | B90: 5605240 | C90: 4627144 | D90: 5310340 | E90: 25544542 | F90: 8248356 | G90: 5643336 | H90: 4901035 | I90: 4719533
A91: Cari Dönem Vergisi ile İlgili Borçlar | B91: 0 | C91: 0 | D91: 0 | E91: 0 | F91: 0 | G91: 0 | H91: 0 | I91: 0
A92: Bloke Hesaplar | B92: 0 | C92: 0 | D92: 0 | E92: 0 | F92: 0 | G92: 0 | H92: 0 | I92: 0
A93: Müşteri Sözleşmelerinden Doğan Yükümlülükler | B93: 0 | C93: 0 | D93: 0 | E93: 0 | F93: 0 | G93: 0 | H93: 0 | I93: 0
A94: Özkaynak Yöntemiyle Değerlenen Yatırımlardan Yükümlülükler | B94: 0 | C94: 0 | D94: 0 | E94: 0 | F94: 0 | G94: 0 | H94: 0 | I94: 0
A95: Borç ve Gider Karşılıkları | B95: 4979028 | C95: 4864076 | D95: 4983297 | E95: 7355182 | F95: 15301165 | G95: 8355199 | H95: 8419499 | I95: 9548110
A96: Çalışanlara Sağlanan Faydalara İlişkin Karşılıklar | B96: 3965466 | C96: 4193625 | D96: 3982820 | E96: 2469035 | F96: 4248843 | G96: 4155258 | H96: 4841444 | I96: 1963795
A97: Ertelenen Vergi Yükümlülüğü | B97: 0 | C97: 0 | D97: 0 | E97: 0 | F97: 0 | G97: 0 | H97: 0 | I97: 0
A98: Durdurulan faaliyetler ile ilgili yükümlülükler | B98: 0 | C98: 0 | D98: 0 | E98: 0 | F98: 0 | G98: 0 | H98: 0 | I98: 0
A99: Diğer Kısa Vadeli Borçlar | B99: 0 | C99: 0 | D99: 0 | E99: 0 | F99: 0 | G99: 0 | H99: 0 | I99: 0
A100: İş Ortaklıklarının Kısa Vadeli Yükümlülükler İçindeki Payı | B100: 0 | C100: 0 | D100: 0 | E100: 0 | F100: 0 | G100: 0 | H100: 0 | I100: 0
A101: Elden Çıkarılacak Faaliyetler ile İlgili Yükümlülükler | B101: 0 | C101: 0 | D101: 0 | E101: 0 | F101: 0 | G101: 0 | H101: 0 | I101: 0
A102: Ortaklara Dağıtılmak Üzere Elde Tutulan Varlık Gruplarına İlişkin Yükümlülükler | B102: 0 | C102: 0 | D102: 0 | E102: 0 | F102: 0 | G102: 0 | H102: 0 | I102: 0
A103: UZUN VADELİ YÜKÜMLÜLÜKLER | B103: 21081215 | C103: 77108016 | D103: 67108776 | E103: 116091130 | F103: 108840935 | G103: 101411665 | H103: 26617745 | I103: 29012496
A104: Mevduatlar | B104: 0 | C104: 0 | D104: 0 | E104: 0 | F104: 0 | G104: 0 | H104: 0 | I104: 0
A105: Finansal Borçlar | B105: 0 | C105: 55648500 | D105: 45155000 | E105: 99112000 | F105: 92151029 | G105: 82592641 | H105: 7592641 | I105: 8255113
A106: Faktoring borçları | B106: 0 | C106: 0 | D106: 0 | E106: 0 | F106: 0 | G106: 0 | H106: 0 | I106: 0
A107: Finansal Kiralama İşlemlerinden Borçlar | B107: 0 | C107: 0 | D107: 0 | E107: 0 | F107: 0 | G107: 0 | H107: 0 | I107: 0
A108: Finans Sektörü Faaliyetlerinden Borçlar | B108: 0 | C108: 0 | D108: 0 | E108: 0 | F108: 0 | G108: 0 | H108: 0 | I108: 0
A109: Sigorta teknik karşılıkları | B109: 0 | C109: 0 | D109: 0 | E109: 0 | F109: 0 | G109: 0 | H109: 0 | I109: 0
A110: Diğer Finansal Yükümlülükler | B110: 0 | C110: 0 | D110: 0 | E110: 0 | F110: 0 | G110: 0 | H110: 0 | I110: 0
A111: Ticari Borçlar | B111: 0 | C111: 0 | D111: 0 | E111: 0 | F111: 0 | G111: 0 | H111: 0 | I111: 0
A112: İlişkili Taraflara Borçlar | B112: 0 | C112: 0 | D112: 0 | E112: 0 | F112: 0 | G112: 0 | H112: 0 | I112: 0
A113: Alınan Krediler | B113: 0 | C113: 0 | D113: 0 | E113: 0 | F113: 0 | G113: 0 | H113: 0 | I113: 0
A114: Diğer Borçlar | B114: 0 | C114: 0 | D114: 0 | E114: 0 | F114: 0 | G114: 0 | H114: 0 | I114: 0
A115: Müşteri Sözleşmelerinden Doğan Yükümlülükler | B115: 0 | C115: 0 | D115: 0 | E115: 0 | F115: 0 | G115: 0 | H115: 0 | I115: 0
A116: Bloke Hesaplar | B116: 0 | C116: 0 | D116: 0 | E116: 0 | F116: 0 | G116: 0 | H116: 0 | I116: 0
A117: Alınan Avanslar | B117: 0 | C117: 0 | D117: 0 | E117: 0 | F117: 0 | G117: 0 | H117: 0 | I117: 0
A118: Çalışanlara Sağlanan Faydalar Kapsamında Borçlar | B118: 0 | C118: 0 | D118: 0 | E118: 0 | F118: 0 | G118: 0 | H118: 0 | I118: 0
A119: Borç ve Gider Karşılıkları | B119: 15954321 | C119: 16518145 | D119: 17157001 | E119: 16760418 | F119: 16471194 | G119: 18600311 | H119: 18922180 | I119: 20684480
A120: Türev Finansal Araçlardan Borçlar | B120: 0 | C120: 0 | D120: 0 | E120: 0 | F120: 0 | G120: 0 | H120: 0 | I120: 0
A121: Cari Dönem Vergisiyle İlgili Borçlar | B121: 0 | C121: 0 | D121: 0 | E121: 0 | F121: 0 | G121: 0 | H121: 0 | I121: 0
A122: Ertelenen Vergi Yükümlülüğü | B122: 5126894 | C122: 4941371 | D122: 4796775 | E122: 0 | F122: 0 | G122: 0 | H122: 0 | I122: 0
A123: Devlet Teşvik ve Yardımları | B123: 0 | C123: 0 | D123: 0 | E123: 0 | F123: 0 | G123: 0 | H123: 0 | I123: 0
A124: Ertelenmiş Gelirler | B124: 0 | C124: 0 | D124: 0 | E124: 218712 | F124: 218712 | G124: 218713 | H124: 102924 | I124: 72903
A125: Devam Eden Sözleşmeler Hakediş Bedelleri | B125: 0 | C125: 0 | D125: 0 | E125: 0 | F125: 0 | G125: 0 | H125: 0 | I125: 0
A126: Pozitif/Negatif Şerefiye | B126: 0 | C126: 0 | D126: 0 | E126: 0 | F126: 0 | G126: 0 | H126: 0 | I126: 0
A127: Diğer Uzun Vadeli Borçlar | B127: 0 | C127: 0 | D127: 0 | E127: 0 | F127: 0 | G127: 0 | H127: 0 | I127: 0
A128: İş Ortaklıklarının Uzun Vadeli Yükümlülükler İçindeki Payı | B128: 0 | C128: 0 | D128: 0 | E128: 0 | F128: 0 | G128: 0 | H128: 0 | I128: 0
A129: ÖZ SERMAYE (AZINLIK PAYI DAHİL) | B129: 793511865 | C129: 793461157 | D129: 761858145 | E129: 1126492371 | F129: 874327246 | G129: 895967682 | H129: 907941928 | I129: 938415859
A130: ANA ORTAKLIK DIŞI ÖZSERMAYE | B130: 0 | C130: 0 | D130: 0 | E130: 0 | F130: 0 | G130: 0 | H130: 0 | I130: 0
A131: Aile Üyeleri | B131: 0 | C131: 0 | D131: 0 | E131: 0 | F131: 0 | G131: 0 | H131: 0 | I131: 0
A132: Diğerleri | B132: 0 | C132: 0 | D132: 0 | E132: 0 | F132: 0 | G132: 0 | H132: 0 | I132: 0
A133: ÖZ SERMAYE (ANA ORTAKLIĞA AİT) | B133: 793511865 | C133: 793461157 | D133: 761858145 | E133: 1126492371 | F133: 874327246 | G133: 895967682 | H133: 907941928 | I133: 938415859
A134: Sermaye | B134: 336182000 | C134: 336182000 | D134: 336182000 | E134: 336182000 | F134: 336182000 | G134: 336182000 | H134: 336182000 | I134: 336182000
A135: Ödenmeyen Sermaye(-) | B135: 0 | C135: 0 | D135: 0 | E135: 0 | F135: 0 | G135: 0 | H135: 0 | I135: 0
A136: Karşılıklı İştirak Sermaye Düzeltmesi | B136: 0 | C136: 0 | D136: 0 | E136: 0 | F136: 0 | G136: 0 | H136: 0 | I136: 0
A137: Paylara İlişkin Primler/İskontolar | B137: 0 | C137: 0 | D137: 0 | E137: 0 | F137: 0 | G137: 0 | H137: 0 | I137: 0
A138: İşletmenin Geri Satın Alınan Kendi Hisseleri | B138: 0 | C138: 0 | D138: 0 | E138: 0 | F138: -54515327 | G138: -38190738 | H138: -38190738 | I138: -38190738
A139: İşletmenin Geri Alınan Kendi Hisse Senetlerinin Satışından Doğan Kar | B139: 0 | C139: 0 | D139: 0 | E139: 0 | F139: 0 | G139: 0 | H139: 0 | I139: 0
A140: Sermaye Avansı | B140: 0 | C140: 0 | D140: 0 | E140: 0 | F140: 0 | G140: 0 | H140: 0 | I140: 0
A141: Kar veya Zararda Yeniden Sınıflandırılmayacak Birikmiş Diğer Kapsamlı Gel. veya Gid. | B141: -6406012 | C141: -6623738 | D141: -7113110 | E141: -4190768 | F141: -2720513 | G141: -3456929 | H141: -3456929 | I141: -3825712
A142: Kar veya Zararda Yeniden Sınıflandırılacak Birikmiş Diğer Kapsamlı Gelir. veya Gid. | B142: 93390120 | C142: 97377249 | D142: 85290702 | E142: 5380815 | F142: 0 | G142: 0 | H142: 0 | I142: 0
A143: Sermaye Yedekleri | B143: -3060762 | C143: -3340781 | D143: -3465791 | E143: -1716495 | F143: -246240 | G143: -367939 | H143: -367939 | I143: -500729
A144: Sermaye Taahhütleri (-) | B144: 0 | C144: 0 | D144: 0 | E144: 0 | F144: 0 | G144: 0 | H144: 0 | I144: 0
A145: Katkı sermaye | B145: 0 | C145: 0 | D145: 0 | E145: 0 | F145: 0 | G145: 0 | H145: 0 | I145: 0
A146: Azınlık Hisseleri Satış Opsiyonu Değerleme Fonu | B146: 0 | C146: 0 | D146: 0 | E146: 0 | F146: 0 | G146: 0 | H146: 0 | I146: 0
A147: Emisyon Primi | B147: 0 | C147: 0 | D147: 0 | E147: 0 | F147: 0 | G147: 0 | H147: 0 | I147: 0
A148: Yeniden Değerleme Artışı | B148: 89436446 | C148: 92780511 | D148: 78501438 | E148: -2474273 | F148: -2474273 | G148: -3088990 | H148: -3088990 | I148: -3324983
A149: Kar Yedekleri | B149: 0 | C149: 0 | D149: 0 | E149: 0 | F149: 0 | G149: 0 | H149: 0 | I149: 0
A150: Dağıtılmamış Kar | B150: 0 | C150: 0 | D150: 0 | E150: 0 | F150: 0 | G150: 0 | H150: 0 | I150: 0
A151: Sermaye artırımı ile ilgili masraflar | B151: 0 | C151: 0 | D151: 0 | E151: 0 | F151: 0 | G151: 0 | H151: 0 | I151: 0
A152: Nakit Akım Koruması ile İlgili Birikmiş Kar | B152: 0 | C152: 0 | D152: 0 | E152: 0 | F152: 0 | G152: 0 | H152: 0 | I152: 0
A153: Karşılıklı İştirak Serm. Düzeltmesinin Nom. Tut. Aşan Kısım | B153: 0 | C153: 0 | D153: 0 | E153: 0 | F153: 0 | G153: 0 | H153: 0 | I153: 0
A154: Finansal Yatırımlar Değer Artış Fonu | B154: 0 | C154: 0 | D154: 0 | E154: 0 | F154: 0 | G154: 0 | H154: 0 | I154: 0
A155: Diğer Özkaynak Payları | B155: 0 | C155: 0 | D155: 0 | E155: 0 | F155: 0 | G155: 0 | H155: 0 | I155: 0
A156: Diğer Yedekler | B156: 0 | C156: 0 | D156: 0 | E156: 0 | F156: 0 | G156: 0 | H156: 0 | I156: 0
A157: Net Dönem Karı | B157: 144077727 | C157: 130943887 | D157: 125972459 | E157: 483136386 | F157: 46910343 | G157: 63591737 | H157: 75565983 | I157: 106342303
A158: Dönem Zararı (-) | B158: 0 | C158: 0 | D158: 0 | E158: 0 | F158: 0 | G158: 0 | H158: 0 | I158: 0
A159: Geçmiş Yıl Karları | B159: 107591318 | C159: 103738501 | D159: 76864194 | E159: 151398096 | F159: 371648440 | G159: 361019309 | H159: 361019309 | I159: 361085704
A160: Net Dön. Kar. Ser. Hes. Ed. Tran. Ed. M. Dur. V. Sa. Karı | B160: 0 | C160: 0 | D160: 0 | E160: 0 | F160: 0 | G160: 0 | H160: 0 | I160: 0
A161: Geçmiş Yıl Zararları (-) | B161: 0 | C161: 0 | D161: 0 | E161: 0 | F161: 0 | G161: 0 | H161: 0 | I161: 0
A162: Yabancı Para Çevrim Farkları | B162: 608424 | C162: 1313781 | D162: 3141945 | E162: 5380815 | F162: 0 | G162: 0 | H162: 0 | I162: 0
A163: Kardan Ayrılan Kısıtlanmış Yedekler | B163: 118676712 | C163: 131843258 | D163: 144661900 | E163: 154585842 | F163: 176822303 | G163: 176822303 | H163: 176822303 | I163: 176822302
A164: Kardan Ayrılan Kısıtlanmış Yedekler (27) | B164: 0 | C164: 0 | D164: 0 | E164: 0 | F164: 0 | G164: 0 | H164: 0 | I164: 0
A165: Zarar Telafi Fonu | B165: 0 | C165: 0 | D165: 0 | E165: 0 | F165: 0 | G165: 0 | H165: 0 | I165: 0
A166: Özsermaye Enf. Düz. Farkları | B166: 0 | C166: 0 | D166: 0 | E166: 0 | F166: 0 | G166: 0 | H166: 0 | I166: 0
A167: Sermaye Birleşme Fonu | B167: 0 | C167: 0 | D167: 0 | E167: 0 | F167: 0 | G167: 0 | H167: 0 | I167: 0
A168: İlave Ödenmiş Sermaye | B168: 0 | C168: 0 | D168: 0 | E168: 0 | F168: 0 | G168: 0 | H168: 0 | I168: 0
A169: Birikmiş Karlar/Zararlar | B169: 0 | C169: 0 | D169: 0 | E169: 0 | F169: 0 | G169: 0 | H169: 0 | I169: 0
A170: Yatırım Teşvikleri | B170: 0 | C170: 0 | D170: 0 | E170: 0 | F170: 0 | G170: 0 | H170: 0 | I170: 0
A171: Satılmaya Haz. Var. Üz. Gerçekleşmemiş Net Gelir | B171: 0 | C171: 0 | D171: 0 | E171: 0 | F171: 0 | G171: 0 | H171: 0 | I171: 0
A172: Ana ortaklık hisse satış kar/zarar | B172: 0 | C172: 0 | D172: 0 | E172: 0 | F172: 0 | G172: 0 | H172: 0 | I172: 0
A173: AZINLIK PAYLARI | B173: 0 | C173: 0 | D173: 0 | E173: 0 | F173: 0 | G173: 0 | H173: 0 | I173: 0
A174: TOPLAM PASİFLER | B174: 882911781 | C174: 949433399 | D174: 1166984719 | E174: 1597923654 | F174: 1496930320 | G174: 1384792351 | H174: 1102944707 | I174: 1142156386
A176: GELİR TABLOSU | B176: 2015/12 | C176: 2016/12 | D176: 2017/12 | E176: 2018/12 | F176: 2019/03 | G176: 2019/06 | H176: 2019/09 | I176: 2019/12
A177: BRÜT SATIŞLAR | B177: 431754202 | C177: 390045507 | D177: 502341547 | E177: 701345840 | F177: 131597049 | G177: 304845711 | H177: 445721939 | I177: 606708725
A178: Yurtiçi Satışlar | B178: 339197760 | C178: 305461163 | D178: 361442881 | E178: 426807978 | F178: 70998885 | G178: 149685914 | H178: 227229706 | I178: 302729136
A179: Yurtdışı Satışlar | B179: 92556442 | C179: 84584344 | D179: 140898666 | E179: 274537862 | F179: 60598164 | G179: 155159797 | H179: 218492233 | I179: 303979589
A180: Diğer Satışlar | B180: 0 | C180: 0 | D180: 0 | E180: 0 | F180: 0 | G180: 0 | H180: 0 | I180: 0
A181: SATIŞLARDAN İNDİRİMLER (-) | B181: 3631716 | C181: 6056214 | D181: 16563397 | E181: 25971544 | F181: 4693287 | G181: 9313059 | H181: 13963424 | I181: 16640616
A182: Satışdan İadeler (-) | B182: 0 | C182: 0 | D182: 0 | E182: 0 | F182: 0 | G182: 0 | H182: 0 | I182: 184180
A183: Satış İskontoları (-) | B183: 0 | C183: 0 | D183: 0 | E183: 0 | F183: 0 | G183: 0 | H183: 0 | I183: 0
A184: Diğer İndirimler (-) | B184: 0 | C184: 6056214 | D184: 16563397 | E184: 0 | F184: 0 | G184: 9313059 | H184: 13963424 | I184: 16456436
A185: ESAS FAALİYET GELİRLERİ | B185: 0 | C185: 0 | D185: 0 | E185: 0 | F185: 0 | G185: 0 | H185: 0 | I185: 0
A186: SATIŞ GELİRLERİ | B186: 428122486 | C186: 383989293 | D186: 485778150 | E186: 675374296 | F186: 126903762 | G186: 295532652 | H186: 431758515 | I186: 590068109
A187: FAİZ GELİRİ | B187: 0 | C187: 0 | D187: 0 | E187: 0 | F187: 0 | G187: 0 | H187: 0 | I187: 0
A188: SATIŞLARIN MALİYETİ (-) | B188: 262467547 | C188: 244746839 | D188: 353056310 | E188: 485280856 | F188: 106461400 | G188: 229934568 | H188: 330376289 | I188: 445328201
A189: FAİZ GİDERİ | B189: 0 | C189: 0 | D189: 0 | E189: 0 | F189: 0 | G189: 0 | H189: 0 | I189: 0
A190: MUHTEMEL KREDİ ZARAR KARŞ. FİN.KİR. ALCK. KARŞ. VE FAKT. DEĞ. DÜŞ. KARŞ. | B190: 0 | C190: 0 | D190: 0 | E190: 0 | F190: 0 | G190: 0 | H190: 0 | I190: 0
A191: HİZMET GELİRLERİ | B191: 0 | C191: 0 | D191: 0 | E191: 0 | F191: 0 | G191: 0 | H191: 0 | I191: 0
A192: HİZMET GİDERLERİ (-) | B192: 0 | C192: 0 | D192: 0 | E192: 0 | F192: 0 | G192: 0 | H192: 0 | I192: 0
A193: KAMBİYO KARI/ZARARI | B193: 0 | C193: 0 | D193: 0 | E193: 0 | F193: 0 | G193: 0 | H193: 0 | I193: 0
A194: SERMAYE PİYASASI İŞLEM KARI/ZARARI | B194: 0 | C194: 0 | D194: 0 | E194: 0 | F194: 0 | G194: 0 | H194: 0 | I194: 0
A195: ESAS FAALİYETLERDEN DİĞER GİDER/GELİR | B195: 0 | C195: 0 | D195: 0 | E195: 0 | F195: 0 | G195: 0 | H195: 0 | I195: 0
A196: FAİZ, ÜCRET, PRİM, KOMİSYON VE DİĞER GELİRLER | B196: 0 | C196: 0 | D196: 0 | E196: 0 | F196: 0 | G196: 0 | H196: 0 | I196: 0
A197: Kambiyo Gelirleri | B197: 0 | C197: 0 | D197: 0 | E197: 0 | F197: 0 | G197: 0 | H197: 0 | I197: 0
A198: Faiz Gelirleri | B198: 0 | C198: 0 | D198: 0 | E198: 0 | F198: 0 | G198: 0 | H198: 0 | I198: 0
A199: Kar Payı Gelirleri | B199: 0 | C199: 0 | D199: 0 | E199: 0 | F199: 0 | G199: 0 | H199: 0 | I199: 0
A200: Türev Finansal İşlemlerden Kazanç | B200: 0 | C200: 0 | D200: 0 | E200: 0 | F200: 0 | G200: 0 | H200: 0 | I200: 0
A201: Portföy İşletmeciliği Faaliyetinden Elde Edilen Gelir | B201: 0 | C201: 0 | D201: 0 | E201: 0 | F201: 0 | G201: 0 | H201: 0 | I201: 0
... 91 more rows

Sheet ADBGR
A1: ADBGR | B1: ADBGR | C1: ADBGR | D1: ADBGR | E1: ADBGR | F1: ADBGR | G1: ADBGR | H1: ADBGR | I1: ADBGR
B2: 2015/12 | C2: 2016/12 | D2: 2017/12 | E2: 2018/12 | F2: 2019/03 | G2: 2019/06 | H2: 2019/09 | I2: 2019/12
A3: DÖNEN VARLIKLAR | B3: 304203934 | C3: 285454863 | D3: 385509334 | E3: 1015651361 | F3: 900348528 | G3: 782685278 | H3: 504252661 | I3: 547394468
A4: Hazır Değerler | B4: 105736333 | C4: 41705788 | D4: 69473644 | E4: 556549466 | F4: 430267665 | G4: 424288189 | H4: 181606350 | I4: 217619737
A5: Gayrimenkul Projeleri Kapsamında Açılan Nakit Hesapları | B5: 0 | C5: 0 | D5: 0 | E5: 0 | F5: 0 | G5: 0 | H5: 0 | I5: 0
A6: Finansal Yatırımlar | B6: 11019797 | C6: 17356567 | D6: 31470200 | E6: 22988892 | F6: 28183903 | G6: 24231045 | H6: 21611709 | I6: 29510228
A7: Menkul Kıymetler | B7: 0 | C7: 0 | D7: 0 | E7: 0 | F7: 0 | G7: 0 | H7: 0 | I7: 0
A8: Türkiye Cumhuriyet Merkez Bankası Hesabı | B8: 0 | C8: 0 | D8: 0 | E8: 0 | F8: 0 | G8: 0 | H8: 0 | I8: 0
A9: Krediler ve Avanslar | B9: 0 | C9: 0 | D9: 0 | E9: 0 | F9: 0 | G9: 0 | H9: 0 | I9: 0
A10: Faktoring alacakları (net) | B10: 0 | C10: 0 | D10: 0 | E10: 0 | F10: 0 | G10: 0 | H10: 0 | I10: 0
A11: Teminata Verilen Finansal Varlıklar | B11: 0 | C11: 0 | D11: 0 | E11: 0 | F11: 0 | G11: 0 | H11: 0 | I11: 0
A12: Kısa Vadeli Ticari Alacaklar | B12: 129355223 | C12: 149425505 | D12: 165185736 | E12: 167388865 | F12: 151091580 | G12: 153780537 | H12: 141243912 | I12: 139012184
A13: Finansal Kiralama Alacakları | B13: 0 | C13: 0 | D13: 0 | E13: 0 | F13: 0 | G13: 0 | H13: 0 | I13: 0
A14: Finans Sektörü Faal. Alacaklar | B14: 0 | C14: 0 | D14: 0 | E14: 0 | F14: 0 | G14: 0 | H14: 0 | I14: 0
A15: İlişkili Taraflardan Alacaklar | B15: 0 | C15: 0 | D15: 0 | E15: 0 | F15: 0 | G15: 0 | H15: 0 | I15: 0
A16: Diğer Kısa Vadeli Alacaklar | B16: 3781234 | C16: 1390508 | D16: 12525651 | E16: 12073039 | F16: 125434750 | G16: 8548349 | H16: 4601450 | I16: 5776170
A17: Canlı Varlıklar | B17: 0 | C17: 0 | D17: 0 | E17: 0 | F17: 0 | G17: 0 | H17: 0 | I17: 0
A18: Kullanımı Kısıtlı Banka Bakiyeleri | B18: 0 | C18: 0 | D18: 0 | E18: 0 | F18: 0 | G18: 0 | H18: 0 | I18: 0
A19: Stoklar | B19: 52312678 | C19: 70560164 | D19: 91099185 | E19: 167701173 | F19: 151792323 | G19: 158258461 | H19: 144595790 | I19: 137378520
A20: Peşin Ödenen Kira Giderleri | B20: 0 | C20: 0 | D20: 0 | E20: 0 | F20: 0 | G20: 0 | H20: 0 | I20: 0
A21: Müşteri Sözleşmelerinden Doğan Varlıklar | B21: 0 | C21: 0 | D21: 0 | E21: 0 | F21: 0 | G21: 0 | H21: 0 | I21: 0
A22: İmtiyaz Sözleşmelerine İlişkin Finansal Varlıklar | B22: 0 | C22: 0 | D22: 0 | E22: 0 | F22: 0 | G22: 0 | H22: 0 | I22: 0
A23: Türev Enstrümanlar | B23: 0 | C23: 0 | D23: 0 | E23: 0 | F23: 0 | G23: 756530 | H23: 0 | I23: 0
A24: Ertelenen Vergi Varlıkları | B24: 0 | C24: 0 | D24: 0 | E24: 0 | F24: 0 | G24: 0 | H24: 0 | I24: 0
A25: Durdurulan faaliyetler ile ilgili varlıklar | B25: 0 | C25: 0 | D25: 0 | E25: 0 | F25: 0 | G25: 0 | H25: 0 | I25: 0
A26: Ertelenmiş Sigortacılık Üretim Giderleri | B26: 0 | C26: 0 | D26: 0 | E26: 0 | F26: 0 | G26: 0 | H26: 0 | I26: 0
A27: Peşin Ödenmiş Giderler | B27: 1576295 | C27: 3106547 | D27: 5437993 | E27: 2348994 | F27: 4159429 | G27: 3309320 | H27: 2787908 | I27: 3088279
A28: Cari Dönem Vergisiyle İlgili Varlıklar | B28: 0 | C28: 0 | D28: 0 | E28: 0 | F28: 0 | G28: 0 | H28: 0 | I28: 0
A29: Nakit Dışı Serbest Kullanılabilir Teminatlar | B29: 0 | C29: 0 | D29: 0 | E29: 0 | F29: 0 | G29: 0 | H29: 0 | I29: 0
A30: Diğer Dönen Varlıklar | B30: 422374 | C30: 1909784 | D30: 10316925 | E30: 8463083 | F30: 9418878 | G30: 9512847 | H30: 7805542 | I30: 15009350
A31: Vadesine kadar elde tut. men. kıy. | B31: 0 | C31: 0 | D31: 0 | E31: 0 | F31: 0 | G31: 0 | H31: 0 | I31: 0
A32: Satılmaya Hazır Finansal Varlıklar | B32: 0 | C32: 0 | D32: 0 | E32: 0 | F32: 0 | G32: 0 | H32: 0 | I32: 0
A33: Alım Satım Amaçlı Menkul Kıymetler | B33: 0 | C33: 0 | D33: 0 | E33: 0 | F33: 0 | G33: 0 | H33: 0 | I33: 0
A34: İş Ortaklıklarının Dönen Varlıklar İçindeki Payı | B34: 0 | C34: 0 | D34: 0 | E34: 0 | F34: 0 | G34: 0 | H34: 0 | I34: 0
A35: Elden Çıkarılacak Faaliyetler ile İlgili Varlıklar | B35: 0 | C35: 0 | D35: 0 | E35: 0 | F35: 0 | G35: 0 | H35: 0 | I35: 0
A36: Satım amaçlı elde tutulan maddi duran varlıklar | B36: 0 | C36: 0 | D36: 0 | E36: 78137849 | F36: 0 | G36: 0 | H36: 0 | I36: 0
A37: Ortaklara Dağıtılmak Üzere Elde Tutulan Duran Varlıklar | B37: 0 | C37: 0 | D37: 0 | E37: 0 | F37: 0 | G37: 0 | H37: 0 | I37: 0
A38: DURAN VARLIKLAR | B38: 578707847 | C38: 663978536 | D38: 781475385 | E38: 582272293 | F38: 596581792 | G38: 602107073 | H38: 598692046 | I38: 594761918
A39: Menkul Kıymetler | B39: 0 | C39: 0 | D39: 0 | E39: 0 | F39: 0 | G39: 0 | H39: 0 | I39: 0
A40: Krediler ve Avanslar | B40: 0 | C40: 0 | D40: 0 | E40: 0 | F40: 0 | G40: 0 | H40: 0 | I40: 0
A41: Faktoring alacakları (net) | B41: 0 | C41: 0 | D41: 0 | E41: 0 | F41: 0 | G41: 0 | H41: 0 | I41: 0
A42: Uzun Vadeli Ticari Alacaklar | B42: 0 | C42: 0 | D42: 0 | E42: 0 | F42: 0 | G42: 0 | H42: 0 | I42: 0
A43: Finansal Kiralama Alacakları | B43: 0 | C43: 0 | D43: 0 | E43: 0 | F43: 0 | G43: 0 | H43: 0 | I43: 0
A44: Finans Sektörü Faal. Alacaklar | B44: 0 | C44: 0 | D44: 0 | E44: 0 | F44: 0 | G44: 0 | H44: 0 | I44: 0
A45: İlişkili Taraflardan Alacaklar | B45: 0 | C45: 0 | D45: 0 | E45: 0 | F45: 0 | G45: 0 | H45: 0 | I45: 0
A46: Türev Enstrümanlar | B46: 0 | C46: 0 | D46: 0 | E46: 0 | F46: 0 | G46: 0 | H46: 0 | I46: 0
A47: Diğer Uzun Vadeli Alacaklar | B47: 201075 | C47: 250715 | D47: 246193 | E47: 278236 | F47: 339900 | G47: 339900 | H47: 338557 | I47: 339900
A48: Finansal Yatırımlar | B48: 105638497 | C48: 109092993 | D48: 94445929 | E48: 0 | F48: 0 | G48: 0 | H48: 0 | I48: 0
A49: Özkaynak Yöntemiyle Değerlenen Yatırımlar | B49: 200336997 | C49: 212185510 | D49: 236934219 | E49: 38470958 | F49: 36847750 | G49: 34713776 | H49: 33519042 | I49: 33736923
A50: Canlı Varlıklar | B50: 0 | C50: 0 | D50: 0 | E50: 0 | F50: 0 | G50: 0 | H50: 0 | I50: 0
A51: İmtiyaz Sözleşmelerine İlişkin Finansal Varlıklar | B51: 0 | C51: 0 | D51: 0 | E51: 0 | F51: 0 | G51: 0 | H51: 0 | I51: 0
A52: Stoklar | B52: 0 | C52: 0 | D52: 0 | E52: 0 | F52: 0 | G52: 0 | H52: 0 | I52: 0
A53: Finansal Duran Varlıklar | B53: 0 | C53: 0 | D53: 0 | E53: 0 | F53: 0 | G53: 0 | H53: 0 | I53: 0
A54: Pozitif/Negatif Şerefiye | B54: 0 | C54: 0 | D54: 0 | E54: 0 | F54: 0 | G54: 0 | H54: 0 | I54: 0
A55: Yatırım Amaçlı Gayrimenkuller | B55: 14318959 | C55: 13796659 | D55: 14578298 | E55: 13545891 | F55: 13545891 | G55: 13545891 | H55: 13545891 | I55: 12243996
A56: Proje Halindeki Yatırım Amaçlı Gayrimenkuller | B56: 0 | C56: 0 | D56: 0 | E56: 0 | F56: 0 | G56: 0 | H56: 0 | I56: 0
A57: Alım Satım Amaçlı Gayrimenkuller (net) | B57: 0 | C57: 0 | D57: 0 | E57: 0 | F57: 0 | G57: 0 | H57: 0 | I57: 0
A58: Maddi Duran Varlıklar | B58: 242568891 | C58: 295658021 | D58: 422548849 | E58: 507115711 | F58: 519578488 | G58: 516364791 | H58: 513853208 | I58: 517696961
A59: Kullanım Hakkı Varlıkları | B59: 0 | C59: 0 | D59: 0 | E59: 0 | F59: 0 | G59: 8965060 | H59: 8633868 | I59: 9712603
A60: Maddi Olmayan Duran Varlıklar | B60: 10968960 | C60: 10454520 | D60: 10863672 | E60: 10016746 | F60: 9930828 | G60: 10002887 | H60: 9915367 | I60: 13332429
A61: Müşteri Sözleşmelerinden Doğan Varlıklar | B61: 0 | C61: 0 | D61: 0 | E61: 0 | F61: 0 | G61: 0 | H61: 0 | I61: 0
A62: Ertelenen Vergi Varlıkları | B62: 0 | C62: 0 | D62: 0 | E62: 8857527 | F62: 11658535 | G62: 9122413 | H62: 10296093 | I62: 7686614
A63: Cari Dönem Vergisiyle İlgili Duran Varlıklar | B63: 0 | C63: 0 | D63: 0 | E63: 0 | F63: 0 | G63: 0 | H63: 0 | I63: 0
A64: Nakit Dışı Serbest Kullanılabilir Teminatlar | B64: 0 | C64: 0 | D64: 0 | E64: 0 | F64: 0 | G64: 0 | H64: 0 | I64: 0
A65: Peşin Ödenen Kira Giderleri | B65: 0 | C65: 0 | D65: 0 | E65: 0 | F65: 0 | G65: 0 | H65: 0 | I65: 0
A66: Peşin Ödenmiş Giderler | B66: 4674468 | C66: 22540118 | D66: 1858225 | E66: 3987224 | F66: 4680400 | G66: 9052355 | H66: 8590020 | I66: 12492
A67: Diğer Duran Varlıklar | B67: 0 | C67: 0 | D67: 0 | E67: 0 | F67: 0 | G67: 0 | H67: 0 | I67: 0
A68: Vadesine kadar elde tut. men. kıy. | B68: 0 | C68: 0 | D68: 0 | E68: 0 | F68: 0 | G68: 0 | H68: 0 | I68: 0
A69: Satılmaya Hazır Finansal Varlıklar | B69: 0 | C69: 0 | D69: 0 | E69: 0 | F69: 0 | G69: 0 | H69: 0 | I69: 0
A70: İş Ortaklıklarının Duran Varlıklar İçindeki Payı | B70: 0 | C70: 0 | D70: 0 | E70: 0 | F70: 0 | G70: 0 | H70: 0 | I70: 0
A71: Ana Ortaklık Dışı Paylar | B71: 0 | C71: 0 | D71: 0 | E71: 0 | F71: 0 | G71: 0 | H71: 0 | I71: 0
A72: TOPLAM AKTİFLER | B72: 882911781 | C72: 949433399 | D72: 1166984719 | E72: 1597923654 | F72: 1496930320 | G72: 1384792351 | H72: 1102944707 | I72: 1142156386
A73: KISA VADELİ YÜKÜMLÜLÜKLER | B73: 68318701 | C73: 78864226 | D73: 338017798 | E73: 355340153 | F73: 513762139 | G73: 387413004 | H73: 168385034 | I73: 174728031
A74: Finansal Borçlar | B74: 947099 | C74: 0 | D74: 183761427 | E74: 198055374 | F74: 112475334 | G74: 50825682 | H74: 7657347 | I74: 0
A75: Uzun Vadeli Finansal Borçların Kısa Vadeli Kısımları | B75: 816660 | C75: 18937379 | D75: 27093000 | E75: 37512117 | F75: 39197734 | G75: 3869266 | H75: 78974371 | I75: 77465066
A76: Mevduat | B76: 0 | C76: 0 | D76: 0 | E76: 0 | F76: 0 | G76: 0 | H76: 0 | I76: 0
A77: Türev Araçlar | B77: 0 | C77: 0 | D77: 0 | E77: 0 | F77: 9390504 | G77: 0 | H77: 0 | I77: 0
A78: Faktoring borçları | B78: 0 | C78: 0 | D78: 0 | E78: 0 | F78: 0 | G78: 0 | H78: 0 | I78: 0
A79: Finansal Kiralama İşlemlerinden Borçlar | B79: 0 | C79: 0 | D79: 0 | E79: 0 | F79: 0 | G79: 0 | H79: 0 | I79: 0
A80: Finans Sektörü Faaliyetlerinden Borçlar | B80: 0 | C80: 0 | D80: 0 | E80: 0 | F80: 0 | G80: 0 | H80: 0 | I80: 0
A81: Sigorta Teknik Karşılığı | B81: 0 | C81: 0 | D81: 0 | E81: 0 | F81: 0 | G81: 0 | H81: 0 | I81: 0
A82: Diğer Finansal Yükümlülükler | B82: 0 | C82: 0 | D82: 0 | E82: 0 | F82: 0 | G82: 0 | H82: 0 | I82: 0
A83: Ticari Borçlar | B83: 41534340 | C83: 41504889 | D83: 86478584 | E83: 72460000 | F83: 72762774 | G83: 67046787 | H83: 57455806 | I83: 75981647
A84: İlişkili Taraflara Borçlar | B84: 0 | C84: 0 | D84: 0 | E84: 0 | F84: 0 | G84: 0 | H84: 0 | I84: 0
A85: Alınan Krediler | B85: 0 | C85: 0 | D85: 0 | E85: 0 | F85: 0 | G85: 0 | H85: 0 | I85: 0
A86: Diğer Borçlar | B86: 7838305 | C86: 2361758 | D86: 7614292 | E86: 6768241 | F86: 245584182 | G86: 236051976 | H86: 2620103 | I86: 2269522
A87: Alınan Avanslar | B87: 0 | C87: 0 | D87: 0 | E87: 0 | F87: 0 | G87: 0 | H87: 0 | I87: 0
A88: Devlet Teşvik ve Yardımları | B88: 0 | C88: 0 | D88: 0 | E88: 0 | F88: 0 | G88: 0 | H88: 0 | I88: 0
A89: Ertelenmiş Gelirler | B89: 2632563 | C89: 2375355 | D89: 18794038 | E89: 5175662 | F89: 6553247 | G89: 11465500 | H89: 3515429 | I89: 2780358
A90: Cari Dönem Vergi Yükümlülüğü | B90: 5605240 | C90: 4627144 | D90: 5310340 | E90: 25544542 | F90: 8248356 | G90: 5643336 | H90: 4901035 | I90: 4719533
A91: Cari Dönem Vergisi ile İlgili Borçlar | B91: 0 | C91: 0 | D91: 0 | E91: 0 | F91: 0 | G91: 0 | H91: 0 | I91: 0
A92: Bloke Hesaplar | B92: 0 | C92: 0 | D92: 0 | E92: 0 | F92: 0 | G92: 0 | H92: 0 | I92: 0
A93: Müşteri Sözleşmelerinden Doğan Yükümlülükler | B93: 0 | C93: 0 | D93: 0 | E93: 0 | F93: 0 | G93: 0 | H93: 0 | I93: 0
A94: Özkaynak Yöntemiyle Değerlenen Yatırımlardan Yükümlülükler | B94: 0 | C94: 0 | D94: 0 | E94: 0 | F94: 0 | G94: 0 | H94: 0 | I94: 0
A95: Borç ve Gider Karşılıkları | B95: 4979028 | C95: 4864076 | D95: 4983297 | E95: 7355182 | F95: 15301165 | G95: 8355199 | H95: 8419499 | I95: 9548110
A96: Çalışanlara Sağlanan Faydalara İlişkin Karşılıklar | B96: 3965466 | C96: 4193625 | D96: 3982820 | E96: 2469035 | F96: 4248843 | G96: 4155258 | H96: 4841444 | I96: 1963795
A97: Ertelenen Vergi Yükümlülüğü | B97: 0 | C97: 0 | D97: 0 | E97: 0 | F97: 0 | G97: 0 | H97: 0 | I97: 0
A98: Durdurulan faaliyetler ile ilgili yükümlülükler | B98: 0 | C98: 0 | D98: 0 | E98: 0 | F98: 0 | G98: 0 | H98: 0 | I98: 0
A99: Diğer Kısa Vadeli Borçlar | B99: 0 | C99: 0 | D99: 0 | E99: 0 | F99: 0 | G99: 0 | H99: 0 | I99: 0
A100: İş Ortaklıklarının Kısa Vadeli Yükümlülükler İçindeki Payı | B100: 0 | C100: 0 | D100: 0 | E100: 0 | F100: 0 | G100: 0 | H100: 0 | I100: 0
A101: Elden Çıkarılacak Faaliyetler ile İlgili Yükümlülükler | B101: 0 | C101: 0 | D101: 0 | E101: 0 | F101: 0 | G101: 0 | H101: 0 | I101: 0
A102: Ortaklara Dağıtılmak Üzere Elde Tutulan Varlık Gruplarına İlişkin Yükümlülükler | B102: 0 | C102: 0 | D102: 0 | E102: 0 | F102: 0 | G102: 0 | H102: 0 | I102: 0
A103: UZUN VADELİ YÜKÜMLÜLÜKLER | B103: 21081215 | C103: 77108016 | D103: 67108776 | E103: 116091130 | F103: 108840935 | G103: 101411665 | H103: 26617745 | I103: 29012496
A104: Mevduatlar | B104: 0 | C104: 0 | D104: 0 | E104: 0 | F104: 0 | G104: 0 | H104: 0 | I104: 0
A105: Finansal Borçlar | B105: 0 | C105: 55648500 | D105: 45155000 | E105: 99112000 | F105: 92151029 | G105: 82592641 | H105: 7592641 | I105: 8255113
A106: Faktoring borçları | B106: 0 | C106: 0 | D106: 0 | E106: 0 | F106: 0 | G106: 0 | H106: 0 | I106: 0
A107: Finansal Kiralama İşlemlerinden Borçlar | B107: 0 | C107: 0 | D107: 0 | E107: 0 | F107: 0 | G107: 0 | H107: 0 | I107: 0
A108: Finans Sektörü Faaliyetlerinden Borçlar | B108: 0 | C108: 0 | D108: 0 | E108: 0 | F108: 0 | G108: 0 | H108: 0 | I108: 0
A109: Sigorta teknik karşılıkları | B109: 0 | C109: 0 | D109: 0 | E109: 0 | F109: 0 | G109: 0 | H109: 0 | I109: 0
A110: Diğer Finansal Yükümlülükler | B110: 0 | C110: 0 | D110: 0 | E110: 0 | F110: 0 | G110: 0 | H110: 0 | I110: 0
A111: Ticari Borçlar | B111: 0 | C111: 0 | D111: 0 | E111: 0 | F111: 0 | G111: 0 | H111: 0 | I111: 0
A112: İlişkili Taraflara Borçlar | B112: 0 | C112: 0 | D112: 0 | E112: 0 | F112: 0 | G112: 0 | H112: 0 | I112: 0
A113: Alınan Krediler | B113: 0 | C113: 0 | D113: 0 | E113: 0 | F113: 0 | G113: 0 | H113: 0 | I113: 0
A114: Diğer Borçlar | B114: 0 | C114: 0 | D114: 0 | E114: 0 | F114: 0 | G114: 0 | H114: 0 | I114: 0
A115: Müşteri Sözleşmelerinden Doğan Yükümlülükler | B115: 0 | C115: 0 | D115: 0 | E115: 0 | F115: 0 | G115: 0 | H115: 0 | I115: 0
A116: Bloke Hesaplar | B116: 0 | C116: 0 | D116: 0 | E116: 0 | F116: 0 | G116: 0 | H116: 0 | I116: 0
A117: Alınan Avanslar | B117: 0 | C117: 0 | D117: 0 | E117: 0 | F117: 0 | G117: 0 | H117: 0 | I117: 0
A118: Çalışanlara Sağlanan Faydalar Kapsamında Borçlar | B118: 0 | C118: 0 | D118: 0 | E118: 0 | F118: 0 | G118: 0 | H118: 0 | I118: 0
A119: Borç ve Gider Karşılıkları | B119: 15954321 | C119: 16518145 | D119: 17157001 | E119: 16760418 | F119: 16471194 | G119: 18600311 | H119: 18922180 | I119: 20684480
A120: Türev Finansal Araçlardan Borçlar | B120: 0 | C120: 0 | D120: 0 | E120: 0 | F120: 0 | G120: 0 | H120: 0 | I120: 0
A121: Cari Dönem Vergisiyle İlgili Borçlar | B121: 0 | C121: 0 | D121: 0 | E121: 0 | F121: 0 | G121: 0 | H121: 0 | I121: 0
A122: Ertelenen Vergi Yükümlülüğü | B122: 5126894 | C122: 4941371 | D122: 4796775 | E122: 0 | F122: 0 | G122: 0 | H122: 0 | I122: 0
A123: Devlet Teşvik ve Yardımları | B123: 0 | C123: 0 | D123: 0 | E123: 0 | F123: 0 | G123: 0 | H123: 0 | I123: 0
A124: Ertelenmiş Gelirler | B124: 0 | C124: 0 | D124: 0 | E124: 218712 | F124: 218712 | G124: 218713 | H124: 102924 | I124: 72903
A125: Devam Eden Sözleşmeler Hakediş Bedelleri | B125: 0 | C125: 0 | D125: 0 | E125: 0 | F125: 0 | G125: 0 | H125: 0 | I125: 0
A126: Pozitif/Negatif Şerefiye | B126: 0 | C126: 0 | D126: 0 | E126: 0 | F126: 0 | G126: 0 | H126: 0 | I126: 0
A127: Diğer Uzun Vadeli Borçlar | B127: 0 | C127: 0 | D127: 0 | E127: 0 | F127: 0 | G127: 0 | H127: 0 | I127: 0
A128: İş Ortaklıklarının Uzun Vadeli Yükümlülükler İçindeki Payı | B128: 0 | C128: 0 | D128: 0 | E128: 0 | F128: 0 | G128: 0 | H128: 0 | I128: 0
A129: ÖZ SERMAYE (AZINLIK PAYI DAHİL) | B129: 793511865 | C129: 793461157 | D129: 761858145 | E129: 1126492371 | F129: 874327246 | G129: 895967682 | H129: 907941928 | I129: 938415859
A130: ANA ORTAKLIK DIŞI ÖZSERMAYE | B130: 0 | C130: 0 | D130: 0 | E130: 0 | F130: 0 | G130: 0 | H130: 0 | I130: 0
A131: Aile Üyeleri | B131: 0 | C131: 0 | D131: 0 | E131: 0 | F131: 0 | G131: 0 | H131: 0 | I131: 0
A132: Diğerleri | B132: 0 | C132: 0 | D132: 0 | E132: 0 | F132: 0 | G132: 0 | H132: 0 | I132: 0
A133: ÖZ SERMAYE (ANA ORTAKLIĞA AİT) | B133: 793511865 | C133: 793461157 | D133: 761858145 | E133: 1126492371 | F133: 874327246 | G133: 895967682 | H133: 907941928 | I133: 938415859
A134: Sermaye | B134: 336182000 | C134: 336182000 | D134: 336182000 | E134: 336182000 | F134: 336182000 | G134: 336182000 | H134: 336182000 | I134: 336182000
A135: Ödenmeyen Sermaye(-) | B135: 0 | C135: 0 | D135: 0 | E135: 0 | F135: 0 | G135: 0 | H135: 0 | I135: 0
A136: Karşılıklı İştirak Sermaye Düzeltmesi | B136: 0 | C136: 0 | D136: 0 | E136: 0 | F136: 0 | G136: 0 | H136: 0 | I136: 0
A137: Paylara İlişkin Primler/İskontolar | B137: 0 | C137: 0 | D137: 0 | E137: 0 | F137: 0 | G137: 0 | H137: 0 | I137: 0
A138: İşletmenin Geri Satın Alınan Kendi Hisseleri | B138: 0 | C138: 0 | D138: 0 | E138: 0 | F138: -54515327 | G138: -38190738 | H138: -38190738 | I138: -38190738
A139: İşletmenin Geri Alınan Kendi Hisse Senetlerinin Satışından Doğan Kar | B139: 0 | C139: 0 | D139: 0 | E139: 0 | F139: 0 | G139: 0 | H139: 0 | I139: 0
A140: Sermaye Avansı | B140: 0 | C140: 0 | D140: 0 | E140: 0 | F140: 0 | G140: 0 | H140: 0 | I140: 0
A141: Kar veya Zararda Yeniden Sınıflandırılmayacak Birikmiş Diğer Kapsamlı Gel. veya Gid. | B141: -6406012 | C141: -6623738 | D141: -7113110 | E141: -4190768 | F141: -2720513 | G141: -3456929 | H141: -3456929 | I141: -3825712
A142: Kar veya Zararda Yeniden Sınıflandırılacak Birikmiş Diğer Kapsamlı Gelir. veya Gid. | B142: 93390120 | C142: 97377249 | D142: 85290702 | E142: 5380815 | F142: 0 | G142: 0 | H142: 0 | I142: 0
A143: Sermaye Yedekleri | B143: -3060762 | C143: -3340781 | D143: -3465791 | E143: -1716495 | F143: -246240 | G143: -367939 | H143: -367939 | I143: -500729
A144: Sermaye Taahhütleri (-) | B144: 0 | C144: 0 | D144: 0 | E144: 0 | F144: 0 | G144: 0 | H144: 0 | I144: 0
A145: Katkı sermaye | B145: 0 | C145: 0 | D145: 0 | E145: 0 | F145: 0 | G145: 0 | H145: 0 | I145: 0
A146: Azınlık Hisseleri Satış Opsiyonu Değerleme Fonu | B146: 0 | C146: 0 | D146: 0 | E146: 0 | F146: 0 | G146: 0 | H146: 0 | I146: 0
A147: Emisyon Primi | B147: 0 | C147: 0 | D147: 0 | E147: 0 | F147: 0 | G147: 0 | H147: 0 | I147: 0
A148: Yeniden Değerleme Artışı | B148: 89436446 | C148: 92780511 | D148: 78501438 | E148: -2474273 | F148: -2474273 | G148: -3088990 | H148: -3088990 | I148: -3324983
A149: Kar Yedekleri | B149: 0 | C149: 0 | D149: 0 | E149: 0 | F149: 0 | G149: 0 | H149: 0 | I149: 0
A150: Dağıtılmamış Kar | B150: 0 | C150: 0 | D150: 0 | E150: 0 | F150: 0 | G150: 0 | H150: 0 | I150: 0
A151: Sermaye artırımı ile ilgili masraflar | B151: 0 | C151: 0 | D151: 0 | E151: 0 | F151: 0 | G151: 0 | H151: 0 | I151: 0
A152: Nakit Akım Koruması ile İlgili Birikmiş Kar | B152: 0 | C152: 0 | D152: 0 | E152: 0 | F152: 0 | G152: 0 | H152: 0 | I152: 0
A153: Karşılıklı İştirak Serm. Düzeltmesinin Nom. Tut. Aşan Kısım | B153: 0 | C153: 0 | D153: 0 | E153: 0 | F153: 0 | G153: 0 | H153: 0 | I153: 0
A154: Finansal Yatırımlar Değer Artış Fonu | B154: 0 | C154: 0 | D154: 0 | E154: 0 | F154: 0 | G154: 0 | H154: 0 | I154: 0
A155: Diğer Özkaynak Payları | B155: 0 | C155: 0 | D155: 0 | E155: 0 | F155: 0 | G155: 0 | H155: 0 | I155: 0
A156: Diğer Yedekler | B156: 0 | C156: 0 | D156: 0 | E156: 0 | F156: 0 | G156: 0 | H156: 0 | I156: 0
A157: Net Dönem Karı | B157: 144077727 | C157: 130943887 | D157: 125972459 | E157: 483136386 | F157: 46910343 | G157: 63591737 | H157: 75565983 | I157: 106342303
A158: Dönem Zararı (-) | B158: 0 | C158: 0 | D158: 0 | E158: 0 | F158: 0 | G158: 0 | H158: 0 | I158: 0
A159: Geçmiş Yıl Karları | B159: 107591318 | C159: 103738501 | D159: 76864194 | E159: 151398096 | F159: 371648440 | G159: 361019309 | H159: 361019309 | I159: 361085704
A160: Net Dön. Kar. Ser. Hes. Ed. Tran. Ed. M. Dur. V. Sa. Karı | B160: 0 | C160: 0 | D160: 0 | E160: 0 | F160: 0 | G160: 0 | H160: 0 | I160: 0
A161: Geçmiş Yıl Zararları (-) | B161: 0 | C161: 0 | D161: 0 | E161: 0 | F161: 0 | G161: 0 | H161: 0 | I161: 0
A162: Yabancı Para Çevrim Farkları | B162: 608424 | C162: 1313781 | D162: 3141945 | E162: 5380815 | F162: 0 | G162: 0 | H162: 0 | I162: 0
A163: Kardan Ayrılan Kısıtlanmış Yedekler | B163: 118676712 | C163: 131843258 | D163: 144661900 | E163: 154585842 | F163: 176822303 | G163: 176822303 | H163: 176822303 | I163: 176822302
A164: Kardan Ayrılan Kısıtlanmış Yedekler (27) | B164: 0 | C164: 0 | D164: 0 | E164: 0 | F164: 0 | G164: 0 | H164: 0 | I164: 0
A165: Zarar Telafi Fonu | B165: 0 | C165: 0 | D165: 0 | E165: 0 | F165: 0 | G165: 0 | H165: 0 | I165: 0
A166: Özsermaye Enf. Düz. Farkları | B166: 0 | C166: 0 | D166: 0 | E166: 0 | F166: 0 | G166: 0 | H166: 0 | I166: 0
A167: Sermaye Birleşme Fonu | B167: 0 | C167: 0 | D167: 0 | E167: 0 | F167: 0 | G167: 0 | H167: 0 | I167: 0
A168: İlave Ödenmiş Sermaye | B168: 0 | C168: 0 | D168: 0 | E168: 0 | F168: 0 | G168: 0 | H168: 0 | I168: 0
A169: Birikmiş Karlar/Zararlar | B169: 0 | C169: 0 | D169: 0 | E169: 0 | F169: 0 | G169: 0 | H169: 0 | I169: 0
A170: Yatırım Teşvikleri | B170: 0 | C170: 0 | D170: 0 | E170: 0 | F170: 0 | G170: 0 | H170: 0 | I170: 0
A171: Satılmaya Haz. Var. Üz. Gerçekleşmemiş Net Gelir | B171: 0 | C171: 0 | D171: 0 | E171: 0 | F171: 0 | G171: 0 | H171: 0 | I171: 0
A172: Ana ortaklık hisse satış kar/zarar | B172: 0 | C172: 0 | D172: 0 | E172: 0 | F172: 0 | G172: 0 | H172: 0 | I172: 0
A173: AZINLIK PAYLARI | B173: 0 | C173: 0 | D173: 0 | E173: 0 | F173: 0 | G173: 0 | H173: 0 | I173: 0
A174: TOPLAM PASİFLER | B174: 882911781 | C174: 949433399 | D174: 1166984719 | E174: 1597923654 | F174: 1496930320 | G174: 1384792351 | H174: 1102944707 | I174: 1142156386
A176: GELİR TABLOSU | B176: 2015/12 | C176: 2016/12 | D176: 2017/12 | E176: 2018/12 | F176: 2019/03 | G176: 2019/06 | H176: 2019/09 | I176: 2019/12
A177: BRÜT SATIŞLAR | B177: 431754202 | C177: 390045507 | D177: 502341547 | E177: 701345840 | F177: 131597049 | G177: 304845711 | H177: 445721939 | I177: 606708725
A178: Yurtiçi Satışlar | B178: 339197760 | C178: 305461163 | D178: 361442881 | E178: 426807978 | F178: 70998885 | G178: 149685914 | H178: 227229706 | I178: 302729136
A179: Yurtdışı Satışlar | B179: 92556442 | C179: 84584344 | D179: 140898666 | E179: 274537862 | F179: 60598164 | G179: 155159797 | H179: 218492233 | I179: 303979589
A180: Diğer Satışlar | B180: 0 | C180: 0 | D180: 0 | E180: 0 | F180: 0 | G180: 0 | H180: 0 | I180: 0
A181: SATIŞLARDAN İNDİRİMLER (-) | B181: 3631716 | C181: 6056214 | D181: 16563397 | E181: 25971544 | F181: 4693287 | G181: 9313059 | H181: 13963424 | I181: 16640616
A182: Satışdan İadeler (-) | B182: 0 | C182: 0 | D182: 0 | E182: 0 | F182: 0 | G182: 0 | H182: 0 | I182: 184180
A183: Satış İskontoları (-) | B183: 0 | C183: 0 | D183: 0 | E183: 0 | F183: 0 | G183: 0 | H183: 0 | I183: 0
A184: Diğer İndirimler (-) | B184: 0 | C184: 6056214 | D184: 16563397 | E184: 0 | F184: 0 | G184: 9313059 | H184: 13963424 | I184: 16456436
A185: ESAS FAALİYET GELİRLERİ | B185: 0 | C185: 0 | D185: 0 | E185: 0 | F185: 0 | G185: 0 | H185: 0 | I185: 0
A186: SATIŞ GELİRLERİ | B186: 428122486 | C186: 383989293 | D186: 485778150 | E186: 675374296 | F186: 126903762 | G186: 295532652 | H186: 431758515 | I186: 590068109
A187: FAİZ GELİRİ | B187: 0 | C187: 0 | D187: 0 | E187: 0 | F187: 0 | G187: 0 | H187: 0 | I187: 0
A188: SATIŞLARIN MALİYETİ (-) | B188: 262467547 | C188: 244746839 | D188: 353056310 | E188: 485280856 | F188: 106461400 | G188: 229934568 | H188: 330376289 | I188: 445328201
A189: FAİZ GİDERİ | B189: 0 | C189: 0 | D189: 0 | E189: 0 | F189: 0 | G189: 0 | H189: 0 | I189: 0
A190: MUHTEMEL KREDİ ZARAR KARŞ. FİN.KİR. ALCK. KARŞ. VE FAKT. DEĞ. DÜŞ. KARŞ. | B190: 0 | C190: 0 | D190: 0 | E190: 0 | F190: 0 | G190: 0 | H190: 0 | I190: 0
A191: HİZMET GELİRLERİ | B191: 0 | C191: 0 | D191: 0 | E191: 0 | F191: 0 | G191: 0 | H191: 0 | I191: 0
A192: HİZMET GİDERLERİ (-) | B192: 0 | C192: 0 | D192: 0 | E192: 0 | F192: 0 | G192: 0 | H192: 0 | I192: 0
A193: KAMBİYO KARI/ZARARI | B193: 0 | C193: 0 | D193: 0 | E193: 0 | F193: 0 | G193: 0 | H193: 0 | I193: 0
A194: SERMAYE PİYASASI İŞLEM KARI/ZARARI | B194: 0 | C194: 0 | D194: 0 | E194: 0 | F194: 0 | G194: 0 | H194: 0 | I194: 0
A195: ESAS FAALİYETLERDEN DİĞER GİDER/GELİR | B195: 0 | C195: 0 | D195: 0 | E195: 0 | F195: 0 | G195: 0 | H195: 0 | I195: 0
A196: FAİZ, ÜCRET, PRİM, KOMİSYON VE DİĞER GELİRLER | B196: 0 | C196: 0 | D196: 0 | E196: 0 | F196: 0 | G196: 0 | H196: 0 | I196: 0
A197: Kambiyo Gelirleri | B197: 0 | C197: 0 | D197: 0 | E197: 0 | F197: 0 | G197: 0 | H197: 0 | I197: 0
A198: Faiz Gelirleri | B198: 0 | C198: 0 | D198: 0 | E198: 0 | F198: 0 | G198: 0 | H198: 0 | I198: 0
A199: Kar Payı Gelirleri | B199: 0 | C199: 0 | D199: 0 | E199: 0 | F199: 0 | G199: 0 | H199: 0 | I199: 0
A200: Türev Finansal İşlemlerden Kazanç | B200: 0 | C200: 0 | D200: 0 | E200: 0 | F200: 0 | G200: 0 | H200: 0 | I200: 0
A201: Portföy İşletmeciliği Faaliyetinden Elde Edilen Gelir | B201: 0 | C201: 0 | D201: 0 | E201: 0 | F201: 0 | G201: 0 | H201: 0 | I201: 0
... 91 more rows

Sheet ADNAC
A1: ADNAC | B1: ADNAC | C1: ADNAC | D1: ADNAC | E1: ADNAC | F1: ADNAC | G1: ADNAC | H1: ADNAC | I1: ADNAC
B2: 2015/12 | C2: 2016/12 | D2: 2017/12 | E2: 2018/12 | F2: 2019/03 | G2: 2019/06 | H2: 2019/09 | I2: 2019/12
A3: DÖNEN VARLIKLAR | B3: 304203934 | C3: 285454863 | D3: 385509334 | E3: 1015651361 | F3: 900348528 | G3: 782685278 | H3: 504252661 | I3: 547394468
A4: Hazır Değerler | B4: 105736333 | C4: 41705788 | D4: 69473644 | E4: 556549466 | F4: 430267665 | G4: 424288189 | H4: 181606350 | I4: 217619737
A5: Gayrimenkul Projeleri Kapsamında Açılan Nakit Hesapları | B5: 0 | C5: 0 | D5: 0 | E5: 0 | F5: 0 | G5: 0 | H5: 0 | I5: 0
A6: Finansal Yatırımlar | B6: 11019797 | C6: 17356567 | D6: 31470200 | E6: 22988892 | F6: 28183903 | G6: 24231045 | H6: 21611709 | I6: 29510228
A7: Menkul Kıymetler | B7: 0 | C7: 0 | D7: 0 | E7: 0 | F7: 0 | G7: 0 | H7: 0 | I7: 0
A8: Türkiye Cumhuriyet Merkez Bankası Hesabı | B8: 0 | C8: 0 | D8: 0 | E8: 0 | F8: 0 | G8: 0 | H8: 0 | I8: 0
A9: Krediler ve Avanslar | B9: 0 | C9: 0 | D9: 0 | E9: 0 | F9: 0 | G9: 0 | H9: 0 | I9: 0
A10: Faktoring alacakları (net) | B10: 0 | C10: 0 | D10: 0 | E10: 0 | F10: 0 | G10: 0 | H10: 0 | I10: 0
A11: Teminata Verilen Finansal Varlıklar | B11: 0 | C11: 0 | D11: 0 | E11: 0 | F11: 0 | G11: 0 | H11: 0 | I11: 0
A12: Kısa Vadeli Ticari Alacaklar | B12: 129355223 | C12: 149425505 | D12: 165185736 | E12: 167388865 | F12: 151091580 | G12: 153780537 | H12: 141243912 | I12: 139012184
A13: Finansal Kiralama Alacakları | B13: 0 | C13: 0 | D13: 0 | E13: 0 | F13: 0 | G13: 0 | H13: 0 | I13: 0
A14: Finans Sektörü Faal. Alacaklar | B14: 0 | C14: 0 | D14: 0 | E14: 0 | F14: 0 | G14: 0 | H14: 0 | I14: 0
A15: İlişkili Taraflardan Alacaklar | B15: 0 | C15: 0 | D15: 0 | E15: 0 | F15: 0 | G15: 0 | H15: 0 | I15: 0
A16: Diğer Kısa Vadeli Alacaklar | B16: 3781234 | C16: 1390508 | D16: 12525651 | E16: 12073039 | F16: 125434750 | G16: 8548349 | H16: 4601450 | I16: 5776170
A17: Canlı Varlıklar | B17: 0 | C17: 0 | D17: 0 | E17: 0 | F17: 0 | G17: 0 | H17: 0 | I17: 0
A18: Kullanımı Kısıtlı Banka Bakiyeleri | B18: 0 | C18: 0 | D18: 0 | E18: 0 | F18: 0 | G18: 0 | H18: 0 | I18: 0
A19: Stoklar | B19: 52312678 | C19: 70560164 | D19: 91099185 | E19: 167701173 | F19: 151792323 | G19: 158258461 | H19: 144595790 | I19: 137378520
A20: Peşin Ödenen Kira Giderleri | B20: 0 | C20: 0 | D20: 0 | E20: 0 | F20: 0 | G20: 0 | H20: 0 | I20: 0
A21: Müşteri Sözleşmelerinden Doğan Varlıklar | B21: 0 | C21: 0 | D21: 0 | E21: 0 | F21: 0 | G21: 0 | H21: 0 | I21: 0
A22: İmtiyaz Sözleşmelerine İlişkin Finansal Varlıklar | B22: 0 | C22: 0 | D22: 0 | E22: 0 | F22: 0 | G22: 0 | H22: 0 | I22: 0
A23: Türev Enstrümanlar | B23: 0 | C23: 0 | D23: 0 | E23: 0 | F23: 0 | G23: 756530 | H23: 0 | I23: 0
A24: Ertelenen Vergi Varlıkları | B24: 0 | C24: 0 | D24: 0 | E24: 0 | F24: 0 | G24: 0 | H24: 0 | I24: 0
A25: Durdurulan faaliyetler ile ilgili varlıklar | B25: 0 | C25: 0 | D25: 0 | E25: 0 | F25: 0 | G25: 0 | H25: 0 | I25: 0
A26: Ertelenmiş Sigortacılık Üretim Giderleri | B26: 0 | C26: 0 | D26: 0 | E26: 0 | F26: 0 | G26: 0 | H26: 0 | I26: 0
A27: Peşin Ödenmiş Giderler | B27: 1576295 | C27: 3106547 | D27: 5437993 | E27: 2348994 | F27: 4159429 | G27: 3309320 | H27: 2787908 | I27: 3088279
A28: Cari Dönem Vergisiyle İlgili Varlıklar | B28: 0 | C28: 0 | D28: 0 | E28: 0 | F28: 0 | G28: 0 | H28: 0 | I28: 0
A29: Nakit Dışı Serbest Kullanılabilir Teminatlar | B29: 0 | C29: 0 | D29: 0 | E29: 0 | F29: 0 | G29: 0 | H29: 0 | I29: 0
A30: Diğer Dönen Varlıklar | B30: 422374 | C30: 1909784 | D30: 10316925 | E30: 8463083 | F30: 9418878 | G30: 9512847 | H30: 7805542 | I30: 15009350
A31: Vadesine kadar elde tut. men. kıy. | B31: 0 | C31: 0 | D31: 0 | E31: 0 | F31: 0 | G31: 0 | H31: 0 | I31: 0
A32: Satılmaya Hazır Finansal Varlıklar | B32: 0 | C32: 0 | D32: 0 | E32: 0 | F32: 0 | G32: 0 | H32: 0 | I32: 0
A33: Alım Satım Amaçlı Menkul Kıymetler | B33: 0 | C33: 0 | D33: 0 | E33: 0 | F33: 0 | G33: 0 | H33: 0 | I33: 0
A34: İş Ortaklıklarının Dönen Varlıklar İçindeki Payı | B34: 0 | C34: 0 | D34: 0 | E34: 0 | F34: 0 | G34: 0 | H34: 0 | I34: 0
A35: Elden Çıkarılacak Faaliyetler ile İlgili Varlıklar | B35: 0 | C35: 0 | D35: 0 | E35: 0 | F35: 0 | G35: 0 | H35: 0 | I35: 0
A36: Satım amaçlı elde tutulan maddi duran varlıklar | B36: 0 | C36: 0 | D36: 0 | E36: 78137849 | F36: 0 | G36: 0 | H36: 0 | I36: 0
A37: Ortaklara Dağıtılmak Üzere Elde Tutulan Duran Varlıklar | B37: 0 | C37: 0 | D37: 0 | E37: 0 | F37: 0 | G37: 0 | H37: 0 | I37: 0
A38: DURAN VARLIKLAR | B38: 578707847 | C38: 663978536 | D38: 781475385 | E38: 582272293 | F38: 596581792 | G38: 602107073 | H38: 598692046 | I38: 594761918
A39: Menkul Kıymetler | B39: 0 | C39: 0 | D39: 0 | E39: 0 | F39: 0 | G39: 0 | H39: 0 | I39: 0
A40: Krediler ve Avanslar | B40: 0 | C40: 0 | D40: 0 | E40: 0 | F40: 0 | G40: 0 | H40: 0 | I40: 0
A41: Faktoring alacakları (net) | B41: 0 | C41: 0 | D41: 0 | E41: 0 | F41: 0 | G41: 0 | H41: 0 | I41: 0
A42: Uzun Vadeli Ticari Alacaklar | B42: 0 | C42: 0 | D42: 0 | E42: 0 | F42: 0 | G42: 0 | H42: 0 | I42: 0
A43: Finansal Kiralama Alacakları | B43: 0 | C43: 0 | D43: 0 | E43: 0 | F43: 0 | G43: 0 | H43: 0 | I43: 0
A44: Finans Sektörü Faal. Alacaklar | B44: 0 | C44: 0 | D44: 0 | E44: 0 | F44: 0 | G44: 0 | H44: 0 | I44: 0
A45: İlişkili Taraflardan Alacaklar | B45: 0 | C45: 0 | D45: 0 | E45: 0 | F45: 0 | G45: 0 | H45: 0 | I45: 0
A46: Türev Enstrümanlar | B46: 0 | C46: 0 | D46: 0 | E46: 0 | F46: 0 | G46: 0 | H46: 0 | I46: 0
A47: Diğer Uzun Vadeli Alacaklar | B47: 201075 | C47: 250715 | D47: 246193 | E47: 278236 | F47: 339900 | G47: 339900 | H47: 338557 | I47: 339900
A48: Finansal Yatırımlar | B48: 105638497 | C48: 109092993 | D48: 94445929 | E48: 0 | F48: 0 | G48: 0 | H48: 0 | I48: 0
A49: Özkaynak Yöntemiyle Değerlenen Yatırımlar | B49: 200336997 | C49: 212185510 | D49: 236934219 | E49: 38470958 | F49: 36847750 | G49: 34713776 | H49: 33519042 | I49: 33736923
A50: Canlı Varlıklar | B50: 0 | C50: 0 | D50: 0 | E50: 0 | F50: 0 | G50: 0 | H50: 0 | I50: 0
A51: İmtiyaz Sözleşmelerine İlişkin Finansal Varlıklar | B51: 0 | C51: 0 | D51: 0 | E51: 0 | F51: 0 | G51: 0 | H51: 0 | I51: 0
A52: Stoklar | B52: 0 | C52: 0 | D52: 0 | E52: 0 | F52: 0 | G52: 0 | H52: 0 | I52: 0
A53: Finansal Duran Varlıklar | B53: 0 | C53: 0 | D53: 0 | E53: 0 | F53: 0 | G53: 0 | H53: 0 | I53: 0
A54: Pozitif/Negatif Şerefiye | B54: 0 | C54: 0 | D54: 0 | E54: 0 | F54: 0 | G54: 0 | H54: 0 | I54: 0
A55: Yatırım Amaçlı Gayrimenkuller | B55: 14318959 | C55: 13796659 | D55: 14578298 | E55: 13545891 | F55: 13545891 | G55: 13545891 | H55: 13545891 | I55: 12243996
A56: Proje Halindeki Yatırım Amaçlı Gayrimenkuller | B56: 0 | C56: 0 | D56: 0 | E56: 0 | F56: 0 | G56: 0 | H56: 0 | I56: 0
A57: Alım Satım Amaçlı Gayrimenkuller (net) | B57: 0 | C57: 0 | D57: 0 | E57: 0 | F57: 0 | G57: 0 | H57: 0 | I57: 0
A58: Maddi Duran Varlıklar | B58: 242568891 | C58: 295658021 | D58: 422548849 | E58: 507115711 | F58: 519578488 | G58: 516364791 | H58: 513853208 | I58: 517696961
A59: Kullanım Hakkı Varlıkları | B59: 0 | C59: 0 | D59: 0 | E59: 0 | F59: 0 | G59: 8965060 | H59: 8633868 | I59: 9712603
A60: Maddi Olmayan Duran Varlıklar | B60: 10968960 | C60: 10454520 | D60: 10863672 | E60: 10016746 | F60: 9930828 | G60: 10002887 | H60: 9915367 | I60: 13332429
A61: Müşteri Sözleşmelerinden Doğan Varlıklar | B61: 0 | C61: 0 | D61: 0 | E61: 0 | F61: 0 | G61: 0 | H61: 0 | I61: 0
A62: Ertelenen Vergi Varlıkları | B62: 0 | C62: 0 | D62: 0 | E62: 8857527 | F62: 11658535 | G62: 9122413 | H62: 10296093 | I62: 7686614
A63: Cari Dönem Vergisiyle İlgili Duran Varlıklar | B63: 0 | C63: 0 | D63: 0 | E63: 0 | F63: 0 | G63: 0 | H63: 0 | I63: 0
A64: Nakit Dışı Serbest Kullanılabilir Teminatlar | B64: 0 | C64: 0 | D64: 0 | E64: 0 | F64: 0 | G64: 0 | H64: 0 | I64: 0
A65: Peşin Ödenen Kira Giderleri | B65: 0 | C65: 0 | D65: 0 | E65: 0 | F65: 0 | G65: 0 | H65: 0 | I65: 0
A66: Peşin Ödenmiş Giderler | B66: 4674468 | C66: 22540118 | D66: 1858225 | E66: 3987224 | F66: 4680400 | G66: 9052355 | H66: 8590020 | I66: 12492
A67: Diğer Duran Varlıklar | B67: 0 | C67: 0 | D67: 0 | E67: 0 | F67: 0 | G67: 0 | H67: 0 | I67: 0
A68: Vadesine kadar elde tut. men. kıy. | B68: 0 | C68: 0 | D68: 0 | E68: 0 | F68: 0 | G68: 0 | H68: 0 | I68: 0
A69: Satılmaya Hazır Finansal Varlıklar | B69: 0 | C69: 0 | D69: 0 | E69: 0 | F69: 0 | G69: 0 | H69: 0 | I69: 0
A70: İş Ortaklıklarının Duran Varlıklar İçindeki Payı | B70: 0 | C70: 0 | D70: 0 | E70: 0 | F70: 0 | G70: 0 | H70: 0 | I70: 0
A71: Ana Ortaklık Dışı Paylar | B71: 0 | C71: 0 | D71: 0 | E71: 0 | F71: 0 | G71: 0 | H71: 0 | I71: 0
A72: TOPLAM AKTİFLER | B72: 882911781 | C72: 949433399 | D72: 1166984719 | E72: 1597923654 | F72: 1496930320 | G72: 1384792351 | H72: 1102944707 | I72: 1142156386
A73: KISA VADELİ YÜKÜMLÜLÜKLER | B73: 68318701 | C73: 78864226 | D73: 338017798 | E73: 355340153 | F73: 513762139 | G73: 387413004 | H73: 168385034 | I73: 174728031
A74: Finansal Borçlar | B74: 947099 | C74: 0 | D74: 183761427 | E74: 198055374 | F74: 112475334 | G74: 50825682 | H74: 7657347 | I74: 0
A75: Uzun Vadeli Finansal Borçların Kısa Vadeli Kısımları | B75: 816660 | C75: 18937379 | D75: 27093000 | E75: 37512117 | F75: 39197734 | G75: 3869266 | H75: 78974371 | I75: 77465066
A76: Mevduat | B76: 0 | C76: 0 | D76: 0 | E76: 0 | F76: 0 | G76: 0 | H76: 0 | I76: 0
A77: Türev Araçlar | B77: 0 | C77: 0 | D77: 0 | E77: 0 | F77: 9390504 | G77: 0 | H77: 0 | I77: 0
A78: Faktoring borçları | B78: 0 | C78: 0 | D78: 0 | E78: 0 | F78: 0 | G78: 0 | H78: 0 | I78: 0
A79: Finansal Kiralama İşlemlerinden Borçlar | B79: 0 | C79: 0 | D79: 0 | E79: 0 | F79: 0 | G79: 0 | H79: 0 | I79: 0
A80: Finans Sektörü Faaliyetlerinden Borçlar | B80: 0 | C80: 0 | D80: 0 | E80: 0 | F80: 0 | G80: 0 | H80: 0 | I80: 0
A81: Sigorta Teknik Karşılığı | B81: 0 | C81: 0 | D81: 0 | E81: 0 | F81: 0 | G81: 0 | H81: 0 | I81: 0
A82: Diğer Finansal Yükümlülükler | B82: 0 | C82: 0 | D82: 0 | E82: 0 | F82: 0 | G82: 0 | H82: 0 | I82: 0
A83: Ticari Borçlar | B83: 41534340 | C83: 41504889 | D83: 86478584 | E83: 72460000 | F83: 72762774 | G83: 67046787 | H83: 57455806 | I83: 75981647
A84: İlişkili Taraflara Borçlar | B84: 0 | C84: 0 | D84: 0 | E84: 0 | F84: 0 | G84: 0 | H84: 0 | I84: 0
A85: Alınan Krediler | B85: 0 | C85: 0 | D85: 0 | E85: 0 | F85: 0 | G85: 0 | H85: 0 | I85: 0
A86: Diğer Borçlar | B86: 7838305 | C86: 2361758 | D86: 7614292 | E86: 6768241 | F86: 245584182 | G86: 236051976 | H86: 2620103 | I86: 2269522
A87: Alınan Avanslar | B87: 0 | C87: 0 | D87: 0 | E87: 0 | F87: 0 | G87: 0 | H87: 0 | I87: 0
A88: Devlet Teşvik ve Yardımları | B88: 0 | C88: 0 | D88: 0 | E88: 0 | F88: 0 | G88: 0 | H88: 0 | I88: 0
A89: Ertelenmiş Gelirler | B89: 2632563 | C89: 2375355 | D89: 18794038 | E89: 5175662 | F89: 6553247 | G89: 11465500 | H89: 3515429 | I89: 2780358
A90: Cari Dönem Vergi Yükümlülüğü | B90: 5605240 | C90: 4627144 | D90: 5310340 | E90: 25544542 | F90: 8248356 | G90: 5643336 | H90: 4901035 | I90: 4719533
A91: Cari Dönem Vergisi ile İlgili Borçlar | B91: 0 | C91: 0 | D91: 0 | E91: 0 | F91: 0 | G91: 0 | H91: 0 | I91: 0
A92: Bloke Hesaplar | B92: 0 | C92: 0 | D92: 0 | E92: 0 | F92: 0 | G92: 0 | H92: 0 | I92: 0
A93: Müşteri Sözleşmelerinden Doğan Yükümlülükler | B93: 0 | C93: 0 | D93: 0 | E93: 0 | F93: 0 | G93: 0 | H93: 0 | I93: 0
A94: Özkaynak Yöntemiyle Değerlenen Yatırımlardan Yükümlülükler | B94: 0 | C94: 0 | D94: 0 | E94: 0 | F94: 0 | G94: 0 | H94: 0 | I94: 0
A95: Borç ve Gider Karşılıkları | B95: 4979028 | C95: 4864076 | D95: 4983297 | E95: 7355182 | F95: 15301165 | G95: 8355199 | H95: 8419499 | I95: 9548110
A96: Çalışanlara Sağlanan Faydalara İlişkin Karşılıklar | B96: 3965466 | C96: 4193625 | D96: 3982820 | E96: 2469035 | F96: 4248843 | G96: 4155258 | H96: 4841444 | I96: 1963795
A97: Ertelenen Vergi Yükümlülüğü | B97: 0 | C97: 0 | D97: 0 | E97: 0 | F97: 0 | G97: 0 | H97: 0 | I97: 0
A98: Durdurulan faaliyetler ile ilgili yükümlülükler | B98: 0 | C98: 0 | D98: 0 | E98: 0 | F98: 0 | G98: 0 | H98: 0 | I98: 0
A99: Diğer Kısa Vadeli Borçlar | B99: 0 | C99: 0 | D99: 0 | E99: 0 | F99: 0 | G99: 0 | H99: 0 | I99: 0
A100: İş Ortaklıklarının Kısa Vadeli Yükümlülükler İçindeki Payı | B100: 0 | C100: 0 | D100: 0 | E100: 0 | F100: 0 | G100: 0 | H100: 0 | I100: 0
A101: Elden Çıkarılacak Faaliyetler ile İlgili Yükümlülükler | B101: 0 | C101: 0 | D101: 0 | E101: 0 | F101: 0 | G101: 0 | H101: 0 | I101: 0
A102: Ortaklara Dağıtılmak Üzere Elde Tutulan Varlık Gruplarına İlişkin Yükümlülükler | B102: 0 | C102: 0 | D102: 0 | E102: 0 | F102: 0 | G102: 0 | H102: 0 | I102: 0
A103: UZUN VADELİ YÜKÜMLÜLÜKLER | B103: 21081215 | C103: 77108016 | D103: 67108776 | E103: 116091130 | F103: 108840935 | G103: 101411665 | H103: 26617745 | I103: 29012496
A104: Mevduatlar | B104: 0 | C104: 0 | D104: 0 | E104: 0 | F104: 0 | G104: 0 | H104: 0 | I104: 0
A105: Finansal Borçlar | B105: 0 | C105: 55648500 | D105: 45155000 | E105: 99112000 | F105: 92151029 | G105: 82592641 | H105: 7592641 | I105: 8255113
A106: Faktoring borçları | B106: 0 | C106: 0 | D106: 0 | E106: 0 | F106: 0 | G106: 0 | H106: 0 | I106: 0
A107: Finansal Kiralama İşlemlerinden Borçlar | B107: 0 | C107: 0 | D107: 0 | E107: 0 | F107: 0 | G107: 0 | H107: 0 | I107: 0
A108: Finans Sektörü Faaliyetlerinden Borçlar | B108: 0 | C108: 0 | D108: 0 | E108: 0 | F108: 0 | G108: 0 | H108: 0 | I108: 0
A109: Sigorta teknik karşılıkları | B109: 0 | C109: 0 | D109: 0 | E109: 0 | F109: 0 | G109: 0 | H109: 0 | I109: 0
A110: Diğer Finansal Yükümlülükler | B110: 0 | C110: 0 | D110: 0 | E110: 0 | F110: 0 | G110: 0 | H110: 0 | I110: 0
A111: Ticari Borçlar | B111: 0 | C111: 0 | D111: 0 | E111: 0 | F111: 0 | G111: 0 | H111: 0 | I111: 0
A112: İlişkili Taraflara Borçlar | B112: 0 | C112: 0 | D112: 0 | E112: 0 | F112: 0 | G112: 0 | H112: 0 | I112: 0
A113: Alınan Krediler | B113: 0 | C113: 0 | D113: 0 | E113: 0 | F113: 0 | G113: 0 | H113: 0 | I113: 0
A114: Diğer Borçlar | B114: 0 | C114: 0 | D114: 0 | E114: 0 | F114: 0 | G114: 0 | H114: 0 | I114: 0
A115: Müşteri Sözleşmelerinden Doğan Yükümlülükler | B115: 0 | C115: 0 | D115: 0 | E115: 0 | F115: 0 | G115: 0 | H115: 0 | I115: 0
A116: Bloke Hesaplar | B116: 0 | C116: 0 | D116: 0 | E116: 0 | F116: 0 | G116: 0 | H116: 0 | I116: 0
A117: Alınan Avanslar | B117: 0 | C117: 0 | D117: 0 | E117: 0 | F117: 0 | G117: 0 | H117: 0 | I117: 0
A118: Çalışanlara Sağlanan Faydalar Kapsamında Borçlar | B118: 0 | C118: 0 | D118: 0 | E118: 0 | F118: 0 | G118: 0 | H118: 0 | I118: 0
A119: Borç ve Gider Karşılıkları | B119: 15954321 | C119: 16518145 | D119: 17157001 | E119: 16760418 | F119: 16471194 | G119: 18600311 | H119: 18922180 | I119: 20684480
A120: Türev Finansal Araçlardan Borçlar | B120: 0 | C120: 0 | D120: 0 | E120: 0 | F120: 0 | G120: 0 | H120: 0 | I120: 0
A121: Cari Dönem Vergisiyle İlgili Borçlar | B121: 0 | C121: 0 | D121: 0 | E121: 0 | F121: 0 | G121: 0 | H121: 0 | I121: 0
A122: Ertelenen Vergi Yükümlülüğü | B122: 5126894 | C122: 4941371 | D122: 4796775 | E122: 0 | F122: 0 | G122: 0 | H122: 0 | I122: 0
A123: Devlet Teşvik ve Yardımları | B123: 0 | C123: 0 | D123: 0 | E123: 0 | F123: 0 | G123: 0 | H123: 0 | I123: 0
A124: Ertelenmiş Gelirler | B124: 0 | C124: 0 | D124: 0 | E124: 218712 | F124: 218712 | G124: 218713 | H124: 102924 | I124: 72903
A125: Devam Eden Sözleşmeler Hakediş Bedelleri | B125: 0 | C125: 0 | D125: 0 | E125: 0 | F125: 0 | G125: 0 | H125: 0 | I125: 0
A126: Pozitif/Negatif Şerefiye | B126: 0 | C126: 0 | D126: 0 | E126: 0 | F126: 0 | G126: 0 | H126: 0 | I126: 0
A127: Diğer Uzun Vadeli Borçlar | B127: 0 | C127: 0 | D127: 0 | E127: 0 | F127: 0 | G127: 0 | H127: 0 | I127: 0
A128: İş Ortaklıklarının Uzun Vadeli Yükümlülükler İçindeki Payı | B128: 0 | C128: 0 | D128: 0 | E128: 0 | F128: 0 | G128: 0 | H128: 0 | I128: 0
A129: ÖZ SERMAYE (AZINLIK PAYI DAHİL) | B129: 793511865 | C129: 793461157 | D129: 761858145 | E129: 1126492371 | F129: 874327246 | G129: 895967682 | H129: 907941928 | I129: 938415859
A130: ANA ORTAKLIK DIŞI ÖZSERMAYE | B130: 0 | C130: 0 | D130: 0 | E130: 0 | F130: 0 | G130: 0 | H130: 0 | I130: 0
A131: Aile Üyeleri | B131: 0 | C131: 0 | D131: 0 | E131: 0 | F131: 0 | G131: 0 | H131: 0 | I131: 0
A132: Diğerleri | B132: 0 | C132: 0 | D132: 0 | E132: 0 | F132: 0 | G132: 0 | H132: 0 | I132: 0
A133: ÖZ SERMAYE (ANA ORTAKLIĞA AİT) | B133: 793511865 | C133: 793461157 | D133: 761858145 | E133: 1126492371 | F133: 874327246 | G133: 895967682 | H133: 907941928 | I133: 938415859
A134: Sermaye | B134: 336182000 | C134: 336182000 | D134: 336182000 | E134: 336182000 | F134: 336182000 | G134: 336182000 | H134: 336182000 | I134: 336182000
A135: Ödenmeyen Sermaye(-) | B135: 0 | C135: 0 | D135: 0 | E135: 0 | F135: 0 | G135: 0 | H135: 0 | I135: 0
A136: Karşılıklı İştirak Sermaye Düzeltmesi | B136: 0 | C136: 0 | D136: 0 | E136: 0 | F136: 0 | G136: 0 | H136: 0 | I136: 0
A137: Paylara İlişkin Primler/İskontolar | B137: 0 | C137: 0 | D137: 0 | E137: 0 | F137: 0 | G137: 0 | H137: 0 | I137: 0
A138: İşletmenin Geri Satın Alınan Kendi Hisseleri | B138: 0 | C138: 0 | D138: 0 | E138: 0 | F138: -54515327 | G138: -38190738 | H138: -38190738 | I138: -38190738
A139: İşletmenin Geri Alınan Kendi Hisse Senetlerinin Satışından Doğan Kar | B139: 0 | C139: 0 | D139: 0 | E139: 0 | F139: 0 | G139: 0 | H139: 0 | I139: 0
A140: Sermaye Avansı | B140: 0 | C140: 0 | D140: 0 | E140: 0 | F140: 0 | G140: 0 | H140: 0 | I140: 0
A141: Kar veya Zararda Yeniden Sınıflandırılmayacak Birikmiş Diğer Kapsamlı Gel. veya Gid. | B141: -6406012 | C141: -6623738 | D141: -7113110 | E141: -4190768 | F141: -2720513 | G141: -3456929 | H141: -3456929 | I141: -3825712
A142: Kar veya Zararda Yeniden Sınıflandırılacak Birikmiş Diğer Kapsamlı Gelir. veya Gid. | B142: 93390120 | C142: 97377249 | D142: 85290702 | E142: 5380815 | F142: 0 | G142: 0 | H142: 0 | I142: 0
A143: Sermaye Yedekleri | B143: -3060762 | C143: -3340781 | D143: -3465791 | E143: -1716495 | F143: -246240 | G143: -367939 | H143: -367939 | I143: -500729
A144: Sermaye Taahhütleri (-) | B144: 0 | C144: 0 | D144: 0 | E144: 0 | F144: 0 | G144: 0 | H144: 0 | I144: 0
A145: Katkı sermaye | B145: 0 | C145: 0 | D145: 0 | E145: 0 | F145: 0 | G145: 0 | H145: 0 | I145: 0
A146: Azınlık Hisseleri Satış Opsiyonu Değerleme Fonu | B146: 0 | C146: 0 | D146: 0 | E146: 0 | F146: 0 | G146: 0 | H146: 0 | I146: 0
A147: Emisyon Primi | B147: 0 | C147: 0 | D147: 0 | E147: 0 | F147: 0 | G147: 0 | H147: 0 | I147: 0
A148: Yeniden Değerleme Artışı | B148: 89436446 | C148: 92780511 | D148: 78501438 | E148: -2474273 | F148: -2474273 | G148: -3088990 | H148: -3088990 | I148: -3324983
A149: Kar Yedekleri | B149: 0 | C149: 0 | D149: 0 | E149: 0 | F149: 0 | G149: 0 | H149: 0 | I149: 0
A150: Dağıtılmamış Kar | B150: 0 | C150: 0 | D150: 0 | E150: 0 | F150: 0 | G150: 0 | H150: 0 | I150: 0
A151: Sermaye artırımı ile ilgili masraflar | B151: 0 | C151: 0 | D151: 0 | E151: 0 | F151: 0 | G151: 0 | H151: 0 | I151: 0
A152: Nakit Akım Koruması ile İlgili Birikmiş Kar | B152: 0 | C152: 0 | D152: 0 | E152: 0 | F152: 0 | G152: 0 | H152: 0 | I152: 0
A153: Karşılıklı İştirak Serm. Düzeltmesinin Nom. Tut. Aşan Kısım | B153: 0 | C153: 0 | D153: 0 | E153: 0 | F153: 0 | G153: 0 | H153: 0 | I153: 0
A154: Finansal Yatırımlar Değer Artış Fonu | B154: 0 | C154: 0 | D154: 0 | E154: 0 | F154: 0 | G154: 0 | H154: 0 | I154: 0
A155: Diğer Özkaynak Payları | B155: 0 | C155: 0 | D155: 0 | E155: 0 | F155: 0 | G155: 0 | H155: 0 | I155: 0
A156: Diğer Yedekler | B156: 0 | C156: 0 | D156: 0 | E156: 0 | F156: 0 | G156: 0 | H156: 0 | I156: 0
A157: Net Dönem Karı | B157: 144077727 | C157: 130943887 | D157: 125972459 | E157: 483136386 | F157: 46910343 | G157: 63591737 | H157: 75565983 | I157: 106342303
A158: Dönem Zararı (-) | B158: 0 | C158: 0 | D158: 0 | E158: 0 | F158: 0 | G158: 0 | H158: 0 | I158: 0
A159: Geçmiş Yıl Karları | B159: 107591318 | C159: 103738501 | D159: 76864194 | E159: 151398096 | F159: 371648440 | G159: 361019309 | H159: 361019309 | I159: 361085704
A160: Net Dön. Kar. Ser. Hes. Ed. Tran. Ed. M. Dur. V. Sa. Karı | B160: 0 | C160: 0 | D160: 0 | E160: 0 | F160: 0 | G160: 0 | H160: 0 | I160: 0
A161: Geçmiş Yıl Zararları (-) | B161: 0 | C161: 0 | D161: 0 | E161: 0 | F161: 0 | G161: 0 | H161: 0 | I161: 0
A162: Yabancı Para Çevrim Farkları | B162: 608424 | C162: 1313781 | D162: 3141945 | E162: 5380815 | F162: 0 | G162: 0 | H162: 0 | I162: 0
A163: Kardan Ayrılan Kısıtlanmış Yedekler | B163: 118676712 | C163: 131843258 | D163: 144661900 | E163: 154585842 | F163: 176822303 | G163: 176822303 | H163: 176822303 | I163: 176822302
A164: Kardan Ayrılan Kısıtlanmış Yedekler (27) | B164: 0 | C164: 0 | D164: 0 | E164: 0 | F164: 0 | G164: 0 | H164: 0 | I164: 0
A165: Zarar Telafi Fonu | B165: 0 | C165: 0 | D165: 0 | E165: 0 | F165: 0 | G165: 0 | H165: 0 | I165: 0
A166: Özsermaye Enf. Düz. Farkları | B166: 0 | C166: 0 | D166: 0 | E166: 0 | F166: 0 | G166: 0 | H166: 0 | I166: 0
A167: Sermaye Birleşme Fonu | B167: 0 | C167: 0 | D167: 0 | E167: 0 | F167: 0 | G167: 0 | H167: 0 | I167: 0
A168: İlave Ödenmiş Sermaye | B168: 0 | C168: 0 | D168: 0 | E168: 0 | F168: 0 | G168: 0 | H168: 0 | I168: 0
A169: Birikmiş Karlar/Zararlar | B169: 0 | C169: 0 | D169: 0 | E169: 0 | F169: 0 | G169: 0 | H169: 0 | I169: 0
A170: Yatırım Teşvikleri | B170: 0 | C170: 0 | D170: 0 | E170: 0 | F170: 0 | G170: 0 | H170: 0 | I170: 0
A171: Satılmaya Haz. Var. Üz. Gerçekleşmemiş Net Gelir | B171: 0 | C171: 0 | D171: 0 | E171: 0 | F171: 0 | G171: 0 | H171: 0 | I171: 0
A172: Ana ortaklık hisse satış kar/zarar | B172: 0 | C172: 0 | D172: 0 | E172: 0 | F172: 0 | G172: 0 | H172: 0 | I172: 0
A173: AZINLIK PAYLARI | B173: 0 | C173: 0 | D173: 0 | E173: 0 | F173: 0 | G173: 0 | H173: 0 | I173: 0
A174: TOPLAM PASİFLER | B174: 882911781 | C174: 949433399 | D174: 1166984719 | E174: 1597923654 | F174: 1496930320 | G174: 1384792351 | H174: 1102944707 | I174: 1142156386
A176: GELİR TABLOSU | B176: 2015/12 | C176: 2016/12 | D176: 2017/12 | E176: 2018/12 | F176: 2019/03 | G176: 2019/06 | H176: 2019/09 | I176: 2019/12
A177: BRÜT SATIŞLAR | B177: 431754202 | C177: 390045507 | D177: 502341547 | E177: 701345840 | F177: 131597049 | G177: 304845711 | H177: 445721939 | I177: 606708725
A178: Yurtiçi Satışlar | B178: 339197760 | C178: 305461163 | D178: 361442881 | E178: 426807978 | F178: 70998885 | G178: 149685914 | H178: 227229706 | I178: 302729136
A179: Yurtdışı Satışlar | B179: 92556442 | C179: 84584344 | D179: 140898666 | E179: 274537862 | F179: 60598164 | G179: 155159797 | H179: 218492233 | I179: 303979589
A180: Diğer Satışlar | B180: 0 | C180: 0 | D180: 0 | E180: 0 | F180: 0 | G180: 0 | H180: 0 | I180: 0
A181: SATIŞLARDAN İNDİRİMLER (-) | B181: 3631716 | C181: 6056214 | D181: 16563397 | E181: 25971544 | F181: 4693287 | G181: 9313059 | H181: 13963424 | I181: 16640616
A182: Satışdan İadeler (-) | B182: 0 | C182: 0 | D182: 0 | E182: 0 | F182: 0 | G182: 0 | H182: 0 | I182: 184180
A183: Satış İskontoları (-) | B183: 0 | C183: 0 | D183: 0 | E183: 0 | F183: 0 | G183: 0 | H183: 0 | I183: 0
A184: Diğer İndirimler (-) | B184: 0 | C184: 6056214 | D184: 16563397 | E184: 0 | F184: 0 | G184: 9313059 | H184: 13963424 | I184: 16456436
A185: ESAS FAALİYET GELİRLERİ | B185: 0 | C185: 0 | D185: 0 | E185: 0 | F185: 0 | G185: 0 | H185: 0 | I185: 0
A186: SATIŞ GELİRLERİ | B186: 428122486 | C186: 383989293 | D186: 485778150 | E186: 675374296 | F186: 126903762 | G186: 295532652 | H186: 431758515 | I186: 590068109
A187: FAİZ GELİRİ | B187: 0 | C187: 0 | D187: 0 | E187: 0 | F187: 0 | G187: 0 | H187: 0 | I187: 0
A188: SATIŞLARIN MALİYETİ (-) | B188: 262467547 | C188: 244746839 | D188: 353056310 | E188: 485280856 | F188: 106461400 | G188: 229934568 | H188: 330376289 | I188: 445328201
A189: FAİZ GİDERİ | B189: 0 | C189: 0 | D189: 0 | E189: 0 | F189: 0 | G189: 0 | H189: 0 | I189: 0
A190: MUHTEMEL KREDİ ZARAR KARŞ. FİN.KİR. ALCK. KARŞ. VE FAKT. DEĞ. DÜŞ. KARŞ. | B190: 0 | C190: 0 | D190: 0 | E190: 0 | F190: 0 | G190: 0 | H190: 0 | I190: 0
A191: HİZMET GELİRLERİ | B191: 0 | C191: 0 | D191: 0 | E191: 0 | F191: 0 | G191: 0 | H191: 0 | I191: 0
A192: HİZMET GİDERLERİ (-) | B192: 0 | C192: 0 | D192: 0 | E192: 0 | F192: 0 | G192: 0 | H192: 0 | I192: 0
A193: KAMBİYO KARI/ZARARI | B193: 0 | C193: 0 | D193: 0 | E193: 0 | F193: 0 | G193: 0 | H193: 0 | I193: 0
A194: SERMAYE PİYASASI İŞLEM KARI/ZARARI | B194: 0 | C194: 0 | D194: 0 | E194: 0 | F194: 0 | G194: 0 | H194: 0 | I194: 0
A195: ESAS FAALİYETLERDEN DİĞER GİDER/GELİR | B195: 0 | C195: 0 | D195: 0 | E195: 0 | F195: 0 | G195: 0 | H195: 0 | I195: 0
A196: FAİZ, ÜCRET, PRİM, KOMİSYON VE DİĞER GELİRLER | B196: 0 | C196: 0 | D196: 0 | E196: 0 | F196: 0 | G196: 0 | H196: 0 | I196: 0
A197: Kambiyo Gelirleri | B197: 0 | C197: 0 | D197: 0 | E197: 0 | F197: 0 | G197: 0 | H197: 0 | I197: 0
A198: Faiz Gelirleri | B198: 0 | C198: 0 | D198: 0 | E198: 0 | F198: 0 | G198: 0 | H198: 0 | I198: 0
A199: Kar Payı Gelirleri | B199: 0 | C199: 0 | D199: 0 | E199: 0 | F199: 0 | G199: 0 | H199: 0 | I199: 0
A200: Türev Finansal İşlemlerden Kazanç | B200: 0 | C200: 0 | D200: 0 | E200: 0 | F200: 0 | G200: 0 | H200: 0 | I200: 0
A201: Portföy İşletmeciliği Faaliyetinden Elde Edilen Gelir | B201: 0 | C201: 0 | D201: 0 | E201: 0 | F201: 0 | G201: 0 | H201: 0 | I201: 0
... 91 more rows

Sheet ADEL
A1: ADEL | B1: ADEL | C1: ADEL | D1: ADEL | E1: ADEL | F1: ADEL | G1: ADEL | H1: ADEL | I1: ADEL
B2: 2015/12 | C2: 2016/12 | D2: 2017/12 | E2: 2018/12 | F2: 2019/03 | G2: 2019/06 | H2: 2019/09 | I2: 2019/12
A3: DÖNEN VARLIKLAR | B3: 263405572 | C3: 196786000 | D3: 241316000 | E3: 341287000 | F3: 360839000 | G3: 410580000 | H3: 435064000 | I3: 261640000
A4: Hazır Değerler | B4: 63113002 | C4: 11046000 | D4: 20327000 | E4: 59155000 | F4: 21025000 | G4: 18609000 | H4: 38206000 | I4: 13421000
A5: Gayrimenkul Projeleri Kapsamında Açılan Nakit Hesapları | B5: 0 | C5: 0 | D5: 0 | E5: 0 | F5: 0 | G5: 0 | H5: 0 | I5: 0
A6: Finansal Yatırımlar | B6: 0 | C6: 0 | D6: 0 | E6: 0 | F6: 0 | G6: 0 | H6: 0 | I6: 0
A7: Menkul Kıymetler | B7: 0 | C7: 0 | D7: 0 | E7: 0 | F7: 0 | G7: 0 | H7: 0 | I7: 0
A8: Türkiye Cumhuriyet Merkez Bankası Hesabı | B8: 0 | C8: 0 | D8: 0 | E8: 0 | F8: 0 | G8: 0 | H8: 0 | I8: 0
A9: Krediler ve Avanslar | B9: 0 | C9: 0 | D9: 0 | E9: 0 | F9: 0 | G9: 0 | H9: 0 | I9: 0
A10: Faktoring alacakları (net) | B10: 0 | C10: 0 | D10: 0 | E10: 0 | F10: 0 | G10: 0 | H10: 0 | I10: 0
A11: Teminata Verilen Finansal Varlıklar | B11: 0 | C11: 0 | D11: 0 | E11: 0 | F11: 0 | G11: 0 | H11: 0 | I11: 0
A12: Kısa Vadeli Ticari Alacaklar | B12: 41615133 | C12: 52923000 | D12: 75111000 | E12: 77794000 | F12: 127001000 | G12: 182631000 | H12: 217924000 | I12: 82018000
A13: Finansal Kiralama Alacakları | B13: 0 | C13: 0 | D13: 0 | E13: 0 | F13: 0 | G13: 0 | H13: 0 | I13: 0
A14: Finans Sektörü Faal. Alacaklar | B14: 0 | C14: 0 | D14: 0 | E14: 0 | F14: 0 | G14: 0 | H14: 0 | I14: 0
A15: İlişkili Taraflardan Alacaklar | B15: 0 | C15: 0 | D15: 0 | E15: 0 | F15: 0 | G15: 0 | H15: 0 | I15: 0
A16: Diğer Kısa Vadeli Alacaklar | B16: 768932 | C16: 799000 | D16: 1316000 | E16: 1817000 | F16: 1594000 | G16: 1435000 | H16: 628000 | I16: 453000
A17: Canlı Varlıklar | B17: 0 | C17: 0 | D17: 0 | E17: 0 | F17: 0 | G17: 0 | H17: 0 | I17: 0
A18: Kullanımı Kısıtlı Banka Bakiyeleri | B18: 0 | C18: 0 | D18: 0 | E18: 0 | F18: 0 | G18: 0 | H18: 0 | I18: 0
A19: Stoklar | B19: 120244108 | C19: 107830000 | D19: 113113000 | E19: 158379000 | F19: 155046000 | G19: 181310000 | H19: 160696000 | I19: 137387000
A20: Peşin Ödenen Kira Giderleri | B20: 0 | C20: 0 | D20: 0 | E20: 0 | F20: 0 | G20: 0 | H20: 0 | I20: 0
A21: Müşteri Sözleşmelerinden Doğan Varlıklar | B21: 0 | C21: 0 | D21: 0 | E21: 0 | F21: 0 | G21: 0 | H21: 0 | I21: 0
A22: İmtiyaz Sözleşmelerine İlişkin Finansal Varlıklar | B22: 0 | C22: 0 | D22: 0 | E22: 0 | F22: 0 | G22: 0 | H22: 0 | I22: 0
A23: Türev Enstrümanlar | B23: 0 | C23: 0 | D23: 0 | E23: 0 | F23: 0 | G23: 0 | H23: 0 | I23: 1369000
A24: Ertelenen Vergi Varlıkları | B24: 0 | C24: 0 | D24: 0 | E24: 0 | F24: 0 | G24: 0 | H24: 0 | I24: 0
A25: Durdurulan faaliyetler ile ilgili varlıklar | B25: 0 | C25: 0 | D25: 0 | E25: 0 | F25: 0 | G25: 0 | H25: 0 | I25: 0
A26: Ertelenmiş Sigortacılık Üretim Giderleri | B26: 0 | C26: 0 | D26: 0 | E26: 0 | F26: 0 | G26: 0 | H26: 0 | I26: 0
A27: Peşin Ödenmiş Giderler | B27: 362828 | C27: 592000 | D27: 958000 | E27: 1127000 | F27: 5284000 | G27: 3790000 | H27: 2983000 | I27: 1310000
A28: Cari Dönem Vergisiyle İlgili Varlıklar | B28: 9561802 | C28: 9260000 | D28: 10891000 | E28: 16543000 | F28: 12458000 | G28: 0 | H28: 0 | I28: 9957000
A29: Nakit Dışı Serbest Kullanılabilir Teminatlar | B29: 0 | C29: 0 | D29: 0 | E29: 0 | F29: 0 | G29: 0 | H29: 0 | I29: 0
A30: Diğer Dönen Varlıklar | B30: 27739767 | C30: 14336000 | D30: 19600000 | E30: 26472000 | F30: 38431000 | G30: 22805000 | H30: 14627000 | I30: 15725000
A31: Vadesine kadar elde tut. men. kıy. | B31: 0 | C31: 0 | D31: 0 | E31: 0 | F31: 0 | G31: 0 | H31: 0 | I31: 0
A32: Satılmaya Hazır Finansal Varlıklar | B32: 0 | C32: 0 | D32: 0 | E32: 0 | F32: 0 | G32: 0 | H32: 0 | I32: 0
A33: Alım Satım Amaçlı Menkul Kıymetler | B33: 0 | C33: 0 | D33: 0 | E33: 0 | F33: 0 | G33: 0 | H33: 0 | I33: 0
A34: İş Ortaklıklarının Dönen Varlıklar İçindeki Payı | B34: 0 | C34: 0 | D34: 0 | E34: 0 | F34: 0 | G34: 0 | H34: 0 | I34: 0
A35: Elden Çıkarılacak Faaliyetler ile İlgili Varlıklar | B35: 0 | C35: 0 | D35: 0 | E35: 0 | F35: 0 | G35: 0 | H35: 0 | I35: 0
A36: Satım amaçlı elde tutulan maddi duran varlıklar | B36: 0 | C36: 0 | D36: 0 | E36: 0 | F36: 0 | G36: 0 | H36: 0 | I36: 0
A37: Ortaklara Dağıtılmak Üzere Elde Tutulan Duran Varlıklar | B37: 0 | C37: 0 | D37: 0 | E37: 0 | F37: 0 | G37: 0 | H37: 0 | I37: 0
A38: DURAN VARLIKLAR | B38: 116350523 | C38: 114645000 | D38: 114928000 | E38: 124745000 | F38: 128457000 | G38: 125764000 | H38: 132664000 | I38: 127881000
A39: Menkul Kıymetler | B39: 0 | C39: 0 | D39: 0 | E39: 0 | F39: 0 | G39: 0 | H39: 0 | I39: 0
A40: Krediler ve Avanslar | B40: 0 | C40: 0 | D40: 0 | E40: 0 | F40: 0 | G40: 0 | H40: 0 | I40: 0
A41: Faktoring alacakları (net) | B41: 0 | C41: 0 | D41: 0 | E41: 0 | F41: 0 | G41: 0 | H41: 0 | I41: 0
A42: Uzun Vadeli Ticari Alacaklar | B42: 0 | C42: 0 | D42: 0 | E42: 0 | F42: 0 | G42: 0 | H42: 0 | I42: 0
A43: Finansal Kiralama Alacakları | B43: 0 | C43: 0 | D43: 0 | E43: 0 | F43: 0 | G43: 0 | H43: 0 | I43: 0
A44: Finans Sektörü Faal. Alacaklar | B44: 0 | C44: 0 | D44: 0 | E44: 0 | F44: 0 | G44: 0 | H44: 0 | I44: 0
A45: İlişkili Taraflardan Alacaklar | B45: 0 | C45: 0 | D45: 0 | E45: 0 | F45: 0 | G45: 0 | H45: 0 | I45: 0
A46: Türev Enstrümanlar | B46: 0 | C46: 0 | D46: 0 | E46: 0 | F46: 0 | G46: 0 | H46: 0 | I46: 0
A47: Diğer Uzun Vadeli Alacaklar | B47: 0 | C47: 0 | D47: 0 | E47: 0 | F47: 0 | G47: 0 | H47: 0 | I47: 0
A48: Finansal Yatırımlar | B48: 233985 | C48: 234000 | D48: 234000 | E48: 234000 | F48: 234000 | G48: 234000 | H48: 234000 | I48: 234000
A49: Özkaynak Yöntemiyle Değerlenen Yatırımlar | B49: 0 | C49: 1294000 | D49: 667000 | E49: 0 | F49: 0 | G49: 1520000 | H49: 757000 | I49: 0
A50: Canlı Varlıklar | B50: 0 | C50: 0 | D50: 0 | E50: 0 | F50: 0 | G50: 0 | H50: 0 | I50: 0
A51: İmtiyaz Sözleşmelerine İlişkin Finansal Varlıklar | B51: 0 | C51: 0 | D51: 0 | E51: 0 | F51: 0 | G51: 0 | H51: 0 | I51: 0
A52: Stoklar | B52: 0 | C52: 0 | D52: 0 | E52: 0 | F52: 0 | G52: 0 | H52: 0 | I52: 0
A53: Finansal Duran Varlıklar | B53: 0 | C53: 0 | D53: 0 | E53: 0 | F53: 0 | G53: 0 | H53: 0 | I53: 0
A54: Pozitif/Negatif Şerefiye | B54: 0 | C54: 0 | D54: 0 | E54: 0 | F54: 0 | G54: 0 | H54: 0 | I54: 0
A55: Yatırım Amaçlı Gayrimenkuller | B55: 0 | C55: 0 | D55: 0 | E55: 0 | F55: 0 | G55: 0 | H55: 0 | I55: 0
A56: Proje Halindeki Yatırım Amaçlı Gayrimenkuller | B56: 0 | C56: 0 | D56: 0 | E56: 0 | F56: 0 | G56: 0 | H56: 0 | I56: 0
A57: Alım Satım Amaçlı Gayrimenkuller (net) | B57: 0 | C57: 0 | D57: 0 | E57: 0 | F57: 0 | G57: 0 | H57: 0 | I57: 0
A58: Maddi Duran Varlıklar | B58: 110536560 | C58: 107899000 | D58: 109575000 | E58: 111082000 | F58: 110098000 | G58: 108783000 | H58: 107753000 | I58: 105340000
A59: Kullanım Hakkı Varlıkları | B59: 0 | C59: 0 | D59: 0 | E59: 0 | F59: 3503000 | G59: 337000 | H59: 7110000 | I59: 6904000
A60: Maddi Olmayan Duran Varlıklar | B60: 3965439 | C60: 4172000 | D60: 3122000 | E60: 6860000 | F60: 6677000 | G60: 6568000 | H60: 6662000 | I60: 8273000
A61: Müşteri Sözleşmelerinden Doğan Varlıklar | B61: 0 | C61: 0 | D61: 0 | E61: 0 | F61: 0 | G61: 0 | H61: 0 | I61: 0
A62: Ertelenen Vergi Varlıkları | B62: 1443779 | C62: 598000 | D62: 508000 | E62: 4135000 | F62: 5190000 | G62: 6308000 | H62: 8561000 | I62: 4651000
A63: Cari Dönem Vergisiyle İlgili Duran Varlıklar | B63: 0 | C63: 0 | D63: 0 | E63: 0 | F63: 0 | G63: 0 | H63: 0 | I63: 0
A64: Nakit Dışı Serbest Kullanılabilir Teminatlar | B64: 0 | C64: 0 | D64: 0 | E64: 0 | F64: 0 | G64: 0 | H64: 0 | I64: 0
A65: Peşin Ödenen Kira Giderleri | B65: 0 | C65: 0 | D65: 0 | E65: 0 | F65: 0 | G65: 0 | H65: 0 | I65: 0
A66: Peşin Ödenmiş Giderler | B66: 116268 | C66: 386000 | D66: 822000 | E66: 2427000 | F66: 1901000 | G66: 1755000 | H66: 1517000 | I66: 2408000
A67: Diğer Duran Varlıklar | B67: 54492 | C67: 62000 | D67: 0 | E67: 7000 | F67: 854000 | G67: 259000 | H67: 70000 | I67: 71000
A68: Vadesine kadar elde tut. men. kıy. | B68: 0 | C68: 0 | D68: 0 | E68: 0 | F68: 0 | G68: 0 | H68: 0 | I68: 0
A69: Satılmaya Hazır Finansal Varlıklar | B69: 0 | C69: 0 | D69: 0 | E69: 0 | F69: 0 | G69: 0 | H69: 0 | I69: 0
A70: İş Ortaklıklarının Duran Varlıklar İçindeki Payı | B70: 0 | C70: 0 | D70: 0 | E70: 0 | F70: 0 | G70: 0 | H70: 0 | I70: 0
A71: Ana Ortaklık Dışı Paylar | B71: 0 | C71: 0 | D71: 0 | E71: 0 | F71: 0 | G71: 0 | H71: 0 | I71: 0
A72: TOPLAM AKTİFLER | B72: 379756095 | C72: 311431000 | D72: 356244000 | E72: 466032000 | F72: 489296000 | G72: 536344000 | H72: 567728000 | I72: 389521000
A73: KISA VADELİ YÜKÜMLÜLÜKLER | B73: 168014498 | C73: 85549000 | D73: 129331000 | E73: 266216000 | F73: 260077000 | G73: 332589000 | H73: 357896000 | I73: 166702000
A74: Finansal Borçlar | B74: 139647645 | C74: 54480000 | D74: 77939000 | E74: 205390000 | F74: 207973000 | G74: 265958000 | H74: 305386000 | I74: 118687000
A75: Uzun Vadeli Finansal Borçların Kısa Vadeli Kısımları | B75: 0 | C75: 7921000 | D75: 8978000 | E75: 10083000 | F75: 12500000 | G75: 10092000 | H75: 9315000 | I75: 7241000
A76: Mevduat | B76: 0 | C76: 0 | D76: 0 | E76: 0 | F76: 0 | G76: 0 | H76: 0 | I76: 0
A77: Türev Araçlar | B77: 0 | C77: 0 | D77: 0 | E77: 11205000 | F77: 1696000 | G77: 301000 | H77: 247000 | I77: 0
A78: Faktoring borçları | B78: 0 | C78: 0 | D78: 0 | E78: 0 | F78: 0 | G78: 0 | H78: 0 | I78: 0
A79: Finansal Kiralama İşlemlerinden Borçlar | B79: 0 | C79: 0 | D79: 0 | E79: 0 | F79: 0 | G79: 0 | H79: 0 | I79: 0
A80: Finans Sektörü Faaliyetlerinden Borçlar | B80: 0 | C80: 0 | D80: 0 | E80: 0 | F80: 0 | G80: 0 | H80: 0 | I80: 0
A81: Sigorta Teknik Karşılığı | B81: 0 | C81: 0 | D81: 0 | E81: 0 | F81: 0 | G81: 0 | H81: 0 | I81: 0
A82: Diğer Finansal Yükümlülükler | B82: 0 | C82: 0 | D82: 0 | E82: 0 | F82: 0 | G82: 0 | H82: 0 | I82: 0
A83: Ticari Borçlar | B83: 18487275 | C83: 12708000 | D83: 26210000 | E83: 24115000 | F83: 23097000 | G83: 21467000 | H83: 21952000 | I83: 22331000
A84: İlişkili Taraflara Borçlar | B84: 0 | C84: 0 | D84: 0 | E84: 0 | F84: 0 | G84: 0 | H84: 0 | I84: 0
A85: Alınan Krediler | B85: 0 | C85: 0 | D85: 0 | E85: 0 | F85: 0 | G85: 0 | H85: 0 | I85: 0
A86: Diğer Borçlar | B86: 3393194 | C86: 4441000 | D86: 3624000 | E86: 3419000 | F86: 2177000 | G86: 21790000 | H86: 7127000 | I86: 915000
A87: Alınan Avanslar | B87: 0 | C87: 0 | D87: 0 | E87: 0 | F87: 0 | G87: 0 | H87: 0 | I87: 0
A88: Devlet Teşvik ve Yardımları | B88: 0 | C88: 0 | D88: 0 | E88: 0 | F88: 0 | G88: 0 | H88: 0 | I88: 0
A89: Ertelenmiş Gelirler | B89: 0 | C89: 0 | D89: 0 | E89: 0 | F89: 0 | G89: 0 | H89: 0 | I89: 0
A90: Cari Dönem Vergi Yükümlülüğü | B90: 0 | C90: 0 | D90: 0 | E90: 0 | F90: 0 | G90: 1981000 | H90: 3440000 | I90: 0
A91: Cari Dönem Vergisi ile İlgili Borçlar | B91: 0 | C91: 0 | D91: 0 | E91: 0 | F91: 0 | G91: 0 | H91: 0 | I91: 0
A92: Bloke Hesaplar | B92: 0 | C92: 0 | D92: 0 | E92: 0 | F92: 0 | G92: 0 | H92: 0 | I92: 0
A93: Müşteri Sözleşmelerinden Doğan Yükümlülükler | B93: 0 | C93: 0 | D93: 0 | E93: 0 | F93: 0 | G93: 0 | H93: 0 | I93: 0
A94: Özkaynak Yöntemiyle Değerlenen Yatırımlardan Yükümlülükler | B94: 0 | C94: 0 | D94: 0 | E94: 0 | F94: 0 | G94: 0 | H94: 0 | I94: 0
A95: Borç ve Gider Karşılıkları | B95: 1740149 | C95: 1845000 | D95: 1823000 | E95: 3394000 | F95: 4265000 | G95: 5148000 | H95: 5752000 | I95: 2978000
A96: Çalışanlara Sağlanan Faydalara İlişkin Karşılıklar | B96: 552477 | C96: 4154000 | D96: 4568000 | E96: 6215000 | F96: 4659000 | G96: 4336000 | H96: 3292000 | I96: 4502000
A97: Ertelenen Vergi Yükümlülüğü | B97: 0 | C97: 0 | D97: 0 | E97: 0 | F97: 0 | G97: 0 | H97: 0 | I97: 0
A98: Durdurulan faaliyetler ile ilgili yükümlülükler | B98: 0 | C98: 0 | D98: 0 | E98: 0 | F98: 0 | G98: 0 | H98: 0 | I98: 0
A99: Diğer Kısa Vadeli Borçlar | B99: 4193758 | C99: 0 | D99: 6189000 | E99: 2395000 | F99: 3710000 | G99: 1516000 | H99: 1385000 | I99: 10048000
A100: İş Ortaklıklarının Kısa Vadeli Yükümlülükler İçindeki Payı | B100: 0 | C100: 0 | D100: 0 | E100: 0 | F100: 0 | G100: 0 | H100: 0 | I100: 0
A101: Elden Çıkarılacak Faaliyetler ile İlgili Yükümlülükler | B101: 0 | C101: 0 | D101: 0 | E101: 0 | F101: 0 | G101: 0 | H101: 0 | I101: 0
A102: Ortaklara Dağıtılmak Üzere Elde Tutulan Varlık Gruplarına İlişkin Yükümlülükler | B102: 0 | C102: 0 | D102: 0 | E102: 0 | F102: 0 | G102: 0 | H102: 0 | I102: 0
A103: UZUN VADELİ YÜKÜMLÜLÜKLER | B103: 5994980 | C103: 30391000 | D103: 21514000 | E103: 11035000 | F103: 29929000 | G103: 27592000 | H103: 28918000 | I103: 59600000
A104: Mevduatlar | B104: 0 | C104: 0 | D104: 0 | E104: 0 | F104: 0 | G104: 0 | H104: 0 | I104: 0
A105: Finansal Borçlar | B105: 0 | C105: 23787000 | D105: 14809000 | E105: 4668000 | F105: 23408000 | G105: 20063000 | H105: 21527000 | I105: 51042000
A106: Faktoring borçları | B106: 0 | C106: 0 | D106: 0 | E106: 0 | F106: 0 | G106: 0 | H106: 0 | I106: 0
A107: Finansal Kiralama İşlemlerinden Borçlar | B107: 0 | C107: 0 | D107: 0 | E107: 0 | F107: 0 | G107: 0 | H107: 0 | I107: 0
A108: Finans Sektörü Faaliyetlerinden Borçlar | B108: 0 | C108: 0 | D108: 0 | E108: 0 | F108: 0 | G108: 0 | H108: 0 | I108: 0
A109: Sigorta teknik karşılıkları | B109: 0 | C109: 0 | D109: 0 | E109: 0 | F109: 0 | G109: 0 | H109: 0 | I109: 0
A110: Diğer Finansal Yükümlülükler | B110: 0 | C110: 0 | D110: 0 | E110: 0 | F110: 0 | G110: 0 | H110: 0 | I110: 0
A111: Ticari Borçlar | B111: 0 | C111: 0 | D111: 0 | E111: 0 | F111: 0 | G111: 0 | H111: 0 | I111: 0
A112: İlişkili Taraflara Borçlar | B112: 0 | C112: 0 | D112: 0 | E112: 0 | F112: 0 | G112: 0 | H112: 0 | I112: 0
A113: Alınan Krediler | B113: 0 | C113: 0 | D113: 0 | E113: 0 | F113: 0 | G113: 0 | H113: 0 | I113: 0
A114: Diğer Borçlar | B114: 0 | C114: 0 | D114: 0 | E114: 0 | F114: 0 | G114: 0 | H114: 0 | I114: 0
A115: Müşteri Sözleşmelerinden Doğan Yükümlülükler | B115: 0 | C115: 0 | D115: 0 | E115: 0 | F115: 0 | G115: 0 | H115: 0 | I115: 0
A116: Bloke Hesaplar | B116: 0 | C116: 0 | D116: 0 | E116: 0 | F116: 0 | G116: 0 | H116: 0 | I116: 0
A117: Alınan Avanslar | B117: 0 | C117: 0 | D117: 0 | E117: 0 | F117: 0 | G117: 0 | H117: 0 | I117: 0
A118: Çalışanlara Sağlanan Faydalar Kapsamında Borçlar | B118: 0 | C118: 0 | D118: 0 | E118: 0 | F118: 0 | G118: 0 | H118: 0 | I118: 0
A119: Borç ve Gider Karşılıkları | B119: 5994980 | C119: 6604000 | D119: 6705000 | E119: 6367000 | F119: 6521000 | G119: 7529000 | H119: 7391000 | I119: 8558000
A120: Türev Finansal Araçlardan Borçlar | B120: 0 | C120: 0 | D120: 0 | E120: 0 | F120: 0 | G120: 0 | H120: 0 | I120: 0
A121: Cari Dönem Vergisiyle İlgili Borçlar | B121: 0 | C121: 0 | D121: 0 | E121: 0 | F121: 0 | G121: 0 | H121: 0 | I121: 0
A122: Ertelenen Vergi Yükümlülüğü | B122: 0 | C122: 0 | D122: 0 | E122: 0 | F122: 0 | G122: 0 | H122: 0 | I122: 0
A123: Devlet Teşvik ve Yardımları | B123: 0 | C123: 0 | D123: 0 | E123: 0 | F123: 0 | G123: 0 | H123: 0 | I123: 0
A124: Ertelenmiş Gelirler | B124: 0 | C124: 0 | D124: 0 | E124: 0 | F124: 0 | G124: 0 | H124: 0 | I124: 0
A125: Devam Eden Sözleşmeler Hakediş Bedelleri | B125: 0 | C125: 0 | D125: 0 | E125: 0 | F125: 0 | G125: 0 | H125: 0 | I125: 0
A126: Pozitif/Negatif Şerefiye | B126: 0 | C126: 0 | D126: 0 | E126: 0 | F126: 0 | G126: 0 | H126: 0 | I126: 0
A127: Diğer Uzun Vadeli Borçlar | B127: 0 | C127: 0 | D127: 0 | E127: 0 | F127: 0 | G127: 0 | H127: 0 | I127: 0
A128: İş Ortaklıklarının Uzun Vadeli Yükümlülükler İçindeki Payı | B128: 0 | C128: 0 | D128: 0 | E128: 0 | F128: 0 | G128: 0 | H128: 0 | I128: 0
A129: ÖZ SERMAYE (AZINLIK PAYI DAHİL) | B129: 205746617 | C129: 195491000 | D129: 205399000 | E129: 188781000 | F129: 199290000 | G129: 176163000 | H129: 180914000 | I129: 163219000
A130: ANA ORTAKLIK DIŞI ÖZSERMAYE | B130: 0 | C130: 0 | D130: 0 | E130: 0 | F130: 0 | G130: 0 | H130: 0 | I130: 0
A131: Aile Üyeleri | B131: 0 | C131: 0 | D131: 0 | E131: 0 | F131: 0 | G131: 0 | H131: 0 | I131: 0
A132: Diğerleri | B132: 0 | C132: 0 | D132: 0 | E132: 0 | F132: 0 | G132: 0 | H132: 0 | I132: 0
A133: ÖZ SERMAYE (ANA ORTAKLIĞA AİT) | B133: 205746617 | C133: 195491000 | D133: 205399000 | E133: 188781000 | F133: 199290000 | G133: 176163000 | H133: 180914000 | I133: 163219000
A134: Sermaye | B134: 7875000 | C134: 23625000 | D134: 23625000 | E134: 23625000 | F134: 23625000 | G134: 23625000 | H134: 23625000 | I134: 23625000
A135: Ödenmeyen Sermaye(-) | B135: 0 | C135: 0 | D135: 0 | E135: 0 | F135: 0 | G135: 0 | H135: 0 | I135: 0
A136: Karşılıklı İştirak Sermaye Düzeltmesi | B136: 0 | C136: 0 | D136: 0 | E136: 0 | F136: 0 | G136: 0 | H136: 0 | I136: 0
A137: Paylara İlişkin Primler/İskontolar | B137: 0 | C137: 0 | D137: 0 | E137: 0 | F137: 0 | G137: 0 | H137: 0 | I137: 0
A138: İşletmenin Geri Satın Alınan Kendi Hisseleri | B138: 0 | C138: 0 | D138: 0 | E138: 0 | F138: 0 | G138: 0 | H138: 0 | I138: 0
A139: İşletmenin Geri Alınan Kendi Hisse Senetlerinin Satışından Doğan Kar | B139: 0 | C139: 0 | D139: 0 | E139: 0 | F139: 0 | G139: 0 | H139: 0 | I139: 0
A140: Sermaye Avansı | B140: 0 | C140: 0 | D140: 0 | E140: 0 | F140: 0 | G140: 0 | H140: 0 | I140: 0
A141: Kar veya Zararda Yeniden Sınıflandırılmayacak Birikmiş Diğer Kapsamlı Gel. veya Gid. | B141: -775394 | C141: -1017000 | D141: -1076000 | E141: -870000 | F141: -1077000 | G141: -1216000 | H141: -1354000 | I141: -1009000
A142: Kar veya Zararda Yeniden Sınıflandırılacak Birikmiş Diğer Kapsamlı Gelir. veya Gid. | B142: -1906955 | C142: -774000 | D142: -667000 | E142: -9321000 | F142: -1904000 | G142: -1618000 | H142: -1352000 | I142: -61000
A143: Sermaye Yedekleri | B143: 0 | C143: 0 | D143: 0 | E143: 0 | F143: 0 | G143: 0 | H143: 0 | I143: 0
A144: Sermaye Taahhütleri (-) | B144: 0 | C144: 0 | D144: 0 | E144: 0 | F144: 0 | G144: 0 | H144: 0 | I144: 0
A145: Katkı sermaye | B145: 0 | C145: 0 | D145: 0 | E145: 0 | F145: 0 | G145: 0 | H145: 0 | I145: 0
A146: Azınlık Hisseleri Satış Opsiyonu Değerleme Fonu | B146: 0 | C146: 0 | D146: 0 | E146: 0 | F146: 0 | G146: 0 | H146: 0 | I146: 0
A147: Emisyon Primi | B147: 0 | C147: 0 | D147: 0 | E147: 0 | F147: 0 | G147: 0 | H147: 0 | I147: 0
A148: Yeniden Değerleme Artışı | B148: -775394 | C148: -1017000 | D148: -1076000 | E148: -870000 | F148: -1077000 | G148: -1216000 | H148: -1354000 | I148: -1009000
A149: Kar Yedekleri | B149: 0 | C149: 0 | D149: 0 | E149: -8740000 | F149: -1323000 | G149: -235000 | H149: -192000 | I149: 1068000
A150: Dağıtılmamış Kar | B150: 0 | C150: 0 | D150: 0 | E150: 0 | F150: 0 | G150: 0 | H150: 0 | I150: 0
A151: Sermaye artırımı ile ilgili masraflar | B151: 0 | C151: 0 | D151: 0 | E151: 0 | F151: 0 | G151: 0 | H151: 0 | I151: 0
A152: Nakit Akım Koruması ile İlgili Birikmiş Kar | B152: 0 | C152: 0 | D152: 0 | E152: 0 | F152: 0 | G152: 0 | H152: 0 | I152: 0
A153: Karşılıklı İştirak Serm. Düzeltmesinin Nom. Tut. Aşan Kısım | B153: 0 | C153: 0 | D153: 0 | E153: 0 | F153: 0 | G153: 0 | H153: 0 | I153: 0
A154: Finansal Yatırımlar Değer Artış Fonu | B154: 0 | C154: 0 | D154: 0 | E154: 0 | F154: 0 | G154: 0 | H154: 0 | I154: 0
A155: Diğer Özkaynak Payları | B155: 0 | C155: 0 | D155: 0 | E155: 0 | F155: 0 | G155: 0 | H155: 0 | I155: 0
A156: Diğer Yedekler | B156: 0 | C156: 0 | D156: 0 | E156: 0 | F156: 0 | G156: 0 | H156: 0 | I156: 0
A157: Net Dönem Karı | B157: 71501290 | C157: 18857000 | D157: 26870000 | E157: 13830000 | F157: 3299000 | G157: 36000 | H157: 4658000 | I157: 0
A158: Dönem Zararı (-) | B158: 0 | C158: 0 | D158: 0 | E158: 0 | F158: 0 | G158: 0 | H158: 0 | I158: 14673000
A159: Geçmiş Yıl Karları | B159: 76680968 | C159: 68886000 | D159: 69150000 | E159: 93523000 | F159: 107353000 | G159: 87342000 | H159: 85460000 | I159: 85460000
A160: Net Dön. Kar. Ser. Hes. Ed. Tran. Ed. M. Dur. V. Sa. Karı | B160: 0 | C160: 0 | D160: 0 | E160: 0 | F160: 0 | G160: 0 | H160: 0 | I160: 0
A161: Geçmiş Yıl Zararları (-) | B161: 0 | C161: 0 | D161: 0 | E161: 0 | F161: 0 | G161: 0 | H161: 0 | I161: 0
A162: Yabancı Para Çevrim Farkları | B162: -1906955 | C162: -774000 | D162: -667000 | E162: -581000 | F162: -581000 | G162: -1383000 | H162: -1160000 | I162: -1129000
A163: Kardan Ayrılan Kısıtlanmış Yedekler | B163: 38996723 | C163: 84330000 | D163: 85913000 | E163: 66410000 | F163: 66410000 | G163: 66410000 | H163: 68293000 | I163: 68293000
A164: Kardan Ayrılan Kısıtlanmış Yedekler (27) | B164: 0 | C164: 0 | D164: 0 | E164: 0 | F164: 0 | G164: 0 | H164: 0 | I164: 0
A165: Zarar Telafi Fonu | B165: 0 | C165: 0 | D165: 0 | E165: 0 | F165: 0 | G165: 0 | H165: 0 | I165: 0
A166: Özsermaye Enf. Düz. Farkları | B166: 13374985 | C166: 1584000 | D166: 1584000 | E166: 1584000 | F166: 1584000 | G166: 1584000 | H166: 1584000 | I166: 1584000
A167: Sermaye Birleşme Fonu | B167: 0 | C167: 0 | D167: 0 | E167: 0 | F167: 0 | G167: 0 | H167: 0 | I167: 0
A168: İlave Ödenmiş Sermaye | B168: 0 | C168: 0 | D168: 0 | E168: 0 | F168: 0 | G168: 0 | H168: 0 | I168: 0
A169: Birikmiş Karlar/Zararlar | B169: 0 | C169: 0 | D169: 0 | E169: 0 | F169: 0 | G169: 0 | H169: 0 | I169: 0
A170: Yatırım Teşvikleri | B170: 0 | C170: 0 | D170: 0 | E170: 0 | F170: 0 | G170: 0 | H170: 0 | I170: 0
A171: Satılmaya Haz. Var. Üz. Gerçekleşmemiş Net Gelir | B171: 0 | C171: 0 | D171: 0 | E171: 0 | F171: 0 | G171: 0 | H171: 0 | I171: 0
A172: Ana ortaklık hisse satış kar/zarar | B172: 0 | C172: 0 | D172: 0 | E172: 0 | F172: 0 | G172: 0 | H172: 0 | I172: 0
A173: AZINLIK PAYLARI | B173: 0 | C173: 0 | D173: 0 | E173: 0 | F173: 0 | G173: 0 | H173: 0 | I173: 0
A174: TOPLAM PASİFLER | B174: 379756095 | C174: 311431000 | D174: 356244000 | E174: 466032000 | F174: 489296000 | G174: 536344000 | H174: 567728000 | I174: 389521000
A176: GELİR TABLOSU | B176: 2015/12 | C176: 2016/12 | D176: 2017/12 | E176: 2018/12 | F176: 2019/03 | G176: 2019/06 | H176: 2019/09 | I176: 2019/12
A177: BRÜT SATIŞLAR | B177: 318651318 | C177: 344139000 | D177: 404805000 | E177: 487655000 | F177: 147513000 | G177: 254123000 | H177: 386035000 | I177: 457040000
A178: Yurtiçi Satışlar | B178: 305577325 | C178: 330089000 | D178: 385646000 | E178: 456783000 | F178: 143417000 | G178: 242503000 | H178: 369866000 | I178: 435577000
A179: Yurtdışı Satışlar | B179: 13073993 | C179: 14050000 | D179: 19159000 | E179: 30872000 | F179: 4096000 | G179: 11620000 | H179: 16169000 | I179: 21463000
A180: Diğer Satışlar | B180: 0 | C180: 0 | D180: 0 | E180: 0 | F180: 0 | G180: 0 | H180: 0 | I180: 0
A181: SATIŞLARDAN İNDİRİMLER (-) | B181: 67036629 | C181: 71851000 | D181: 82408000 | E181: 102540000 | F181: 38882000 | G181: 59309000 | H181: 89724000 | I181: 109926000
A182: Satışdan İadeler (-) | B182: 0 | C182: 0 | D182: 0 | E182: 0 | F182: 0 | G182: 0 | H182: 0 | I182: 0
A183: Satış İskontoları (-) | B183: 0 | C183: 0 | D183: 0 | E183: 0 | F183: 0 | G183: 0 | H183: 0 | I183: 0
A184: Diğer İndirimler (-) | B184: 0 | C184: 0 | D184: 0 | E184: 0 | F184: 0 | G184: 0 | H184: 0 | I184: 0
A185: ESAS FAALİYET GELİRLERİ | B185: 0 | C185: 0 | D185: 0 | E185: 0 | F185: 0 | G185: 0 | H185: 0 | I185: 0
A186: SATIŞ GELİRLERİ | B186: 251614689 | C186: 272288000 | D186: 322397000 | E186: 385115000 | F186: 108631000 | G186: 194814000 | H186: 296311000 | I186: 347114000
A187: FAİZ GELİRİ | B187: 0 | C187: 0 | D187: 0 | E187: 0 | F187: 0 | G187: 0 | H187: 0 | I187: 0
A188: SATIŞLARIN MALİYETİ (-) | B188: 134540648 | C188: 142851000 | D188: 176818000 | E188: 210841000 | F188: 55886000 | G188: 99995000 | H188: 155641000 | I188: 195290000
A189: FAİZ GİDERİ | B189: 0 | C189: 0 | D189: 0 | E189: 0 | F189: 0 | G189: 0 | H189: 0 | I189: 0
A190: MUHTEMEL KREDİ ZARAR KARŞ. FİN.KİR. ALCK. KARŞ. VE FAKT. DEĞ. DÜŞ. KARŞ. | B190: 0 | C190: 0 | D190: 0 | E190: 0 | F190: 0 | G190: 0 | H190: 0 | I190: 0
A191: HİZMET GELİRLERİ | B191: 0 | C191: 0 | D191: 0 | E191: 0 | F191: 0 | G191: 0 | H191: 0 | I191: 0
A192: HİZMET GİDERLERİ (-) | B192: 0 | C192: 0 | D192: 0 | E192: 0 | F192: 0 | G192: 0 | H192: 0 | I192: 0
A193: KAMBİYO KARI/ZARARI | B193: 0 | C193: 0 | D193: 0 | E193: 0 | F193: 0 | G193: 0 | H193: 0 | I193: 0
A194: SERMAYE PİYASASI İŞLEM KARI/ZARARI | B194: 0 | C194: 0 | D194: 0 | E194: 0 | F194: 0 | G194: 0 | H194: 0 | I194: 0
A195: ESAS FAALİYETLERDEN DİĞER GİDER/GELİR | B195: 0 | C195: 0 | D195: 0 | E195: 0 | F195: 0 | G195: 0 | H195: 0 | I195: 0
A196: FAİZ, ÜCRET, PRİM, KOMİSYON VE DİĞER GELİRLER | B196: 0 | C196: 0 | D196: 0 | E196: 0 | F196: 0 | G196: 0 | H196: 0 | I196: 0
A197: Kambiyo Gelirleri | B197: 0 | C197: 0 | D197: 0 | E197: 0 | F197: 0 | G197: 0 | H197: 0 | I197: 0
A198: Faiz Gelirleri | B198: 0 | C198: 0 | D198: 0 | E198: 0 | F198: 0 | G198: 0 | H198: 0 | I198: 0
A199: Kar Payı Gelirleri | B199: 0 | C199: 0 | D199: 0 | E199: 0 | F199: 0 | G199: 0 | H199: 0 | I199: 0
A200: Türev Finansal İşlemlerden Kazanç | B200: 0 | C200: 0 | D200: 0 | E200: 0 | F200: 0 | G200: 0 | H200: 0 | I200: 0
A201: Portföy İşletmeciliği Faaliyetinden Elde Edilen Gelir | B201: 0 | C201: 0 | D201: 0 | E201: 0 | F201: 0 | G201: 0 | H201: 0 | I201: 0
... 91 more rows

Sheet ADESE
A1: ADESE | B1: ADESE | C1: ADESE | D1: ADESE | E1: ADESE | F1: ADESE | G1: ADESE | H1: ADESE | I1: ADESE
B2: 2015/12 | C2: 2016/12 | D2: 2017/12 | E2: 2018/12 | F2: 2019/03 | G2: 2019/06 | H2: 2019/09 | I2: 2019/12
A3: DÖNEN VARLIKLAR | B3: 309756162 | C3: 317549733 | D3: 326175132 | E3: 300492000 | F3: 407290314 | G3: 424503590 | H3: 454126556 | I3: 442073000
A4: Hazır Değerler | B4: 13558230 | C4: 16415860 | D4: 14734806 | E4: 7325000 | F4: 7246286 | G4: 8290965 | H4: 8606927 | I4: 5837000
A5: Gayrimenkul Projeleri Kapsamında Açılan Nakit Hesapları | B5: 0 | C5: 0 | D5: 0 | E5: 0 | F5: 0 | G5: 0 | H5: 0 | I5: 0
A6: Finansal Yatırımlar | B6: 0 | C6: 0 | D6: 0 | E6: 0 | F6: 0 | G6: 0 | H6: 0 | I6: 0
A7: Menkul Kıymetler | B7: 0 | C7: 0 | D7: 0 | E7: 0 | F7: 0 | G7: 0 | H7: 0 | I7: 0
A8: Türkiye Cumhuriyet Merkez Bankası Hesabı | B8: 0 | C8: 0 | D8: 0 | E8: 0 | F8: 0 | G8: 0 | H8: 0 | I8: 0
A9: Krediler ve Avanslar | B9: 0 | C9: 0 | D9: 0 | E9: 0 | F9: 0 | G9: 0 | H9: 0 | I9: 0
A10: Faktoring alacakları (net) | B10: 0 | C10: 0 | D10: 0 | E10: 0 | F10: 0 | G10: 0 | H10: 0 | I10: 0
A11: Teminata Verilen Finansal Varlıklar | B11: 0 | C11: 0 | D11: 0 | E11: 0 | F11: 0 | G11: 0 | H11: 0 | I11: 0
A12: Kısa Vadeli Ticari Alacaklar | B12: 34510026 | C12: 31514722 | D12: 27280451 | E12: 39079000 | F12: 37206239 | G12: 32098812 | H12: 19155136 | I12: 17546000
A13: Finansal Kiralama Alacakları | B13: 0 | C13: 0 | D13: 0 | E13: 0 | F13: 0 | G13: 0 | H13: 0 | I13: 0
A14: Finans Sektörü Faal. Alacaklar | B14: 0 | C14: 0 | D14: 0 | E14: 0 | F14: 0 | G14: 0 | H14: 0 | I14: 0
A15: İlişkili Taraflardan Alacaklar | B15: 0 | C15: 0 | D15: 0 | E15: 0 | F15: 0 | G15: 0 | H15: 0 | I15: 0
A16: Diğer Kısa Vadeli Alacaklar | B16: 131645939 | C16: 144197351 | D16: 149314201 | E16: 194693000 | F16: 315702212 | G16: 341526503 | H16: 380385509 | I16: 383013000
A17: Canlı Varlıklar | B17: 0 | C17: 0 | D17: 0 | E17: 0 | F17: 0 | G17: 0 | H17: 0 | I17: 0
A18: Kullanımı Kısıtlı Banka Bakiyeleri | B18: 0 | C18: 0 | D18: 0 | E18: 0 | F18: 0 | G18: 0 | H18: 0 | I18: 0
A19: Stoklar | B19: 115471235 | C19: 111894302 | D19: 121377113 | E19: 54440000 | F19: 36665023 | G19: 37511002 | H19: 38237571 | I19: 30516000
A20: Peşin Ödenen Kira Giderleri | B20: 0 | C20: 0 | D20: 0 | E20: 0 | F20: 0 | G20: 0 | H20: 0 | I20: 0
A21: Müşteri Sözleşmelerinden Doğan Varlıklar | B21: 0 | C21: 0 | D21: 0 | E21: 0 | F21: 0 | G21: 3236302 | H21: 3368281 | I21: 0
A22: İmtiyaz Sözleşmelerine İlişkin Finansal Varlıklar | B22: 0 | C22: 0 | D22: 0 | E22: 0 | F22: 0 | G22: 0 | H22: 0 | I22: 0
A23: Türev Enstrümanlar | B23: 0 | C23: 0 | D23: 0 | E23: 0 | F23: 0 | G23: 0 | H23: 0 | I23: 0
A24: Ertelenen Vergi Varlıkları | B24: 0 | C24: 0 | D24: 0 | E24: 0 | F24: 0 | G24: 0 | H24: 0 | I24: 0
A25: Durdurulan faaliyetler ile ilgili varlıklar | B25: 0 | C25: 0 | D25: 0 | E25: 0 | F25: 0 | G25: 0 | H25: 0 | I25: 0
A26: Ertelenmiş Sigortacılık Üretim Giderleri | B26: 0 | C26: 0 | D26: 0 | E26: 0 | F26: 0 | G26: 0 | H26: 0 | I26: 0
A27: Peşin Ödenmiş Giderler | B27: 14518153 | C27: 11527194 | D27: 8326041 | E27: 4451000 | F27: 10355769 | G27: 1428938 | H27: 4233943 | I27: 5091000
A28: Cari Dönem Vergisiyle İlgili Varlıklar | B28: 0 | C28: 23871 | D28: 413360 | E28: 20000 | F28: 0 | G28: 1068 | H28: 8635 | I28: 0
A29: Nakit Dışı Serbest Kullanılabilir Teminatlar | B29: 0 | C29: 0 | D29: 0 | E29: 0 | F29: 0 | G29: 0 | H29: 0 | I29: 0
A30: Diğer Dönen Varlıklar | B30: 52579 | C30: 1976433 | D30: 4729160 | E30: 484000 | F30: 114785 | G30: 410000 | H30: 130554 | I30: 70000
A31: Vadesine kadar elde tut. men. kıy. | B31: 0 | C31: 0 | D31: 0 | E31: 0 | F31: 0 | G31: 0 | H31: 0 | I31: 0
A32: Satılmaya Hazır Finansal Varlıklar | B32: 0 | C32: 0 | D32: 0 | E32: 0 | F32: 0 | G32: 0 | H32: 0 | I32: 0
A33: Alım Satım Amaçlı Menkul Kıymetler | B33: 0 | C33: 0 | D33: 0 | E33: 0 | F33: 0 | G33: 0 | H33: 0 | I33: 0
A34: İş Ortaklıklarının Dönen Varlıklar İçindeki Payı | B34: 0 | C34: 0 | D34: 0 | E34: 0 | F34: 0 | G34: 0 | H34: 0 | I34: 0
A35: Elden Çıkarılacak Faaliyetler ile İlgili Varlıklar | B35: 0 | C35: 0 | D35: 0 | E35: 0 | F35: 0 | G35: 0 | H35: 0 | I35: 0
A36: Satım amaçlı elde tutulan maddi duran varlıklar | B36: 0 | C36: 0 | D36: 0 | E36: 0 | F36: 0 | G36: 0 | H36: 0 | I36: 0
A37: Ortaklara Dağıtılmak Üzere Elde Tutulan Duran Varlıklar | B37: 0 | C37: 0 | D37: 0 | E37: 0 | F37: 0 | G37: 0 | H37: 0 | I37: 0
A38: DURAN VARLIKLAR | B38: 553058132 | C38: 654618145 | D38: 802575479 | E38: 918044000 | F38: 954605748 | G38: 1034174959 | H38: 1106456268 | I38: 1093637000
A39: Menkul Kıymetler | B39: 0 | C39: 0 | D39: 0 | E39: 0 | F39: 0 | G39: 0 | H39: 0 | I39: 0
A40: Krediler ve Avanslar | B40: 0 | C40: 0 | D40: 0 | E40: 0 | F40: 0 | G40: 0 | H40: 0 | I40: 0
A41: Faktoring alacakları (net) | B41: 0 | C41: 0 | D41: 0 | E41: 0 | F41: 0 | G41: 0 | H41: 0 | I41: 0
A42: Uzun Vadeli Ticari Alacaklar | B42: 0 | C42: 0 | D42: 610703 | E42: 10526000 | F42: 8396960 | G42: 6775525 | H42: 540534 | I42: 518000
A43: Finansal Kiralama Alacakları | B43: 0 | C43: 0 | D43: 0 | E43: 0 | F43: 0 | G43: 0 | H43: 0 | I43: 0
A44: Finans Sektörü Faal. Alacaklar | B44: 0 | C44: 0 | D44: 0 | E44: 0 | F44: 0 | G44: 0 | H44: 0 | I44: 0
A45: İlişkili Taraflardan Alacaklar | B45: 0 | C45: 0 | D45: 0 | E45: 0 | F45: 0 | G45: 0 | H45: 0 | I45: 0
A46: Türev Enstrümanlar | B46: 0 | C46: 0 | D46: 0 | E46: 0 | F46: 0 | G46: 0 | H46: 0 | I46: 0
A47: Diğer Uzun Vadeli Alacaklar | B47: 1207979 | C47: 1570686 | D47: 2290944 | E47: 3559000 | F47: 3461037 | G47: 3483786 | H47: 3688398 | I47: 3688000
A48: Finansal Yatırımlar | B48: 8688303 | C48: 0 | D48: 0 | E48: 0 | F48: 0 | G48: 0 | H48: 0 | I48: 0
A49: Özkaynak Yöntemiyle Değerlenen Yatırımlar | B49: 0 | C49: 0 | D49: 0 | E49: 0 | F49: 0 | G49: 0 | H49: 0 | I49: 0
A50: Canlı Varlıklar | B50: 0 | C50: 0 | D50: 0 | E50: 0 | F50: 0 | G50: 0 | H50: 0 | I50: 0
A51: İmtiyaz Sözleşmelerine İlişkin Finansal Varlıklar | B51: 0 | C51: 0 | D51: 0 | E51: 0 | F51: 0 | G51: 0 | H51: 0 | I51: 0
A52: Stoklar | B52: 0 | C52: 0 | D52: 0 | E52: 0 | F52: 0 | G52: 0 | H52: 0 | I52: 0
A53: Finansal Duran Varlıklar | B53: 0 | C53: 0 | D53: 0 | E53: 0 | F53: 0 | G53: 0 | H53: 0 | I53: 0
A54: Pozitif/Negatif Şerefiye | B54: 0 | C54: 0 | D54: 0 | E54: 0 | F54: 0 | G54: 0 | H54: 0 | I54: 0
A55: Yatırım Amaçlı Gayrimenkuller | B55: 336858617 | C55: 381664125 | D55: 473421718 | E55: 528562000 | F55: 530436020 | G55: 593919262 | H55: 594048937 | I55: 631442000
A56: Proje Halindeki Yatırım Amaçlı Gayrimenkuller | B56: 0 | C56: 0 | D56: 0 | E56: 0 | F56: 0 | G56: 0 | H56: 0 | I56: 0
A57: Alım Satım Amaçlı Gayrimenkuller (net) | B57: 0 | C57: 0 | D57: 0 | E57: 0 | F57: 0 | G57: 0 | H57: 0 | I57: 0
A58: Maddi Duran Varlıklar | B58: 200598126 | C58: 203933816 | D58: 256327914 | E58: 264236000 | F58: 260340305 | G58: 289649919 | H58: 286445442 | I58: 346504000
A59: Kullanım Hakkı Varlıkları | B59: 0 | C59: 0 | D59: 0 | E59: 0 | F59: 61264306 | G59: 48470628 | H59: 55535407 | I59: 0
A60: Maddi Olmayan Duran Varlıklar | B60: 192794 | C60: 446131 | D60: 508892 | E60: 14129000 | F60: 13884042 | G60: 14184372 | H60: 14520307 | I60: 14516000
A61: Müşteri Sözleşmelerinden Doğan Varlıklar | B61: 0 | C61: 0 | D61: 0 | E61: 0 | F61: 0 | G61: 74296121 | H61: 72296963 | I61: 0
A62: Ertelenen Vergi Varlıkları | B62: 3383881 | C62: 3585995 | D62: 3827658 | E62: 20303000 | F62: 182141 | G62: 179005 | H62: 74522141 | I62: 37554000
A63: Cari Dönem Vergisiyle İlgili Duran Varlıklar | B63: 0 | C63: 0 | D63: 0 | E63: 0 | F63: 0 | G63: 0 | H63: 0 | I63: 0
A64: Nakit Dışı Serbest Kullanılabilir Teminatlar | B64: 0 | C64: 0 | D64: 0 | E64: 0 | F64: 0 | G64: 0 | H64: 0 | I64: 0
A65: Peşin Ödenen Kira Giderleri | B65: 0 | C65: 0 | D65: 0 | E65: 0 | F65: 0 | G65: 0 | H65: 0 | I65: 0
A66: Peşin Ödenmiş Giderler | B66: 2128432 | C66: 56011783 | D66: 56321429 | E66: 74608000 | F66: 74296122 | G66: 0 | H66: 0 | I66: 55154000
A67: Diğer Duran Varlıklar | B67: 0 | C67: 0 | D67: 0 | E67: 0 | F67: 0 | G67: 0 | H67: 0 | I67: 0
A68: Vadesine kadar elde tut. men. kıy. | B68: 0 | C68: 0 | D68: 0 | E68: 0 | F68: 0 | G68: 0 | H68: 0 | I68: 0
A69: Satılmaya Hazır Finansal Varlıklar | B69: 0 | C69: 0 | D69: 0 | E69: 0 | F69: 0 | G69: 0 | H69: 0 | I69: 0
A70: İş Ortaklıklarının Duran Varlıklar İçindeki Payı | B70: 0 | C70: 7405609 | D70: 9266221 | E70: 2121000 | F70: 2344815 | G70: 3216341 | H70: 4858139 | I70: 4261000
A71: Ana Ortaklık Dışı Paylar | B71: 0 | C71: 0 | D71: 0 | E71: 0 | F71: 0 | G71: 0 | H71: 0 | I71: 0
A72: TOPLAM AKTİFLER | B72: 862814294 | C72: 972167878 | D72: 1128750611 | E72: 1218536000 | F72: 1361896062 | G72: 1458678549 | H72: 1560582824 | I72: 1535710000
A73: KISA VADELİ YÜKÜMLÜLÜKLER | B73: 262060044 | C73: 336117745 | D73: 388411147 | E73: 489580000 | F73: 607485639 | G73: 618194271 | H73: 659539813 | I73: 685592000
A74: Finansal Borçlar | B74: 22342014 | C74: 46611027 | D74: 3882835 | E74: 29732000 | F74: 179043655 | G74: 192713676 | H74: 189059389 | I74: 195576000
A75: Uzun Vadeli Finansal Borçların Kısa Vadeli Kısımları | B75: 62954821 | C75: 85796980 | D75: 112441853 | E75: 91604000 | F75: 87386565 | G75: 81484059 | H75: 110537572 | I75: 138513000
A76: Mevduat | B76: 0 | C76: 0 | D76: 0 | E76: 0 | F76: 0 | G76: 0 | H76: 0 | I76: 0
A77: Türev Araçlar | B77: 0 | C77: 0 | D77: 0 | E77: 0 | F77: 0 | G77: 0 | H77: 0 | I77: 0
A78: Faktoring borçları | B78: 0 | C78: 0 | D78: 0 | E78: 0 | F78: 0 | G78: 0 | H78: 0 | I78: 0
A79: Finansal Kiralama İşlemlerinden Borçlar | B79: 0 | C79: 0 | D79: 0 | E79: 0 | F79: 0 | G79: 0 | H79: 0 | I79: 0
A80: Finans Sektörü Faaliyetlerinden Borçlar | B80: 0 | C80: 0 | D80: 0 | E80: 0 | F80: 0 | G80: 0 | H80: 0 | I80: 0
A81: Sigorta Teknik Karşılığı | B81: 0 | C81: 0 | D81: 0 | E81: 0 | F81: 0 | G81: 0 | H81: 0 | I81: 0
A82: Diğer Finansal Yükümlülükler | B82: 0 | C82: 0 | D82: 0 | E82: 0 | F82: 0 | G82: 0 | H82: 0 | I82: 0
A83: Ticari Borçlar | B83: 149262809 | C83: 151151049 | D83: 167165359 | E83: 196975000 | F83: 170982248 | G83: 161162330 | H83: 175637758 | I83: 162185000
A84: İlişkili Taraflara Borçlar | B84: 0 | C84: 0 | D84: 0 | E84: 0 | F84: 0 | G84: 0 | H84: 0 | I84: 0
A85: Alınan Krediler | B85: 0 | C85: 0 | D85: 0 | E85: 0 | F85: 0 | G85: 0 | H85: 0 | I85: 0
A86: Diğer Borçlar | B86: 11251700 | C86: 32627734 | D86: 88349769 | E86: 96841000 | F86: 91871340 | G86: 118519896 | H86: 149025106 | I86: 151992000
A87: Alınan Avanslar | B87: 0 | C87: 0 | D87: 0 | E87: 0 | F87: 0 | G87: 0 | H87: 0 | I87: 0
A88: Devlet Teşvik ve Yardımları | B88: 0 | C88: 0 | D88: 0 | E88: 0 | F88: 0 | G88: 0 | H88: 0 | I88: 0
A89: Ertelenmiş Gelirler | B89: 3907728 | C89: 4092010 | D89: 2096918 | E89: 41011000 | F89: 38932865 | G89: 0 | H89: 0 | I89: 9647000
A90: Cari Dönem Vergi Yükümlülüğü | B90: 213 | C90: 744430 | D90: 8 | E90: 0 | F90: 0 | G90: 15414 | H90: 0 | I90: 1000
A91: Cari Dönem Vergisi ile İlgili Borçlar | B91: 0 | C91: 0 | D91: 0 | E91: 0 | F91: 0 | G91: 0 | H91: 0 | I91: 0
A92: Bloke Hesaplar | B92: 0 | C92: 0 | D92: 0 | E92: 0 | F92: 0 | G92: 0 | H92: 0 | I92: 0
A93: Müşteri Sözleşmelerinden Doğan Yükümlülükler | B93: 0 | C93: 0 | D93: 0 | E93: 0 | F93: 0 | G93: 39450868 | H93: 12192074 | I93: 0
A94: Özkaynak Yöntemiyle Değerlenen Yatırımlardan Yükümlülükler | B94: 0 | C94: 0 | D94: 0 | E94: 0 | F94: 0 | G94: 0 | H94: 0 | I94: 0
A95: Borç ve Gider Karşılıkları | B95: 7126793 | C95: 8242350 | D95: 6810043 | E95: 17925000 | F95: 14754709 | G95: 8433113 | H95: 8354898 | I95: 6844000
A96: Çalışanlara Sağlanan Faydalara İlişkin Karşılıklar | B96: 5213966 | C96: 6852165 | D96: 7503215 | E96: 15441000 | F96: 23501106 | G96: 16386017 | H96: 14685006 | I96: 20834000
A97: Ertelenen Vergi Yükümlülüğü | B97: 0 | C97: 0 | D97: 0 | E97: 0 | F97: 0 | G97: 0 | H97: 0 | I97: 0
A98: Durdurulan faaliyetler ile ilgili yükümlülükler | B98: 0 | C98: 0 | D98: 0 | E98: 0 | F98: 0 | G98: 0 | H98: 0 | I98: 0
A99: Diğer Kısa Vadeli Borçlar | B99: 0 | C99: 0 | D99: 161147 | E99: 51000 | F99: 1013151 | G99: 28898 | H99: 48010 | I99: 0
A100: İş Ortaklıklarının Kısa Vadeli Yükümlülükler İçindeki Payı | B100: 0 | C100: 0 | D100: 0 | E100: 0 | F100: 0 | G100: 0 | H100: 0 | I100: 0
A101: Elden Çıkarılacak Faaliyetler ile İlgili Yükümlülükler | B101: 0 | C101: 0 | D101: 0 | E101: 0 | F101: 0 | G101: 0 | H101: 0 | I101: 0
A102: Ortaklara Dağıtılmak Üzere Elde Tutulan Varlık Gruplarına İlişkin Yükümlülükler | B102: 0 | C102: 0 | D102: 0 | E102: 0 | F102: 0 | G102: 0 | H102: 0 | I102: 0
A103: UZUN VADELİ YÜKÜMLÜLÜKLER | B103: 156853562 | C103: 160726880 | D103: 177430710 | E103: 173267000 | F103: 221544673 | G103: 258888373 | H103: 328034794 | I103: 264741000
A104: Mevduatlar | B104: 0 | C104: 0 | D104: 0 | E104: 0 | F104: 0 | G104: 0 | H104: 0 | I104: 0
A105: Finansal Borçlar | B105: 69506864 | C105: 63011346 | D105: 59715394 | E105: 43236000 | F105: 111838911 | G105: 133570752 | H105: 130634329 | I105: 111395000
A106: Faktoring borçları | B106: 0 | C106: 0 | D106: 0 | E106: 0 | F106: 0 | G106: 0 | H106: 0 | I106: 0
A107: Finansal Kiralama İşlemlerinden Borçlar | B107: 0 | C107: 0 | D107: 0 | E107: 0 | F107: 0 | G107: 0 | H107: 0 | I107: 0
A108: Finans Sektörü Faaliyetlerinden Borçlar | B108: 0 | C108: 0 | D108: 0 | E108: 0 | F108: 0 | G108: 0 | H108: 0 | I108: 0
A109: Sigorta teknik karşılıkları | B109: 0 | C109: 0 | D109: 0 | E109: 0 | F109: 0 | G109: 0 | H109: 0 | I109: 0
A110: Diğer Finansal Yükümlülükler | B110: 0 | C110: 0 | D110: 0 | E110: 0 | F110: 0 | G110: 0 | H110: 0 | I110: 0
A111: Ticari Borçlar | B111: 0 | C111: 0 | D111: 0 | E111: 0 | F111: 0 | G111: 0 | H111: 0 | I111: 0
A112: İlişkili Taraflara Borçlar | B112: 0 | C112: 0 | D112: 0 | E112: 0 | F112: 0 | G112: 0 | H112: 0 | I112: 0
A113: Alınan Krediler | B113: 0 | C113: 0 | D113: 0 | E113: 0 | F113: 0 | G113: 0 | H113: 0 | I113: 0
A114: Diğer Borçlar | B114: 0 | C114: 0 | D114: 0 | E114: 0 | F114: 0 | G114: 0 | H114: 0 | I114: 0
A115: Müşteri Sözleşmelerinden Doğan Yükümlülükler | B115: 0 | C115: 0 | D115: 0 | E115: 0 | F115: 0 | G115: 0 | H115: 0 | I115: 0
A116: Bloke Hesaplar | B116: 0 | C116: 0 | D116: 0 | E116: 0 | F116: 0 | G116: 0 | H116: 0 | I116: 0
A117: Alınan Avanslar | B117: 0 | C117: 0 | D117: 0 | E117: 0 | F117: 0 | G117: 0 | H117: 0 | I117: 0
A118: Çalışanlara Sağlanan Faydalar Kapsamında Borçlar | B118: 0 | C118: 0 | D118: 0 | E118: 0 | F118: 0 | G118: 0 | H118: 0 | I118: 0
A119: Borç ve Gider Karşılıkları | B119: 5187624 | C119: 5839994 | D119: 6097406 | E119: 5099000 | F119: 4672976 | G119: 5110677 | H119: 5552374 | I119: 4282000
A120: Türev Finansal Araçlardan Borçlar | B120: 0 | C120: 0 | D120: 0 | E120: 0 | F120: 0 | G120: 0 | H120: 0 | I120: 0
A121: Cari Dönem Vergisiyle İlgili Borçlar | B121: 0 | C121: 0 | D121: 0 | E121: 0 | F121: 0 | G121: 0 | H121: 0 | I121: 0
A122: Ertelenen Vergi Yükümlülüğü | B122: 82159074 | C122: 91875540 | D122: 111617910 | E122: 124932000 | F122: 105032786 | G122: 120206944 | H122: 191848091 | I122: 149064000
A123: Devlet Teşvik ve Yardımları | B123: 0 | C123: 0 | D123: 0 | E123: 0 | F123: 0 | G123: 0 | H123: 0 | I123: 0
A124: Ertelenmiş Gelirler | B124: 0 | C124: 0 | D124: 0 | E124: 0 | F124: 0 | G124: 0 | H124: 0 | I124: 0
A125: Devam Eden Sözleşmeler Hakediş Bedelleri | B125: 0 | C125: 0 | D125: 0 | E125: 0 | F125: 0 | G125: 0 | H125: 0 | I125: 0
A126: Pozitif/Negatif Şerefiye | B126: 0 | C126: 0 | D126: 0 | E126: 0 | F126: 0 | G126: 0 | H126: 0 | I126: 0
A127: Diğer Uzun Vadeli Borçlar | B127: 0 | C127: 0 | D127: 0 | E127: 0 | F127: 0 | G127: 0 | H127: 0 | I127: 0
A128: İş Ortaklıklarının Uzun Vadeli Yükümlülükler İçindeki Payı | B128: 0 | C128: 0 | D128: 0 | E128: 0 | F128: 0 | G128: 0 | H128: 0 | I128: 0
A129: ÖZ SERMAYE (AZINLIK PAYI DAHİL) | B129: 443900688 | C129: 475323253 | D129: 562908754 | E129: 555689000 | F129: 532865750 | G129: 581595905 | H129: 573008217 | I129: 585377000
A130: ANA ORTAKLIK DIŞI ÖZSERMAYE | B130: -102814 | C130: -117513 | D130: 34321 | E130: 35000 | F130: 34677 | G130: 34894 | H130: 34899 | I130: 35000
A131: Aile Üyeleri | B131: 0 | C131: 0 | D131: 0 | E131: 0 | F131: 0 | G131: 0 | H131: 0 | I131: 0
A132: Diğerleri | B132: 0 | C132: 0 | D132: 0 | E132: 0 | F132: 0 | G132: 0 | H132: 0 | I132: 0
A133: ÖZ SERMAYE (ANA ORTAKLIĞA AİT) | B133: 444003502 | C133: 475440766 | D133: 562874433 | E133: 555654000 | F133: 532831073 | G133: 581561011 | H133: 572973318 | I133: 585342000
A134: Sermaye | B134: 90000000 | C134: 126000000 | D134: 126000000 | E134: 126000000 | F134: 126000000 | G134: 126000000 | H134: 126000000 | I134: 126000000
A135: Ödenmeyen Sermaye(-) | B135: 0 | C135: 0 | D135: 0 | E135: 0 | F135: 0 | G135: 0 | H135: 0 | I135: 0
A136: Karşılıklı İştirak Sermaye Düzeltmesi | B136: 0 | C136: 0 | D136: 0 | E136: 0 | F136: 0 | G136: 0 | H136: 0 | I136: 0
A137: Paylara İlişkin Primler/İskontolar | B137: 0 | C137: 0 | D137: 0 | E137: 0 | F137: 0 | G137: 0 | H137: 0 | I137: 0
A138: İşletmenin Geri Satın Alınan Kendi Hisseleri | B138: 0 | C138: 0 | D138: 0 | E138: 0 | F138: 0 | G138: 0 | H138: 0 | I138: 0
A139: İşletmenin Geri Alınan Kendi Hisse Senetlerinin Satışından Doğan Kar | B139: 0 | C139: 0 | D139: 0 | E139: 0 | F139: 0 | G139: 0 | H139: 0 | I139: 0
A140: Sermaye Avansı | B140: 0 | C140: 0 | D140: 0 | E140: 0 | F140: 0 | G140: 0 | H140: 0 | I140: 0
A141: Kar veya Zararda Yeniden Sınıflandırılmayacak Birikmiş Diğer Kapsamlı Gel. veya Gid. | B141: 194798810 | C141: 195211309 | D141: 237199963 | E141: 248130000 | F141: 247421176 | G141: 273262429 | H141: 270878632 | I141: 276747000
A142: Kar veya Zararda Yeniden Sınıflandırılacak Birikmiş Diğer Kapsamlı Gelir. veya Gid. | B142: -180022 | C142: -1257849 | D142: 663866 | E142: -3259000 | F142: -3010541 | G142: -2093871 | H142: -2433249 | I142: -3032000
A143: Sermaye Yedekleri | B143: 0 | C143: 0 | D143: 0 | E143: 0 | F143: 0 | G143: 0 | H143: 0 | I143: 0
A144: Sermaye Taahhütleri (-) | B144: 0 | C144: 0 | D144: 0 | E144: 0 | F144: 0 | G144: 0 | H144: 0 | I144: 0
A145: Katkı sermaye | B145: 0 | C145: 0 | D145: 0 | E145: 0 | F145: 0 | G145: 0 | H145: 0 | I145: 0
A146: Azınlık Hisseleri Satış Opsiyonu Değerleme Fonu | B146: 0 | C146: 0 | D146: 0 | E146: 0 | F146: 0 | G146: 0 | H146: 0 | I146: 0
A147: Emisyon Primi | B147: 0 | C147: 0 | D147: 0 | E147: 0 | F147: 0 | G147: 0 | H147: 0 | I147: 0
A148: Yeniden Değerleme Artışı | B148: 194618788 | C148: 193953460 | D148: 237863829 | E148: 244871000 | F148: 244410635 | G148: 271168558 | H148: 268445383 | I148: 273715000
A149: Kar Yedekleri | B149: 0 | C149: 0 | D149: 0 | E149: 0 | F149: 500000 | G149: 0 | H149: 0 | I149: 0
A150: Dağıtılmamış Kar | B150: 0 | C150: 0 | D150: 0 | E150: 0 | F150: 0 | G150: 0 | H150: 0 | I150: 0
A151: Sermaye artırımı ile ilgili masraflar | B151: 0 | C151: 0 | D151: 0 | E151: 0 | F151: 0 | G151: 0 | H151: 0 | I151: 0
A152: Nakit Akım Koruması ile İlgili Birikmiş Kar | B152: 0 | C152: 0 | D152: 0 | E152: 0 | F152: 0 | G152: 0 | H152: 0 | I152: 0
A153: Karşılıklı İştirak Serm. Düzeltmesinin Nom. Tut. Aşan Kısım | B153: 0 | C153: 0 | D153: 0 | E153: 0 | F153: 0 | G153: 0 | H153: 0 | I153: 0
A154: Finansal Yatırımlar Değer Artış Fonu | B154: 0 | C154: 0 | D154: 0 | E154: 0 | F154: 0 | G154: 0 | H154: 0 | I154: 0
A155: Diğer Özkaynak Payları | B155: 0 | C155: 0 | D155: 0 | E155: 0 | F155: 0 | G155: 0 | H155: 0 | I155: 0
A156: Diğer Yedekler | B156: 0 | C156: 0 | D156: 0 | E156: 0 | F156: 0 | G156: 500000 | H156: 500000 | I156: 500000
A157: Net Dönem Karı | B157: 51325425 | C157: 31671613 | D157: 43922966 | E157: 0 | F157: 0 | G157: 0 | H157: 0 | I157: 0
A158: Dönem Zararı (-) | B158: 0 | C158: 0 | D158: 0 | E158: 15782000 | F158: 22471788 | G158: 499773 | H158: 6364286 | I158: 499000
A159: Geçmiş Yıl Karları | B159: 88907108 | C159: 119427849 | D159: 150605549 | E159: 196083000 | F159: 179910137 | G159: 179910137 | H159: 179910132 | I159: 181144000
A160: Net Dön. Kar. Ser. Hes. Ed. Tran. Ed. M. Dur. V. Sa. Karı | B160: 0 | C160: 0 | D160: 0 | E160: 0 | F160: 0 | G160: 0 | H160: 0 | I160: 0
A161: Geçmiş Yıl Zararları (-) | B161: 0 | C161: 0 | D161: 0 | E161: 0 | F161: 0 | G161: 0 | H161: 0 | I161: 0
A162: Yabancı Para Çevrim Farkları | B162: 0 | C162: 0 | D162: 0 | E162: 0 | F162: 0 | G162: 0 | H162: 0 | I162: 0
A163: Kardan Ayrılan Kısıtlanmış Yedekler | B163: 4387844 | C163: 4387844 | D163: 4482089 | E163: 4482000 | F163: 4482089 | G163: 4482089 | H163: 4482089 | I163: 4482000
A164: Kardan Ayrılan Kısıtlanmış Yedekler (27) | B164: 0 | C164: 0 | D164: 0 | E164: 0 | F164: 0 | G164: 0 | H164: 0 | I164: 0
A165: Zarar Telafi Fonu | B165: 0 | C165: 0 | D165: 0 | E165: 0 | F165: 0 | G165: 0 | H165: 0 | I165: 0
A166: Özsermaye Enf. Düz. Farkları | B166: 14764337 | C166: 0 | D166: 0 | E166: 0 | F166: 0 | G166: 0 | H166: 0 | I166: 0
A167: Sermaye Birleşme Fonu | B167: 0 | C167: 0 | D167: 0 | E167: 0 | F167: 0 | G167: 0 | H167: 0 | I167: 0
A168: İlave Ödenmiş Sermaye | B168: 0 | C168: 0 | D168: 0 | E168: 0 | F168: 0 | G168: 0 | H168: 0 | I168: 0
A169: Birikmiş Karlar/Zararlar | B169: 0 | C169: 0 | D169: 0 | E169: 0 | F169: 0 | G169: 0 | H169: 0 | I169: 0
A170: Yatırım Teşvikleri | B170: 0 | C170: 0 | D170: 0 | E170: 0 | F170: 0 | G170: 0 | H170: 0 | I170: 0
A171: Satılmaya Haz. Var. Üz. Gerçekleşmemiş Net Gelir | B171: 0 | C171: 0 | D171: 0 | E171: 0 | F171: 0 | G171: 0 | H171: 0 | I171: 0
A172: Ana ortaklık hisse satış kar/zarar | B172: 0 | C172: 0 | D172: 0 | E172: 0 | F172: 0 | G172: 0 | H172: 0 | I172: 0
A173: AZINLIK PAYLARI | B173: 0 | C173: 0 | D173: 0 | E173: 0 | F173: 0 | G173: 0 | H173: 0 | I173: 0
A174: TOPLAM PASİFLER | B174: 862814294 | C174: 972167878 | D174: 1128750611 | E174: 1218536000 | F174: 1361896062 | G174: 1458678549 | H174: 1560582824 | I174: 1535710000
A176: GELİR TABLOSU | B176: 2015/12 | C176: 2016/12 | D176: 2017/12 | E176: 2018/12 | F176: 2019/03 | G176: 2019/06 | H176: 2019/09 | I176: 2019/12
A177: BRÜT SATIŞLAR | B177: 646848864 | C177: 0 | D177: 696868885 | E177: 553961000 | F177: 0 | G177: 0 | H177: 0 | I177: 199908000
A178: Yurtiçi Satışlar | B178: 646816676 | C178: 0 | D178: 670173939 | E178: 443417000 | F178: 0 | G178: 0 | H178: 0 | I178: 103697000
A179: Yurtdışı Satışlar | B179: 0 | C179: 0 | D179: 0 | E179: 0 | F179: 0 | G179: 0 | H179: 0 | I179: 0
A180: Diğer Satışlar | B180: 32188 | C180: 0 | D180: 26694946 | E180: 110544000 | F180: 0 | G180: 0 | H180: 0 | I180: 96211000
A181: SATIŞLARDAN İNDİRİMLER (-) | B181: 3957637 | C181: 0 | D181: 3368286 | E181: 3920000 | F181: 0 | G181: 0 | H181: 0 | I181: 923000
A182: Satışdan İadeler (-) | B182: 0 | C182: 0 | D182: 0 | E182: 0 | F182: 0 | G182: 0 | H182: 0 | I182: 0
A183: Satış İskontoları (-) | B183: 3957637 | C183: 0 | D183: 3368286 | E183: 3920000 | F183: 0 | G183: 0 | H183: 0 | I183: 923000
A184: Diğer İndirimler (-) | B184: 0 | C184: 0 | D184: 0 | E184: 0 | F184: 0 | G184: 0 | H184: 0 | I184: 0
A185: ESAS FAALİYET GELİRLERİ | B185: 0 | C185: 0 | D185: 0 | E185: 0 | F185: 0 | G185: 0 | H185: 0 | I185: 0
A186: SATIŞ GELİRLERİ | B186: 642891227 | C186: 649314128 | D186: 693500599 | E186: 550041000 | F186: 51483917 | G186: 93610189 | H186: 152601141 | I186: 198985000
A187: FAİZ GELİRİ | B187: 0 | C187: 0 | D187: 0 | E187: 0 | F187: 0 | G187: 0 | H187: 0 | I187: 0
A188: SATIŞLARIN MALİYETİ (-) | B188: 496632738 | C188: 498627842 | D188: 533704343 | E188: 434622000 | F188: 40377204 | G188: 73255780 | H188: 118442273 | I188: 143353000
A189: FAİZ GİDERİ | B189: 0 | C189: 0 | D189: 0 | E189: 0 | F189: 0 | G189: 0 | H189: 0 | I189: 0
A190: MUHTEMEL KREDİ ZARAR KARŞ. FİN.KİR. ALCK. KARŞ. VE FAKT. DEĞ. DÜŞ. KARŞ. | B190: 0 | C190: 0 | D190: 0 | E190: 0 | F190: 0 | G190: 0 | H190: 0 | I190: 0
A191: HİZMET GELİRLERİ | B191: 0 | C191: 0 | D191: 0 | E191: 0 | F191: 0 | G191: 0 | H191: 0 | I191: 0
A192: HİZMET GİDERLERİ (-) | B192: 0 | C192: 0 | D192: 0 | E192: 0 | F192: 0 | G192: 0 | H192: 0 | I192: 0
A193: KAMBİYO KARI/ZARARI | B193: 0 | C193: 0 | D193: 0 | E193: 0 | F193: 0 | G193: 0 | H193: 0 | I193: 0
A194: SERMAYE PİYASASI İŞLEM KARI/ZARARI | B194: 0 | C194: 0 | D194: 0 | E194: 0 | F194: 0 | G194: 0 | H194: 0 | I194: 0
A195: ESAS FAALİYETLERDEN DİĞER GİDER/GELİR | B195: 0 | C195: 0 | D195: 0 | E195: 0 | F195: 0 | G195: 0 | H195: 0 | I195: 0
A196: FAİZ, ÜCRET, PRİM, KOMİSYON VE DİĞER GELİRLER | B196: 0 | C196: 0 | D196: 0 | E196: 0 | F196: 0 | G196: 0 | H196: 0 | I196: 0
A197: Kambiyo Gelirleri | B197: 0 | C197: 0 | D197: 0 | E197: 0 | F197: 0 | G197: 0 | H197: 0 | I197: 0
A198: Faiz Gelirleri | B198: 0 | C198: 0 | D198: 0 | E198: 0 | F198: 0 | G198: 0 | H198: 0 | I198: 0
A199: Kar Payı Gelirleri | B199: 0 | C199: 0 | D199: 0 | E199: 0 | F199: 0 | G199: 0 | H199: 0 | I199: 0
A200: Türev Finansal İşlemlerden Kazanç | B200: 0 | C200: 0 | D200: 0 | E200: 0 | F200: 0 | G200: 0 | H200: 0 | I200: 0
A201: Portföy İşletmeciliği Faaliyetinden Elde Edilen Gelir | B201: 0 | C201: 0 | D201: 0 | E201: 0 | F201: 0 | G201: 0 | H201: 0 | I201: 0
... 91 more rows

Sheet AFYON
A1: AFYON | B1: AFYON | C1: AFYON | D1: AFYON | E1: AFYON | F1: AFYON | G1: AFYON | H1: AFYON | I1: AFYON
B2: 2015/12 | C2: 2016/12 | D2: 2017/12 | E2: 2018/12 | F2: 2019/03 | G2: 2019/06 | H2: 2019/09 | I2: 2019/12
A3: DÖNEN VARLIKLAR | B3: 194190624 | C3: 35638796 | D3: 188133038 | E3: 86267207 | F3: 76976820 | G3: 72357068 | H3: 58679543 | I3: 66528431
A4: Hazır Değerler | B4: 164939002 | C4: 522924 | D4: 65247953 | E4: 18748857 | F4: 10679807 | G4: 907232 | H4: 218576 | I4: 5704011
A5: Gayrimenkul Projeleri Kapsamında Açılan Nakit Hesapları | B5: 0 | C5: 0 | D5: 0 | E5: 0 | F5: 0 | G5: 0 | H5: 0 | I5: 0
A6: Finansal Yatırımlar | B6: 0 | C6: 0 | D6: 0 | E6: 0 | F6: 0 | G6: 0 | H6: 0 | I6: 0
A7: Menkul Kıymetler | B7: 0 | C7: 0 | D7: 0 | E7: 0 | F7: 0 | G7: 0 | H7: 0 | I7: 0
A8: Türkiye Cumhuriyet Merkez Bankası Hesabı | B8: 0 | C8: 0 | D8: 0 | E8: 0 | F8: 0 | G8: 0 | H8: 0 | I8: 0
A9: Krediler ve Avanslar | B9: 0 | C9: 0 | D9: 0 | E9: 0 | F9: 0 | G9: 0 | H9: 0 | I9: 0
A10: Faktoring alacakları (net) | B10: 0 | C10: 0 | D10: 0 | E10: 0 | F10: 0 | G10: 0 | H10: 0 | I10: 0
A11: Teminata Verilen Finansal Varlıklar | B11: 0 | C11: 0 | D11: 0 | E11: 0 | F11: 0 | G11: 0 | H11: 0 | I11: 0
A12: Kısa Vadeli Ticari Alacaklar | B12: 14737557 | C12: 10046145 | D12: 75999997 | E12: 29849506 | F12: 17978083 | G12: 33783383 | H12: 29963853 | I12: 33186116
A13: Finansal Kiralama Alacakları | B13: 0 | C13: 0 | D13: 0 | E13: 0 | F13: 0 | G13: 0 | H13: 0 | I13: 0
A14: Finans Sektörü Faal. Alacaklar | B14: 0 | C14: 0 | D14: 0 | E14: 0 | F14: 0 | G14: 0 | H14: 0 | I14: 0
A15: İlişkili Taraflardan Alacaklar | B15: 0 | C15: 0 | D15: 0 | E15: 0 | F15: 0 | G15: 0 | H15: 0 | I15: 0
A16: Diğer Kısa Vadeli Alacaklar | B16: 0 | C16: 0 | D16: 18854342 | E16: 0 | F16: 0 | G16: 0 | H16: 0 | I16: 0
A17: Canlı Varlıklar | B17: 0 | C17: 0 | D17: 0 | E17: 0 | F17: 0 | G17: 0 | H17: 0 | I17: 0
A18: Kullanımı Kısıtlı Banka Bakiyeleri | B18: 0 | C18: 0 | D18: 0 | E18: 0 | F18: 0 | G18: 0 | H18: 0 | I18: 0
A19: Stoklar | B19: 6913742 | C19: 8571141 | D19: 10954160 | E19: 16958481 | F19: 35577678 | G19: 32541401 | H19: 17121969 | I19: 11120235
A20: Peşin Ödenen Kira Giderleri | B20: 0 | C20: 0 | D20: 0 | E20: 0 | F20: 0 | G20: 0 | H20: 0 | I20: 0
A21: Müşteri Sözleşmelerinden Doğan Varlıklar | B21: 0 | C21: 0 | D21: 0 | E21: 0 | F21: 0 | G21: 0 | H21: 0 | I21: 0
A22: İmtiyaz Sözleşmelerine İlişkin Finansal Varlıklar | B22: 0 | C22: 0 | D22: 0 | E22: 0 | F22: 0 | G22: 0 | H22: 0 | I22: 0
A23: Türev Enstrümanlar | B23: 0 | C23: 0 | D23: 0 | E23: 0 | F23: 0 | G23: 0 | H23: 0 | I23: 0
A24: Ertelenen Vergi Varlıkları | B24: 0 | C24: 0 | D24: 0 | E24: 0 | F24: 0 | G24: 0 | H24: 0 | I24: 0
A25: Durdurulan faaliyetler ile ilgili varlıklar | B25: 0 | C25: 0 | D25: 0 | E25: 0 | F25: 0 | G25: 0 | H25: 0 | I25: 0
A26: Ertelenmiş Sigortacılık Üretim Giderleri | B26: 0 | C26: 0 | D26: 0 | E26: 0 | F26: 0 | G26: 0 | H26: 0 | I26: 0
A27: Peşin Ödenmiş Giderler | B27: 161922 | C27: 59671 | D27: 224880 | E27: 483099 | F27: 1464998 | G27: 1843475 | H27: 1449362 | I27: 336496
A28: Cari Dönem Vergisiyle İlgili Varlıklar | B28: 289944 | C28: 3158618 | D28: 2727361 | E28: 2166881 | F28: 912010 | G28: 63705 | H28: 71002 | I28: 103240
A29: Nakit Dışı Serbest Kullanılabilir Teminatlar | B29: 0 | C29: 0 | D29: 0 | E29: 0 | F29: 0 | G29: 0 | H29: 0 | I29: 0
A30: Diğer Dönen Varlıklar | B30: 7148457 | C30: 13280297 | D30: 14026528 | E30: 17779677 | F30: 10298911 | G30: 2987569 | H30: 9721405 | I30: 15946483
A31: Vadesine kadar elde tut. men. kıy. | B31: 0 | C31: 0 | D31: 0 | E31: 0 | F31: 0 | G31: 0 | H31: 0 | I31: 0
A32: Satılmaya Hazır Finansal Varlıklar | B32: 0 | C32: 0 | D32: 0 | E32: 0 | F32: 0 | G32: 0 | H32: 0 | I32: 0
A33: Alım Satım Amaçlı Menkul Kıymetler | B33: 0 | C33: 0 | D33: 0 | E33: 0 | F33: 0 | G33: 0 | H33: 0 | I33: 0
A34: İş Ortaklıklarının Dönen Varlıklar İçindeki Payı | B34: 0 | C34: 0 | D34: 0 | E34: 0 | F34: 0 | G34: 0 | H34: 0 | I34: 0
A35: Elden Çıkarılacak Faaliyetler ile İlgili Varlıklar | B35: 0 | C35: 0 | D35: 0 | E35: 0 | F35: 0 | G35: 0 | H35: 0 | I35: 0
A36: Satım amaçlı elde tutulan maddi duran varlıklar | B36: 0 | C36: 0 | D36: 97817 | E36: 280706 | F36: 65333 | G36: 230303 | H36: 133376 | I36: 131850
A37: Ortaklara Dağıtılmak Üzere Elde Tutulan Duran Varlıklar | B37: 0 | C37: 0 | D37: 0 | E37: 0 | F37: 0 | G37: 0 | H37: 0 | I37: 0
A38: DURAN VARLIKLAR | B38: 179229003 | C38: 553613623 | D38: 601060839 | E38: 575093689 | F38: 594900855 | G38: 601682013 | H38: 591506465 | I38: 581790711
A39: Menkul Kıymetler | B39: 0 | C39: 0 | D39: 0 | E39: 0 | F39: 0 | G39: 0 | H39: 0 | I39: 0
A40: Krediler ve Avanslar | B40: 0 | C40: 0 | D40: 0 | E40: 0 | F40: 0 | G40: 0 | H40: 0 | I40: 0
A41: Faktoring alacakları (net) | B41: 0 | C41: 0 | D41: 0 | E41: 0 | F41: 0 | G41: 0 | H41: 0 | I41: 0
A42: Uzun Vadeli Ticari Alacaklar | B42: 0 | C42: 0 | D42: 0 | E42: 0 | F42: 0 | G42: 0 | H42: 0 | I42: 0
A43: Finansal Kiralama Alacakları | B43: 0 | C43: 0 | D43: 0 | E43: 0 | F43: 0 | G43: 0 | H43: 0 | I43: 0
A44: Finans Sektörü Faal. Alacaklar | B44: 0 | C44: 0 | D44: 0 | E44: 0 | F44: 0 | G44: 0 | H44: 0 | I44: 0
A45: İlişkili Taraflardan Alacaklar | B45: 0 | C45: 0 | D45: 0 | E45: 0 | F45: 0 | G45: 0 | H45: 0 | I45: 0
A46: Türev Enstrümanlar | B46: 0 | C46: 0 | D46: 0 | E46: 0 | F46: 0 | G46: 0 | H46: 0 | I46: 0
A47: Diğer Uzun Vadeli Alacaklar | B47: 206800 | C47: 155589 | D47: 155589 | E47: 94581 | F47: 94581 | G47: 94581 | H47: 94581 | I47: 94581
A48: Finansal Yatırımlar | B48: 0 | C48: 0 | D48: 0 | E48: 0 | F48: 0 | G48: 0 | H48: 0 | I48: 0
A49: Özkaynak Yöntemiyle Değerlenen Yatırımlar | B49: 0 | C49: 0 | D49: 0 | E49: 0 | F49: 0 | G49: 0 | H49: 0 | I49: 0
A50: Canlı Varlıklar | B50: 0 | C50: 0 | D50: 0 | E50: 0 | F50: 0 | G50: 0 | H50: 0 | I50: 0
A51: İmtiyaz Sözleşmelerine İlişkin Finansal Varlıklar | B51: 0 | C51: 0 | D51: 0 | E51: 0 | F51: 0 | G51: 0 | H51: 0 | I51: 0
A52: Stoklar | B52: 0 | C52: 0 | D52: 0 | E52: 0 | F52: 0 | G52: 0 | H52: 0 | I52: 0
A53: Finansal Duran Varlıklar | B53: 0 | C53: 0 | D53: 0 | E53: 0 | F53: 0 | G53: 0 | H53: 0 | I53: 0
A54: Pozitif/Negatif Şerefiye | B54: 0 | C54: 0 | D54: 0 | E54: 0 | F54: 0 | G54: 0 | H54: 0 | I54: 0
A55: Yatırım Amaçlı Gayrimenkuller | B55: 0 | C55: 0 | D55: 0 | E55: 0 | F55: 0 | G55: 0 | H55: 0 | I55: 0
A56: Proje Halindeki Yatırım Amaçlı Gayrimenkuller | B56: 0 | C56: 0 | D56: 0 | E56: 0 | F56: 0 | G56: 0 | H56: 0 | I56: 0
A57: Alım Satım Amaçlı Gayrimenkuller (net) | B57: 0 | C57: 0 | D57: 0 | E57: 0 | F57: 0 | G57: 0 | H57: 0 | I57: 0
A58: Maddi Duran Varlıklar | B58: 154292865 | C58: 516709178 | D58: 567257185 | E58: 542599154 | F58: 535515727 | G58: 528058766 | H58: 520905002 | I58: 514812202
A59: Kullanım Hakkı Varlıkları | B59: 0 | C59: 0 | D59: 0 | E59: 0 | F59: 7502419 | G59: 7243784 | H59: 6980816 | I59: 6716334
A60: Maddi Olmayan Duran Varlıklar | B60: 1039261 | C60: 944050 | D60: 1179267 | E60: 709250 | F60: 664250 | G60: 618381 | H60: 222625 | I60: 177090
A61: Müşteri Sözleşmelerinden Doğan Varlıklar | B61: 0 | C61: 0 | D61: 0 | E61: 0 | F61: 0 | G61: 0 | H61: 0 | I61: 0
A62: Ertelenen Vergi Varlıkları | B62: 780287 | C62: 2452409 | D62: 5510878 | E62: 17770608 | F62: 23926399 | G62: 30268199 | H62: 33442120 | I62: 37683582
A63: Cari Dönem Vergisiyle İlgili Duran Varlıklar | B63: 0 | C63: 0 | D63: 0 | E63: 0 | F63: 0 | G63: 0 | H63: 0 | I63: 0
A64: Nakit Dışı Serbest Kullanılabilir Teminatlar | B64: 0 | C64: 0 | D64: 0 | E64: 0 | F64: 0 | G64: 0 | H64: 0 | I64: 0
A65: Peşin Ödenen Kira Giderleri | B65: 0 | C65: 0 | D65: 0 | E65: 0 | F65: 0 | G65: 0 | H65: 0 | I65: 0
A66: Peşin Ödenmiş Giderler | B66: 22909790 | C66: 3918055 | D66: 17191 | E66: 0 | F66: 0 | G66: 0 | H66: 0 | I66: 0
A67: Diğer Duran Varlıklar | B67: 0 | C67: 29434342 | D67: 26940729 | E67: 13920096 | F67: 27197479 | G67: 35398302 | H67: 29861321 | I67: 22306922
A68: Vadesine kadar elde tut. men. kıy. | B68: 0 | C68: 0 | D68: 0 | E68: 0 | F68: 0 | G68: 0 | H68: 0 | I68: 0
A69: Satılmaya Hazır Finansal Varlıklar | B69: 0 | C69: 0 | D69: 0 | E69: 0 | F69: 0 | G69: 0 | H69: 0 | I69: 0
A70: İş Ortaklıklarının Duran Varlıklar İçindeki Payı | B70: 0 | C70: 0 | D70: 0 | E70: 0 | F70: 0 | G70: 0 | H70: 0 | I70: 0
A71: Ana Ortaklık Dışı Paylar | B71: 0 | C71: 0 | D71: 0 | E71: 0 | F71: 0 | G71: 0 | H71: 0 | I71: 0
A72: TOPLAM AKTİFLER | B72: 373419627 | C72: 589252419 | D72: 789193877 | E72: 661360896 | F72: 671877675 | G72: 674039081 | H72: 650186008 | I72: 648319142
A73: KISA VADELİ YÜKÜMLÜLÜKLER | B73: 39973424 | C73: 240735043 | D73: 337015628 | E73: 306179373 | F73: 271413904 | G73: 270259770 | H73: 250450607 | I73: 297312242
A74: Finansal Borçlar | B74: 56128 | C74: 69794807 | D74: 117545370 | E74: 124629923 | F74: 52495366 | G74: 37871904 | H74: 31945848 | I74: 166612789
A75: Uzun Vadeli Finansal Borçların Kısa Vadeli Kısımları | B75: 18731513 | C75: 136245598 | D75: 158903730 | E75: 161328341 | F75: 176104560 | G75: 185488756 | H75: 178813872 | I75: 99222095
A76: Mevduat | B76: 0 | C76: 0 | D76: 0 | E76: 0 | F76: 0 | G76: 0 | H76: 0 | I76: 0
A77: Türev Araçlar | B77: 0 | C77: 0 | D77: 0 | E77: 0 | F77: 0 | G77: 0 | H77: 0 | I77: 0
A78: Faktoring borçları | B78: 0 | C78: 0 | D78: 0 | E78: 0 | F78: 0 | G78: 0 | H78: 0 | I78: 0
A79: Finansal Kiralama İşlemlerinden Borçlar | B79: 0 | C79: 0 | D79: 0 | E79: 0 | F79: 0 | G79: 0 | H79: 0 | I79: 0
A80: Finans Sektörü Faaliyetlerinden Borçlar | B80: 0 | C80: 0 | D80: 0 | E80: 0 | F80: 0 | G80: 0 | H80: 0 | I80: 0
A81: Sigorta Teknik Karşılığı | B81: 0 | C81: 0 | D81: 0 | E81: 0 | F81: 0 | G81: 0 | H81: 0 | I81: 0
A82: Diğer Finansal Yükümlülükler | B82: 0 | C82: 0 | D82: 0 | E82: 0 | F82: 0 | G82: 0 | H82: 0 | I82: 0
A83: Ticari Borçlar | B83: 19085201 | C83: 30991391 | D83: 46751137 | E83: 18267455 | F83: 37346914 | G83: 33167034 | H83: 36650264 | I83: 27598171
A84: İlişkili Taraflara Borçlar | B84: 0 | C84: 0 | D84: 0 | E84: 0 | F84: 0 | G84: 0 | H84: 0 | I84: 0
A85: Alınan Krediler | B85: 0 | C85: 0 | D85: 0 | E85: 0 | F85: 0 | G85: 0 | H85: 0 | I85: 0
A86: Diğer Borçlar | B86: 12781 | C86: 0 | D86: 946844 | E86: 0 | F86: 95 | G86: 0 | H86: 0 | I86: 0
A87: Alınan Avanslar | B87: 0 | C87: 0 | D87: 0 | E87: 0 | F87: 0 | G87: 0 | H87: 0 | I87: 0
A88: Devlet Teşvik ve Yardımları | B88: 0 | C88: 0 | D88: 0 | E88: 0 | F88: 0 | G88: 0 | H88: 0 | I88: 0
A89: Ertelenmiş Gelirler | B89: 15881 | C89: 301141 | D89: 10323369 | E89: 372302 | F89: 692097 | G89: 11520044 | H89: 511065 | I89: 1613738
A90: Cari Dönem Vergi Yükümlülüğü | B90: 0 | C90: 0 | D90: 0 | E90: 0 | F90: 0 | G90: 0 | H90: 0 | I90: 0
A91: Cari Dönem Vergisi ile İlgili Borçlar | B91: 0 | C91: 0 | D91: 0 | E91: 0 | F91: 0 | G91: 0 | H91: 0 | I91: 0
A92: Bloke Hesaplar | B92: 0 | C92: 0 | D92: 0 | E92: 0 | F92: 0 | G92: 0 | H92: 0 | I92: 0
A93: Müşteri Sözleşmelerinden Doğan Yükümlülükler | B93: 0 | C93: 0 | D93: 0 | E93: 0 | F93: 0 | G93: 0 | H93: 0 | I93: 0
A94: Özkaynak Yöntemiyle Değerlenen Yatırımlardan Yükümlülükler | B94: 0 | C94: 0 | D94: 0 | E94: 0 | F94: 0 | G94: 0 | H94: 0 | I94: 0
A95: Borç ve Gider Karşılıkları | B95: 114664 | C95: 652900 | D95: 1080295 | E95: 689243 | F95: 2882242 | G95: 1172618 | H95: 1589523 | I95: 1002625
A96: Çalışanlara Sağlanan Faydalara İlişkin Karşılıklar | B96: 467548 | C96: 1075153 | D96: 782639 | E96: 644862 | F96: 1122989 | G96: 998244 | H96: 906827 | I96: 789856
A97: Ertelenen Vergi Yükümlülüğü | B97: 0 | C97: 0 | D97: 0 | E97: 0 | F97: 0 | G97: 0 | H97: 0 | I97: 0
A98: Durdurulan faaliyetler ile ilgili yükümlülükler | B98: 0 | C98: 0 | D98: 0 | E98: 0 | F98: 0 | G98: 0 | H98: 0 | I98: 0
A99: Diğer Kısa Vadeli Borçlar | B99: 1489708 | C99: 1674053 | D99: 682244 | E99: 247247 | F99: 769641 | G99: 41170 | H99: 33208 | I99: 472968
A100: İş Ortaklıklarının Kısa Vadeli Yükümlülükler İçindeki Payı | B100: 0 | C100: 0 | D100: 0 | E100: 0 | F100: 0 | G100: 0 | H100: 0 | I100: 0
A101: Elden Çıkarılacak Faaliyetler ile İlgili Yükümlülükler | B101: 0 | C101: 0 | D101: 0 | E101: 0 | F101: 0 | G101: 0 | H101: 0 | I101: 0
A102: Ortaklara Dağıtılmak Üzere Elde Tutulan Varlık Gruplarına İlişkin Yükümlülükler | B102: 0 | C102: 0 | D102: 0 | E102: 0 | F102: 0 | G102: 0 | H102: 0 | I102: 0
A103: UZUN VADELİ YÜKÜMLÜLÜKLER | B103: 168049759 | C103: 173677679 | D103: 223317368 | E103: 122467440 | F103: 182222003 | G103: 200458660 | H103: 213497077 | I103: 179312386
A104: Mevduatlar | B104: 0 | C104: 0 | D104: 0 | E104: 0 | F104: 0 | G104: 0 | H104: 0 | I104: 0
A105: Finansal Borçlar | B105: 164523352 | C105: 169909965 | D105: 219285066 | E105: 117901128 | F105: 177053941 | G105: 195817553 | H105: 209218178 | I105: 174492013
A106: Faktoring borçları | B106: 0 | C106: 0 | D106: 0 | E106: 0 | F106: 0 | G106: 0 | H106: 0 | I106: 0
A107: Finansal Kiralama İşlemlerinden Borçlar | B107: 0 | C107: 0 | D107: 0 | E107: 0 | F107: 0 | G107: 0 | H107: 0 | I107: 0
A108: Finans Sektörü Faaliyetlerinden Borçlar | B108: 0 | C108: 0 | D108: 0 | E108: 0 | F108: 0 | G108: 0 | H108: 0 | I108: 0
A109: Sigorta teknik karşılıkları | B109: 0 | C109: 0 | D109: 0 | E109: 0 | F109: 0 | G109: 0 | H109: 0 | I109: 0
A110: Diğer Finansal Yükümlülükler | B110: 0 | C110: 0 | D110: 0 | E110: 0 | F110: 0 | G110: 0 | H110: 0 | I110: 0
A111: Ticari Borçlar | B111: 0 | C111: 0 | D111: 0 | E111: 0 | F111: 0 | G111: 0 | H111: 0 | I111: 0
A112: İlişkili Taraflara Borçlar | B112: 0 | C112: 0 | D112: 0 | E112: 0 | F112: 0 | G112: 0 | H112: 0 | I112: 0
A113: Alınan Krediler | B113: 0 | C113: 0 | D113: 0 | E113: 0 | F113: 0 | G113: 0 | H113: 0 | I113: 0
A114: Diğer Borçlar | B114: 0 | C114: 0 | D114: 0 | E114: 0 | F114: 0 | G114: 0 | H114: 0 | I114: 0
A115: Müşteri Sözleşmelerinden Doğan Yükümlülükler | B115: 0 | C115: 0 | D115: 0 | E115: 0 | F115: 0 | G115: 0 | H115: 0 | I115: 0
A116: Bloke Hesaplar | B116: 0 | C116: 0 | D116: 0 | E116: 0 | F116: 0 | G116: 0 | H116: 0 | I116: 0
A117: Alınan Avanslar | B117: 0 | C117: 0 | D117: 0 | E117: 0 | F117: 0 | G117: 0 | H117: 0 | I117: 0
A118: Çalışanlara Sağlanan Faydalar Kapsamında Borçlar | B118: 0 | C118: 0 | D118: 0 | E118: 0 | F118: 0 | G118: 0 | H118: 0 | I118: 0
A119: Borç ve Gider Karşılıkları | B119: 3526407 | C119: 3767714 | D119: 4032302 | E119: 4566312 | F119: 5168062 | G119: 4641107 | H119: 4278899 | I119: 4820373
A120: Türev Finansal Araçlardan Borçlar | B120: 0 | C120: 0 | D120: 0 | E120: 0 | F120: 0 | G120: 0 | H120: 0 | I120: 0
A121: Cari Dönem Vergisiyle İlgili Borçlar | B121: 0 | C121: 0 | D121: 0 | E121: 0 | F121: 0 | G121: 0 | H121: 0 | I121: 0
A122: Ertelenen Vergi Yükümlülüğü | B122: 0 | C122: 0 | D122: 0 | E122: 0 | F122: 0 | G122: 0 | H122: 0 | I122: 0
A123: Devlet Teşvik ve Yardımları | B123: 0 | C123: 0 | D123: 0 | E123: 0 | F123: 0 | G123: 0 | H123: 0 | I123: 0
A124: Ertelenmiş Gelirler | B124: 0 | C124: 0 | D124: 0 | E124: 0 | F124: 0 | G124: 0 | H124: 0 | I124: 0
A125: Devam Eden Sözleşmeler Hakediş Bedelleri | B125: 0 | C125: 0 | D125: 0 | E125: 0 | F125: 0 | G125: 0 | H125: 0 | I125: 0
A126: Pozitif/Negatif Şerefiye | B126: 0 | C126: 0 | D126: 0 | E126: 0 | F126: 0 | G126: 0 | H126: 0 | I126: 0
A127: Diğer Uzun Vadeli Borçlar | B127: 0 | C127: 0 | D127: 0 | E127: 0 | F127: 0 | G127: 0 | H127: 0 | I127: 0
A128: İş Ortaklıklarının Uzun Vadeli Yükümlülükler İçindeki Payı | B128: 0 | C128: 0 | D128: 0 | E128: 0 | F128: 0 | G128: 0 | H128: 0 | I128: 0
A129: ÖZ SERMAYE (AZINLIK PAYI DAHİL) | B129: 165396444 | C129: 174839697 | D129: 228860881 | E129: 232714083 | F129: 218241768 | G129: 203320651 | H129: 186238324 | I129: 171694514
A130: ANA ORTAKLIK DIŞI ÖZSERMAYE | B130: 0 | C130: 0 | D130: 0 | E130: 0 | F130: 0 | G130: 0 | H130: 0 | I130: 0
A131: Aile Üyeleri | B131: 0 | C131: 0 | D131: 0 | E131: 0 | F131: 0 | G131: 0 | H131: 0 | I131: 0
A132: Diğerleri | B132: 0 | C132: 0 | D132: 0 | E132: 0 | F132: 0 | G132: 0 | H132: 0 | I132: 0
A133: ÖZ SERMAYE (ANA ORTAKLIĞA AİT) | B133: 165396444 | C133: 174839697 | D133: 228860881 | E133: 232714083 | F133: 218241768 | G133: 203320651 | H133: 186238324 | I133: 171694514
A134: Sermaye | B134: 100000000 | C134: 100000000 | D134: 100000000 | E134: 100000000 | F134: 100000000 | G134: 100000000 | H134: 100000000 | I134: 100000000
A135: Ödenmeyen Sermaye(-) | B135: 0 | C135: 0 | D135: 0 | E135: 0 | F135: 0 | G135: 0 | H135: 0 | I135: 0
A136: Karşılıklı İştirak Sermaye Düzeltmesi | B136: 0 | C136: 0 | D136: 0 | E136: 0 | F136: 0 | G136: 0 | H136: 0 | I136: 0
A137: Paylara İlişkin Primler/İskontolar | B137: 1069284 | C137: 1069284 | D137: 1069284 | E137: 1069284 | F137: 1069284 | G137: 1069284 | H137: 1069284 | I137: 1069284
A138: İşletmenin Geri Satın Alınan Kendi Hisseleri | B138: 0 | C138: 0 | D138: 0 | E138: 0 | F138: 0 | G138: 0 | H138: 0 | I138: 0
A139: İşletmenin Geri Alınan Kendi Hisse Senetlerinin Satışından Doğan Kar | B139: 0 | C139: 0 | D139: 0 | E139: 0 | F139: 0 | G139: 0 | H139: 0 | I139: 0
A140: Sermaye Avansı | B140: 0 | C140: 0 | D140: 0 | E140: 0 | F140: 0 | G140: 0 | H140: 0 | I140: 0
A141: Kar veya Zararda Yeniden Sınıflandırılmayacak Birikmiş Diğer Kapsamlı Gel. veya Gid. | B141: -1203522 | C141: -1362584 | D141: -1352726 | E141: -1422488 | F141: -1433384 | G141: -1270003 | H141: -1634749 | I141: -1439080
A142: Kar veya Zararda Yeniden Sınıflandırılacak Birikmiş Diğer Kapsamlı Gelir. veya Gid. | B142: 0 | C142: 0 | D142: 0 | E142: 0 | F142: 0 | G142: 0 | H142: 0 | I142: 0
A143: Sermaye Yedekleri | B143: 1069284 | C143: 1069284 | D143: 1069284 | E143: 1069284 | F143: 1069284 | G143: 1069284 | H143: 1069284 | I143: 1069284
A144: Sermaye Taahhütleri (-) | B144: 0 | C144: 0 | D144: 0 | E144: 0 | F144: 0 | G144: 0 | H144: 0 | I144: 0
A145: Katkı sermaye | B145: 0 | C145: 0 | D145: 0 | E145: 0 | F145: 0 | G145: 0 | H145: 0 | I145: 0
A146: Azınlık Hisseleri Satış Opsiyonu Değerleme Fonu | B146: 0 | C146: 0 | D146: 0 | E146: 0 | F146: 0 | G146: 0 | H146: 0 | I146: 0
A147: Emisyon Primi | B147: 0 | C147: 0 | D147: 0 | E147: 0 | F147: 0 | G147: 0 | H147: 0 | I147: 0
A148: Yeniden Değerleme Artışı | B148: -1203522 | C148: -1362584 | D148: -1352726 | E148: -1422488 | F148: -1433384 | G148: -1270003 | H148: -1634749 | I148: -1439080
A149: Kar Yedekleri | B149: 0 | C149: 0 | D149: 0 | E149: 0 | F149: 0 | G149: 0 | H149: 0 | I149: 0
A150: Dağıtılmamış Kar | B150: 0 | C150: 0 | D150: 0 | E150: 0 | F150: 0 | G150: 0 | H150: 0 | I150: 0
A151: Sermaye artırımı ile ilgili masraflar | B151: 0 | C151: 0 | D151: 0 | E151: 0 | F151: 0 | G151: 0 | H151: 0 | I151: 0
A152: Nakit Akım Koruması ile İlgili Birikmiş Kar | B152: 0 | C152: 0 | D152: 0 | E152: 0 | F152: 0 | G152: 0 | H152: 0 | I152: 0
A153: Karşılıklı İştirak Serm. Düzeltmesinin Nom. Tut. Aşan Kısım | B153: 0 | C153: 0 | D153: 0 | E153: 0 | F153: 0 | G153: 0 | H153: 0 | I153: 0
A154: Finansal Yatırımlar Değer Artış Fonu | B154: 0 | C154: 0 | D154: 0 | E154: 0 | F154: 0 | G154: 0 | H154: 0 | I154: 0
A155: Diğer Özkaynak Payları | B155: 0 | C155: 0 | D155: 0 | E155: 0 | F155: 0 | G155: 0 | H155: 0 | I155: 0
A156: Diğer Yedekler | B156: 0 | C156: 0 | D156: 0 | E156: 0 | F156: 0 | G156: 0 | H156: 0 | I156: 0
A157: Net Dönem Karı | B157: 14227079 | C157: 9602315 | D157: 54011326 | E157: 3922964 | F157: 0 | G157: 0 | H157: 0 | I157: 0
A158: Dönem Zararı (-) | B158: 0 | C158: 0 | D158: 0 | E158: 0 | F158: 14461419 | G158: 29545917 | H158: 46263498 | I158: 61002977
A159: Geçmiş Yıl Karları | B159: 33197305 | C159: 46631083 | D159: 55540539 | E159: 106092076 | F159: 110015040 | G159: 110015040 | H159: 110015040 | I159: 110015040
A160: Net Dön. Kar. Ser. Hes. Ed. Tran. Ed. M. Dur. V. Sa. Karı | B160: 0 | C160: 0 | D160: 0 | E160: 0 | F160: 0 | G160: 0 | H160: 0 | I160: 0
A161: Geçmiş Yıl Zararları (-) | B161: 0 | C161: 0 | D161: 0 | E161: 0 | F161: 0 | G161: 0 | H161: 0 | I161: 0
A162: Yabancı Para Çevrim Farkları | B162: 0 | C162: 0 | D162: 0 | E162: 0 | F162: 0 | G162: 0 | H162: 0 | I162: 0
A163: Kardan Ayrılan Kısıtlanmış Yedekler | B163: 1374220 | C163: 2167521 | D163: 2860380 | E163: 6320169 | F163: 6320169 | G163: 6320169 | H163: 6320169 | I163: 6320169
A164: Kardan Ayrılan Kısıtlanmış Yedekler (27) | B164: 0 | C164: 0 | D164: 0 | E164: 0 | F164: 0 | G164: 0 | H164: 0 | I164: 0
A165: Zarar Telafi Fonu | B165: 0 | C165: 0 | D165: 0 | E165: 0 | F165: 0 | G165: 0 | H165: 0 | I165: 0
A166: Özsermaye Enf. Düz. Farkları | B166: 16732078 | C166: 16732078 | D166: 16732078 | E166: 16732078 | F166: 16732078 | G166: 16732078 | H166: 16732078 | I166: 16732078
A167: Sermaye Birleşme Fonu | B167: 0 | C167: 0 | D167: 0 | E167: 0 | F167: 0 | G167: 0 | H167: 0 | I167: 0
A168: İlave Ödenmiş Sermaye | B168: 0 | C168: 0 | D168: 0 | E168: 0 | F168: 0 | G168: 0 | H168: 0 | I168: 0
A169: Birikmiş Karlar/Zararlar | B169: 0 | C169: 0 | D169: 0 | E169: 0 | F169: 0 | G169: 0 | H169: 0 | I169: 0
A170: Yatırım Teşvikleri | B170: 0 | C170: 0 | D170: 0 | E170: 0 | F170: 0 | G170: 0 | H170: 0 | I170: 0
A171: Satılmaya Haz. Var. Üz. Gerçekleşmemiş Net Gelir | B171: 0 | C171: 0 | D171: 0 | E171: 0 | F171: 0 | G171: 0 | H171: 0 | I171: 0
A172: Ana ortaklık hisse satış kar/zarar | B172: 0 | C172: 0 | D172: 0 | E172: 0 | F172: 0 | G172: 0 | H172: 0 | I172: 0
A173: AZINLIK PAYLARI | B173: 0 | C173: 0 | D173: 0 | E173: 0 | F173: 0 | G173: 0 | H173: 0 | I173: 0
A174: TOPLAM PASİFLER | B174: 373419627 | C174: 589252419 | D174: 789193877 | E174: 661360896 | F174: 671877675 | G174: 674039081 | H174: 650186008 | I174: 648319142
A176: GELİR TABLOSU | B176: 2015/12 | C176: 2016/12 | D176: 2017/12 | E176: 2018/12 | F176: 2019/03 | G176: 2019/06 | H176: 2019/09 | I176: 2019/12
A177: BRÜT SATIŞLAR | B177: 65144618 | C177: 61541689 | D177: 169336446 | E177: 176252779 | F177: 26972443 | G177: 67700055 | H177: 123256911 | I177: 163848533
A178: Yurtiçi Satışlar | B178: 65144618 | C178: 61541689 | D178: 169336446 | E178: 176252779 | F178: 15298934 | G178: 43386660 | H178: 74552770 | I178: 109955264
A179: Yurtdışı Satışlar | B179: 0 | C179: 0 | D179: 0 | E179: 0 | F179: 11673509 | G179: 24313395 | H179: 48704141 | I179: 53893269
A180: Diğer Satışlar | B180: 0 | C180: 0 | D180: 0 | E180: 0 | F180: 0 | G180: 0 | H180: 0 | I180: 0
A181: SATIŞLARDAN İNDİRİMLER (-) | B181: 684278 | C181: 714793 | D181: 1183348 | E181: 1053605 | F181: 254266 | G181: 587362 | H181: 923055 | I181: 516464
A182: Satışdan İadeler (-) | B182: 0 | C182: 0 | D182: 0 | E182: 0 | F182: 0 | G182: 0 | H182: 0 | I182: 0
A183: Satış İskontoları (-) | B183: 684278 | C183: 714793 | D183: 1183348 | E183: 1053605 | F183: 254266 | G183: 587362 | H183: 923055 | I183: 516464
A184: Diğer İndirimler (-) | B184: 0 | C184: 0 | D184: 0 | E184: 0 | F184: 0 | G184: 0 | H184: 0 | I184: 0
A185: ESAS FAALİYET GELİRLERİ | B185: 0 | C185: 0 | D185: 0 | E185: 0 | F185: 0 | G185: 0 | H185: 0 | I185: 0
A186: SATIŞ GELİRLERİ | B186: 64460340 | C186: 60826896 | D186: 168153098 | E186: 175199174 | F186: 26718177 | G186: 67112693 | H186: 122333856 | I186: 163332069
A187: FAİZ GELİRİ | B187: 0 | C187: 0 | D187: 0 | E187: 0 | F187: 0 | G187: 0 | H187: 0 | I187: 0
A188: SATIŞLARIN MALİYETİ (-) | B188: 49389930 | C188: 55188789 | D188: 133230098 | E188: 142690797 | F188: 31342916 | G188: 75703242 | H188: 129277488 | I188: 169930960
A189: FAİZ GİDERİ | B189: 0 | C189: 0 | D189: 0 | E189: 0 | F189: 0 | G189: 0 | H189: 0 | I189: 0
A190: MUHTEMEL KREDİ ZARAR KARŞ. FİN.KİR. ALCK. KARŞ. VE FAKT. DEĞ. DÜŞ. KARŞ. | B190: 0 | C190: 0 | D190: 0 | E190: 0 | F190: 0 | G190: 0 | H190: 0 | I190: 0
A191: HİZMET GELİRLERİ | B191: 0 | C191: 0 | D191: 0 | E191: 0 | F191: 0 | G191: 0 | H191: 0 | I191: 0
A192: HİZMET GİDERLERİ (-) | B192: 0 | C192: 0 | D192: 0 | E192: 0 | F192: 0 | G192: 0 | H192: 0 | I192: 0
A193: KAMBİYO KARI/ZARARI | B193: 0 | C193: 0 | D193: 0 | E193: 0 | F193: 0 | G193: 0 | H193: 0 | I193: 0
A194: SERMAYE PİYASASI İŞLEM KARI/ZARARI | B194: 0 | C194: 0 | D194: 0 | E194: 0 | F194: 0 | G194: 0 | H194: 0 | I194: 0
A195: ESAS FAALİYETLERDEN DİĞER GİDER/GELİR | B195: 0 | C195: 0 | D195: 0 | E195: 0 | F195: 0 | G195: 0 | H195: 0 | I195: 0
A196: FAİZ, ÜCRET, PRİM, KOMİSYON VE DİĞER GELİRLER | B196: 0 | C196: 0 | D196: 0 | E196: 0 | F196: 0 | G196: 0 | H196: 0 | I196: 0
A197: Kambiyo Gelirleri | B197: 0 | C197: 0 | D197: 0 | E197: 0 | F197: 0 | G197: 0 | H197: 0 | I197: 0
A198: Faiz Gelirleri | B198: 0 | C198: 0 | D198: 0 | E198: 0 | F198: 0 | G198: 0 | H198: 0 | I198: 0
A199: Kar Payı Gelirleri | B199: 0 | C199: 0 | D199: 0 | E199: 0 | F199: 0 | G199: 0 | H199: 0 | I199: 0
A200: Türev Finansal İşlemlerden Kazanç | B200: 0 | C200: 0 | D200: 0 | E200: 0 | F200: 0 | G200: 0 | H200: 0 | I200: 0
A201: Portföy İşletmeciliği Faaliyetinden Elde Edilen Gelir | B201: 0 | C201: 0 | D201: 0 | E201: 0 | F201: 0 | G201: 0 | H201: 0 | I201: 0
... 91 more rows

Sheet AKENR
A1: AKENR | B1: AKENR | C1: AKENR | D1: AKENR | E1: AKENR | F1: AKENR | G1: AKENR | H1: AKENR | I1: AKENR
B2: 2015/12 | C2: 2016/12 | D2: 2017/12 | E2: 2018/12 | F2: 2019/03 | G2: 2019/06 | H2: 2019/09 | I2: 2019/12
A3: DÖNEN VARLIKLAR | B3: 932409518 | C3: 630295752 | D3: 172776667 | E3: 325456992 | F3: 290398287 | G3: 494888491 | H3: 313915313 | I3: 243750006
A4: Hazır Değerler | B4: 476767228 | C4: 433746318 | D4: 45241003 | E4: 19319811 | F4: 74605967 | G4: 270105318 | H4: 143780608 | I4: 88187054
A5: Gayrimenkul Projeleri Kapsamında Açılan Nakit Hesapları | B5: 0 | C5: 0 | D5: 0 | E5: 0 | F5: 0 | G5: 0 | H5: 0 | I5: 0
A6: Finansal Yatırımlar | B6: 0 | C6: 0 | D6: 0 | E6: 0 | F6: 0 | G6: 0 | H6: 0 | I6: 0
A7: Menkul Kıymetler | B7: 0 | C7: 0 | D7: 0 | E7: 0 | F7: 0 | G7: 0 | H7: 0 | I7: 0
A8: Türkiye Cumhuriyet Merkez Bankası Hesabı | B8: 0 | C8: 0 | D8: 0 | E8: 0 | F8: 0 | G8: 0 | H8: 0 | I8: 0
A9: Krediler ve Avanslar | B9: 0 | C9: 0 | D9: 0 | E9: 0 | F9: 0 | G9: 0 | H9: 0 | I9: 0
A10: Faktoring alacakları (net) | B10: 0 | C10: 0 | D10: 0 | E10: 0 | F10: 0 | G10: 0 | H10: 0 | I10: 0
A11: Teminata Verilen Finansal Varlıklar | B11: 0 | C11: 0 | D11: 0 | E11: 0 | F11: 0 | G11: 0 | H11: 0 | I11: 0
A12: Kısa Vadeli Ticari Alacaklar | B12: 105827317 | C12: 141712737 | D12: 90301108 | E12: 172518893 | F12: 93279044 | G12: 132967966 | H12: 94878440 | I12: 72138699
A13: Finansal Kiralama Alacakları | B13: 0 | C13: 0 | D13: 0 | E13: 0 | F13: 0 | G13: 0 | H13: 0 | I13: 0
A14: Finans Sektörü Faal. Alacaklar | B14: 0 | C14: 0 | D14: 0 | E14: 0 | F14: 0 | G14: 0 | H14: 0 | I14: 0
A15: İlişkili Taraflardan Alacaklar | B15: 0 | C15: 0 | D15: 0 | E15: 0 | F15: 0 | G15: 0 | H15: 0 | I15: 0
A16: Diğer Kısa Vadeli Alacaklar | B16: 280985385 | C16: 1994853 | D16: 2395192 | E16: 13753685 | F16: 16194354 | G16: 13763361 | H16: 3764940 | I16: 5239483
A17: Canlı Varlıklar | B17: 0 | C17: 0 | D17: 0 | E17: 0 | F17: 0 | G17: 0 | H17: 0 | I17: 0
A18: Kullanımı Kısıtlı Banka Bakiyeleri | B18: 0 | C18: 0 | D18: 0 | E18: 0 | F18: 0 | G18: 0 | H18: 0 | I18: 0
A19: Stoklar | B19: 17531489 | C19: 5669202 | D19: 1666918 | E19: 674399 | F19: 721351 | G19: 619698 | H19: 1785964 | I19: 817302
A20: Peşin Ödenen Kira Giderleri | B20: 0 | C20: 0 | D20: 0 | E20: 0 | F20: 0 | G20: 0 | H20: 0 | I20: 0
A21: Müşteri Sözleşmelerinden Doğan Varlıklar | B21: 0 | C21: 0 | D21: 0 | E21: 0 | F21: 0 | G21: 0 | H21: 0 | I21: 0
A22: İmtiyaz Sözleşmelerine İlişkin Finansal Varlıklar | B22: 0 | C22: 0 | D22: 0 | E22: 0 | F22: 0 | G22: 0 | H22: 0 | I22: 0
A23: Türev Enstrümanlar | B23: 859845 | C23: 0 | D23: 497923 | E23: 24345 | F23: 996200 | G23: 0 | H23: 0 | I23: 283082
A24: Ertelenen Vergi Varlıkları | B24: 0 | C24: 0 | D24: 0 | E24: 0 | F24: 0 | G24: 0 | H24: 0 | I24: 0
A25: Durdurulan faaliyetler ile ilgili varlıklar | B25: 0 | C25: 0 | D25: 0 | E25: 0 | F25: 0 | G25: 0 | H25: 0 | I25: 0
A26: Ertelenmiş Sigortacılık Üretim Giderleri | B26: 0 | C26: 0 | D26: 0 | E26: 0 | F26: 0 | G26: 0 | H26: 0 | I26: 0
A27: Peşin Ödenmiş Giderler | B27: 14569525 | C27: 11743652 | D27: 9416948 | E27: 13571389 | F27: 15993596 | G27: 13532693 | H27: 10817316 | I27: 23090079
A28: Cari Dönem Vergisiyle İlgili Varlıklar | B28: 2253044 | C28: 3193413 | D28: 2262033 | E28: 534121 | F28: 843875 | G28: 958913 | H28: 2074688 | I28: 2434194
A29: Nakit Dışı Serbest Kullanılabilir Teminatlar | B29: 0 | C29: 0 | D29: 0 | E29: 0 | F29: 0 | G29: 0 | H29: 0 | I29: 0
A30: Diğer Dönen Varlıklar | B30: 14253927 | C30: 15271729 | D30: 20995542 | E30: 105060349 | F30: 86253925 | G30: 61430567 | H30: 55303382 | I30: 50460113
A31: Vadesine kadar elde tut. men. kıy. | B31: 0 | C31: 0 | D31: 0 | E31: 0 | F31: 0 | G31: 0 | H31: 0 | I31: 0
A32: Satılmaya Hazır Finansal Varlıklar | B32: 0 | C32: 0 | D32: 0 | E32: 0 | F32: 0 | G32: 0 | H32: 0 | I32: 0
A33: Alım Satım Amaçlı Menkul Kıymetler | B33: 0 | C33: 0 | D33: 0 | E33: 0 | F33: 0 | G33: 0 | H33: 0 | I33: 0
A34: İş Ortaklıklarının Dönen Varlıklar İçindeki Payı | B34: 0 | C34: 0 | D34: 0 | E34: 0 | F34: 0 | G34: 0 | H34: 0 | I34: 0
A35: Elden Çıkarılacak Faaliyetler ile İlgili Varlıklar | B35: 0 | C35: 0 | D35: 0 | E35: 0 | F35: 0 | G35: 0 | H35: 0 | I35: 0
A36: Satım amaçlı elde tutulan maddi duran varlıklar | B36: 19361758 | C36: 16963848 | D36: 0 | E36: 0 | F36: 1509975 | G36: 1509975 | H36: 1509975 | I36: 1100000
A37: Ortaklara Dağıtılmak Üzere Elde Tutulan Duran Varlıklar | B37: 0 | C37: 0 | D37: 0 | E37: 0 | F37: 0 | G37: 0 | H37: 0 | I37: 0
A38: DURAN VARLIKLAR | B38: 4398447784 | C38: 4414255790 | D38: 5706436935 | E38: 5379111710 | F38: 5300488530 | G38: 5268854694 | H38: 5209469438 | I38: 6630323175
A39: Menkul Kıymetler | B39: 0 | C39: 0 | D39: 0 | E39: 0 | F39: 0 | G39: 0 | H39: 0 | I39: 0
A40: Krediler ve Avanslar | B40: 0 | C40: 0 | D40: 0 | E40: 0 | F40: 0 | G40: 0 | H40: 0 | I40: 0
A41: Faktoring alacakları (net) | B41: 0 | C41: 0 | D41: 0 | E41: 0 | F41: 0 | G41: 0 | H41: 0 | I41: 0
A42: Uzun Vadeli Ticari Alacaklar | B42: 18780940 | C42: 16624553 | D42: 8055071 | E42: 0 | F42: 0 | G42: 0 | H42: 0 | I42: 0
A43: Finansal Kiralama Alacakları | B43: 0 | C43: 0 | D43: 0 | E43: 0 | F43: 0 | G43: 0 | H43: 0 | I43: 0
A44: Finans Sektörü Faal. Alacaklar | B44: 0 | C44: 0 | D44: 0 | E44: 0 | F44: 0 | G44: 0 | H44: 0 | I44: 0
A45: İlişkili Taraflardan Alacaklar | B45: 0 | C45: 0 | D45: 0 | E45: 0 | F45: 0 | G45: 0 | H45: 0 | I45: 0
A46: Türev Enstrümanlar | B46: 0 | C46: 0 | D46: 0 | E46: 0 | F46: 0 | G46: 0 | H46: 0 | I46: 0
A47: Diğer Uzun Vadeli Alacaklar | B47: 302948 | C47: 295247 | D47: 7325006 | E47: 939624 | F47: 969953 | G47: 2958784 | H47: 2786272 | I47: 3116517
A48: Finansal Yatırımlar | B48: 100000 | C48: 100000 | D48: 100000 | E48: 100000 | F48: 100000 | G48: 100000 | H48: 100000 | I48: 100000
A49: Özkaynak Yöntemiyle Değerlenen Yatırımlar | B49: 0 | C49: 0 | D49: 0 | E49: 0 | F49: 0 | G49: 0 | H49: 0 | I49: 0
A50: Canlı Varlıklar | B50: 0 | C50: 0 | D50: 0 | E50: 0 | F50: 0 | G50: 0 | H50: 0 | I50: 0
A51: İmtiyaz Sözleşmelerine İlişkin Finansal Varlıklar | B51: 0 | C51: 0 | D51: 0 | E51: 0 | F51: 0 | G51: 0 | H51: 0 | I51: 0
A52: Stoklar | B52: 25954366 | C52: 13016604 | D52: 17154844 | E52: 18769298 | F52: 19329330 | G52: 20233561 | H52: 18996569 | I52: 20522180
A53: Finansal Duran Varlıklar | B53: 0 | C53: 0 | D53: 0 | E53: 0 | F53: 0 | G53: 0 | H53: 0 | I53: 0
A54: Pozitif/Negatif Şerefiye | B54: 0 | C54: 0 | D54: 0 | E54: 0 | F54: 0 | G54: 0 | H54: 0 | I54: 0
A55: Yatırım Amaçlı Gayrimenkuller | B55: 0 | C55: 0 | D55: 0 | E55: 0 | F55: 0 | G55: 0 | H55: 0 | I55: 0
A56: Proje Halindeki Yatırım Amaçlı Gayrimenkuller | B56: 0 | C56: 0 | D56: 0 | E56: 0 | F56: 0 | G56: 0 | H56: 0 | I56: 0
A57: Alım Satım Amaçlı Gayrimenkuller (net) | B57: 0 | C57: 0 | D57: 0 | E57: 0 | F57: 0 | G57: 0 | H57: 0 | I57: 0
A58: Maddi Duran Varlıklar | B58: 4049357799 | C58: 3974599720 | D58: 5474149740 | E58: 5227937915 | F58: 5165656573 | G58: 5105532147 | H58: 5047316376 | I58: 6459869993
A59: Kullanım Hakkı Varlıkları | B59: 0 | C59: 0 | D59: 0 | E59: 0 | F59: 4060633 | G59: 22571064 | H59: 23208231 | I59: 23052532
A60: Maddi Olmayan Duran Varlıklar | B60: 115808714 | C60: 113364043 | D60: 113308159 | E60: 110933961 | F60: 110316286 | G60: 109683081 | H60: 109181919 | I60: 108555151
A61: Müşteri Sözleşmelerinden Doğan Varlıklar | B61: 0 | C61: 0 | D61: 0 | E61: 0 | F61: 0 | G61: 0 | H61: 0 | I61: 0
A62: Ertelenen Vergi Varlıkları | B62: 119312614 | C62: 212888977 | D62: 16795470 | E62: 741959 | F62: 21174 | G62: 642860 | H62: 1939659 | I62: 4420521
A63: Cari Dönem Vergisiyle İlgili Duran Varlıklar | B63: 0 | C63: 0 | D63: 0 | E63: 0 | F63: 0 | G63: 0 | H63: 0 | I63: 0
A64: Nakit Dışı Serbest Kullanılabilir Teminatlar | B64: 0 | C64: 0 | D64: 0 | E64: 0 | F64: 0 | G64: 0 | H64: 0 | I64: 0
A65: Peşin Ödenen Kira Giderleri | B65: 0 | C65: 0 | D65: 0 | E65: 0 | F65: 0 | G65: 0 | H65: 0 | I65: 0
A66: Peşin Ödenmiş Giderler | B66: 8356882 | C66: 15193847 | D66: 1894505 | E66: 590860 | F66: 34581 | G66: 7133197 | H66: 5940412 | I66: 10686281
A67: Diğer Duran Varlıklar | B67: 60473521 | C67: 68172799 | D67: 67654140 | E67: 19098093 | F67: 0 | G67: 0 | H67: 0 | I67: 0
A68: Vadesine kadar elde tut. men. kıy. | B68: 0 | C68: 0 | D68: 0 | E68: 0 | F68: 0 | G68: 0 | H68: 0 | I68: 0
A69: Satılmaya Hazır Finansal Varlıklar | B69: 0 | C69: 0 | D69: 0 | E69: 0 | F69: 0 | G69: 0 | H69: 0 | I69: 0
A70: İş Ortaklıklarının Duran Varlıklar İçindeki Payı | B70: 0 | C70: 0 | D70: 0 | E70: 0 | F70: 0 | G70: 0 | H70: 0 | I70: 0
A71: Ana Ortaklık Dışı Paylar | B71: 0 | C71: 0 | D71: 0 | E71: 0 | F71: 0 | G71: 0 | H71: 0 | I71: 0
A72: TOPLAM AKTİFLER | B72: 5330857302 | C72: 5044551542 | D72: 5879213602 | E72: 5704568702 | F72: 5590886817 | G72: 5763743185 | H72: 5523384751 | I72: 6874073181
A73: KISA VADELİ YÜKÜMLÜLÜKLER | B73: 369775228 | C73: 565888847 | D73: 609525198 | E73: 1467969393 | F73: 1698802494 | G73: 1885531374 | H73: 1953165561 | I73: 468919599
A74: Finansal Borçlar | B74: 0 | C74: 0 | D74: 0 | E74: 236637968 | F74: 150240625 | G74: 161189063 | H74: 70750000 | I74: 6112169
A75: Uzun Vadeli Finansal Borçların Kısa Vadeli Kısımları | B75: 190425177 | C75: 362916443 | D75: 382791156 | E75: 880492258 | F75: 1243516537 | G75: 1365089300 | H75: 1569322876 | I75: 176148232
A76: Mevduat | B76: 0 | C76: 0 | D76: 0 | E76: 0 | F76: 0 | G76: 0 | H76: 0 | I76: 0
A77: Türev Araçlar | B77: 12409975 | C77: 11669327 | D77: 15163211 | E77: 12919531 | F77: 7297710 | G77: 14309887 | H77: 20818097 | I77: 7917962
A78: Faktoring borçları | B78: 0 | C78: 0 | D78: 0 | E78: 0 | F78: 0 | G78: 0 | H78: 0 | I78: 0
A79: Finansal Kiralama İşlemlerinden Borçlar | B79: 0 | C79: 0 | D79: 0 | E79: 0 | F79: 0 | G79: 0 | H79: 0 | I79: 0
A80: Finans Sektörü Faaliyetlerinden Borçlar | B80: 0 | C80: 0 | D80: 0 | E80: 0 | F80: 0 | G80: 0 | H80: 0 | I80: 0
A81: Sigorta Teknik Karşılığı | B81: 0 | C81: 0 | D81: 0 | E81: 0 | F81: 0 | G81: 0 | H81: 0 | I81: 0
A82: Diğer Finansal Yükümlülükler | B82: 0 | C82: 0 | D82: 0 | E82: 0 | F82: 0 | G82: 0 | H82: 0 | I82: 0
A83: Ticari Borçlar | B83: 136168572 | C83: 166639823 | D83: 187880851 | E83: 313211446 | F83: 273835854 | G83: 319585659 | H83: 265724442 | I83: 229566931
A84: İlişkili Taraflara Borçlar | B84: 0 | C84: 0 | D84: 0 | E84: 0 | F84: 0 | G84: 0 | H84: 0 | I84: 0
A85: Alınan Krediler | B85: 0 | C85: 0 | D85: 0 | E85: 0 | F85: 0 | G85: 0 | H85: 0 | I85: 0
A86: Diğer Borçlar | B86: 2917414 | C86: 4014232 | D86: 1770447 | E86: 2341912 | F86: 1611152 | G86: 1860029 | H86: 1866829 | I86: 8862311
A87: Alınan Avanslar | B87: 0 | C87: 0 | D87: 0 | E87: 0 | F87: 0 | G87: 0 | H87: 0 | I87: 0
A88: Devlet Teşvik ve Yardımları | B88: 0 | C88: 0 | D88: 0 | E88: 0 | F88: 0 | G88: 0 | H88: 0 | I88: 0
A89: Ertelenmiş Gelirler | B89: 1211114 | C89: 2196463 | D89: 0 | E89: 0 | F89: 0 | G89: 0 | H89: 0 | I89: 1029524
A90: Cari Dönem Vergi Yükümlülüğü | B90: 249580 | C90: 505297 | D90: 568374 | E90: 107071 | F90: 50058 | G90: 124507 | H90: 17301 | I90: 0
A91: Cari Dönem Vergisi ile İlgili Borçlar | B91: 0 | C91: 0 | D91: 0 | E91: 0 | F91: 0 | G91: 0 | H91: 0 | I91: 0
A92: Bloke Hesaplar | B92: 0 | C92: 0 | D92: 0 | E92: 0 | F92: 0 | G92: 0 | H92: 0 | I92: 0
A93: Müşteri Sözleşmelerinden Doğan Yükümlülükler | B93: 0 | C93: 0 | D93: 0 | E93: 0 | F93: 0 | G93: 0 | H93: 0 | I93: 0
A94: Özkaynak Yöntemiyle Değerlenen Yatırımlardan Yükümlülükler | B94: 0 | C94: 0 | D94: 0 | E94: 0 | F94: 0 | G94: 0 | H94: 0 | I94: 0
A95: Borç ve Gider Karşılıkları | B95: 25872329 | C95: 17006183 | D95: 20415977 | E95: 21678205 | F95: 20616952 | G95: 22093612 | H95: 23871669 | I95: 38470280
A96: Çalışanlara Sağlanan Faydalara İlişkin Karşılıklar | B96: 521067 | C96: 941079 | D96: 935182 | E96: 581002 | F96: 1633606 | G96: 1279317 | H96: 794347 | I96: 812190
A97: Ertelenen Vergi Yükümlülüğü | B97: 0 | C97: 0 | D97: 0 | E97: 0 | F97: 0 | G97: 0 | H97: 0 | I97: 0
A98: Durdurulan faaliyetler ile ilgili yükümlülükler | B98: 0 | C98: 0 | D98: 0 | E98: 0 | F98: 0 | G98: 0 | H98: 0 | I98: 0
A99: Diğer Kısa Vadeli Borçlar | B99: 0 | C99: 0 | D99: 0 | E99: 0 | F99: 0 | G99: 0 | H99: 0 | I99: 0
A100: İş Ortaklıklarının Kısa Vadeli Yükümlülükler İçindeki Payı | B100: 0 | C100: 0 | D100: 0 | E100: 0 | F100: 0 | G100: 0 | H100: 0 | I100: 0
A101: Elden Çıkarılacak Faaliyetler ile İlgili Yükümlülükler | B101: 0 | C101: 0 | D101: 0 | E101: 0 | F101: 0 | G101: 0 | H101: 0 | I101: 0
A102: Ortaklara Dağıtılmak Üzere Elde Tutulan Varlık Gruplarına İlişkin Yükümlülükler | B102: 0 | C102: 0 | D102: 0 | E102: 0 | F102: 0 | G102: 0 | H102: 0 | I102: 0
A103: UZUN VADELİ YÜKÜMLÜLÜKLER | B103: 3325967763 | C103: 3378484021 | D103: 3401255268 | E103: 3776034316 | F103: 3678538214 | G103: 3780126732 | H103: 3532869441 | I103: 5443986073
A104: Mevduatlar | B104: 0 | C104: 0 | D104: 0 | E104: 0 | F104: 0 | G104: 0 | H104: 0 | I104: 0
A105: Finansal Borçlar | B105: 2915437903 | C105: 2911202076 | D105: 2833787191 | E105: 3394757187 | F105: 3383707799 | G105: 3474930527 | H105: 3192634994 | I105: 4916307367
A106: Faktoring borçları | B106: 0 | C106: 0 | D106: 0 | E106: 0 | F106: 0 | G106: 0 | H106: 0 | I106: 0
A107: Finansal Kiralama İşlemlerinden Borçlar | B107: 0 | C107: 0 | D107: 0 | E107: 0 | F107: 0 | G107: 0 | H107: 0 | I107: 0
A108: Finans Sektörü Faaliyetlerinden Borçlar | B108: 0 | C108: 0 | D108: 0 | E108: 0 | F108: 0 | G108: 0 | H108: 0 | I108: 0
A109: Sigorta teknik karşılıkları | B109: 0 | C109: 0 | D109: 0 | E109: 0 | F109: 0 | G109: 0 | H109: 0 | I109: 0
A110: Diğer Finansal Yükümlülükler | B110: 0 | C110: 0 | D110: 0 | E110: 0 | F110: 0 | G110: 0 | H110: 0 | I110: 0
A111: Ticari Borçlar | B111: 117662450 | C111: 184556881 | D111: 200734583 | E111: 177807845 | F111: 127448135 | G111: 147138604 | H111: 187871986 | I111: 176736132
A112: İlişkili Taraflara Borçlar | B112: 0 | C112: 0 | D112: 0 | E112: 0 | F112: 0 | G112: 0 | H112: 0 | I112: 0
A113: Alınan Krediler | B113: 0 | C113: 0 | D113: 0 | E113: 0 | F113: 0 | G113: 0 | H113: 0 | I113: 0
A114: Diğer Borçlar | B114: 92460 | C114: 15627 | D114: 15728 | E114: 16324 | F114: 16471 | G114: 16521 | H114: 16483 | I114: 16595
A115: Müşteri Sözleşmelerinden Doğan Yükümlülükler | B115: 0 | C115: 0 | D115: 0 | E115: 0 | F115: 0 | G115: 0 | H115: 0 | I115: 0
A116: Bloke Hesaplar | B116: 0 | C116: 0 | D116: 0 | E116: 0 | F116: 0 | G116: 0 | H116: 0 | I116: 0
A117: Alınan Avanslar | B117: 0 | C117: 0 | D117: 0 | E117: 0 | F117: 0 | G117: 0 | H117: 0 | I117: 0
A118: Çalışanlara Sağlanan Faydalar Kapsamında Borçlar | B118: 0 | C118: 0 | D118: 0 | E118: 0 | F118: 0 | G118: 0 | H118: 0 | I118: 0
A119: Borç ve Gider Karşılıkları | B119: 1492719 | C119: 1770806 | D119: 3746304 | E119: 4331412 | F119: 5071275 | G119: 5340275 | H119: 5451263 | I119: 6375802
A120: Türev Finansal Araçlardan Borçlar | B120: 35831256 | C120: 30927705 | D120: 17585703 | E120: 17282246 | F120: 24069740 | G120: 29709374 | H120: 31685210 | I120: 26746806
A121: Cari Dönem Vergisiyle İlgili Borçlar | B121: 0 | C121: 0 | D121: 0 | E121: 0 | F121: 0 | G121: 0 | H121: 0 | I121: 0
A122: Ertelenen Vergi Yükümlülüğü | B122: 255450975 | C122: 250010926 | D122: 345385759 | E122: 181839302 | F122: 138224794 | G122: 122991431 | H122: 115209505 | I122: 317803371
A123: Devlet Teşvik ve Yardımları | B123: 0 | C123: 0 | D123: 0 | E123: 0 | F123: 0 | G123: 0 | H123: 0 | I123: 0
A124: Ertelenmiş Gelirler | B124: 0 | C124: 0 | D124: 0 | E124: 0 | F124: 0 | G124: 0 | H124: 0 | I124: 0
A125: Devam Eden Sözleşmeler Hakediş Bedelleri | B125: 0 | C125: 0 | D125: 0 | E125: 0 | F125: 0 | G125: 0 | H125: 0 | I125: 0
A126: Pozitif/Negatif Şerefiye | B126: 0 | C126: 0 | D126: 0 | E126: 0 | F126: 0 | G126: 0 | H126: 0 | I126: 0
A127: Diğer Uzun Vadeli Borçlar | B127: 0 | C127: 0 | D127: 0 | E127: 0 | F127: 0 | G127: 0 | H127: 0 | I127: 0
A128: İş Ortaklıklarının Uzun Vadeli Yükümlülükler İçindeki Payı | B128: 0 | C128: 0 | D128: 0 | E128: 0 | F128: 0 | G128: 0 | H128: 0 | I128: 0
A129: ÖZ SERMAYE (AZINLIK PAYI DAHİL) | B129: 1635114311 | C129: 1100178674 | D129: 1868433136 | E129: 460564993 | F129: 213546109 | G129: 98085079 | H129: 37349749 | I129: 961167509
A130: ANA ORTAKLIK DIŞI ÖZSERMAYE | B130: 0 | C130: 0 | D130: 0 | E130: 0 | F130: 0 | G130: 0 | H130: 0 | I130: 0
A131: Aile Üyeleri | B131: 0 | C131: 0 | D131: 0 | E131: 0 | F131: 0 | G131: 0 | H131: 0 | I131: 0
A132: Diğerleri | B132: 0 | C132: 0 | D132: 0 | E132: 0 | F132: 0 | G132: 0 | H132: 0 | I132: 0
A133: ÖZ SERMAYE (ANA ORTAKLIĞA AİT) | B133: 1635114311 | C133: 1100178674 | D133: 1868433136 | E133: 460564993 | F133: 213546109 | G133: 98085079 | H133: 37349749 | I133: 961167509
A134: Sermaye | B134: 729164000 | C134: 729164000 | D134: 729164000 | E134: 729164000 | F134: 729164000 | G134: 729164000 | H134: 729164000 | I134: 729164000
A135: Ödenmeyen Sermaye(-) | B135: 0 | C135: 0 | D135: 0 | E135: 0 | F135: 0 | G135: 0 | H135: 0 | I135: 0
A136: Karşılıklı İştirak Sermaye Düzeltmesi | B136: 0 | C136: 0 | D136: 0 | E136: 0 | F136: 0 | G136: 0 | H136: 0 | I136: 0
A137: Paylara İlişkin Primler/İskontolar | B137: 50220043 | C137: 50220043 | D137: 50220043 | E137: 50220043 | F137: 50220043 | G137: 50220043 | H137: 50220043 | I137: 50220043
A138: İşletmenin Geri Satın Alınan Kendi Hisseleri | B138: 0 | C138: 0 | D138: 0 | E138: 0 | F138: 0 | G138: 0 | H138: 0 | I138: 0
A139: İşletmenin Geri Alınan Kendi Hisse Senetlerinin Satışından Doğan Kar | B139: 0 | C139: 0 | D139: 0 | E139: 0 | F139: 0 | G139: 0 | H139: 0 | I139: 0
A140: Sermaye Avansı | B140: 0 | C140: 0 | D140: 0 | E140: 0 | F140: 0 | G140: 0 | H140: 0 | I140: 0
A141: Kar veya Zararda Yeniden Sınıflandırılmayacak Birikmiş Diğer Kapsamlı Gel. veya Gid. | B141: 1476834316 | C141: 1409709068 | D141: 2562384731 | E141: 2547891332 | F141: 2521883080 | G141: 2479792814 | H141: 2442324879 | I141: 3633902869
A142: Kar veya Zararda Yeniden Sınıflandırılacak Birikmiş Diğer Kapsamlı Gelir. veya Gid. | B142: -45977850 | C142: -30964517 | D142: -15159903 | E142: -11891988 | F142: -11279523 | G142: -10660259 | H142: -10034191 | I142: -9408118
A143: Sermaye Yedekleri | B143: 50220043 | C143: 50220043 | D143: 50220043 | E143: 50220043 | F143: 50220043 | G143: 50220043 | H143: 50220043 | I143: 50220043
A144: Sermaye Taahhütleri (-) | B144: 0 | C144: 0 | D144: 0 | E144: 0 | F144: 0 | G144: 0 | H144: 0 | I144: 0
A145: Katkı sermaye | B145: 0 | C145: 0 | D145: 0 | E145: 0 | F145: 0 | G145: 0 | H145: 0 | I145: 0
A146: Azınlık Hisseleri Satış Opsiyonu Değerleme Fonu | B146: 0 | C146: 0 | D146: 0 | E146: 0 | F146: 0 | G146: 0 | H146: 0 | I146: 0
A147: Emisyon Primi | B147: 0 | C147: 0 | D147: 0 | E147: 0 | F147: 0 | G147: 0 | H147: 0 | I147: 0
A148: Yeniden Değerleme Artışı | B148: 1476834316 | C148: 1409709068 | D148: 2562384731 | E148: 2547891332 | F148: 2521883080 | G148: 2479792814 | H148: 2442324879 | I148: 3633902869
A149: Kar Yedekleri | B149: -50300572 | C149: -35287239 | D149: -19482625 | E149: -11891988 | F149: -15602245 | G149: -10660259 | H149: -10034191 | I149: -9408118
A150: Dağıtılmamış Kar | B150: 0 | C150: 0 | D150: 0 | E150: 0 | F150: 0 | G150: 0 | H150: 0 | I150: 0
A151: Sermaye artırımı ile ilgili masraflar | B151: 0 | C151: 0 | D151: 0 | E151: 0 | F151: 0 | G151: 0 | H151: 0 | I151: 0
A152: Nakit Akım Koruması ile İlgili Birikmiş Kar | B152: 0 | C152: 0 | D152: 0 | E152: 0 | F152: 0 | G152: 0 | H152: 0 | I152: 0
A153: Karşılıklı İştirak Serm. Düzeltmesinin Nom. Tut. Aşan Kısım | B153: 0 | C153: 0 | D153: 0 | E153: 0 | F153: 0 | G153: 0 | H153: 0 | I153: 0
A154: Finansal Yatırımlar Değer Artış Fonu | B154: 0 | C154: 0 | D154: 0 | E154: 0 | F154: 0 | G154: 0 | H154: 0 | I154: 0
A155: Diğer Özkaynak Payları | B155: 0 | C155: 0 | D155: 0 | E155: 0 | F155: 0 | G155: 0 | H155: 0 | I155: 0
A156: Diğer Yedekler | B156: 0 | C156: 0 | D156: 0 | E156: -4322722 | F156: 0 | G156: -4322722 | H156: -4322722 | I156: -4322722
A157: Net Dönem Karı | B157: 0 | C157: 0 | D157: 0 | E157: 0 | F157: 0 | G157: 0 | H157: 0 | I157: 0
A158: Dönem Zararı (-) | B158: 351005560 | C158: 548673970 | D158: 507197153 | E158: 1556396550 | F158: 259397998 | G158: 375483440 | H158: 436887230 | I158: 740673273
A159: Geçmiş Yıl Karları | B159: 0 | C159: 0 | D159: 0 | E159: 0 | F159: 0 | G159: 0 | H159: 0 | I159: 0
A160: Net Dön. Kar. Ser. Hes. Ed. Tran. Ed. M. Dur. V. Sa. Karı | B160: 0 | C160: 0 | D160: 0 | E160: 0 | F160: 0 | G160: 0 | H160: 0 | I160: 0
A161: Geçmiş Yıl Zararları (-) | B161: 333839998 | C161: 618995310 | D161: 1060697942 | E161: 1408141204 | F161: 2926762853 | G161: 2884667439 | H161: 2847157112 | I161: 2811757372
A162: Yabancı Para Çevrim Farkları | B162: 0 | C162: 0 | D162: 0 | E162: 0 | F162: 0 | G162: 0 | H162: 0 | I162: 0
A163: Kardan Ayrılan Kısıtlanmış Yedekler | B163: 12053172 | C163: 12053172 | D163: 12053172 | E163: 12053172 | F163: 12053172 | G163: 12053172 | H163: 12053172 | I163: 12053172
A164: Kardan Ayrılan Kısıtlanmış Yedekler (27) | B164: 0 | C164: 0 | D164: 0 | E164: 0 | F164: 0 | G164: 0 | H164: 0 | I164: 0
A165: Zarar Telafi Fonu | B165: 0 | C165: 0 | D165: 0 | E165: 0 | F165: 0 | G165: 0 | H165: 0 | I165: 0
A166: Özsermaye Enf. Düz. Farkları | B166: 101988910 | C166: 101988910 | D166: 101988910 | E166: 101988910 | F166: 101988910 | G166: 101988910 | H166: 101988910 | I166: 101988910
A167: Sermaye Birleşme Fonu | B167: 0 | C167: 0 | D167: 0 | E167: 0 | F167: 0 | G167: 0 | H167: 0 | I167: 0
A168: İlave Ödenmiş Sermaye | B168: 0 | C168: 0 | D168: 0 | E168: 0 | F168: 0 | G168: 0 | H168: 0 | I168: 0
A169: Birikmiş Karlar/Zararlar | B169: 0 | C169: 0 | D169: 0 | E169: 0 | F169: 0 | G169: 0 | H169: 0 | I169: 0
A170: Yatırım Teşvikleri | B170: 0 | C170: 0 | D170: 0 | E170: 0 | F170: 0 | G170: 0 | H170: 0 | I170: 0
A171: Satılmaya Haz. Var. Üz. Gerçekleşmemiş Net Gelir | B171: 0 | C171: 0 | D171: 0 | E171: 0 | F171: 0 | G171: 0 | H171: 0 | I171: 0
A172: Ana ortaklık hisse satış kar/zarar | B172: 0 | C172: 0 | D172: 0 | E172: 0 | F172: 0 | G172: 0 | H172: 0 | I172: 0
A173: AZINLIK PAYLARI | B173: 0 | C173: 0 | D173: 0 | E173: 0 | F173: 0 | G173: 0 | H173: 0 | I173: 0
A174: TOPLAM PASİFLER | B174: 5330857302 | C174: 5044551542 | D174: 5879213602 | E174: 5704568702 | F174: 5590886817 | G174: 5763743185 | H174: 5523384751 | I174: 6874073181
A176: GELİR TABLOSU | B176: 2015/12 | C176: 2016/12 | D176: 2017/12 | E176: 2018/12 | F176: 2019/03 | G176: 2019/06 | H176: 2019/09 | I176: 2019/12
A177: BRÜT SATIŞLAR | B177: 0 | C177: 0 | D177: 0 | E177: 0 | F177: 0 | G177: 0 | H177: 0 | I177: 0
A178: Yurtiçi Satışlar | B178: 0 | C178: 0 | D178: 0 | E178: 0 | F178: 0 | G178: 0 | H178: 0 | I178: 0
A179: Yurtdışı Satışlar | B179: 0 | C179: 0 | D179: 0 | E179: 0 | F179: 0 | G179: 0 | H179: 0 | I179: 0
A180: Diğer Satışlar | B180: 0 | C180: 0 | D180: 0 | E180: 0 | F180: 0 | G180: 0 | H180: 0 | I180: 0
A181: SATIŞLARDAN İNDİRİMLER (-) | B181: 0 | C181: 0 | D181: 0 | E181: 0 | F181: 0 | G181: 0 | H181: 0 | I181: 0
A182: Satışdan İadeler (-) | B182: 0 | C182: 0 | D182: 0 | E182: 0 | F182: 0 | G182: 0 | H182: 0 | I182: 0
A183: Satış İskontoları (-) | B183: 0 | C183: 0 | D183: 0 | E183: 0 | F183: 0 | G183: 0 | H183: 0 | I183: 0
A184: Diğer İndirimler (-) | B184: 0 | C184: 0 | D184: 0 | E184: 0 | F184: 0 | G184: 0 | H184: 0 | I184: 0
A185: ESAS FAALİYET GELİRLERİ | B185: 0 | C185: 0 | D185: 0 | E185: 0 | F185: 0 | G185: 0 | H185: 0 | I185: 0
A186: SATIŞ GELİRLERİ | B186: 1802888608 | C186: 1420842034 | D186: 1855097831 | E186: 2216107988 | F186: 466242068 | G186: 895998547 | H186: 1382717425 | I186: 1823208667
A187: FAİZ GELİRİ | B187: 0 | C187: 0 | D187: 0 | E187: 0 | F187: 0 | G187: 0 | H187: 0 | I187: 0
A188: SATIŞLARIN MALİYETİ (-) | B188: 1643532534 | C188: 1376630683 | D188: 1801560026 | E188: 2158568675 | F188: 358112678 | G188: 672267948 | H188: 1180489200 | I188: 1645368926
A189: FAİZ GİDERİ | B189: 0 | C189: 0 | D189: 0 | E189: 0 | F189: 0 | G189: 0 | H189: 0 | I189: 0
A190: MUHTEMEL KREDİ ZARAR KARŞ. FİN.KİR. ALCK. KARŞ. VE FAKT. DEĞ. DÜŞ. KARŞ. | B190: 0 | C190: 0 | D190: 0 | E190: 0 | F190: 0 | G190: 0 | H190: 0 | I190: 0
A191: HİZMET GELİRLERİ | B191: 0 | C191: 0 | D191: 0 | E191: 0 | F191: 0 | G191: 0 | H191: 0 | I191: 0
A192: HİZMET GİDERLERİ (-) | B192: 0 | C192: 0 | D192: 0 | E192: 0 | F192: 0 | G192: 0 | H192: 0 | I192: 0
A193: KAMBİYO KARI/ZARARI | B193: 0 | C193: 0 | D193: 0 | E193: 0 | F193: 0 | G193: 0 | H193: 0 | I193: 0
A194: SERMAYE PİYASASI İŞLEM KARI/ZARARI | B194: 0 | C194: 0 | D194: 0 | E194: 0 | F194: 0 | G194: 0 | H194: 0 | I194: 0
A195: ESAS FAALİYETLERDEN DİĞER GİDER/GELİR | B195: 0 | C195: 0 | D195: 0 | E195: 0 | F195: 0 | G195: 0 | H195: 0 | I195: 0
A196: FAİZ, ÜCRET, PRİM, KOMİSYON VE DİĞER GELİRLER | B196: 0 | C196: 0 | D196: 0 | E196: 0 | F196: 0 | G196: 0 | H196: 0 | I196: 0
A197: Kambiyo Gelirleri | B197: 0 | C197: 0 | D197: 0 | E197: 0 | F197: 0 | G197: 0 | H197: 0 | I197: 0
A198: Faiz Gelirleri | B198: 0 | C198: 0 | D198: 0 | E198: 0 | F198: 0 | G198: 0 | H198: 0 | I198: 0
A199: Kar Payı Gelirleri | B199: 0 | C199: 0 | D199: 0 | E199: 0 | F199: 0 | G199: 0 | H199: 0 | I199: 0
A200: Türev Finansal İşlemlerden Kazanç | B200: 0 | C200: 0 | D200: 0 | E200: 0 | F200: 0 | G200: 0 | H200: 0 | I200: 0
A201: Portföy İşletmeciliği Faaliyetinden Elde Edilen Gelir | B201: 0 | C201: 0 | D201: 0 | E201: 0 | F201: 0 | G201: 0 | H201: 0 | I201: 0
... 91 more rows

Sheet AKCNS
A1: AKCNS | B1: AKCNS | C1: AKCNS | D1: AKCNS | E1: AKCNS | F1: AKCNS | G1: AKCNS | H1: AKCNS | I1: AKCNS
B2: 2015/12 | C2: 2016/12 | D2: 2017/12 | E2: 2018/12 | F2: 2019/03 | G2: 2019/06 | H2: 2019/09 | I2: 2019/12
A3: DÖNEN VARLIKLAR | B3: 569277391 | C3: 644276471 | D3: 712990460 | E3: 995968009 | F3: 918463307 | G3: 822436334 | H3: 805704406 | I3: 762909724
A4: Hazır Değerler | B4: 21854524 | C4: 23394673 | D4: 52746580 | E4: 275421213 | F4: 136675971 | G4: 96604655 | H4: 122354499 | I4: 152041813
A5: Gayrimenkul Projeleri Kapsamında Açılan Nakit Hesapları | B5: 0 | C5: 0 | D5: 0 | E5: 0 | F5: 0 | G5: 0 | H5: 0 | I5: 0
A6: Finansal Yatırımlar | B6: 0 | C6: 0 | D6: 0 | E6: 0 | F6: 0 | G6: 0 | H6: 0 | I6: 0
A7: Menkul Kıymetler | B7: 0 | C7: 0 | D7: 0 | E7: 0 | F7: 0 | G7: 0 | H7: 0 | I7: 0
A8: Türkiye Cumhuriyet Merkez Bankası Hesabı | B8: 0 | C8: 0 | D8: 0 | E8: 0 | F8: 0 | G8: 0 | H8: 0 | I8: 0
A9: Krediler ve Avanslar | B9: 0 | C9: 0 | D9: 0 | E9: 0 | F9: 0 | G9: 0 | H9: 0 | I9: 0
A10: Faktoring alacakları (net) | B10: 0 | C10: 0 | D10: 0 | E10: 0 | F10: 0 | G10: 0 | H10: 0 | I10: 0
A11: Teminata Verilen Finansal Varlıklar | B11: 0 | C11: 0 | D11: 0 | E11: 0 | F11: 0 | G11: 0 | H11: 0 | I11: 0
A12: Kısa Vadeli Ticari Alacaklar | B12: 398938211 | C12: 416772799 | D12: 470008393 | E12: 443942043 | F12: 441563924 | G12: 410586508 | H12: 415807479 | I12: 369076028
A13: Finansal Kiralama Alacakları | B13: 0 | C13: 0 | D13: 0 | E13: 0 | F13: 0 | G13: 0 | H13: 0 | I13: 0
A14: Finans Sektörü Faal. Alacaklar | B14: 0 | C14: 0 | D14: 0 | E14: 0 | F14: 0 | G14: 0 | H14: 0 | I14: 0
A15: İlişkili Taraflardan Alacaklar | B15: 0 | C15: 0 | D15: 0 | E15: 0 | F15: 0 | G15: 0 | H15: 0 | I15: 0
A16: Diğer Kısa Vadeli Alacaklar | B16: 3732343 | C16: 34375714 | D16: 28067951 | E16: 11030948 | F16: 42712280 | G16: 46725388 | H16: 49819863 | I16: 51697568
A17: Canlı Varlıklar | B17: 0 | C17: 0 | D17: 0 | E17: 0 | F17: 0 | G17: 0 | H17: 0 | I17: 0
A18: Kullanımı Kısıtlı Banka Bakiyeleri | B18: 0 | C18: 0 | D18: 0 | E18: 0 | F18: 0 | G18: 0 | H18: 0 | I18: 0
A19: Stoklar | B19: 135204055 | C19: 159762070 | D19: 150954315 | E19: 244939954 | F19: 274960944 | G19: 249419627 | H19: 205084000 | I19: 181225628
A20: Peşin Ödenen Kira Giderleri | B20: 0 | C20: 0 | D20: 0 | E20: 0 | F20: 0 | G20: 0 | H20: 0 | I20: 0
A21: Müşteri Sözleşmelerinden Doğan Varlıklar | B21: 0 | C21: 0 | D21: 0 | E21: 0 | F21: 0 | G21: 0 | H21: 0 | I21: 0
A22: İmtiyaz Sözleşmelerine İlişkin Finansal Varlıklar | B22: 0 | C22: 0 | D22: 0 | E22: 0 | F22: 0 | G22: 0 | H22: 0 | I22: 0
A23: Türev Enstrümanlar | B23: 0 | C23: 0 | D23: 0 | E23: 0 | F23: 0 | G23: 0 | H23: 0 | I23: 0
A24: Ertelenen Vergi Varlıkları | B24: 0 | C24: 0 | D24: 0 | E24: 0 | F24: 0 | G24: 0 | H24: 0 | I24: 0
A25: Durdurulan faaliyetler ile ilgili varlıklar | B25: 0 | C25: 0 | D25: 0 | E25: 0 | F25: 0 | G25: 0 | H25: 0 | I25: 0
A26: Ertelenmiş Sigortacılık Üretim Giderleri | B26: 0 | C26: 0 | D26: 0 | E26: 0 | F26: 0 | G26: 0 | H26: 0 | I26: 0
A27: Peşin Ödenmiş Giderler | B27: 9548258 | C27: 9871662 | D27: 11213221 | E27: 20603356 | F27: 20966785 | G27: 16905927 | H27: 11510139 | I27: 8868687
A28: Cari Dönem Vergisiyle İlgili Varlıklar | B28: 0 | C28: 0 | D28: 0 | E28: 0 | F28: 0 | G28: 1553992 | H28: 0 | I28: 0
A29: Nakit Dışı Serbest Kullanılabilir Teminatlar | B29: 0 | C29: 0 | D29: 0 | E29: 0 | F29: 0 | G29: 0 | H29: 0 | I29: 0
A30: Diğer Dönen Varlıklar | B30: 0 | C30: 99553 | D30: 0 | E30: 30495 | F30: 1583403 | G30: 640237 | H30: 1128426 | I30: 0
A31: Vadesine kadar elde tut. men. kıy. | B31: 0 | C31: 0 | D31: 0 | E31: 0 | F31: 0 | G31: 0 | H31: 0 | I31: 0
A32: Satılmaya Hazır Finansal Varlıklar | B32: 0 | C32: 0 | D32: 0 | E32: 0 | F32: 0 | G32: 0 | H32: 0 | I32: 0
A33: Alım Satım Amaçlı Menkul Kıymetler | B33: 0 | C33: 0 | D33: 0 | E33: 0 | F33: 0 | G33: 0 | H33: 0 | I33: 0
A34: İş Ortaklıklarının Dönen Varlıklar İçindeki Payı | B34: 0 | C34: 0 | D34: 0 | E34: 0 | F34: 0 | G34: 0 | H34: 0 | I34: 0
A35: Elden Çıkarılacak Faaliyetler ile İlgili Varlıklar | B35: 0 | C35: 0 | D35: 0 | E35: 0 | F35: 0 | G35: 0 | H35: 0 | I35: 0
A36: Satım amaçlı elde tutulan maddi duran varlıklar | B36: 0 | C36: 0 | D36: 0 | E36: 0 | F36: 0 | G36: 0 | H36: 0 | I36: 0
A37: Ortaklara Dağıtılmak Üzere Elde Tutulan Duran Varlıklar | B37: 0 | C37: 0 | D37: 0 | E37: 0 | F37: 0 | G37: 0 | H37: 0 | I37: 0
A38: DURAN VARLIKLAR | B38: 1135802540 | C38: 1198916709 | D38: 1203205382 | E38: 1164559084 | F38: 1215876481 | G38: 1217987510 | H38: 1220603052 | I38: 1246836764
A39: Menkul Kıymetler | B39: 0 | C39: 0 | D39: 0 | E39: 0 | F39: 0 | G39: 0 | H39: 0 | I39: 0
A40: Krediler ve Avanslar | B40: 0 | C40: 0 | D40: 0 | E40: 0 | F40: 0 | G40: 0 | H40: 0 | I40: 0
A41: Faktoring alacakları (net) | B41: 0 | C41: 0 | D41: 0 | E41: 0 | F41: 0 | G41: 0 | H41: 0 | I41: 0
A42: Uzun Vadeli Ticari Alacaklar | B42: 0 | C42: 0 | D42: 0 | E42: 0 | F42: 0 | G42: 0 | H42: 0 | I42: 0
A43: Finansal Kiralama Alacakları | B43: 0 | C43: 0 | D43: 0 | E43: 0 | F43: 0 | G43: 0 | H43: 0 | I43: 0
A44: Finans Sektörü Faal. Alacaklar | B44: 0 | C44: 0 | D44: 0 | E44: 0 | F44: 0 | G44: 0 | H44: 0 | I44: 0
A45: İlişkili Taraflardan Alacaklar | B45: 0 | C45: 0 | D45: 0 | E45: 0 | F45: 0 | G45: 0 | H45: 0 | I45: 0
A46: Türev Enstrümanlar | B46: 0 | C46: 0 | D46: 0 | E46: 0 | F46: 0 | G46: 0 | H46: 0 | I46: 0
A47: Diğer Uzun Vadeli Alacaklar | B47: 1086173 | C47: 1639051 | D47: 2464863 | E47: 2959286 | F47: 4286213 | G47: 3676371 | H47: 3639924 | I47: 3829453
A48: Finansal Yatırımlar | B48: 212856782 | C48: 218922061 | D48: 193205274 | E48: 140844587 | F48: 130848389 | G48: 125510942 | H48: 140431531 | I48: 159966650
A49: Özkaynak Yöntemiyle Değerlenen Yatırımlar | B49: 0 | C49: 0 | D49: 0 | E49: 0 | F49: 0 | G49: 0 | H49: 0 | I49: 0
A50: Canlı Varlıklar | B50: 0 | C50: 0 | D50: 0 | E50: 0 | F50: 0 | G50: 0 | H50: 0 | I50: 0
A51: İmtiyaz Sözleşmelerine İlişkin Finansal Varlıklar | B51: 0 | C51: 0 | D51: 0 | E51: 0 | F51: 0 | G51: 0 | H51: 0 | I51: 0
A52: Stoklar | B52: 0 | C52: 0 | D52: 0 | E52: 0 | F52: 0 | G52: 0 | H52: 0 | I52: 0
A53: Finansal Duran Varlıklar | B53: 0 | C53: 0 | D53: 0 | E53: 0 | F53: 0 | G53: 0 | H53: 0 | I53: 0
A54: Pozitif/Negatif Şerefiye | B54: 0 | C54: 0 | D54: 0 | E54: 0 | F54: 0 | G54: 0 | H54: 0 | I54: 0
A55: Yatırım Amaçlı Gayrimenkuller | B55: 0 | C55: 0 | D55: 0 | E55: 0 | F55: 0 | G55: 0 | H55: 0 | I55: 0
A56: Proje Halindeki Yatırım Amaçlı Gayrimenkuller | B56: 0 | C56: 0 | D56: 0 | E56: 0 | F56: 0 | G56: 0 | H56: 0 | I56: 0
A57: Alım Satım Amaçlı Gayrimenkuller (net) | B57: 0 | C57: 0 | D57: 0 | E57: 0 | F57: 0 | G57: 0 | H57: 0 | I57: 0
A58: Maddi Duran Varlıklar | B58: 744073243 | C58: 800140028 | D58: 830479327 | E58: 842551526 | F58: 832142839 | G58: 834490879 | H58: 826332260 | I58: 826102634
A59: Kullanım Hakkı Varlıkları | B59: 0 | C59: 0 | D59: 0 | E59: 0 | F59: 71014562 | G59: 79107182 | H59: 75859507 | I59: 81649082
A60: Maddi Olmayan Duran Varlıklar | B60: 171828410 | C60: 170150295 | D60: 172499873 | E60: 175391221 | F60: 174263659 | G60: 173721916 | H60: 172697783 | I60: 172585673
A61: Müşteri Sözleşmelerinden Doğan Varlıklar | B61: 0 | C61: 0 | D61: 0 | E61: 0 | F61: 0 | G61: 0 | H61: 0 | I61: 0
A62: Ertelenen Vergi Varlıkları | B62: 1018071 | C62: 1008726 | D62: 989811 | E62: 1025662 | F62: 1354556 | G62: 1328951 | H62: 1126938 | I62: 1087305
A63: Cari Dönem Vergisiyle İlgili Duran Varlıklar | B63: 0 | C63: 0 | D63: 0 | E63: 0 | F63: 0 | G63: 0 | H63: 0 | I63: 0
A64: Nakit Dışı Serbest Kullanılabilir Teminatlar | B64: 0 | C64: 0 | D64: 0 | E64: 0 | F64: 0 | G64: 0 | H64: 0 | I64: 0
A65: Peşin Ödenen Kira Giderleri | B65: 0 | C65: 0 | D65: 0 | E65: 0 | F65: 0 | G65: 0 | H65: 0 | I65: 0
A66: Peşin Ödenmiş Giderler | B66: 4939861 | C66: 7056548 | D66: 3566234 | E66: 1786802 | F66: 1966263 | G66: 151269 | H66: 515109 | I66: 1615967
A67: Diğer Duran Varlıklar | B67: 0 | C67: 0 | D67: 0 | E67: 0 | F67: 0 | G67: 0 | H67: 0 | I67: 0
A68: Vadesine kadar elde tut. men. kıy. | B68: 0 | C68: 0 | D68: 0 | E68: 0 | F68: 0 | G68: 0 | H68: 0 | I68: 0
A69: Satılmaya Hazır Finansal Varlıklar | B69: 0 | C69: 0 | D69: 0 | E69: 0 | F69: 0 | G69: 0 | H69: 0 | I69: 0
A70: İş Ortaklıklarının Duran Varlıklar İçindeki Payı | B70: 0 | C70: 0 | D70: 0 | E70: 0 | F70: 0 | G70: 0 | H70: 0 | I70: 0
A71: Ana Ortaklık Dışı Paylar | B71: 0 | C71: 0 | D71: 0 | E71: 0 | F71: 0 | G71: 0 | H71: 0 | I71: 0
A72: TOPLAM AKTİFLER | B72: 1705079931 | C72: 1843193180 | D72: 1916195842 | E72: 2160527093 | F72: 2134339788 | G72: 2040423844 | H72: 2026307458 | I72: 2009746488
A73: KISA VADELİ YÜKÜMLÜLÜKLER | B73: 326711352 | C73: 528156480 | D73: 715060491 | E73: 864750419 | F73: 1026072293 | G73: 919098944 | H73: 860436327 | I73: 649159854
A74: Finansal Borçlar | B74: 1361740 | C74: 96895623 | D74: 385419133 | E74: 461546990 | F74: 464887988 | G74: 382549320 | H74: 371966589 | I74: 252939281
A75: Uzun Vadeli Finansal Borçların Kısa Vadeli Kısımları | B75: 11047486 | C75: 111621900 | D75: 0 | E75: 0 | F75: 100699438 | G75: 103608051 | H75: 100219475 | I75: 2719393
A76: Mevduat | B76: 0 | C76: 0 | D76: 0 | E76: 0 | F76: 0 | G76: 0 | H76: 0 | I76: 0
A77: Türev Araçlar | B77: 0 | C77: 0 | D77: 0 | E77: 19766287 | F77: 17288408 | G77: 0 | H77: 0 | I77: 0
A78: Faktoring borçları | B78: 0 | C78: 0 | D78: 0 | E78: 0 | F78: 0 | G78: 0 | H78: 0 | I78: 0
A79: Finansal Kiralama İşlemlerinden Borçlar | B79: 0 | C79: 0 | D79: 0 | E79: 0 | F79: 0 | G79: 0 | H79: 0 | I79: 0
A80: Finans Sektörü Faaliyetlerinden Borçlar | B80: 0 | C80: 0 | D80: 0 | E80: 0 | F80: 0 | G80: 0 | H80: 0 | I80: 0
A81: Sigorta Teknik Karşılığı | B81: 0 | C81: 0 | D81: 0 | E81: 0 | F81: 0 | G81: 0 | H81: 0 | I81: 0
A82: Diğer Finansal Yükümlülükler | B82: 0 | C82: 0 | D82: 0 | E82: 0 | F82: 0 | G82: 0 | H82: 0 | I82: 0
A83: Ticari Borçlar | B83: 271084281 | C83: 276399902 | D83: 287484493 | E83: 339982221 | F83: 364290041 | G83: 399310136 | H83: 355667149 | I83: 355755945
A84: İlişkili Taraflara Borçlar | B84: 0 | C84: 0 | D84: 0 | E84: 0 | F84: 0 | G84: 0 | H84: 0 | I84: 0
A85: Alınan Krediler | B85: 0 | C85: 0 | D85: 0 | E85: 0 | F85: 0 | G85: 0 | H85: 0 | I85: 0
A86: Diğer Borçlar | B86: 9839692 | C86: 10940729 | D86: 12988540 | E86: 12016581 | F86: 50257969 | G86: 8481780 | H86: 12746468 | I86: 12810643
A87: Alınan Avanslar | B87: 0 | C87: 0 | D87: 0 | E87: 0 | F87: 0 | G87: 0 | H87: 0 | I87: 0
A88: Devlet Teşvik ve Yardımları | B88: 0 | C88: 0 | D88: 0 | E88: 0 | F88: 0 | G88: 0 | H88: 0 | I88: 0
A89: Ertelenmiş Gelirler | B89: 4338719 | C89: 4776908 | D89: 3487917 | E89: 5142166 | F89: 3010808 | G89: 3382765 | H89: 8128 | I89: 2536025
A90: Cari Dönem Vergi Yükümlülüğü | B90: 13984954 | C90: 10645831 | D90: 8813502 | E90: 4293754 | F90: 1338776 | G90: 0 | H90: 184758 | I90: 4611524
A91: Cari Dönem Vergisi ile İlgili Borçlar | B91: 0 | C91: 0 | D91: 0 | E91: 0 | F91: 0 | G91: 0 | H91: 0 | I91: 0
A92: Bloke Hesaplar | B92: 0 | C92: 0 | D92: 0 | E92: 0 | F92: 0 | G92: 0 | H92: 0 | I92: 0
A93: Müşteri Sözleşmelerinden Doğan Yükümlülükler | B93: 0 | C93: 0 | D93: 0 | E93: 0 | F93: 0 | G93: 0 | H93: 0 | I93: 0
A94: Özkaynak Yöntemiyle Değerlenen Yatırımlardan Yükümlülükler | B94: 0 | C94: 0 | D94: 0 | E94: 0 | F94: 0 | G94: 0 | H94: 0 | I94: 0
A95: Borç ve Gider Karşılıkları | B95: 9911364 | C95: 8781871 | D95: 8841080 | E95: 14630722 | F95: 12767694 | G95: 10549658 | H95: 10686529 | I95: 9074176
A96: Çalışanlara Sağlanan Faydalara İlişkin Karşılıklar | B96: 5143116 | C96: 8093716 | D96: 8025826 | E96: 7371698 | F96: 11531171 | G96: 11217234 | H96: 8957231 | I96: 8712867
A97: Ertelenen Vergi Yükümlülüğü | B97: 0 | C97: 0 | D97: 0 | E97: 0 | F97: 0 | G97: 0 | H97: 0 | I97: 0
A98: Durdurulan faaliyetler ile ilgili yükümlülükler | B98: 0 | C98: 0 | D98: 0 | E98: 0 | F98: 0 | G98: 0 | H98: 0 | I98: 0
A99: Diğer Kısa Vadeli Borçlar | B99: 0 | C99: 0 | D99: 0 | E99: 0 | F99: 0 | G99: 0 | H99: 0 | I99: 0
A100: İş Ortaklıklarının Kısa Vadeli Yükümlülükler İçindeki Payı | B100: 0 | C100: 0 | D100: 0 | E100: 0 | F100: 0 | G100: 0 | H100: 0 | I100: 0
A101: Elden Çıkarılacak Faaliyetler ile İlgili Yükümlülükler | B101: 0 | C101: 0 | D101: 0 | E101: 0 | F101: 0 | G101: 0 | H101: 0 | I101: 0
A102: Ortaklara Dağıtılmak Üzere Elde Tutulan Varlık Gruplarına İlişkin Yükümlülükler | B102: 0 | C102: 0 | D102: 0 | E102: 0 | F102: 0 | G102: 0 | H102: 0 | I102: 0
A103: UZUN VADELİ YÜKÜMLÜLÜKLER | B103: 177766146 | C103: 87582685 | D103: 92162311 | E103: 188210624 | F103: 146109728 | G103: 158339479 | H103: 160438886 | I103: 319512646
A104: Mevduatlar | B104: 0 | C104: 0 | D104: 0 | E104: 0 | F104: 0 | G104: 0 | H104: 0 | I104: 0
A105: Finansal Borçlar | B105: 100535155 | C105: 0 | D105: 0 | E105: 103614022 | F105: 62192295 | G105: 69846410 | H105: 67749549 | I105: 220795794
A106: Faktoring borçları | B106: 0 | C106: 0 | D106: 0 | E106: 0 | F106: 0 | G106: 0 | H106: 0 | I106: 0
A107: Finansal Kiralama İşlemlerinden Borçlar | B107: 0 | C107: 0 | D107: 0 | E107: 0 | F107: 0 | G107: 0 | H107: 0 | I107: 0
A108: Finans Sektörü Faaliyetlerinden Borçlar | B108: 0 | C108: 0 | D108: 0 | E108: 0 | F108: 0 | G108: 0 | H108: 0 | I108: 0
A109: Sigorta teknik karşılıkları | B109: 0 | C109: 0 | D109: 0 | E109: 0 | F109: 0 | G109: 0 | H109: 0 | I109: 0
A110: Diğer Finansal Yükümlülükler | B110: 0 | C110: 0 | D110: 0 | E110: 0 | F110: 0 | G110: 0 | H110: 0 | I110: 0
A111: Ticari Borçlar | B111: 0 | C111: 0 | D111: 0 | E111: 0 | F111: 0 | G111: 0 | H111: 0 | I111: 0
A112: İlişkili Taraflara Borçlar | B112: 0 | C112: 0 | D112: 0 | E112: 0 | F112: 0 | G112: 0 | H112: 0 | I112: 0
A113: Alınan Krediler | B113: 0 | C113: 0 | D113: 0 | E113: 0 | F113: 0 | G113: 0 | H113: 0 | I113: 0
A114: Diğer Borçlar | B114: 0 | C114: 0 | D114: 0 | E114: 0 | F114: 0 | G114: 0 | H114: 0 | I114: 0
A115: Müşteri Sözleşmelerinden Doğan Yükümlülükler | B115: 0 | C115: 0 | D115: 0 | E115: 0 | F115: 0 | G115: 0 | H115: 0 | I115: 0
A116: Bloke Hesaplar | B116: 0 | C116: 0 | D116: 0 | E116: 0 | F116: 0 | G116: 0 | H116: 0 | I116: 0
A117: Alınan Avanslar | B117: 0 | C117: 0 | D117: 0 | E117: 0 | F117: 0 | G117: 0 | H117: 0 | I117: 0
A118: Çalışanlara Sağlanan Faydalar Kapsamında Borçlar | B118: 0 | C118: 0 | D118: 0 | E118: 0 | F118: 0 | G118: 0 | H118: 0 | I118: 0
A119: Borç ve Gider Karşılıkları | B119: 29987422 | C119: 39729160 | D119: 44834267 | E119: 48694472 | F119: 50610847 | G119: 51788607 | H119: 53476762 | I119: 57285603
A120: Türev Finansal Araçlardan Borçlar | B120: 0 | C120: 0 | D120: 0 | E120: 0 | F120: 0 | G120: 0 | H120: 0 | I120: 0
A121: Cari Dönem Vergisiyle İlgili Borçlar | B121: 0 | C121: 0 | D121: 0 | E121: 0 | F121: 0 | G121: 0 | H121: 0 | I121: 0
A122: Ertelenen Vergi Yükümlülüğü | B122: 47243569 | C122: 47853525 | D122: 47328044 | E122: 35902130 | F122: 33306586 | G122: 36704462 | H122: 39212575 | I122: 41431249
A123: Devlet Teşvik ve Yardımları | B123: 0 | C123: 0 | D123: 0 | E123: 0 | F123: 0 | G123: 0 | H123: 0 | I123: 0
A124: Ertelenmiş Gelirler | B124: 0 | C124: 0 | D124: 0 | E124: 0 | F124: 0 | G124: 0 | H124: 0 | I124: 0
A125: Devam Eden Sözleşmeler Hakediş Bedelleri | B125: 0 | C125: 0 | D125: 0 | E125: 0 | F125: 0 | G125: 0 | H125: 0 | I125: 0
A126: Pozitif/Negatif Şerefiye | B126: 0 | C126: 0 | D126: 0 | E126: 0 | F126: 0 | G126: 0 | H126: 0 | I126: 0
A127: Diğer Uzun Vadeli Borçlar | B127: 0 | C127: 0 | D127: 0 | E127: 0 | F127: 0 | G127: 0 | H127: 0 | I127: 0
A128: İş Ortaklıklarının Uzun Vadeli Yükümlülükler İçindeki Payı | B128: 0 | C128: 0 | D128: 0 | E128: 0 | F128: 0 | G128: 0 | H128: 0 | I128: 0
A129: ÖZ SERMAYE (AZINLIK PAYI DAHİL) | B129: 1200602433 | C129: 1227454015 | D129: 1108973040 | E129: 1107566050 | F129: 962157767 | G129: 962985421 | H129: 1005432245 | I129: 1041073988
A130: ANA ORTAKLIK DIŞI ÖZSERMAYE | B130: 13429123 | C130: 12466908 | D130: 12032293 | E130: 13892682 | F130: 11802845 | G130: 11801929 | H130: 12028677 | I130: 12186591
A131: Aile Üyeleri | B131: 0 | C131: 0 | D131: 0 | E131: 0 | F131: 0 | G131: 0 | H131: 0 | I131: 0
A132: Diğerleri | B132: 0 | C132: 0 | D132: 0 | E132: 0 | F132: 0 | G132: 0 | H132: 0 | I132: 0
A133: ÖZ SERMAYE (ANA ORTAKLIĞA AİT) | B133: 1187173310 | C133: 1214987107 | D133: 1096940747 | E133: 1093673368 | F133: 950354922 | G133: 951183492 | H133: 993403568 | I133: 1028887397
A134: Sermaye | B134: 191447068 | C134: 191447068 | D134: 191447068 | E134: 191447068 | F134: 191447068 | G134: 191447068 | H134: 191447068 | I134: 191447068
A135: Ödenmeyen Sermaye(-) | B135: 0 | C135: 0 | D135: 0 | E135: 0 | F135: 0 | G135: 0 | H135: 0 | I135: 0
A136: Karşılıklı İştirak Sermaye Düzeltmesi | B136: 0 | C136: 0 | D136: 0 | E136: 0 | F136: 0 | G136: 0 | H136: 0 | I136: 0
A137: Paylara İlişkin Primler/İskontolar | B137: 0 | C137: 0 | D137: 0 | E137: 0 | F137: 0 | G137: 0 | H137: 0 | I137: 0
A138: İşletmenin Geri Satın Alınan Kendi Hisseleri | B138: 0 | C138: 0 | D138: 0 | E138: 0 | F138: 0 | G138: 0 | H138: 0 | I138: 0
A139: İşletmenin Geri Alınan Kendi Hisse Senetlerinin Satışından Doğan Kar | B139: 0 | C139: 0 | D139: 0 | E139: 0 | F139: 0 | G139: 0 | H139: 0 | I139: 0
A140: Sermaye Avansı | B140: 0 | C140: 0 | D140: 0 | E140: 0 | F140: 0 | G140: 0 | H140: 0 | I140: 0
A141: Kar veya Zararda Yeniden Sınıflandırılmayacak Birikmiş Diğer Kapsamlı Gel. veya Gid. | B141: -4117746 | C141: -10827947 | D141: -15953261 | E141: -18523585 | F141: -18523585 | G141: -18523585 | H141: -18523585 | I141: -23223675
A142: Kar veya Zararda Yeniden Sınıflandırılacak Birikmiş Diğer Kapsamlı Gelir. veya Gid. | B142: 163927269 | C142: 169689284 | D142: 145258336 | E142: 95515684 | F142: 85259296 | G142: 80188721 | H142: 94363281 | I142: 112921644
A143: Sermaye Yedekleri | B143: 0 | C143: 0 | D143: 0 | E143: 0 | F143: 0 | G143: 0 | H143: 0 | I143: 0
A144: Sermaye Taahhütleri (-) | B144: 0 | C144: 0 | D144: 0 | E144: 0 | F144: 0 | G144: 0 | H144: 0 | I144: 0
A145: Katkı sermaye | B145: 0 | C145: 0 | D145: 0 | E145: 0 | F145: 0 | G145: 0 | H145: 0 | I145: 0
A146: Azınlık Hisseleri Satış Opsiyonu Değerleme Fonu | B146: 0 | C146: 0 | D146: 0 | E146: 0 | F146: 0 | G146: 0 | H146: 0 | I146: 0
A147: Emisyon Primi | B147: 0 | C147: 0 | D147: 0 | E147: 0 | F147: 0 | G147: 0 | H147: 0 | I147: 0
A148: Yeniden Değerleme Artışı | B148: 159809523 | C148: 158861337 | D148: 129305075 | E148: 76992099 | F148: 66735711 | G148: 61665136 | H148: 75839696 | I148: 89697969
A149: Kar Yedekleri | B149: 0 | C149: 0 | D149: 0 | E149: 0 | F149: 0 | G149: 0 | H149: 0 | I149: 0
A150: Dağıtılmamış Kar | B150: 0 | C150: 0 | D150: 0 | E150: 0 | F150: 0 | G150: 0 | H150: 0 | I150: 0
A151: Sermaye artırımı ile ilgili masraflar | B151: 0 | C151: 0 | D151: 0 | E151: 0 | F151: 0 | G151: 0 | H151: 0 | I151: 0
A152: Nakit Akım Koruması ile İlgili Birikmiş Kar | B152: 0 | C152: 0 | D152: 0 | E152: 0 | F152: 0 | G152: 0 | H152: 0 | I152: 0
A153: Karşılıklı İştirak Serm. Düzeltmesinin Nom. Tut. Aşan Kısım | B153: 0 | C153: 0 | D153: 0 | E153: 0 | F153: 0 | G153: 0 | H153: 0 | I153: 0
A154: Finansal Yatırımlar Değer Artış Fonu | B154: 0 | C154: 0 | D154: 0 | E154: 0 | F154: 0 | G154: 0 | H154: 0 | I154: 0
A155: Diğer Özkaynak Payları | B155: 0 | C155: 0 | D155: 0 | E155: 0 | F155: 0 | G155: 0 | H155: 0 | I155: 0
A156: Diğer Yedekler | B156: 0 | C156: 0 | D156: 0 | E156: 0 | F156: 0 | G156: 0 | H156: 0 | I156: 0
A157: Net Dönem Karı | B157: 281120173 | C157: 286354013 | D157: 148693675 | E157: 177897040 | F157: 19712702 | G157: 25611847 | H157: 53657363 | I157: 75220457
A158: Dönem Zararı (-) | B158: 0 | C158: 0 | D158: 0 | E158: 0 | F158: 0 | G158: 0 | H158: 0 | I158: 0
A159: Geçmiş Yıl Karları | B159: 173435887 | C159: 171809916 | D159: 171719153 | E159: 170869425 | F159: 170579641 | G159: 170579641 | H159: 170579641 | I159: 170642103
A160: Net Dön. Kar. Ser. Hes. Ed. Tran. Ed. M. Dur. V. Sa. Karı | B160: 0 | C160: 0 | D160: 0 | E160: 0 | F160: 0 | G160: 0 | H160: 0 | I160: 0
A161: Geçmiş Yıl Zararları (-) | B161: 0 | C161: 0 | D161: 0 | E161: 0 | F161: 0 | G161: 0 | H161: 0 | I161: 0
A162: Yabancı Para Çevrim Farkları | B162: 0 | C162: 0 | D162: 0 | E162: 0 | F162: 0 | G162: 0 | H162: 0 | I162: 0
A163: Kardan Ayrılan Kısıtlanmış Yedekler | B163: 148183077 | C163: 173337191 | D163: 222598194 | E163: 243290154 | F163: 268702218 | G163: 268702218 | H163: 268702218 | I163: 268702218
A164: Kardan Ayrılan Kısıtlanmış Yedekler (27) | B164: 0 | C164: 0 | D164: 0 | E164: 0 | F164: 0 | G164: 0 | H164: 0 | I164: 0
A165: Zarar Telafi Fonu | B165: 0 | C165: 0 | D165: 0 | E165: 0 | F165: 0 | G165: 0 | H165: 0 | I165: 0
A166: Özsermaye Enf. Düz. Farkları | B166: 233177582 | C166: 233177582 | D166: 233177582 | E166: 233177582 | F166: 233177582 | G166: 233177582 | H166: 233177582 | I166: 233177582
A167: Sermaye Birleşme Fonu | B167: 0 | C167: 0 | D167: 0 | E167: 0 | F167: 0 | G167: 0 | H167: 0 | I167: 0
A168: İlave Ödenmiş Sermaye | B168: 0 | C168: 0 | D168: 0 | E168: 0 | F168: 0 | G168: 0 | H168: 0 | I168: 0
A169: Birikmiş Karlar/Zararlar | B169: 0 | C169: 0 | D169: 0 | E169: 0 | F169: 0 | G169: 0 | H169: 0 | I169: 0
A170: Yatırım Teşvikleri | B170: 0 | C170: 0 | D170: 0 | E170: 0 | F170: 0 | G170: 0 | H170: 0 | I170: 0
A171: Satılmaya Haz. Var. Üz. Gerçekleşmemiş Net Gelir | B171: 0 | C171: 0 | D171: 0 | E171: 0 | F171: 0 | G171: 0 | H171: 0 | I171: 0
A172: Ana ortaklık hisse satış kar/zarar | B172: 0 | C172: 0 | D172: 0 | E172: 0 | F172: 0 | G172: 0 | H172: 0 | I172: 0
A173: AZINLIK PAYLARI | B173: 0 | C173: 0 | D173: 0 | E173: 0 | F173: 0 | G173: 0 | H173: 0 | I173: 0
A174: TOPLAM PASİFLER | B174: 1705079931 | C174: 1843193180 | D174: 1916195842 | E174: 2160527093 | F174: 2134339788 | G174: 2040423844 | H174: 2026307458 | I174: 2009746488
A176: GELİR TABLOSU | B176: 2015/12 | C176: 2016/12 | D176: 2017/12 | E176: 2018/12 | F176: 2019/03 | G176: 2019/06 | H176: 2019/09 | I176: 2019/12
A177: BRÜT SATIŞLAR | B177: 1539677934 | C177: 1525703508 | D177: 1582199899 | E177: 1768981825 | F177: 418465085 | G177: 914067222 | H177: 1413938655 | I177: 1874529725
A178: Yurtiçi Satışlar | B178: 1355686631 | C178: 1335161153 | D178: 1369087002 | E178: 1448320396 | F178: 248030066 | G178: 538750365 | H178: 807952540 | I178: 1172060969
A179: Yurtdışı Satışlar | B179: 167673260 | C179: 170537892 | D179: 181712238 | E179: 320661429 | F179: 153719307 | G179: 338049640 | H179: 537478557 | I179: 702468756
A180: Diğer Satışlar | B180: 16318043 | C180: 20004463 | D180: 31400659 | E180: 0 | F180: 16715712 | G180: 37267217 | H180: 68507558 | I180: 0
A181: SATIŞLARDAN İNDİRİMLER (-) | B181: 71144451 | C181: 64648218 | D181: 63199184 | E181: 53411724 | F181: 11145042 | G181: 23699290 | H181: 35163209 | I181: 48423901
A182: Satışdan İadeler (-) | B182: 0 | C182: 0 | D182: 0 | E182: 0 | F182: 0 | G182: 0 | H182: 0 | I182: 0
A183: Satış İskontoları (-) | B183: 38687594 | C183: 30003824 | D183: 24048898 | E183: 18958454 | F183: 2390516 | G183: 3913265 | H183: 5220840 | I183: 8233926
A184: Diğer İndirimler (-) | B184: 32456857 | C184: 34644394 | D184: 39150286 | E184: 34453270 | F184: 8754526 | G184: 19786025 | H184: 29942369 | I184: 40189975
A185: ESAS FAALİYET GELİRLERİ | B185: 0 | C185: 0 | D185: 0 | E185: 0 | F185: 0 | G185: 0 | H185: 0 | I185: 0
A186: SATIŞ GELİRLERİ | B186: 1468533483 | C186: 1461055290 | D186: 1519000715 | E186: 1715570101 | F186: 407320043 | G186: 890367932 | H186: 1378775446 | I186: 1826105824
A187: FAİZ GELİRİ | B187: 0 | C187: 0 | D187: 0 | E187: 0 | F187: 0 | G187: 0 | H187: 0 | I187: 0
A188: SATIŞLARIN MALİYETİ (-) | B188: 1040067231 | C188: 1047113286 | D188: 1213196413 | E188: 1350035351 | F188: 372986745 | G188: 777422429 | H188: 1185038831 | I188: 1573110547
A189: FAİZ GİDERİ | B189: 0 | C189: 0 | D189: 0 | E189: 0 | F189: 0 | G189: 0 | H189: 0 | I189: 0
A190: MUHTEMEL KREDİ ZARAR KARŞ. FİN.KİR. ALCK. KARŞ. VE FAKT. DEĞ. DÜŞ. KARŞ. | B190: 0 | C190: 0 | D190: 0 | E190: 0 | F190: 0 | G190: 0 | H190: 0 | I190: 0
A191: HİZMET GELİRLERİ | B191: 0 | C191: 0 | D191: 0 | E191: 0 | F191: 0 | G191: 0 | H191: 0 | I191: 0
A192: HİZMET GİDERLERİ (-) | B192: 0 | C192: 0 | D192: 0 | E192: 0 | F192: 0 | G192: 0 | H192: 0 | I192: 0
A193: KAMBİYO KARI/ZARARI | B193: 0 | C193: 0 | D193: 0 | E193: 0 | F193: 0 | G193: 0 | H193: 0 | I193: 0
A194: SERMAYE PİYASASI İŞLEM KARI/ZARARI | B194: 0 | C194: 0 | D194: 0 | E194: 0 | F194: 0 | G194: 0 | H194: 0 | I194: 0
A195: ESAS FAALİYETLERDEN DİĞER GİDER/GELİR | B195: 0 | C195: 0 | D195: 0 | E195: 0 | F195: 0 | G195: 0 | H195: 0 | I195: 0
A196: FAİZ, ÜCRET, PRİM, KOMİSYON VE DİĞER GELİRLER | B196: 0 | C196: 0 | D196: 0 | E196: 0 | F196: 0 | G196: 0 | H196: 0 | I196: 0
A197: Kambiyo Gelirleri | B197: 0 | C197: 0 | D197: 0 | E197: 0 | F197: 0 | G197: 0 | H197: 0 | I197: 0
A198: Faiz Gelirleri | B198: 0 | C198: 0 | D198: 0 | E198: 0 | F198: 0 | G198: 0 | H198: 0 | I198: 0
A199: Kar Payı Gelirleri | B199: 0 | C199: 0 | D199: 0 | E199: 0 | F199: 0 | G199: 0 | H199: 0 | I199: 0
A200: Türev Finansal İşlemlerden Kazanç | B200: 0 | C200: 0 | D200: 0 | E200: 0 | F200: 0 | G200: 0 | H200: 0 | I200: 0
A201: Portföy İşletmeciliği Faaliyetinden Elde Edilen Gelir | B201: 0 | C201: 0 | D201: 0 | E201: 0 | F201: 0 | G201: 0 | H201: 0 | I201: 0
... 91 more rows

Sheet AKGUV
A1: AKGUV | B1: AKGUV | C1: AKGUV | D1: AKGUV | E1: AKGUV | F1: AKGUV | G1: AKGUV | H1: AKGUV | I1: AKGUV
B2: 2015/12 | C2: 2016/12 | D2: 2017/12 | E2: 2018/12 | F2: 2019/03 | G2: 2019/06 | H2: 2019/09 | I2: 2019/12
A3: DÖNEN VARLIKLAR | B3: 110378933 | C3: 103723524 | D3: 120760984 | E3: 86750453 | F3: 93320888 | G3: 87089238 | H3: 87965927 | I3: 55925375
A4: Hazır Değerler | B4: 2698044 | C4: 3315449 | D4: 17778536 | E4: 2800401 | F4: 2177066 | G4: 435105 | H4: 255161 | I4: 165411
A5: Gayrimenkul Projeleri Kapsamında Açılan Nakit Hesapları | B5: 0 | C5: 0 | D5: 0 | E5: 0 | F5: 0 | G5: 0 | H5: 0 | I5: 0
A6: Finansal Yatırımlar | B6: 0 | C6: 0 | D6: 0 | E6: 0 | F6: 0 | G6: 4284 | H6: 4284 | I6: 4284
A7: Menkul Kıymetler | B7: 0 | C7: 0 | D7: 0 | E7: 0 | F7: 0 | G7: 0 | H7: 0 | I7: 0
A8: Türkiye Cumhuriyet Merkez Bankası Hesabı | B8: 0 | C8: 0 | D8: 0 | E8: 0 | F8: 0 | G8: 0 | H8: 0 | I8: 0
A9: Krediler ve Avanslar | B9: 0 | C9: 0 | D9: 0 | E9: 0 | F9: 0 | G9: 0 | H9: 0 | I9: 0
A10: Faktoring alacakları (net) | B10: 0 | C10: 0 | D10: 0 | E10: 0 | F10: 0 | G10: 0 | H10: 0 | I10: 0
A11: Teminata Verilen Finansal Varlıklar | B11: 0 | C11: 0 | D11: 0 | E11: 0 | F11: 0 | G11: 0 | H11: 0 | I11: 0
A12: Kısa Vadeli Ticari Alacaklar | B12: 60501694 | C12: 69836789 | D12: 58710445 | E12: 34625561 | F12: 37957081 | G12: 39290549 | H12: 39038823 | I12: 25518056
A13: Finansal Kiralama Alacakları | B13: 0 | C13: 0 | D13: 0 | E13: 0 | F13: 0 | G13: 0 | H13: 0 | I13: 0
A14: Finans Sektörü Faal. Alacaklar | B14: 0 | C14: 0 | D14: 0 | E14: 0 | F14: 0 | G14: 0 | H14: 0 | I14: 0
A15: İlişkili Taraflardan Alacaklar | B15: 0 | C15: 0 | D15: 0 | E15: 0 | F15: 0 | G15: 0 | H15: 0 | I15: 0
A16: Diğer Kısa Vadeli Alacaklar | B16: 25634808 | C16: 19334843 | D16: 21921541 | E16: 30871959 | F16: 34520998 | G16: 26146813 | H16: 27246042 | I16: 12961242
A17: Canlı Varlıklar | B17: 0 | C17: 0 | D17: 0 | E17: 0 | F17: 0 | G17: 0 | H17: 0 | I17: 0
A18: Kullanımı Kısıtlı Banka Bakiyeleri | B18: 0 | C18: 0 | D18: 0 | E18: 0 | F18: 0 | G18: 0 | H18: 0 | I18: 0
A19: Stoklar | B19: 10192750 | C19: 4053752 | D19: 8638524 | E19: 9803871 | F19: 9758236 | G19: 13562653 | H19: 13649070 | I19: 10170028
A20: Peşin Ödenen Kira Giderleri | B20: 0 | C20: 0 | D20: 0 | E20: 0 | F20: 0 | G20: 0 | H20: 0 | I20: 0
A21: Müşteri Sözleşmelerinden Doğan Varlıklar | B21: 0 | C21: 0 | D21: 0 | E21: 0 | F21: 0 | G21: 0 | H21: 0 | I21: 0
A22: İmtiyaz Sözleşmelerine İlişkin Finansal Varlıklar | B22: 0 | C22: 0 | D22: 0 | E22: 0 | F22: 0 | G22: 0 | H22: 0 | I22: 0
A23: Türev Enstrümanlar | B23: 0 | C23: 0 | D23: 0 | E23: 0 | F23: 0 | G23: 0 | H23: 0 | I23: 0
A24: Ertelenen Vergi Varlıkları | B24: 0 | C24: 0 | D24: 0 | E24: 0 | F24: 0 | G24: 0 | H24: 0 | I24: 0
A25: Durdurulan faaliyetler ile ilgili varlıklar | B25: 0 | C25: 0 | D25: 0 | E25: 0 | F25: 0 | G25: 0 | H25: 0 | I25: 0
A26: Ertelenmiş Sigortacılık Üretim Giderleri | B26: 0 | C26: 0 | D26: 0 | E26: 0 | F26: 0 | G26: 0 | H26: 0 | I26: 0
A27: Peşin Ödenmiş Giderler | B27: 9162834 | C27: 2941637 | D27: 2769883 | E27: 6627587 | F27: 7183375 | G27: 5555466 | H27: 5346727 | I27: 5108052
A28: Cari Dönem Vergisiyle İlgili Varlıklar | B28: 0 | C28: 0 | D28: 5987 | E28: 44642 | F28: 3649 | G28: 3654 | H28: 409389 | I28: 1571
A29: Nakit Dışı Serbest Kullanılabilir Teminatlar | B29: 0 | C29: 0 | D29: 0 | E29: 0 | F29: 0 | G29: 0 | H29: 0 | I29: 0
A30: Diğer Dönen Varlıklar | B30: 2188803 | C30: 4241054 | D30: 10936068 | E30: 1976432 | F30: 1720483 | G30: 2090714 | H30: 2016431 | I30: 1996731
A31: Vadesine kadar elde tut. men. kıy. | B31: 0 | C31: 0 | D31: 0 | E31: 0 | F31: 0 | G31: 0 | H31: 0 | I31: 0
A32: Satılmaya Hazır Finansal Varlıklar | B32: 0 | C32: 0 | D32: 0 | E32: 0 | F32: 0 | G32: 0 | H32: 0 | I32: 0
A33: Alım Satım Amaçlı Menkul Kıymetler | B33: 0 | C33: 0 | D33: 0 | E33: 0 | F33: 0 | G33: 0 | H33: 0 | I33: 0
A34: İş Ortaklıklarının Dönen Varlıklar İçindeki Payı | B34: 0 | C34: 0 | D34: 0 | E34: 0 | F34: 0 | G34: 0 | H34: 0 | I34: 0
A35: Elden Çıkarılacak Faaliyetler ile İlgili Varlıklar | B35: 0 | C35: 0 | D35: 0 | E35: 0 | F35: 0 | G35: 0 | H35: 0 | I35: 0
A36: Satım amaçlı elde tutulan maddi duran varlıklar | B36: 0 | C36: 0 | D36: 0 | E36: 0 | F36: 0 | G36: 0 | H36: 0 | I36: 0
A37: Ortaklara Dağıtılmak Üzere Elde Tutulan Duran Varlıklar | B37: 0 | C37: 0 | D37: 0 | E37: 0 | F37: 0 | G37: 0 | H37: 0 | I37: 0
A38: DURAN VARLIKLAR | B38: 20409826 | C38: 34489258 | D38: 48878442 | E38: 49777454 | F38: 48247642 | G38: 49387011 | H38: 48150001 | I38: 51467042
A39: Menkul Kıymetler | B39: 0 | C39: 0 | D39: 0 | E39: 0 | F39: 0 | G39: 0 | H39: 0 | I39: 0
A40: Krediler ve Avanslar | B40: 0 | C40: 0 | D40: 0 | E40: 0 | F40: 0 | G40: 0 | H40: 0 | I40: 0
A41: Faktoring alacakları (net) | B41: 0 | C41: 0 | D41: 0 | E41: 0 | F41: 0 | G41: 0 | H41: 0 | I41: 0
A42: Uzun Vadeli Ticari Alacaklar | B42: 0 | C42: 3001 | D42: 0 | E42: 0 | F42: 0 | G42: 0 | H42: 0 | I42: 0
A43: Finansal Kiralama Alacakları | B43: 0 | C43: 0 | D43: 0 | E43: 0 | F43: 0 | G43: 0 | H43: 0 | I43: 0
A44: Finans Sektörü Faal. Alacaklar | B44: 0 | C44: 0 | D44: 0 | E44: 0 | F44: 0 | G44: 0 | H44: 0 | I44: 0
A45: İlişkili Taraflardan Alacaklar | B45: 0 | C45: 0 | D45: 0 | E45: 0 | F45: 0 | G45: 0 | H45: 0 | I45: 0
A46: Türev Enstrümanlar | B46: 0 | C46: 0 | D46: 0 | E46: 0 | F46: 0 | G46: 0 | H46: 0 | I46: 0
A47: Diğer Uzun Vadeli Alacaklar | B47: 3001 | C47: 0 | D47: 3001 | E47: 3001 | F47: 3001 | G47: 3001 | H47: 0 | I47: 0
A48: Finansal Yatırımlar | B48: 0 | C48: 0 | D48: 0 | E48: 0 | F48: 0 | G48: 0 | H48: 0 | I48: 0
A49: Özkaynak Yöntemiyle Değerlenen Yatırımlar | B49: 0 | C49: 0 | D49: 0 | E49: 5477232 | F49: 5146772 | G49: 7562285 | H49: 7452950 | I49: 5676593
A50: Canlı Varlıklar | B50: 0 | C50: 0 | D50: 0 | E50: 0 | F50: 0 | G50: 0 | H50: 0 | I50: 0
A51: İmtiyaz Sözleşmelerine İlişkin Finansal Varlıklar | B51: 0 | C51: 0 | D51: 0 | E51: 0 | F51: 0 | G51: 0 | H51: 0 | I51: 0
A52: Stoklar | B52: 0 | C52: 0 | D52: 0 | E52: 0 | F52: 0 | G52: 0 | H52: 0 | I52: 0
A53: Finansal Duran Varlıklar | B53: 0 | C53: 0 | D53: 0 | E53: 0 | F53: 0 | G53: 0 | H53: 0 | I53: 0
A54: Pozitif/Negatif Şerefiye | B54: 0 | C54: 0 | D54: 0 | E54: 0 | F54: 0 | G54: 0 | H54: 0 | I54: 0
A55: Yatırım Amaçlı Gayrimenkuller | B55: 0 | C55: 0 | D55: 0 | E55: 0 | F55: 0 | G55: 0 | H55: 0 | I55: 0
A56: Proje Halindeki Yatırım Amaçlı Gayrimenkuller | B56: 0 | C56: 0 | D56: 0 | E56: 0 | F56: 0 | G56: 0 | H56: 0 | I56: 0
A57: Alım Satım Amaçlı Gayrimenkuller (net) | B57: 0 | C57: 0 | D57: 0 | E57: 0 | F57: 0 | G57: 0 | H57: 0 | I57: 0
A58: Maddi Duran Varlıklar | B58: 16198280 | C58: 25894189 | D58: 30202548 | E58: 28532109 | F58: 27776362 | G58: 26898867 | H58: 26115944 | I58: 27640915
A59: Kullanım Hakkı Varlıkları | B59: 0 | C59: 0 | D59: 0 | E59: 0 | F59: 109474 | G59: 93835 | H59: 78196 | I59: 116666
A60: Maddi Olmayan Duran Varlıklar | B60: 3654270 | C60: 8000260 | D60: 14066397 | E60: 14947481 | F60: 14687160 | G60: 14353529 | H60: 14021033 | I60: 13748954
A61: Müşteri Sözleşmelerinden Doğan Varlıklar | B61: 0 | C61: 0 | D61: 0 | E61: 0 | F61: 0 | G61: 0 | H61: 0 | I61: 0
A62: Ertelenen Vergi Varlıkları | B62: 554275 | C62: 591808 | D62: 474031 | E62: 693567 | F62: 524873 | G62: 475494 | H62: 481878 | I62: 4283914
A63: Cari Dönem Vergisiyle İlgili Duran Varlıklar | B63: 0 | C63: 0 | D63: 0 | E63: 0 | F63: 0 | G63: 0 | H63: 0 | I63: 0
A64: Nakit Dışı Serbest Kullanılabilir Teminatlar | B64: 0 | C64: 0 | D64: 0 | E64: 0 | F64: 0 | G64: 0 | H64: 0 | I64: 0
A65: Peşin Ödenen Kira Giderleri | B65: 0 | C65: 0 | D65: 0 | E65: 0 | F65: 0 | G65: 0 | H65: 0 | I65: 0
A66: Peşin Ödenmiş Giderler | B66: 0 | C66: 0 | D66: 4132465 | E66: 124064 | F66: 0 | G66: 0 | H66: 0 | I66: 0
A67: Diğer Duran Varlıklar | B67: 0 | C67: 0 | D67: 0 | E67: 0 | F67: 0 | G67: 0 | H67: 0 | I67: 0
A68: Vadesine kadar elde tut. men. kıy. | B68: 0 | C68: 0 | D68: 0 | E68: 0 | F68: 0 | G68: 0 | H68: 0 | I68: 0
A69: Satılmaya Hazır Finansal Varlıklar | B69: 0 | C69: 0 | D69: 0 | E69: 0 | F69: 0 | G69: 0 | H69: 0 | I69: 0
A70: İş Ortaklıklarının Duran Varlıklar İçindeki Payı | B70: 0 | C70: 0 | D70: 0 | E70: 0 | F70: 0 | G70: 0 | H70: 0 | I70: 0
A71: Ana Ortaklık Dışı Paylar | B71: 0 | C71: 0 | D71: 0 | E71: 0 | F71: 0 | G71: 0 | H71: 0 | I71: 0
A72: TOPLAM AKTİFLER | B72: 130788759 | C72: 138212782 | D72: 169639426 | E72: 136527907 | F72: 141568530 | G72: 136476249 | H72: 136115928 | I72: 107392417
A73: KISA VADELİ YÜKÜMLÜLÜKLER | B73: 59444073 | C73: 69395500 | D73: 63536800 | E73: 33401860 | F73: 42753584 | G73: 34990787 | H73: 34760547 | I73: 26060739
A74: Finansal Borçlar | B74: 14902846 | C74: 9588228 | D74: 10723469 | E74: 6637900 | F74: 194375 | G74: 0 | H74: 79736 | I74: 340524
A75: Uzun Vadeli Finansal Borçların Kısa Vadeli Kısımları | B75: 10749260 | C75: 6690140 | D75: 7523393 | E75: 10025539 | F75: 15467370 | G75: 11570021 | H75: 6871561 | I75: 7776921
A76: Mevduat | B76: 0 | C76: 0 | D76: 0 | E76: 0 | F76: 0 | G76: 0 | H76: 0 | I76: 0
A77: Türev Araçlar | B77: 0 | C77: 0 | D77: 0 | E77: 0 | F77: 0 | G77: 0 | H77: 0 | I77: 0
A78: Faktoring borçları | B78: 0 | C78: 0 | D78: 0 | E78: 0 | F78: 0 | G78: 0 | H78: 0 | I78: 0
A79: Finansal Kiralama İşlemlerinden Borçlar | B79: 0 | C79: 0 | D79: 0 | E79: 0 | F79: 0 | G79: 0 | H79: 0 | I79: 0
A80: Finans Sektörü Faaliyetlerinden Borçlar | B80: 0 | C80: 0 | D80: 0 | E80: 0 | F80: 0 | G80: 0 | H80: 0 | I80: 0
A81: Sigorta Teknik Karşılığı | B81: 0 | C81: 0 | D81: 0 | E81: 0 | F81: 0 | G81: 0 | H81: 0 | I81: 0
A82: Diğer Finansal Yükümlülükler | B82: 0 | C82: 0 | D82: 0 | E82: 0 | F82: 0 | G82: 0 | H82: 0 | I82: 16728
A83: Ticari Borçlar | B83: 4172734 | C83: 4224702 | D83: 5312135 | E83: 3930229 | F83: 5181718 | G83: 3911468 | H83: 3927149 | I83: 4057123
A84: İlişkili Taraflara Borçlar | B84: 0 | C84: 0 | D84: 0 | E84: 0 | F84: 0 | G84: 0 | H84: 0 | I84: 0
A85: Alınan Krediler | B85: 0 | C85: 0 | D85: 0 | E85: 0 | F85: 0 | G85: 0 | H85: 0 | I85: 0
A86: Diğer Borçlar | B86: 456614 | C86: 1985337 | D86: 353185 | E86: 3932884 | F86: 7226878 | G86: 3945412 | H86: 8798392 | I86: 1311114
A87: Alınan Avanslar | B87: 0 | C87: 0 | D87: 0 | E87: 0 | F87: 0 | G87: 0 | H87: 0 | I87: 0
A88: Devlet Teşvik ve Yardımları | B88: 0 | C88: 0 | D88: 0 | E88: 0 | F88: 0 | G88: 0 | H88: 0 | I88: 0
A89: Ertelenmiş Gelirler | B89: 0 | C89: 0 | D89: 0 | E89: 0 | F89: 404871 | G89: 540588 | H89: 541090 | I89: 591003
A90: Cari Dönem Vergi Yükümlülüğü | B90: 77643 | C90: 436911 | D90: 133760 | E90: 20989 | F90: 0 | G90: 407823 | H90: 314277 | I90: 3
A91: Cari Dönem Vergisi ile İlgili Borçlar | B91: 0 | C91: 0 | D91: 0 | E91: 0 | F91: 0 | G91: 0 | H91: 0 | I91: 0
A92: Bloke Hesaplar | B92: 0 | C92: 0 | D92: 0 | E92: 0 | F92: 0 | G92: 0 | H92: 0 | I92: 0
A93: Müşteri Sözleşmelerinden Doğan Yükümlülükler | B93: 0 | C93: 0 | D93: 0 | E93: 0 | F93: 0 | G93: 0 | H93: 0 | I93: 0
A94: Özkaynak Yöntemiyle Değerlenen Yatırımlardan Yükümlülükler | B94: 0 | C94: 0 | D94: 0 | E94: 0 | F94: 0 | G94: 0 | H94: 0 | I94: 0
A95: Borç ve Gider Karşılıkları | B95: 0 | C95: 0 | D95: 0 | E95: 0 | F95: 0 | G95: 27149 | H95: 22891 | I95: 16745
A96: Çalışanlara Sağlanan Faydalara İlişkin Karşılıklar | B96: 23153357 | C96: 37876075 | D96: 32998300 | E96: 7286523 | F96: 11463498 | G96: 12102134 | H96: 11358323 | I96: 8442367
A97: Ertelenen Vergi Yükümlülüğü | B97: 0 | C97: 0 | D97: 0 | E97: 0 | F97: 0 | G97: 0 | H97: 0 | I97: 0
A98: Durdurulan faaliyetler ile ilgili yükümlülükler | B98: 0 | C98: 0 | D98: 0 | E98: 0 | F98: 0 | G98: 0 | H98: 0 | I98: 0
A99: Diğer Kısa Vadeli Borçlar | B99: 5931619 | C99: 8594107 | D99: 6492558 | E99: 1567796 | F99: 2814874 | G99: 2486192 | H99: 2847128 | I99: 3508211
A100: İş Ortaklıklarının Kısa Vadeli Yükümlülükler İçindeki Payı | B100: 0 | C100: 0 | D100: 0 | E100: 0 | F100: 0 | G100: 0 | H100: 0 | I100: 0
A101: Elden Çıkarılacak Faaliyetler ile İlgili Yükümlülükler | B101: 0 | C101: 0 | D101: 0 | E101: 0 | F101: 0 | G101: 0 | H101: 0 | I101: 0
A102: Ortaklara Dağıtılmak Üzere Elde Tutulan Varlık Gruplarına İlişkin Yükümlülükler | B102: 0 | C102: 0 | D102: 0 | E102: 0 | F102: 0 | G102: 0 | H102: 0 | I102: 0
